Workbook

Sheet 4
A1: 2010 | B1: 1 | C1: 2 | D1: 3 | E1: 4 | F1: 5 | G1: 6 | H1: 7 | I1: 8 | J1: 9 | K1: 10 | L1: 11 | M1: 12 | N1: 13 | O1: 14 | P1: 15 | Q1: 16 | R1: 17 | S1: 18 | T1: 19 | U1: 20 | V1: 21 | W1: 22 | X1: 23 | Y1: 24 | Z1: 25 | AA1: 26 | AB1: 27 | AC1: 28 | AD1: 29 | AE1: 30 | AF1: 31 | AG1: 計 | AH1: =A1&"年"&MID(CELL("filename",$A$1),FIND("]",CELL("filename",$A$1))+1,31) &"月" -> 2010年4月
A2: 今原太一 | B2: 出 | C2: 出 | D2: 公 | F2: 出 | G2: 出 | H2: 出 | I2: 出 | J2: 出 | K2: 公 | M2: 出 | N2: 出 | O2: 出 | P2: 出 | Q2: 出 | T2: 出 | U2: 出 | V2: 出 | W2: 出 | X2: 出 | AA2: 出 | AB2: 出 | AC2: 出 | AD2: 公 | AE2: 出 | AH2: =A2 -> 今原太一 | AI2: 日数(日) | AJ2: 勤務時間(h) | AK2: 早退（h） | AL2: 合計(h) | AM2: 金額(円) | AN2: 出 | AO2: 合計 | AP2: =SUM(AM:AM)/2 -> 4288338
A3: 残業 | B3: 1 | G3: 0.5 | H3: 1.5 | N3: 0.5 | O3: 0.5 | P3: 0.5 | U3: 1 | AG3: =SUM(B3:AF3) -> 5.5 | AH3: 出勤 | AI3: =COUNTIF(B2:AF2,"出") -> 21 | AJ3: =AI3*7.8 -> 163.8 | AK3: =AG4 -> 1 | AL3: =AJ3-AK3 -> 162.8 | AM3: =ROUNDDOWN(AL3*請求書・納品書!$M$11,) -> 358160 | AN3: 公 | AO3: 人数 | AP3: =COUNTA(AH:AH)-COUNTIF(AH:AH,0)-32*4-1 -> 10
A4: 遅・早(出) | T4: 1 | AG4: =SUM(B4:AF4) -> 1 | AH4: 残業 | AL4: =AG3 -> 5.5 | AM4: =ROUNDDOWN(AL4*請求書・納品書!$M$12,) -> 13574 | AN4: 欠 | AO4: 管理費 | AP4: =(AP3-AP9)*19400 -> 194000
A5: 遅・早(公) | AD5: 1 | AG5: =SUM(B5:AF5) -> 1 | AH5: 公出 | AI5: =COUNTIF(B2:AF2,"公") -> 3 | AJ5: =AI5*7.8 -> 23.4 | AK5: =AG5 -> 1 | AL5: =AJ5-AK5 -> 22.4 | AM5: =ROUNDDOWN(AL5*請求書・納品書!$M$13,) -> 65788 | AN5: 有 | AO5: 小計 | AP5: =AP2+AP4 -> 4482338
A6: 連続 | AG6: =SUM(B6:AF6) -> 0 | AH6: 連続 | AL6: =AG6 -> 0 | AM6: =AL6*請求書・納品書!$M$14 -> 0 | AN6: 半 | AO6: 消費税 | AP6: =ROUNDDOWN(AP5*0.05,) -> 224116
AL7: 合 計 | AM7: =SUM(AM3:AM6) -> 437522 | AO7: 総合計 | AP7: =AP5+AP6 -> 4706454
A8: 金井雄太 | B8: 出 | C8: 出 | D8: 公 | F8: 出 | G8: 出 | H8: 出 | I8: 出 | J8: 出 | K8: 公 | M8: 有 | N8: 有 | O8: 出 | P8: 出 | Q8: 出 | T8: 出 | U8: 有 | V8: 出 | W8: 出 | X8: 出 | Y8: 公 | AA8: 出 | AB8: 出 | AC8: 出 | AD8: 公 | AE8: 出 | AH8: =A8 -> 金井雄太 | AI8: 日数(日) | AJ8: 勤務時間(h) | AK8: 早退（h） | AL8: 合計(h) | AM8: 金額(円)
A9: 残業 | B9: 1 | G9: 0.5 | H9: 1.5 | O9: 0.5 | P9: 0.5 | V9: 0.5 | AG9: =SUM(B9:AF9) -> 4.5 | AH9: 出勤 | AI9: =COUNTIF(B8:AF8,"出") -> 18 | AJ9: =AI9*7.8 -> 140.4 | AK9: =AG10 -> 1 | AL9: =AJ9-AK9 -> 139.4 | AM9: =ROUNDDOWN(AL9*請求書・納品書!$M$11,) -> 306680 | AO9: 管理費に入れない人数
A10: 遅・早(出) | T10: 1 | AG10: =SUM(B10:AF10) -> 1 | AH10: 残業 | AL10: =AG9 -> 4.5 | AM10: =ROUNDDOWN(AL10*請求書・納品書!$M$12,) -> 11106
A11: 遅・早(公) | AD11: 1 | AG11: =SUM(B11:AF11) -> 1 | AH11: 公出 | AI11: =COUNTIF(B8:AF8,"公") -> 4 | AJ11: =AI11*7.8 -> 31.2 | AK11: =AG11 -> 1 | AL11: =AJ11-AK11 -> 30.2 | AM11: =ROUNDDOWN(AL11*請求書・納品書!$M$13,) -> 88697
A12: 連続 | AG12: =SUM(B12:AF12) -> 0 | AH12: 連続 | AL12: =AG12 -> 0 | AM12: =AL12*請求書・納品書!$M$14 -> 0
AL13: 合 計 | AM13: =SUM(AM9:AM12) -> 406483
A14: 広瀬 誠 | B14: 出 | C14: 出 | D14: 公 | F14: 出 | G14: 出 | H14: 出 | I14: 出 | J14: 出 | K14: 公 | M14: 出 | N14: 出 | O14: 出 | P14: 出 | Q14: 欠 | T14: 出 | U14: 有 | V14: 出 | W14: 出 | X14: 出 | AA14: 出 | AB14: 出 | AC14: 出 | AD14: 公 | AE14: 出 | AH14: =A14 -> 広瀬 誠 | AI14: 日数(日) | AJ14: 勤務時間(h) | AK14: 早退（h） | AL14: 合計(h) | AM14: 金額(円)
A15: 残業 | B15: 1 | G15: 0.5 | H15: 1.5 | N15: 0.5 | O15: 0.5 | P15: 0.5 | AG15: =SUM(B15:AF15) -> 4.5 | AH15: 出勤 | AI15: =COUNTIF(B14:AF14,"出") -> 19 | AJ15: =AI15*7.8 -> 148.2 | AK15: =AG16 -> 1 | AL15: =AJ15-AK15 -> 147.2 | AM15: =ROUNDDOWN(AL15*請求書・納品書!$M$11,) -> 323840
A16: 遅・早(出) | T16: 1 | AG16: =SUM(B16:AF16) -> 1 | AH16: 残業 | AL16: =AG15 -> 4.5 | AM16: =ROUNDDOWN(AL16*請求書・納品書!$M$12,) -> 11106
A17: 遅・早(公) | AD17: 1 | AG17: =SUM(B17:AF17) -> 1 | AH17: 公出 | AI17: =COUNTIF(B14:AF14,"公") -> 3 | AJ17: =AI17*7.8 -> 23.4 | AK17: =AG17 -> 1 | AL17: =AJ17-AK17 -> 22.4 | AM17: =ROUNDDOWN(AL17*請求書・納品書!$M$13,) -> 65788
A18: 連続 | I18: 1 | J18: 1 | K18: 1 | AG18: =SUM(B18:AF18) -> 3 | AH18: 連続 | AL18: =AG18 -> 3 | AM18: =AL18*請求書・納品書!$M$14 -> 1290
AL19: 合 計 | AM19: =SUM(AM15:AM18) -> 402024
A20: 田口勝也 | B20: 出 | C20: 出 | D20: 公 | F20: 出 | G20: 出 | H20: 出 | I20: 出 | J20: 出 | K20: 公 | M20: 有 | N20: 出 | O20: 出 | P20: 出 | Q20: 有 | T20: 出 | U20: 出 | V20: 出 | W20: 出 | X20: 出 | Y20: 公 | AA20: 出 | AB20: 出 | AC20: 出 | AD20: 公 | AE20: 出 | AH20: =A20 -> 田口勝也 | AI20: 日数(日) | AJ20: 勤務時間(h) | AK20: 早退（h） | AL20: 合計(h) | AM20: 金額(円)
A21: 残業 | B21: 1 | G21: 0.5 | H21: 1.5 | U21: 1 | AA21: 1 | AB21: 1 | AG21: =SUM(B21:AF21) -> 6 | AH21: 出勤 | AI21: =COUNTIF(B20:AF20,"出") -> 19 | AJ21: =AI21*7.8 -> 148.2 | AK21: =AG22 -> 3 | AL21: =AJ21-AK21 -> 145.2 | AM21: =ROUNDDOWN(AL21*請求書・納品書!$M$11,) -> 319440
A22: 遅・早(出) | N22: 1 | O22: 1 | T22: 1 | AG22: =SUM(B22:AF22) -> 3 | AH22: 残業 | AL22: =AG21 -> 6 | AM22: =ROUNDDOWN(AL22*請求書・納品書!$M$12,) -> 14808
A23: 遅・早(公) | AD23: 1 | AG23: =SUM(B23:AF23) -> 1 | AH23: 公出 | AI23: =COUNTIF(B20:AF20,"公") -> 4 | AJ23: =AI23*7.8 -> 31.2 | AK23: =AG23 -> 1 | AL23: =AJ23-AK23 -> 30.2 | AM23: =ROUNDDOWN(AL23*請求書・納品書!$M$13,) -> 88697
A24: 連続 | AG24: =SUM(B24:AF24) -> 0 | AH24: 連続 | AL24: =AG24 -> 0 | AM24: =AL24*請求書・納品書!$M$14 -> 0
AL25: 合 計 | AM25: =SUM(AM21:AM24) -> 422945 | AO25: =AM7+AM13+AM19+AM25 -> 1668974
A26: 相沢優斗 | B26: 出 | C26: 出 | D26: 公 | F26: 出 | G26: 出 | H26: 出 | I26: 出 | J26: 出 | K26: 公 | M26: 出 | N26: 出 | O26: 出 | P26: 出 | Q26: 出 | T26: 出 | U26: 出 | V26: 出 | W26: 出 | X26: 出 | Y26: 公 | AA26: 出 | AB26: 出 | AC26: 出 | AD26: 公 | AE26: 出 | AH26: =A26 -> 相沢優斗 | AI26: 日数(日) | AJ26: 勤務時間(h) | AK26: 早退（h） | AL26: 合計(h) | AM26: 金額(円)
A27: 残業 | B27: 1 | G27: 0.5 | H27: 1.5 | V27: 0.5 | W27: 0.5 | X27: 0.5 | AB27: 1 | AG27: =SUM(B27:AF27) -> 5.5 | AH27: 出勤 | AI27: =COUNTIF(B26:AF26,"出") -> 21 | AJ27: =AI27*7.8 -> 163.8 | AK27: =AG28 -> 2 | AL27: =AJ27-AK27 -> 161.8 | AM27: =ROUNDDOWN(AL27*請求書・納品書!$M$11,) -> 355960
A28: 遅・早(出) | T28: 1 | AA28: 1 | AG28: =SUM(B28:AF28) -> 2 | AH28: 残業 | AL28: =AG27 -> 5.5 | AM28: =ROUNDDOWN(AL28*請求書・納品書!$M$12,) -> 13574
A29: 遅・早(公) | AD29: 1 | AG29: =SUM(B29:AF29) -> 1 | AH29: 公出 | AI29: =COUNTIF(B26:AF26,"公") -> 4 | AJ29: =AI29*7.8 -> 31.2 | AK29: =AG29 -> 1 | AL29: =AJ29-AK29 -> 30.2 | AM29: =ROUNDDOWN(AL29*請求書・納品書!$M$13,) -> 88697
A30: 連続 | AG30: =SUM(B30:AF30) -> 0 | AH30: 連続 | AL30: =AG30 -> 0 | AM30: =AL30*請求書・納品書!$M$14 -> 0
AL31: 合 計 | AM31: =SUM(AM27:AM30) -> 458231
A32: 宇野雄介 | B32: 出 | C32: 出 | D32: 公 | F32: 出 | G32: 出 | H32: 出 | I32: 出 | J32: 出 | K32: 公 | M32: 出 | N32: 出 | O32: 出 | P32: 出 | Q32: 出 | T32: 出 | U32: 出 | V32: 出 | W32: 出 | X32: 出 | AA32: 出 | AB32: 出 | AC32: 出 | AD32: 公 | AE32: 出 | AH32: =A32 -> 宇野雄介 | AI32: 日数(日) | AJ32: 勤務時間(h) | AK32: 早退（h） | AL32: 合計(h) | AM32: 金額(円)
A33: 残業 | B33: 1 | G33: 0.5 | H33: 1.5 | I33: 1.5 | J33: 1.5 | N33: 0.5 | O33: 0.5 | P33: 0.5 | T33: 0.5 | U33: 0.5 | V33: 0.5 | AG33: =SUM(B33:AF33) -> 9 | AH33: 出勤 | AI33: =COUNTIF(B32:AF32,"出") -> 21 | AJ33: =AI33*7.8 -> 163.8 | AK33: =AG34 -> 1 | AL33: =AJ33-AK33 -> 162.8 | AM33: =ROUNDDOWN(AL33*請求書・納品書!$M$11,) -> 358160
A34: 遅・早(出) | T34: 1 | AG34: =SUM(B34:AF34) -> 1 | AH34: 残業 | AL34: =AG33 -> 9 | AM34: =ROUNDDOWN(AL34*請求書・納品書!$M$12,) -> 22212
A35: 遅・早(公) | AD35: 1 | AG35: =SUM(B35:AF35) -> 1 | AH35: 公出 | AI35: =COUNTIF(B32:AF32,"公") -> 3 | AJ35: =AI35*7.8 -> 23.4 | AK35: =AG35 -> 1 | AL35: =AJ35-AK35 -> 22.4 | AM35: =ROUNDDOWN(AL35*請求書・納品書!$M$13,) -> 65788
A36: 連続 | AG36: =SUM(B36:AF36) -> 0 | AH36: 連続 | AL36: =AG36 -> 0 | AM36: =AL36*請求書・納品書!$M$14 -> 0
AL37: 合 計 | AM37: =SUM(AM33:AM36) -> 446160
A38: 遠藤 博 | B38: 出 | C38: 出 | D38: 公 | F38: 出 | G38: 出 | H38: 出 | I38: 出 | J38: 出 | K38: 公 | M38: 出 | N38: 出 | O38: 出 | P38: 出 | Q38: 出 | T38: 出 | U38: 出 | V38: 出 | W38: 出 | X38: 出 | AA38: 出 | AB38: 出 | AC38: 出 | AD38: 公 | AE38: 出 | AH38: =A38 -> 遠藤 博 | AI38: 日数(日) | AJ38: 勤務時間(h) | AK38: 早退（h） | AL38: 合計(h) | AM38: 金額(円)
A39: 残業 | N39: 0.5 | O39: 0.5 | P39: 0.5 | AG39: =SUM(B39:AF39) -> 1.5 | AH39: 出勤 | AI39: =COUNTIF(B38:AF38,"出") -> 21 | AJ39: =AI39*7.8 -> 163.8 | AK39: =AG40 -> 2 | AL39: =AJ39-AK39 -> 161.8 | AM39: =ROUNDDOWN(AL39*請求書・納品書!$M$11,) -> 355960
A40: 遅・早(出) | B40: 1 | T40: 1 | AG40: =SUM(B40:AF40) -> 2 | AH40: 残業 | AL40: =AG39 -> 1.5 | AM40: =ROUNDDOWN(AL40*請求書・納品書!$M$12,) -> 3702
A41: 遅・早(公) | AD41: 1 | AG41: =SUM(B41:AF41) -> 1 | AH41: 公出 | AI41: =COUNTIF(B38:AF38,"公") -> 3 | AJ41: =AI41*7.8 -> 23.4 | AK41: =AG41 -> 1 | AL41: =AJ41-AK41 -> 22.4 | AM41: =ROUNDDOWN(AL41*請求書・納品書!$M$13,) -> 65788
A42: 連続 | B42: 1 | M42: 1 | N42: 1 | O42: 1 | P42: 1 | Q42: 1 | V42: 1 | W42: 1 | AG42: =SUM(B42:AF42) -> 8 | AH42: 連続 | AL42: =AG42 -> 8 | AM42: =AL42*請求書・納品書!$M$14 -> 3440
AL43: 合 計 | AM43: =SUM(AM39:AM42) -> 428890
A44: 大山健史 | B44: 出 | C44: 出 | D44: 公 | F44: 出 | G44: 出 | H44: 出 | I44: 出 | J44: 出 | K44: 公 | M44: 出 | N44: 出 | O44: 出 | P44: 出 | Q44: 出 | T44: 出 | U44: 出 | V44: 出 | W44: 出 | X44: 出 | AA44: 出 | AB44: 出 | AC44: 出 | AD44: 公 | AE44: 出 | AH44: =A44 -> 大山健史 | AI44: 日数(日) | AJ44: 勤務時間(h) | AK44: 早退（h） | AL44: 合計(h) | AM44: 金額(円)
A45: 残業 | AG45: =SUM(B45:AF45) -> 0 | AH45: 出勤 | AI45: =COUNTIF(B44:AF44,"出") -> 21 | AJ45: =AI45*7.8 -> 163.8 | AK45: =AG46 -> 0 | AL45: =AJ45-AK45 -> 163.8 | AM45: =ROUNDDOWN(AL45*請求書・納品書!$M$11,) -> 360360
A46: 遅・早(出) | AG46: =SUM(B46:AF46) -> 0 | AH46: 残業 | AL46: =AG45 -> 0 | AM46: =ROUNDDOWN(AL46*請求書・納品書!$M$12,) -> 0
A47: 遅・早(公) | AG47: =SUM(B47:AF47) -> 0 | AH47: 公出 | AI47: =COUNTIF(B44:AF44,"公") -> 3 | AJ47: =AI47*7.8 -> 23.4 | AK47: =AG47 -> 0 | AL47: =AJ47-AK47 -> 23.4 | AM47: =ROUNDDOWN(AL47*請求書・納品書!$M$13,) -> 68725
A48: 連続 | B48: 1 | G48: 1 | H48: 1 | AG48: =SUM(B48:AF48) -> 3 | AH48: 連続 | AL48: =AG48 -> 3 | AM48: =AL48*請求書・納品書!$M$14 -> 1290
AL49: 合 計 | AM49: =SUM(AM45:AM48) -> 430375 | AO49: =AM31+AM37+AM43+AM49 -> 1763656
A50: 木村智彦 | B50: 出 | C50: 出 | D50: 公 | F50: 出 | G50: 出 | H50: 出 | I50: 出 | J50: 出 | K50: 公 | M50: 出 | N50: 出 | O50: 出 | P50: 出 | Q50: 出 | T50: 出 | U50: 出 | V50: 出 | W50: 出 | X50: 出 | AA50: 出 | AB50: 出 | AC50: 出 | AD50: 公 | AE50: 出 | AH50: =A50 -> 木村智彦 | AI50: 日数(日) | AJ50: 勤務時間(h) | AK50: 早退（h） | AL50: 合計(h) | AM50: 金額(円)
A51: 残業 | B51: 1 | G51: 0.5 | H51: 1.5 | N51: 0.5 | O51: 0.5 | P51: 0.5 | AG51: =SUM(B51:AF51) -> 4.5 | AH51: 出勤 | AI51: =COUNTIF(B50:AF50,"出") -> 21 | AJ51: =AI51*7.8 -> 163.8 | AK51: =AG52 -> 7 | AL51: =AJ51-AK51 -> 156.8 | AM51: =ROUNDDOWN(AL51*請求書・納品書!$M$11,) -> 344960
A52: 遅・早(出) | C52: 1 | H52: 1 | I52: 1 | J52: 1 | T52: 1 | W52: 1 | X52: 1 | AG52: =SUM(B52:AF52) -> 7 | AH52: 残業 | AL52: =AG51 -> 4.5 | AM52: =ROUNDDOWN(AL52*請求書・納品書!$M$12,) -> 11106
A53: 遅・早(公) | AD53: 1 | AG53: =SUM(B53:AF53) -> 1 | AH53: 公出 | AI53: =COUNTIF(B50:AF50,"公") -> 3 | AJ53: =AI53*7.8 -> 23.4 | AK53: =AG53 -> 1 | AL53: =AJ53-AK53 -> 22.4 | AM53: =ROUNDDOWN(AL53*請求書・納品書!$M$13,) -> 65788
A54: 連続 | AG54: =SUM(B54:AF54) -> 0 | AH54: 連続 | AL54: =AG54 -> 0 | AM54: =AL54*請求書・納品書!$M$14 -> 0
AL55: 合 計 | AM55: =SUM(AM51:AM54) -> 421854
A56: 久米博一 | B56: 出 | C56: 出 | D56: 公 | F56: 出 | G56: 出 | H56: 出 | I56: 出 | J56: 出 | K56: 公 | M56: 出 | N56: 出 | O56: 出 | P56: 出 | Q56: 出 | T56: 出 | U56: 出 | V56: 出 | W56: 出 | X56: 出 | AA56: 出 | AB56: 出 | AC56: 出 | AD56: 公 | AE56: 出 | AH56: =A56 -> 久米博一 | AI56: 日数(日) | AJ56: 勤務時間(h) | AK56: 早退（h） | AL56: 合計(h) | AM56: 金額(円)
A57: 残業 | D57: 1 | G57: 1 | H57: 1.5 | J57: 0.5 | N57: 0.5 | O57: 0.5 | P57: 0.5 | AG57: =SUM(B57:AF57) -> 5.5 | AH57: 出勤 | AI57: =COUNTIF(B56:AF56,"出") -> 21 | AJ57: =AI57*7.8 -> 163.8 | AK57: =AG58 -> 2 | AL57: =AJ57-AK57 -> 161.8 | AM57: =ROUNDDOWN(AL57*請求書・納品書!$M$11,) -> 355960
A58: 遅・早(出) | T58: 1 | W58: 1 | AG58: =SUM(B58:AF58) -> 2 | AH58: 残業 | AL58: =AG57 -> 5.5 | AM58: =ROUNDDOWN(AL58*請求書・納品書!$M$12,) -> 13574
A59: 遅・早(公) | K59: 0.5 | AD59: 1 | AG59: =SUM(B59:AF59) -> 1.5 | AH59: 公出 | AI59: =COUNTIF(B56:AF56,"公") -> 3 | AJ59: =AI59*7.8 -> 23.4 | AK59: =AG59 -> 1.5 | AL59: =AJ59-AK59 -> 21.9 | AM59: =ROUNDDOWN(AL59*請求書・納品書!$M$13,) -> 64320
A60: 連続 | AG60: =SUM(B60:AF60) -> 0 | AH60: 連続 | AL60: =AG60 -> 0 | AM60: =AL60*請求書・納品書!$M$14 -> 0
AL61: 合 計 | AM61: =SUM(AM57:AM60) -> 433854
AH62: =A62 -> 0 | AI62: 日数(日) | AJ62: 勤務時間(h) | AK62: 早退（h） | AL62: 合計(h) | AM62: 金額(円)
A63: 残業 | AG63: =SUM(B63:AF63) -> 0 | AH63: 出勤 | AI63: =COUNTIF(B62:AF62,"出") -> 0 | AJ63: =AI63*7.8 -> 0 | AK63: =AG64 -> 0 | AL63: =AJ63-AK63 -> 0 | AM63: =ROUNDDOWN(AL63*請求書・納品書!$M$11,) -> 0
A64: 遅・早(出) | AG64: =SUM(B64:AF64) -> 0 | AH64: 残業 | AL64: =AG63 -> 0 | AM64: =ROUNDDOWN(AL64*請求書・納品書!$M$12,) -> 0
A65: 遅・早(公) | AG65: =SUM(B65:AF65) -> 0 | AH65: 公出 | AI65: =COUNTIF(B62:AF62,"公") -> 0 | AJ65: =AI65*7.8 -> 0 | AK65: =AG65 -> 0 | AL65: =AJ65-AK65 -> 0 | AM65: =ROUNDDOWN(AL65*請求書・納品書!$M$13,) -> 0
A66: 連続 | AG66: =SUM(B66:AF66) -> 0 | AH66: 連続 | AL66: =AG66 -> 0 | AM66: =AL66*請求書・納品書!$M$14 -> 0
AL67: 合 計 | AM67: =SUM(AM63:AM66) -> 0
AH68: =A68 -> 0 | AI68: 日数(日) | AJ68: 勤務時間(h) | AK68: 早退（h） | AL68: 合計(h) | AM68: 金額(円)
A69: 残業 | AG69: =SUM(B69:AF69) -> 0 | AH69: 出勤 | AI69: =COUNTIF(B68:AF68,"出") -> 0 | AJ69: =AI69*7.8 -> 0 | AK69: =AG70 -> 0 | AL69: =AJ69-AK69 -> 0 | AM69: =ROUNDDOWN(AL69*請求書・納品書!$M$11,) -> 0
A70: 遅・早(出) | AG70: =SUM(B70:AF70) -> 0 | AH70: 残業 | AL70: =AG69 -> 0 | AM70: =ROUNDDOWN(AL70*請求書・納品書!$M$12,) -> 0
A71: 遅・早(公) | AG71: =SUM(B71:AF71) -> 0 | AH71: 公出 | AI71: =COUNTIF(B68:AF68,"公") -> 0 | AJ71: =AI71*7.8 -> 0 | AK71: =AG71 -> 0 | AL71: =AJ71-AK71 -> 0 | AM71: =ROUNDDOWN(AL71*請求書・納品書!$M$13,) -> 0
A72: 連続 | AG72: =SUM(B72:AF72) -> 0 | AH72: 連続 | AL72: =AG72 -> 0 | AM72: =AL72*請求書・納品書!$M$14 -> 0
AL73: 合 計 | AM73: =SUM(AM69:AM72) -> 0 | AO73: =AM55+AM61+AM67+AM73 -> 855708
AH74: =A74 -> 0 | AI74: 日数(日) | AJ74: 勤務時間(h) | AK74: 早退（h） | AL74: 合計(h) | AM74: 金額(円)
A75: 残業 | AG75: =SUM(B75:AF75) -> 0 | AH75: 出勤 | AI75: =COUNTIF(B74:AF74,"出") -> 0 | AJ75: =AI75*7.8 -> 0 | AK75: =AG76 -> 0 | AL75: =AJ75-AK75 -> 0 | AM75: =ROUNDDOWN(AL75*請求書・納品書!$M$11,) -> 0
A76: 遅・早(出) | AG76: =SUM(B76:AF76) -> 0 | AH76: 残業 | AL76: =AG75 -> 0 | AM76: =ROUNDDOWN(AL76*請求書・納品書!$M$12,) -> 0
A77: 遅・早(公) | AG77: =SUM(B77:AF77) -> 0 | AH77: 公出 | AI77: =COUNTIF(B74:AF74,"公") -> 0 | AJ77: =AI77*7.8 -> 0 | AK77: =AG77 -> 0 | AL77: =AJ77-AK77 -> 0 | AM77: =ROUNDDOWN(AL77*請求書・納品書!$M$13,) -> 0
A78: 連続 | AG78: =SUM(B78:AF78) -> 0 | AH78: 連続 | AL78: =AG78 -> 0 | AM78: =AL78*請求書・納品書!$M$14 -> 0
AL79: 合 計 | AM79: =SUM(AM75:AM78) -> 0
AH80: =A80 -> 0 | AI80: 日数(日) | AJ80: 勤務時間(h) | AK80: 早退（h） | AL80: 合計(h) | AM80: 金額(円)
A81: 残業 | AG81: =SUM(B81:AF81) -> 0 | AH81: 出勤 | AI81: =COUNTIF(B80:AF80,"出") -> 0 | AJ81: =AI81*7.8 -> 0 | AK81: =AG82 -> 0 | AL81: =AJ81-AK81 -> 0 | AM81: =ROUNDDOWN(AL81*請求書・納品書!$M$11,) -> 0
A82: 遅・早(出) | AG82: =SUM(B82:AF82) -> 0 | AH82: 残業 | AL82: =AG81 -> 0 | AM82: =ROUNDDOWN(AL82*請求書・納品書!$M$12,) -> 0
A83: 遅・早(公) | AG83: =SUM(B83:AF83) -> 0 | AH83: 公出 | AI83: =COUNTIF(B80:AF80,"公") -> 0 | AJ83: =AI83*7.8 -> 0 | AK83: =AG83 -> 0 | AL83: =AJ83-AK83 -> 0 | AM83: =ROUNDDOWN(AL83*請求書・納品書!$M$13,) -> 0
A84: 連続 | AG84: =SUM(B84:AF84) -> 0 | AH84: 連続 | AL84: =AG84 -> 0 | AM84: =AL84*請求書・納品書!$M$14 -> 0
AL85: 合 計 | AM85: =SUM(AM81:AM84) -> 0
AH86: =A86 -> 0 | AI86: 日数(日) | AJ86: 勤務時間(h) | AK86: 早退（h） | AL86: 合計(h) | AM86: 金額(円)
A87: 残業 | AG87: =SUM(B87:AF87) -> 0 | AH87: 出勤 | AI87: =COUNTIF(B86:AF86,"出") -> 0 | AJ87: =AI87*7.8 -> 0 | AK87: =AG88 -> 0 | AL87: =AJ87-AK87 -> 0 | AM87: =ROUNDDOWN(AL87*請求書・納品書!$M$11,) -> 0
A88: 遅・早(出) | AG88: =SUM(B88:AF88) -> 0 | AH88: 残業 | AL88: =AG87 -> 0 | AM88: =ROUNDDOWN(AL88*請求書・納品書!$M$12,) -> 0
A89: 遅・早(公) | AG89: =SUM(B89:AF89) -> 0 | AH89: 公出 | AI89: =COUNTIF(B86:AF86,"公") -> 0 | AJ89: =AI89*7.8 -> 0 | AK89: =AG89 -> 0 | AL89: =AJ89-AK89 -> 0 | AM89: =ROUNDDOWN(AL89*請求書・納品書!$M$13,) -> 0
A90: 連続 | AG90: =SUM(B90:AF90) -> 0 | AH90: 連続 | AL90: =AG90 -> 0 | AM90: =AL90*請求書・納品書!$M$14 -> 0
AL91: 合 計 | AM91: =SUM(AM87:AM90) -> 0
AH92: =A92 -> 0 | AI92: 日数(日) | AJ92: 勤務時間(h) | AK92: 早退（h） | AL92: 合計(h) | AM92: 金額(円)
A93: 残業 | AG93: =SUM(B93:AF93) -> 0 | AH93: 出勤 | AI93: =COUNTIF(B92:AF92,"出") -> 0 | AJ93: =AI93*7.8 -> 0 | AK93: =AG94 -> 0 | AL93: =AJ93-AK93 -> 0 | AM93: =ROUNDDOWN(AL93*請求書・納品書!$M$11,) -> 0
A94: 遅・早(出) | AG94: =SUM(B94:AF94) -> 0 | AH94: 残業 | AL94: =AG93 -> 0 | AM94: =ROUNDDOWN(AL94*請求書・納品書!$M$12,) -> 0
A95: 遅・早(公) | AG95: =SUM(B95:AF95) -> 0 | AH95: 公出 | AI95: =COUNTIF(B92:AF92,"公") -> 0 | AJ95: =AI95*7.8 -> 0 | AK95: =AG95 -> 0 | AL95: =AJ95-AK95 -> 0 | AM95: =ROUNDDOWN(AL95*請求書・納品書!$M$13,) -> 0
A96: 連続 | AG96: =SUM(B96:AF96) -> 0 | AH96: 連続 | AL96: =AG96 -> 0 | AM96: =AL96*請求書・納品書!$M$14 -> 0
AL97: 合 計 | AM97: =SUM(AM93:AM96) -> 0 | AO97: =AM79+AM85+AM91+AM97 -> 0
AH98: =A98 -> 0 | AI98: 日数(日) | AJ98: 勤務時間(h) | AK98: 早退（h） | AL98: 合計(h) | AM98: 金額(円)
A99: 残業 | AG99: =SUM(B99:AF99) -> 0 | AH99: 出勤 | AI99: =COUNTIF(B98:AF98,"出") -> 0 | AJ99: =AI99*7.8 -> 0 | AK99: =AG100 -> 0 | AL99: =AJ99-AK99 -> 0 | AM99: =ROUNDDOWN(AL99*請求書・納品書!$M$11,) -> 0
A100: 遅・早(出) | AG100: =SUM(B100:AF100) -> 0 | AH100: 残業 | AL100: =AG99 -> 0 | AM100: =ROUNDDOWN(AL100*請求書・納品書!$M$12,) -> 0
A101: 遅・早(公) | AG101: =SUM(B101:AF101) -> 0 | AH101: 公出 | AI101: =COUNTIF(B98:AF98,"公") -> 0 | AJ101: =AI101*7.8 -> 0 | AK101: =AG101 -> 0 | AL101: =AJ101-AK101 -> 0 | AM101: =ROUNDDOWN(AL101*請求書・納品書!$M$13,) -> 0
A102: 連続 | AG102: =SUM(B102:AF102) -> 0 | AH102: 連続 | AL102: =AG102 -> 0 | AM102: =AL102*請求書・納品書!$M$14 -> 0
AL103: 合 計 | AM103: =SUM(AM99:AM102) -> 0
AH104: =A104 -> 0 | AI104: 日数(日) | AJ104: 勤務時間(h) | AK104: 早退（h） | AL104: 合計(h) | AM104: 金額(円)
A105: 残業 | AG105: =SUM(B105:AF105) -> 0 | AH105: 出勤 | AI105: =COUNTIF(B104:AF104,"出") -> 0 | AJ105: =AI105*7.8 -> 0 | AK105: =AG106 -> 0 | AL105: =AJ105-AK105 -> 0 | AM105: =ROUNDDOWN(AL105*請求書・納品書!$M$11,) -> 0
A106: 遅・早(出) | AG106: =SUM(B106:AF106) -> 0 | AH106: 残業 | AL106: =AG105 -> 0 | AM106: =ROUNDDOWN(AL106*請求書・納品書!$M$12,) -> 0
A107: 遅・早(公) | AG107: =SUM(B107:AF107) -> 0 | AH107: 公出 | AI107: =COUNTIF(B104:AF104,"公") -> 0 | AJ107: =AI107*7.8 -> 0 | AK107: =AG107 -> 0 | AL107: =AJ107-AK107 -> 0 | AM107: =ROUNDDOWN(AL107*請求書・納品書!$M$13,) -> 0
A108: 連続 | AG108: =SUM(B108:AF108) -> 0 | AH108: 連続 | AL108: =AG108 -> 0 | AM108: =AL108*請求書・納品書!$M$14 -> 0
AL109: 合 計 | AM109: =SUM(AM105:AM108) -> 0
AH110: =A110 -> 0 | AI110: 日数(日) | AJ110: 勤務時間(h) | AK110: 早退（h） | AL110: 合計(h) | AM110: 金額(円)
A111: 残業 | AG111: =SUM(B111:AF111) -> 0 | AH111: 出勤 | AI111: =COUNTIF(B110:AF110,"出") -> 0 | AJ111: =AI111*7.8 -> 0 | AK111: =AG112 -> 0 | AL111: =AJ111-AK111 -> 0 | AM111: =ROUNDDOWN(AL111*請求書・納品書!$M$11,) -> 0
A112: 遅・早(出) | AG112: =SUM(B112:AF112) -> 0 | AH112: 残業 | AL112: =AG111 -> 0 | AM112: =ROUNDDOWN(AL112*請求書・納品書!$M$12,) -> 0
A113: 遅・早(公) | AG113: =SUM(B113:AF113) -> 0 | AH113: 公出 | AI113: =COUNTIF(B110:AF110,"公") -> 0 | AJ113: =AI113*7.8 -> 0 | AK113: =AG113 -> 0 | AL113: =AJ113-AK113 -> 0 | AM113: =ROUNDDOWN(AL113*請求書・納品書!$M$13,) -> 0
A114: 連続 | AG114: =SUM(B114:AF114) -> 0 | AH114: 連続 | AL114: =AG114 -> 0 | AM114: =AL114*請求書・納品書!$M$14 -> 0
AL115: 合 計 | AM115: =SUM(AM111:AM114) -> 0
AH116: =A116 -> 0 | AI116: 日数(日) | AJ116: 勤務時間(h) | AK116: 早退（h） | AL116: 合計(h) | AM116: 金額(円)
A117: 残業 | AG117: =SUM(B117:AF117) -> 0 | AH117: 出勤 | AI117: =COUNTIF(B116:AF116,"出") -> 0 | AJ117: =AI117*7.8 -> 0 | AK117: =AG118 -> 0 | AL117: =AJ117-AK117 -> 0 | AM117: =ROUNDDOWN(AL117*請求書・納品書!$M$11,) -> 0
A118: 遅・早(出) | AG118: =SUM(B118:AF118) -> 0 | AH118: 残業 | AL118: =AG117 -> 0 | AM118: =ROUNDDOWN(AL118*請求書・納品書!$M$12,) -> 0
A119: 遅・早(公) | AG119: =SUM(B119:AF119) -> 0 | AH119: 公出 | AI119: =COUNTIF(B116:AF116,"公") -> 0 | AJ119: =AI119*7.8 -> 0 | AK119: =AG119 -> 0 | AL119: =AJ119-AK119 -> 0 | AM119: =ROUNDDOWN(AL119*請求書・納品書!$M$13,) -> 0
A120: 連続 | AG120: =SUM(B120:AF120) -> 0 | AH120: 連続 | AL120: =AG120 -> 0 | AM120: =AL120*請求書・納品書!$M$14 -> 0
AL121: 合 計 | AM121: =SUM(AM117:AM120) -> 0 | AO121: =AM103+AM109+AM115+AM121 -> 0
AH122: =A122 -> 0 | AI122: 日数(日) | AJ122: 勤務時間(h) | AK122: 早退（h） | AL122: 合計(h) | AM122: 金額(円)
A123: 残業 | AG123: =SUM(B123:AF123) -> 0 | AH123: 出勤 | AI123: =COUNTIF(B122:AF122,"出") -> 0 | AJ123: =AI123*7.8 -> 0 | AK123: =AG124 -> 0 | AL123: =AJ123-AK123 -> 0 | AM123: =ROUNDDOWN(AL123*請求書・納品書!$M$11,) -> 0
A124: 遅・早(出) | AG124: =SUM(B124:AF124) -> 0 | AH124: 残業 | AL124: =AG123 -> 0 | AM124: =ROUNDDOWN(AL124*請求書・納品書!$M$12,) -> 0
A125: 遅・早(公) | AG125: =SUM(B125:AF125) -> 0 | AH125: 公出 | AI125: =COUNTIF(B122:AF122,"公") -> 0 | AJ125: =AI125*7.8 -> 0 | AK125: =AG125 -> 0 | AL125: =AJ125-AK125 -> 0 | AM125: =ROUNDDOWN(AL125*請求書・納品書!$M$13,) -> 0
A126: 連続 | AG126: =SUM(B126:AF126) -> 0 | AH126: 連続 | AL126: =AG126 -> 0 | AM126: =AL126*請求書・納品書!$M$14 -> 0
AL127: 合 計 | AM127: =SUM(AM123:AM126) -> 0
AH128: =A128 -> 0 | AI128: 日数(日) | AJ128: 勤務時間(h) | AK128: 早退（h） | AL128: 合計(h) | AM128: 金額(円)
A129: 残業 | AG129: =SUM(B129:AF129) -> 0 | AH129: 出勤 | AI129: =COUNTIF(B128:AF128,"出") -> 0 | AJ129: =AI129*7.8 -> 0 | AK129: =AG130 -> 0 | AL129: =AJ129-AK129 -> 0 | AM129: =ROUNDDOWN(AL129*請求書・納品書!$M$11,) -> 0
A130: 遅・早(出) | AG130: =SUM(B130:AF130) -> 0 | AH130: 残業 | AL130: =AG129 -> 0 | AM130: =ROUNDDOWN(AL130*請求書・納品書!$M$12,) -> 0
A131: 遅・早(公) | AG131: =SUM(B131:AF131) -> 0 | AH131: 公出 | AI131: =COUNTIF(B128:AF128,"公") -> 0 | AJ131: =AI131*7.8 -> 0 | AK131: =AG131 -> 0 | AL131: =AJ131-AK131 -> 0 | AM131: =ROUNDDOWN(AL131*請求書・納品書!$M$13,) -> 0
A132: 連続 | AG132: =SUM(B132:AF132) -> 0 | AH132: 連続 | AL132: =AG132 -> 0 | AM132: =AL132*請求書・納品書!$M$14 -> 0
AL133: 合 計 | AM133: =SUM(AM129:AM132) -> 0
AH134: =A134 -> 0 | AI134: 日数(日) | AJ134: 勤務時間(h) | AK134: 早退（h） | AL134: 合計(h) | AM134: 金額(円)
A135: 残業 | AG135: =SUM(B135:AF135) -> 0 | AH135: 出勤 | AI135: =COUNTIF(B134:AF134,"出") -> 0 | AJ135: =AI135*7.8 -> 0 | AK135: =AG136 -> 0 | AL135: =AJ135-AK135 -> 0 | AM135: =ROUNDDOWN(AL135*請求書・納品書!$M$11,) -> 0
A136: 遅・早(出) | AG136: =SUM(B136:AF136) -> 0 | AH136: 残業 | AL136: =AG135 -> 0 | AM136: =ROUNDDOWN(AL136*請求書・納品書!$M$12,) -> 0
A137: 遅・早(公) | AG137: =SUM(B137:AF137) -> 0 | AH137: 公出 | AI137: =COUNTIF(B134:AF134,"公") -> 0 | AJ137: =AI137*7.8 -> 0 | AK137: =AG137 -> 0 | AL137: =AJ137-AK137 -> 0 | AM137: =ROUNDDOWN(AL137*請求書・納品書!$M$13,) -> 0
A138: 連続 | AG138: =SUM(B138:AF138) -> 0 | AH138: 連続 | AL138: =AG138 -> 0 | AM138: =AL138*請求書・納品書!$M$14 -> 0
AL139: 合 計 | AM139: =SUM(AM135:AM138) -> 0
AH140: =A140 -> 0 | AI140: 日数(日) | AJ140: 勤務時間(h) | AK140: 早退（h） | AL140: 合計(h) | AM140: 金額(円)
A141: 残業 | AG141: =SUM(B141:AF141) -> 0 | AH141: 出勤 | AI141: =COUNTIF(B140:AF140,"出") -> 0 | AJ141: =AI141*7.8 -> 0 | AK141: =AG142 -> 0 | AL141: =AJ141-AK141 -> 0 | AM141: =ROUNDDOWN(AL141*請求書・納品書!$M$11,) -> 0
A142: 遅・早(出) | AG142: =SUM(B142:AF142) -> 0 | AH142: 残業 | AL142: =AG141 -> 0 | AM142: =ROUNDDOWN(AL142*請求書・納品書!$M$12,) -> 0
A143: 遅・早(公) | AG143: =SUM(B143:AF143) -> 0 | AH143: 公出 | AI143: =COUNTIF(B140:AF140,"公") -> 0 | AJ143: =AI143*7.8 -> 0 | AK143: =AG143 -> 0 | AL143: =AJ143-AK143 -> 0 | AM143: =ROUNDDOWN(AL143*請求書・納品書!$M$13,) -> 0
A144: 連続 | AG144: =SUM(B144:AF144) -> 0 | AH144: 連続 | AL144: =AG144 -> 0 | AM144: =AL144*請求書・納品書!$M$14 -> 0
AL145: 合 計 | AM145: =SUM(AM141:AM144) -> 0 | AO145: =AM127+AM133+AM139+AM145 -> 0
AH146: =A146 -> 0 | AI146: 日数(日) | AJ146: 勤務時間(h) | AK146: 早退（h） | AL146: 合計(h) | AM146: 金額(円)
A147: 残業 | AG147: =SUM(B147:AF147) -> 0 | AH147: 出勤 | AI147: =COUNTIF(B146:AF146,"出") -> 0 | AJ147: =AI147*7.8 -> 0 | AK147: =AG148 -> 0 | AL147: =AJ147-AK147 -> 0 | AM147: =ROUNDDOWN(AL147*請求書・納品書!$M$11,) -> 0
A148: 遅・早(出) | AG148: =SUM(B148:AF148) -> 0 | AH148: 残業 | AL148: =AG147 -> 0 | AM148: =ROUNDDOWN(AL148*請求書・納品書!$M$12,) -> 0
A149: 遅・早(公) | AG149: =SUM(B149:AF149) -> 0 | AH149: 公出 | AI149: =COUNTIF(B146:AF146,"公") -> 0 | AJ149: =AI149*7.8 -> 0 | AK149: =AG149 -> 0 | AL149: =AJ149-AK149 -> 0 | AM149: =ROUNDDOWN(AL149*請求書・納品書!$M$13,) -> 0
A150: 連続 | AG150: =SUM(B150:AF150) -> 0 | AH150: 連続 | AL150: =AG150 -> 0 | AM150: =AL150*請求書・納品書!$M$14 -> 0
AL151: 合 計 | AM151: =SUM(AM147:AM150) -> 0
AH152: =A152 -> 0 | AI152: 日数(日) | AJ152: 勤務時間(h) | AK152: 早退（h） | AL152: 合計(h) | AM152: 金額(円)
A153: 残業 | AG153: =SUM(B153:AF153) -> 0 | AH153: 出勤 | AI153: =COUNTIF(B152:AF152,"出") -> 0 | AJ153: =AI153*7.8 -> 0 | AK153: =AG154 -> 0 | AL153: =AJ153-AK153 -> 0 | AM153: =ROUNDDOWN(AL153*請求書・納品書!$M$11,) -> 0
A154: 遅・早(出) | AG154: =SUM(B154:AF154) -> 0 | AH154: 残業 | AL154: =AG153 -> 0 | AM154: =ROUNDDOWN(AL154*請求書・納品書!$M$12,) -> 0
A155: 遅・早(公) | AG155: =SUM(B155:AF155) -> 0 | AH155: 公出 | AI155: =COUNTIF(B152:AF152,"公") -> 0 | AJ155: =AI155*7.8 -> 0 | AK155: =AG155 -> 0 | AL155: =AJ155-AK155 -> 0 | AM155: =ROUNDDOWN(AL155*請求書・納品書!$M$13,) -> 0
A156: 連続 | AG156: =SUM(B156:AF156) -> 0 | AH156: 連続 | AL156: =AG156 -> 0 | AM156: =AL156*請求書・納品書!$M$14 -> 0
AL157: 合 計 | AM157: =SUM(AM153:AM156) -> 0
AH158: =A158 -> 0 | AI158: 日数(日) | AJ158: 勤務時間(h) | AK158: 早退（h） | AL158: 合計(h) | AM158: 金額(円)
A159: 残業 | AG159: =SUM(B159:AF159) -> 0 | AH159: 出勤 | AI159: =COUNTIF(B158:AF158,"出") -> 0 | AJ159: =AI159*7.8 -> 0 | AK159: =AG160 -> 0 | AL159: =AJ159-AK159 -> 0 | AM159: =ROUNDDOWN(AL159*請求書・納品書!$M$11,) -> 0
A160: 遅・早(出) | AG160: =SUM(B160:AF160) -> 0 | AH160: 残業 | AL160: =AG159 -> 0 | AM160: =ROUNDDOWN(AL160*請求書・納品書!$M$12,) -> 0
A161: 遅・早(公) | AG161: =SUM(B161:AF161) -> 0 | AH161: 公出 | AI161: =COUNTIF(B158:AF158,"公") -> 0 | AJ161: =AI161*7.8 -> 0 | AK161: =AG161 -> 0 | AL161: =AJ161-AK161 -> 0 | AM161: =ROUNDDOWN(AL161*請求書・納品書!$M$13,) -> 0
A162: 連続 | AG162: =SUM(B162:AF162) -> 0 | AH162: 連続 | AL162: =AG162 -> 0 | AM162: =AL162*請求書・納品書!$M$14 -> 0
AL163: 合 計 | AM163: =SUM(AM159:AM162) -> 0
AH164: =A164 -> 0 | AI164: 日数(日) | AJ164: 勤務時間(h) | AK164: 早退（h） | AL164: 合計(h) | AM164: 金額(円)
A165: 残業 | AG165: =SUM(B165:AF165) -> 0 | AH165: 出勤 | AI165: =COUNTIF(B164:AF164,"出") -> 0 | AJ165: =AI165*7.8 -> 0 | AK165: =AG166 -> 0 | AL165: =AJ165-AK165 -> 0 | AM165: =ROUNDDOWN(AL165*請求書・納品書!$M$11,) -> 0
A166: 遅・早(出) | AG166: =SUM(B166:AF166) -> 0 | AH166: 残業 | AL166: =AG165 -> 0 | AM166: =ROUNDDOWN(AL166*請求書・納品書!$M$12,) -> 0
A167: 遅・早(公) | AG167: =SUM(B167:AF167) -> 0 | AH167: 公出 | AI167: =COUNTIF(B164:AF164,"公") -> 0 | AJ167: =AI167*7.8 -> 0 | AK167: =AG167 -> 0 | AL167: =AJ167-AK167 -> 0 | AM167: =ROUNDDOWN(AL167*請求書・納品書!$M$13,) -> 0
A168: 連続 | AG168: =SUM(B168:AF168) -> 0 | AH168: 連続 | AL168: =AG168 -> 0 | AM168: =AL168*請求書・納品書!$M$14 -> 0
AL169: 合 計 | AM169: =SUM(AM165:AM168) -> 0 | AO169: =AM151+AM157+AM163+AM169 -> 0
AH170: =A170 -> 0 | AI170: 日数(日) | AJ170: 勤務時間(h) | AK170: 早退（h） | AL170: 合計(h) | AM170: 金額(円)
A171: 残業 | AG171: =SUM(B171:AF171) -> 0 | AH171: 出勤 | AI171: =COUNTIF(B170:AF170,"出") -> 0 | AJ171: =AI171*7.8 -> 0 | AK171: =AG172 -> 0 | AL171: =AJ171-AK171 -> 0 | AM171: =ROUNDDOWN(AL171*請求書・納品書!$M$11,) -> 0
A172: 遅・早(出) | AG172: =SUM(B172:AF172) -> 0 | AH172: 残業 | AL172: =AG171 -> 0 | AM172: =ROUNDDOWN(AL172*請求書・納品書!$M$12,) -> 0
A173: 遅・早(公) | AG173: =SUM(B173:AF173) -> 0 | AH173: 公出 | AI173: =COUNTIF(B170:AF170,"公") -> 0 | AJ173: =AI173*7.8 -> 0 | AK173: =AG173 -> 0 | AL173: =AJ173-AK173 -> 0 | AM173: =ROUNDDOWN(AL173*請求書・納品書!$M$13,) -> 0
A174: 連続 | AG174: =SUM(B174:AF174) -> 0 | AH174: 連続 | AL174: =AG174 -> 0 | AM174: =AL174*請求書・納品書!$M$14 -> 0
AL175: 合 計 | AM175: =SUM(AM171:AM174) -> 0
AH176: =A176 -> 0 | AI176: 日数(日) | AJ176: 勤務時間(h) | AK176: 早退（h） | AL176: 合計(h) | AM176: 金額(円)
A177: 残業 | AG177: =SUM(B177:AF177) -> 0 | AH177: 出勤 | AI177: =COUNTIF(B176:AF176,"出") -> 0 | AJ177: =AI177*7.8 -> 0 | AK177: =AG178 -> 0 | AL177: =AJ177-AK177 -> 0 | AM177: =ROUNDDOWN(AL177*請求書・納品書!$M$11,) -> 0
A178: 遅・早(出) | AG178: =SUM(B178:AF178) -> 0 | AH178: 残業 | AL178: =AG177 -> 0 | AM178: =ROUNDDOWN(AL178*請求書・納品書!$M$12,) -> 0
A179: 遅・早(公) | AG179: =SUM(B179:AF179) -> 0 | AH179: 公出 | AI179: =COUNTIF(B176:AF176,"公") -> 0 | AJ179: =AI179*7.8 -> 0 | AK179: =AG179 -> 0 | AL179: =AJ179-AK179 -> 0 | AM179: =ROUNDDOWN(AL179*請求書・納品書!$M$13,) -> 0
A180: 連続 | AG180: =SUM(B180:AF180) -> 0 | AH180: 連続 | AL180: =AG180 -> 0 | AM180: =AL180*請求書・納品書!$M$14 -> 0
AL181: 合 計 | AM181: =SUM(AM177:AM180) -> 0
AH182: =A182 -> 0 | AI182: 日数(日) | AJ182: 勤務時間(h) | AK182: 早退（h） | AL182: 合計(h) | AM182: 金額(円)
A183: 残業 | AG183: =SUM(B183:AF183) -> 0 | AH183: 出勤 | AI183: =COUNTIF(B182:AF182,"出") -> 0 | AJ183: =AI183*7.8 -> 0 | AK183: =AG184 -> 0 | AL183: =AJ183-AK183 -> 0 | AM183: =ROUNDDOWN(AL183*請求書・納品書!$M$11,) -> 0
A184: 遅・早(出) | AG184: =SUM(B184:AF184) -> 0 | AH184: 残業 | AL184: =AG183 -> 0 | AM184: =ROUNDDOWN(AL184*請求書・納品書!$M$12,) -> 0
A185: 遅・早(公) | AG185: =SUM(B185:AF185) -> 0 | AH185: 公出 | AI185: =COUNTIF(B182:AF182,"公") -> 0 | AJ185: =AI185*7.8 -> 0 | AK185: =AG185 -> 0 | AL185: =AJ185-AK185 -> 0 | AM185: =ROUNDDOWN(AL185*請求書・納品書!$M$13,) -> 0
A186: 連続 | AG186: =SUM(B186:AF186) -> 0 | AH186: 連続 | AL186: =AG186 -> 0 | AM186: =AL186*請求書・納品書!$M$14 -> 0
AL187: 合 計 | AM187: =SUM(AM183:AM186) -> 0
AH188: =A188 -> 0 | AI188: 日数(日) | AJ188: 勤務時間(h) | AK188: 早退（h） | AL188: 合計(h) | AM188: 金額(円)
A189: 残業 | AG189: =SUM(B189:AF189) -> 0 | AH189: 出勤 | AI189: =COUNTIF(B188:AF188,"出") -> 0 | AJ189: =AI189*7.8 -> 0 | AK189: =AG190 -> 0 | AL189: =AJ189-AK189 -> 0 | AM189: =ROUNDDOWN(AL189*請求書・納品書!$M$11,) -> 0
A190: 遅・早(出) | AG190: =SUM(B190:AF190) -> 0 | AH190: 残業 | AL190: =AG189 -> 0 | AM190: =ROUNDDOWN(AL190*請求書・納品書!$M$12,) -> 0
A191: 遅・早(公) | AG191: =SUM(B191:AF191) -> 0 | AH191: 公出 | AI191: =COUNTIF(B188:AF188,"公") -> 0 | AJ191: =AI191*7.8 -> 0 | AK191: =AG191 -> 0 | AL191: =AJ191-AK191 -> 0 | AM191: =ROUNDDOWN(AL191*請求書・納品書!$M$13,) -> 0
A192: 連続 | AG192: =SUM(B192:AF192) -> 0 | AH192: 連続 | AL192: =AG192 -> 0 | AM192: =AL192*請求書・納品書!$M$14 -> 0
AL193: 合 計 | AM193: =SUM(AM189:AM192) -> 0 | AO193: =AM175+AM181+AM187+AM193 -> 0

Sheet 5
A1: ='4'!A1 -> 2010 | B1: 1 | C1: 2 | D1: 3 | E1: 4 | F1: 5 | G1: 6 | H1: 7 | I1: 8 | J1: 9 | K1: 10 | L1: 11 | M1: 12 | N1: 13 | O1: 14 | P1: 15 | Q1: 16 | R1: 17 | S1: 18 | T1: 19 | U1: 20 | V1: 21 | W1: 22 | X1: 23 | Y1: 24 | Z1: 25 | AA1: 26 | AB1: 27 | AC1: 28 | AD1: 29 | AE1: 30 | AF1: 31 | AG1: 計 | AH1: =A1&"年"&MID(CELL("filename",$A$1),FIND("]",CELL("filename",$A$1))+1,31) &"月" -> 2010年5月
AH2: =A2 -> 0 | AI2: 日数(日) | AJ2: 勤務時間(h) | AK2: 早退（h） | AL2: 合計(h) | AM2: 金額(円) | AN2: 出 | AO2: 合計 | AP2: =SUM(AM:AM)/2 -> 0
A3: 残業 | AG3: =SUM(B3:AF3) -> 0 | AH3: 出勤 | AI3: =COUNTIF(B2:AF2,"出") -> 0 | AJ3: =AI3*7.8 -> 0 | AK3: =AG4 -> 0 | AL3: =AJ3-AK3 -> 0 | AM3: =ROUNDDOWN(AL3*請求書・納品書!$M$11,) -> 0 | AN3: 公 | AO3: 人数 | AP3: =COUNTA(AH:AH)-COUNTIF(AH:AH,0)-32*4-1 -> 0
A4: 遅・早(出) | AG4: =SUM(B4:AF4) -> 0 | AH4: 残業 | AL4: =AG3 -> 0 | AM4: =ROUNDDOWN(AL4*請求書・納品書!$M$12,) -> 0 | AN4: 欠 | AO4: 管理費 | AP4: =(AP3-AP9)*19400 -> 0
A5: 遅・早(公) | AG5: =SUM(B5:AF5) -> 0 | AH5: 公出 | AI5: =COUNTIF(B2:AF2,"公") -> 0 | AJ5: =AI5*7.8 -> 0 | AK5: =AG5 -> 0 | AL5: =AJ5-AK5 -> 0 | AM5: =ROUNDDOWN(AL5*請求書・納品書!$M$13,) -> 0 | AN5: 有 | AO5: 小計 | AP5: =AP2+AP4 -> 0
A6: 連続 | AG6: =SUM(B6:AF6) -> 0 | AH6: 連続 | AL6: =AG6 -> 0 | AM6: =AL6*請求書・納品書!$M$14 -> 0 | AN6: 半 | AO6: 消費税 | AP6: =ROUNDDOWN(AP5*0.05,) -> 0
AL7: 合 計 | AM7: =SUM(AM3:AM6) -> 0 | AO7: 総合計 | AP7: =AP5+AP6 -> 0
AH8: =A8 -> 0 | AI8: 日数(日) | AJ8: 勤務時間(h) | AK8: 早退（h） | AL8: 合計(h) | AM8: 金額(円)
A9: 残業 | AG9: =SUM(B9:AF9) -> 0 | AH9: 出勤 | AI9: =COUNTIF(B8:AF8,"出") -> 0 | AJ9: =AI9*7.8 -> 0 | AK9: =AG10 -> 0 | AL9: =AJ9-AK9 -> 0 | AM9: =ROUNDDOWN(AL9*請求書・納品書!$M$11,) -> 0 | AO9: 管理費に入れない人数
A10: 遅・早(出) | AG10: =SUM(B10:AF10) -> 0 | AH10: 残業 | AL10: =AG9 -> 0 | AM10: =ROUNDDOWN(AL10*請求書・納品書!$M$12,) -> 0
A11: 遅・早(公) | AG11: =SUM(B11:AF11) -> 0 | AH11: 公出 | AI11: =COUNTIF(B8:AF8,"公") -> 0 | AJ11: =AI11*7.8 -> 0 | AK11: =AG11 -> 0 | AL11: =AJ11-AK11 -> 0 | AM11: =ROUNDDOWN(AL11*請求書・納品書!$M$13,) -> 0
A12: 連続 | AG12: =SUM(B12:AF12) -> 0 | AH12: 連続 | AL12: =AG12 -> 0 | AM12: =AL12*請求書・納品書!$M$14 -> 0
AL13: 合 計 | AM13: =SUM(AM9:AM12) -> 0
AH14: =A14 -> 0 | AI14: 日数(日) | AJ14: 勤務時間(h) | AK14: 早退（h） | AL14: 合計(h) | AM14: 金額(円)
A15: 残業 | AG15: =SUM(B15:AF15) -> 0 | AH15: 出勤 | AI15: =COUNTIF(B14:AF14,"出") -> 0 | AJ15: =AI15*7.8 -> 0 | AK15: =AG16 -> 0 | AL15: =AJ15-AK15 -> 0 | AM15: =ROUNDDOWN(AL15*請求書・納品書!$M$11,) -> 0
A16: 遅・早(出) | AG16: =SUM(B16:AF16) -> 0 | AH16: 残業 | AL16: =AG15 -> 0 | AM16: =ROUNDDOWN(AL16*請求書・納品書!$M$12,) -> 0
A17: 遅・早(公) | AG17: =SUM(B17:AF17) -> 0 | AH17: 公出 | AI17: =COUNTIF(B14:AF14,"公") -> 0 | AJ17: =AI17*7.8 -> 0 | AK17: =AG17 -> 0 | AL17: =AJ17-AK17 -> 0 | AM17: =ROUNDDOWN(AL17*請求書・納品書!$M$13,) -> 0
A18: 連続 | AG18: =SUM(B18:AF18) -> 0 | AH18: 連続 | AL18: =AG18 -> 0 | AM18: =AL18*請求書・納品書!$M$14 -> 0
AL19: 合 計 | AM19: =SUM(AM15:AM18) -> 0
AH20: =A20 -> 0 | AI20: 日数(日) | AJ20: 勤務時間(h) | AK20: 早退（h） | AL20: 合計(h) | AM20: 金額(円)
A21: 残業 | AG21: =SUM(B21:AF21) -> 0 | AH21: 出勤 | AI21: =COUNTIF(B20:AF20,"出") -> 0 | AJ21: =AI21*7.8 -> 0 | AK21: =AG22 -> 0 | AL21: =AJ21-AK21 -> 0 | AM21: =ROUNDDOWN(AL21*請求書・納品書!$M$11,) -> 0
A22: 遅・早(出) | AG22: =SUM(B22:AF22) -> 0 | AH22: 残業 | AL22: =AG21 -> 0 | AM22: =ROUNDDOWN(AL22*請求書・納品書!$M$12,) -> 0
A23: 遅・早(公) | AG23: =SUM(B23:AF23) -> 0 | AH23: 公出 | AI23: =COUNTIF(B20:AF20,"公") -> 0 | AJ23: =AI23*7.8 -> 0 | AK23: =AG23 -> 0 | AL23: =AJ23-AK23 -> 0 | AM23: =ROUNDDOWN(AL23*請求書・納品書!$M$13,) -> 0
A24: 連続 | AG24: =SUM(B24:AF24) -> 0 | AH24: 連続 | AL24: =AG24 -> 0 | AM24: =AL24*請求書・納品書!$M$14 -> 0
AL25: 合 計 | AM25: =SUM(AM21:AM24) -> 0 | AO25: =AM7+AM13+AM19+AM25 -> 0
AH26: =A26 -> 0 | AI26: 日数(日) | AJ26: 勤務時間(h) | AK26: 早退（h） | AL26: 合計(h) | AM26: 金額(円)
A27: 残業 | AG27: =SUM(B27:AF27) -> 0 | AH27: 出勤 | AI27: =COUNTIF(B26:AF26,"出") -> 0 | AJ27: =AI27*7.8 -> 0 | AK27: =AG28 -> 0 | AL27: =AJ27-AK27 -> 0 | AM27: =ROUNDDOWN(AL27*請求書・納品書!$M$11,) -> 0
A28: 遅・早(出) | AG28: =SUM(B28:AF28) -> 0 | AH28: 残業 | AL28: =AG27 -> 0 | AM28: =ROUNDDOWN(AL28*請求書・納品書!$M$12,) -> 0
A29: 遅・早(公) | AG29: =SUM(B29:AF29) -> 0 | AH29: 公出 | AI29: =COUNTIF(B26:AF26,"公") -> 0 | AJ29: =AI29*7.8 -> 0 | AK29: =AG29 -> 0 | AL29: =AJ29-AK29 -> 0 | AM29: =ROUNDDOWN(AL29*請求書・納品書!$M$13,) -> 0
A30: 連続 | AG30: =SUM(B30:AF30) -> 0 | AH30: 連続 | AL30: =AG30 -> 0 | AM30: =AL30*請求書・納品書!$M$14 -> 0
AL31: 合 計 | AM31: =SUM(AM27:AM30) -> 0
AH32: =A32 -> 0 | AI32: 日数(日) | AJ32: 勤務時間(h) | AK32: 早退（h） | AL32: 合計(h) | AM32: 金額(円)
A33: 残業 | AG33: =SUM(B33:AF33) -> 0 | AH33: 出勤 | AI33: =COUNTIF(B32:AF32,"出") -> 0 | AJ33: =AI33*7.8 -> 0 | AK33: =AG34 -> 0 | AL33: =AJ33-AK33 -> 0 | AM33: =ROUNDDOWN(AL33*請求書・納品書!$M$11,) -> 0
A34: 遅・早(出) | AG34: =SUM(B34:AF34) -> 0 | AH34: 残業 | AL34: =AG33 -> 0 | AM34: =ROUNDDOWN(AL34*請求書・納品書!$M$12,) -> 0
A35: 遅・早(公) | AG35: =SUM(B35:AF35) -> 0 | AH35: 公出 | AI35: =COUNTIF(B32:AF32,"公") -> 0 | AJ35: =AI35*7.8 -> 0 | AK35: =AG35 -> 0 | AL35: =AJ35-AK35 -> 0 | AM35: =ROUNDDOWN(AL35*請求書・納品書!$M$13,) -> 0
A36: 連続 | AG36: =SUM(B36:AF36) -> 0 | AH36: 連続 | AL36: =AG36 -> 0 | AM36: =AL36*請求書・納品書!$M$14 -> 0
AL37: 合 計 | AM37: =SUM(AM33:AM36) -> 0
AH38: =A38 -> 0 | AI38: 日数(日) | AJ38: 勤務時間(h) | AK38: 早退（h） | AL38: 合計(h) | AM38: 金額(円)
A39: 残業 | AG39: =SUM(B39:AF39) -> 0 | AH39: 出勤 | AI39: =COUNTIF(B38:AF38,"出") -> 0 | AJ39: =AI39*7.8 -> 0 | AK39: =AG40 -> 0 | AL39: =AJ39-AK39 -> 0 | AM39: =ROUNDDOWN(AL39*請求書・納品書!$M$11,) -> 0
A40: 遅・早(出) | AG40: =SUM(B40:AF40) -> 0 | AH40: 残業 | AL40: =AG39 -> 0 | AM40: =ROUNDDOWN(AL40*請求書・納品書!$M$12,) -> 0
A41: 遅・早(公) | AG41: =SUM(B41:AF41) -> 0 | AH41: 公出 | AI41: =COUNTIF(B38:AF38,"公") -> 0 | AJ41: =AI41*7.8 -> 0 | AK41: =AG41 -> 0 | AL41: =AJ41-AK41 -> 0 | AM41: =ROUNDDOWN(AL41*請求書・納品書!$M$13,) -> 0
A42: 連続 | AG42: =SUM(B42:AF42) -> 0 | AH42: 連続 | AL42: =AG42 -> 0 | AM42: =AL42*請求書・納品書!$M$14 -> 0
AL43: 合 計 | AM43: =SUM(AM39:AM42) -> 0
AH44: =A44 -> 0 | AI44: 日数(日) | AJ44: 勤務時間(h) | AK44: 早退（h） | AL44: 合計(h) | AM44: 金額(円)
A45: 残業 | AG45: =SUM(B45:AF45) -> 0 | AH45: 出勤 | AI45: =COUNTIF(B44:AF44,"出") -> 0 | AJ45: =AI45*7.8 -> 0 | AK45: =AG46 -> 0 | AL45: =AJ45-AK45 -> 0 | AM45: =ROUNDDOWN(AL45*請求書・納品書!$M$11,) -> 0
A46: 遅・早(出) | AG46: =SUM(B46:AF46) -> 0 | AH46: 残業 | AL46: =AG45 -> 0 | AM46: =ROUNDDOWN(AL46*請求書・納品書!$M$12,) -> 0
A47: 遅・早(公) | AG47: =SUM(B47:AF47) -> 0 | AH47: 公出 | AI47: =COUNTIF(B44:AF44,"公") -> 0 | AJ47: =AI47*7.8 -> 0 | AK47: =AG47 -> 0 | AL47: =AJ47-AK47 -> 0 | AM47: =ROUNDDOWN(AL47*請求書・納品書!$M$13,) -> 0
A48: 連続 | AG48: =SUM(B48:AF48) -> 0 | AH48: 連続 | AL48: =AG48 -> 0 | AM48: =AL48*請求書・納品書!$M$14 -> 0
AL49: 合 計 | AM49: =SUM(AM45:AM48) -> 0 | AO49: =AM31+AM37+AM43+AM49 -> 0
AH50: =A50 -> 0 | AI50: 日数(日) | AJ50: 勤務時間(h) | AK50: 早退（h） | AL50: 合計(h) | AM50: 金額(円)
A51: 残業 | AG51: =SUM(B51:AF51) -> 0 | AH51: 出勤 | AI51: =COUNTIF(B50:AF50,"出") -> 0 | AJ51: =AI51*7.8 -> 0 | AK51: =AG52 -> 0 | AL51: =AJ51-AK51 -> 0 | AM51: =ROUNDDOWN(AL51*請求書・納品書!$M$11,) -> 0
A52: 遅・早(出) | AG52: =SUM(B52:AF52) -> 0 | AH52: 残業 | AL52: =AG51 -> 0 | AM52: =ROUNDDOWN(AL52*請求書・納品書!$M$12,) -> 0
A53: 遅・早(公) | AG53: =SUM(B53:AF53) -> 0 | AH53: 公出 | AI53: =COUNTIF(B50:AF50,"公") -> 0 | AJ53: =AI53*7.8 -> 0 | AK53: =AG53 -> 0 | AL53: =AJ53-AK53 -> 0 | AM53: =ROUNDDOWN(AL53*請求書・納品書!$M$13,) -> 0
A54: 連続 | AG54: =SUM(B54:AF54) -> 0 | AH54: 連続 | AL54: =AG54 -> 0 | AM54: =AL54*請求書・納品書!$M$14 -> 0
AL55: 合 計 | AM55: =SUM(AM51:AM54) -> 0
AH56: =A56 -> 0 | AI56: 日数(日) | AJ56: 勤務時間(h) | AK56: 早退（h） | AL56: 合計(h) | AM56: 金額(円)
A57: 残業 | AG57: =SUM(B57:AF57) -> 0 | AH57: 出勤 | AI57: =COUNTIF(B56:AF56,"出") -> 0 | AJ57: =AI57*7.8 -> 0 | AK57: =AG58 -> 0 | AL57: =AJ57-AK57 -> 0 | AM57: =ROUNDDOWN(AL57*請求書・納品書!$M$11,) -> 0
A58: 遅・早(出) | AG58: =SUM(B58:AF58) -> 0 | AH58: 残業 | AL58: =AG57 -> 0 | AM58: =ROUNDDOWN(AL58*請求書・納品書!$M$12,) -> 0
A59: 遅・早(公) | AG59: =SUM(B59:AF59) -> 0 | AH59: 公出 | AI59: =COUNTIF(B56:AF56,"公") -> 0 | AJ59: =AI59*7.8 -> 0 | AK59: =AG59 -> 0 | AL59: =AJ59-AK59 -> 0 | AM59: =ROUNDDOWN(AL59*請求書・納品書!$M$13,) -> 0
A60: 連続 | AG60: =SUM(B60:AF60) -> 0 | AH60: 連続 | AL60: =AG60 -> 0 | AM60: =AL60*請求書・納品書!$M$14 -> 0
AL61: 合 計 | AM61: =SUM(AM57:AM60) -> 0
AH62: =A62 -> 0 | AI62: 日数(日) | AJ62: 勤務時間(h) | AK62: 早退（h） | AL62: 合計(h) | AM62: 金額(円)
A63: 残業 | AG63: =SUM(B63:AF63) -> 0 | AH63: 出勤 | AI63: =COUNTIF(B62:AF62,"出") -> 0 | AJ63: =AI63*7.8 -> 0 | AK63: =AG64 -> 0 | AL63: =AJ63-AK63 -> 0 | AM63: =ROUNDDOWN(AL63*請求書・納品書!$M$11,) -> 0
A64: 遅・早(出) | AG64: =SUM(B64:AF64) -> 0 | AH64: 残業 | AL64: =AG63 -> 0 | AM64: =ROUNDDOWN(AL64*請求書・納品書!$M$12,) -> 0
A65: 遅・早(公) | AG65: =SUM(B65:AF65) -> 0 | AH65: 公出 | AI65: =COUNTIF(B62:AF62,"公") -> 0 | AJ65: =AI65*7.8 -> 0 | AK65: =AG65 -> 0 | AL65: =AJ65-AK65 -> 0 | AM65: =ROUNDDOWN(AL65*請求書・納品書!$M$13,) -> 0
A66: 連続 | AG66: =SUM(B66:AF66) -> 0 | AH66: 連続 | AL66: =AG66 -> 0 | AM66: =AL66*請求書・納品書!$M$14 -> 0
AL67: 合 計 | AM67: =SUM(AM63:AM66) -> 0
AH68: =A68 -> 0 | AI68: 日数(日) | AJ68: 勤務時間(h) | AK68: 早退（h） | AL68: 合計(h) | AM68: 金額(円)
A69: 残業 | AG69: =SUM(B69:AF69) -> 0 | AH69: 出勤 | AI69: =COUNTIF(B68:AF68,"出") -> 0 | AJ69: =AI69*7.8 -> 0 | AK69: =AG70 -> 0 | AL69: =AJ69-AK69 -> 0 | AM69: =ROUNDDOWN(AL69*請求書・納品書!$M$11,) -> 0
A70: 遅・早(出) | AG70: =SUM(B70:AF70) -> 0 | AH70: 残業 | AL70: =AG69 -> 0 | AM70: =ROUNDDOWN(AL70*請求書・納品書!$M$12,) -> 0
A71: 遅・早(公) | AG71: =SUM(B71:AF71) -> 0 | AH71: 公出 | AI71: =COUNTIF(B68:AF68,"公") -> 0 | AJ71: =AI71*7.8 -> 0 | AK71: =AG71 -> 0 | AL71: =AJ71-AK71 -> 0 | AM71: =ROUNDDOWN(AL71*請求書・納品書!$M$13,) -> 0
A72: 連続 | AG72: =SUM(B72:AF72) -> 0 | AH72: 連続 | AL72: =AG72 -> 0 | AM72: =AL72*請求書・納品書!$M$14 -> 0
AL73: 合 計 | AM73: =SUM(AM69:AM72) -> 0 | AO73: =AM55+AM61+AM67+AM73 -> 0
AH74: =A74 -> 0 | AI74: 日数(日) | AJ74: 勤務時間(h) | AK74: 早退（h） | AL74: 合計(h) | AM74: 金額(円)
A75: 残業 | AG75: =SUM(B75:AF75) -> 0 | AH75: 出勤 | AI75: =COUNTIF(B74:AF74,"出") -> 0 | AJ75: =AI75*7.8 -> 0 | AK75: =AG76 -> 0 | AL75: =AJ75-AK75 -> 0 | AM75: =ROUNDDOWN(AL75*請求書・納品書!$M$11,) -> 0
A76: 遅・早(出) | AG76: =SUM(B76:AF76) -> 0 | AH76: 残業 | AL76: =AG75 -> 0 | AM76: =ROUNDDOWN(AL76*請求書・納品書!$M$12,) -> 0
A77: 遅・早(公) | AG77: =SUM(B77:AF77) -> 0 | AH77: 公出 | AI77: =COUNTIF(B74:AF74,"公") -> 0 | AJ77: =AI77*7.8 -> 0 | AK77: =AG77 -> 0 | AL77: =AJ77-AK77 -> 0 | AM77: =ROUNDDOWN(AL77*請求書・納品書!$M$13,) -> 0
A78: 連続 | AG78: =SUM(B78:AF78) -> 0 | AH78: 連続 | AL78: =AG78 -> 0 | AM78: =AL78*請求書・納品書!$M$14 -> 0
AL79: 合 計 | AM79: =SUM(AM75:AM78) -> 0
AH80: =A80 -> 0 | AI80: 日数(日) | AJ80: 勤務時間(h) | AK80: 早退（h） | AL80: 合計(h) | AM80: 金額(円)
A81: 残業 | AG81: =SUM(B81:AF81) -> 0 | AH81: 出勤 | AI81: =COUNTIF(B80:AF80,"出") -> 0 | AJ81: =AI81*7.8 -> 0 | AK81: =AG82 -> 0 | AL81: =AJ81-AK81 -> 0 | AM81: =ROUNDDOWN(AL81*請求書・納品書!$M$11,) -> 0
A82: 遅・早(出) | AG82: =SUM(B82:AF82) -> 0 | AH82: 残業 | AL82: =AG81 -> 0 | AM82: =ROUNDDOWN(AL82*請求書・納品書!$M$12,) -> 0
A83: 遅・早(公) | AG83: =SUM(B83:AF83) -> 0 | AH83: 公出 | AI83: =COUNTIF(B80:AF80,"公") -> 0 | AJ83: =AI83*7.8 -> 0 | AK83: =AG83 -> 0 | AL83: =AJ83-AK83 -> 0 | AM83: =ROUNDDOWN(AL83*請求書・納品書!$M$13,) -> 0
A84: 連続 | AG84: =SUM(B84:AF84) -> 0 | AH84: 連続 | AL84: =AG84 -> 0 | AM84: =AL84*請求書・納品書!$M$14 -> 0
AL85: 合 計 | AM85: =SUM(AM81:AM84) -> 0
AH86: =A86 -> 0 | AI86: 日数(日) | AJ86: 勤務時間(h) | AK86: 早退（h） | AL86: 合計(h) | AM86: 金額(円)
A87: 残業 | AG87: =SUM(B87:AF87) -> 0 | AH87: 出勤 | AI87: =COUNTIF(B86:AF86,"出") -> 0 | AJ87: =AI87*7.8 -> 0 | AK87: =AG88 -> 0 | AL87: =AJ87-AK87 -> 0 | AM87: =ROUNDDOWN(AL87*請求書・納品書!$M$11,) -> 0
A88: 遅・早(出) | AG88: =SUM(B88:AF88) -> 0 | AH88: 残業 | AL88: =AG87 -> 0 | AM88: =ROUNDDOWN(AL88*請求書・納品書!$M$12,) -> 0
A89: 遅・早(公) | AG89: =SUM(B89:AF89) -> 0 | AH89: 公出 | AI89: =COUNTIF(B86:AF86,"公") -> 0 | AJ89: =AI89*7.8 -> 0 | AK89: =AG89 -> 0 | AL89: =AJ89-AK89 -> 0 | AM89: =ROUNDDOWN(AL89*請求書・納品書!$M$13,) -> 0
A90: 連続 | AG90: =SUM(B90:AF90) -> 0 | AH90: 連続 | AL90: =AG90 -> 0 | AM90: =AL90*請求書・納品書!$M$14 -> 0
AL91: 合 計 | AM91: =SUM(AM87:AM90) -> 0
AH92: =A92 -> 0 | AI92: 日数(日) | AJ92: 勤務時間(h) | AK92: 早退（h） | AL92: 合計(h) | AM92: 金額(円)
A93: 残業 | AG93: =SUM(B93:AF93) -> 0 | AH93: 出勤 | AI93: =COUNTIF(B92:AF92,"出") -> 0 | AJ93: =AI93*7.8 -> 0 | AK93: =AG94 -> 0 | AL93: =AJ93-AK93 -> 0 | AM93: =ROUNDDOWN(AL93*請求書・納品書!$M$11,) -> 0
A94: 遅・早(出) | AG94: =SUM(B94:AF94) -> 0 | AH94: 残業 | AL94: =AG93 -> 0 | AM94: =ROUNDDOWN(AL94*請求書・納品書!$M$12,) -> 0
A95: 遅・早(公) | AG95: =SUM(B95:AF95) -> 0 | AH95: 公出 | AI95: =COUNTIF(B92:AF92,"公") -> 0 | AJ95: =AI95*7.8 -> 0 | AK95: =AG95 -> 0 | AL95: =AJ95-AK95 -> 0 | AM95: =ROUNDDOWN(AL95*請求書・納品書!$M$13,) -> 0
A96: 連続 | AG96: =SUM(B96:AF96) -> 0 | AH96: 連続 | AL96: =AG96 -> 0 | AM96: =AL96*請求書・納品書!$M$14 -> 0
AL97: 合 計 | AM97: =SUM(AM93:AM96) -> 0 | AO97: =AM79+AM85+AM91+AM97 -> 0
AH98: =A98 -> 0 | AI98: 日数(日) | AJ98: 勤務時間(h) | AK98: 早退（h） | AL98: 合計(h) | AM98: 金額(円)
A99: 残業 | AG99: =SUM(B99:AF99) -> 0 | AH99: 出勤 | AI99: =COUNTIF(B98:AF98,"出") -> 0 | AJ99: =AI99*7.8 -> 0 | AK99: =AG100 -> 0 | AL99: =AJ99-AK99 -> 0 | AM99: =ROUNDDOWN(AL99*請求書・納品書!$M$11,) -> 0
A100: 遅・早(出) | AG100: =SUM(B100:AF100) -> 0 | AH100: 残業 | AL100: =AG99 -> 0 | AM100: =ROUNDDOWN(AL100*請求書・納品書!$M$12,) -> 0
A101: 遅・早(公) | AG101: =SUM(B101:AF101) -> 0 | AH101: 公出 | AI101: =COUNTIF(B98:AF98,"公") -> 0 | AJ101: =AI101*7.8 -> 0 | AK101: =AG101 -> 0 | AL101: =AJ101-AK101 -> 0 | AM101: =ROUNDDOWN(AL101*請求書・納品書!$M$13,) -> 0
A102: 連続 | AG102: =SUM(B102:AF102) -> 0 | AH102: 連続 | AL102: =AG102 -> 0 | AM102: =AL102*請求書・納品書!$M$14 -> 0
AL103: 合 計 | AM103: =SUM(AM99:AM102) -> 0
AH104: =A104 -> 0 | AI104: 日数(日) | AJ104: 勤務時間(h) | AK104: 早退（h） | AL104: 合計(h) | AM104: 金額(円)
A105: 残業 | AG105: =SUM(B105:AF105) -> 0 | AH105: 出勤 | AI105: =COUNTIF(B104:AF104,"出") -> 0 | AJ105: =AI105*7.8 -> 0 | AK105: =AG106 -> 0 | AL105: =AJ105-AK105 -> 0 | AM105: =ROUNDDOWN(AL105*請求書・納品書!$M$11,) -> 0
A106: 遅・早(出) | AG106: =SUM(B106:AF106) -> 0 | AH106: 残業 | AL106: =AG105 -> 0 | AM106: =ROUNDDOWN(AL106*請求書・納品書!$M$12,) -> 0
A107: 遅・早(公) | AG107: =SUM(B107:AF107) -> 0 | AH107: 公出 | AI107: =COUNTIF(B104:AF104,"公") -> 0 | AJ107: =AI107*7.8 -> 0 | AK107: =AG107 -> 0 | AL107: =AJ107-AK107 -> 0 | AM107: =ROUNDDOWN(AL107*請求書・納品書!$M$13,) -> 0
A108: 連続 | AG108: =SUM(B108:AF108) -> 0 | AH108: 連続 | AL108: =AG108 -> 0 | AM108: =AL108*請求書・納品書!$M$14 -> 0
AL109: 合 計 | AM109: =SUM(AM105:AM108) -> 0
AH110: =A110 -> 0 | AI110: 日数(日) | AJ110: 勤務時間(h) | AK110: 早退（h） | AL110: 合計(h) | AM110: 金額(円)
A111: 残業 | AG111: =SUM(B111:AF111) -> 0 | AH111: 出勤 | AI111: =COUNTIF(B110:AF110,"出") -> 0 | AJ111: =AI111*7.8 -> 0 | AK111: =AG112 -> 0 | AL111: =AJ111-AK111 -> 0 | AM111: =ROUNDDOWN(AL111*請求書・納品書!$M$11,) -> 0
A112: 遅・早(出) | AG112: =SUM(B112:AF112) -> 0 | AH112: 残業 | AL112: =AG111 -> 0 | AM112: =ROUNDDOWN(AL112*請求書・納品書!$M$12,) -> 0
A113: 遅・早(公) | AG113: =SUM(B113:AF113) -> 0 | AH113: 公出 | AI113: =COUNTIF(B110:AF110,"公") -> 0 | AJ113: =AI113*7.8 -> 0 | AK113: =AG113 -> 0 | AL113: =AJ113-AK113 -> 0 | AM113: =ROUNDDOWN(AL113*請求書・納品書!$M$13,) -> 0
A114: 連続 | AG114: =SUM(B114:AF114) -> 0 | AH114: 連続 | AL114: =AG114 -> 0 | AM114: =AL114*請求書・納品書!$M$14 -> 0
AL115: 合 計 | AM115: =SUM(AM111:AM114) -> 0
AH116: =A116 -> 0 | AI116: 日数(日) | AJ116: 勤務時間(h) | AK116: 早退（h） | AL116: 合計(h) | AM116: 金額(円)
A117: 残業 | AG117: =SUM(B117:AF117) -> 0 | AH117: 出勤 | AI117: =COUNTIF(B116:AF116,"出") -> 0 | AJ117: =AI117*7.8 -> 0 | AK117: =AG118 -> 0 | AL117: =AJ117-AK117 -> 0 | AM117: =ROUNDDOWN(AL117*請求書・納品書!$M$11,) -> 0
A118: 遅・早(出) | AG118: =SUM(B118:AF118) -> 0 | AH118: 残業 | AL118: =AG117 -> 0 | AM118: =ROUNDDOWN(AL118*請求書・納品書!$M$12,) -> 0
A119: 遅・早(公) | AG119: =SUM(B119:AF119) -> 0 | AH119: 公出 | AI119: =COUNTIF(B116:AF116,"公") -> 0 | AJ119: =AI119*7.8 -> 0 | AK119: =AG119 -> 0 | AL119: =AJ119-AK119 -> 0 | AM119: =ROUNDDOWN(AL119*請求書・納品書!$M$13,) -> 0
A120: 連続 | AG120: =SUM(B120:AF120) -> 0 | AH120: 連続 | AL120: =AG120 -> 0 | AM120: =AL120*請求書・納品書!$M$14 -> 0
AL121: 合 計 | AM121: =SUM(AM117:AM120) -> 0 | AO121: =AM103+AM109+AM115+AM121 -> 0
AH122: =A122 -> 0 | AI122: 日数(日) | AJ122: 勤務時間(h) | AK122: 早退（h） | AL122: 合計(h) | AM122: 金額(円)
A123: 残業 | AG123: =SUM(B123:AF123) -> 0 | AH123: 出勤 | AI123: =COUNTIF(B122:AF122,"出") -> 0 | AJ123: =AI123*7.8 -> 0 | AK123: =AG124 -> 0 | AL123: =AJ123-AK123 -> 0 | AM123: =ROUNDDOWN(AL123*請求書・納品書!$M$11,) -> 0
A124: 遅・早(出) | AG124: =SUM(B124:AF124) -> 0 | AH124: 残業 | AL124: =AG123 -> 0 | AM124: =ROUNDDOWN(AL124*請求書・納品書!$M$12,) -> 0
A125: 遅・早(公) | AG125: =SUM(B125:AF125) -> 0 | AH125: 公出 | AI125: =COUNTIF(B122:AF122,"公") -> 0 | AJ125: =AI125*7.8 -> 0 | AK125: =AG125 -> 0 | AL125: =AJ125-AK125 -> 0 | AM125: =ROUNDDOWN(AL125*請求書・納品書!$M$13,) -> 0
A126: 連続 | AG126: =SUM(B126:AF126) -> 0 | AH126: 連続 | AL126: =AG126 -> 0 | AM126: =AL126*請求書・納品書!$M$14 -> 0
AL127: 合 計 | AM127: =SUM(AM123:AM126) -> 0
AH128: =A128 -> 0 | AI128: 日数(日) | AJ128: 勤務時間(h) | AK128: 早退（h） | AL128: 合計(h) | AM128: 金額(円)
A129: 残業 | AG129: =SUM(B129:AF129) -> 0 | AH129: 出勤 | AI129: =COUNTIF(B128:AF128,"出") -> 0 | AJ129: =AI129*7.8 -> 0 | AK129: =AG130 -> 0 | AL129: =AJ129-AK129 -> 0 | AM129: =ROUNDDOWN(AL129*請求書・納品書!$M$11,) -> 0
A130: 遅・早(出) | AG130: =SUM(B130:AF130) -> 0 | AH130: 残業 | AL130: =AG129 -> 0 | AM130: =ROUNDDOWN(AL130*請求書・納品書!$M$12,) -> 0
A131: 遅・早(公) | AG131: =SUM(B131:AF131) -> 0 | AH131: 公出 | AI131: =COUNTIF(B128:AF128,"公") -> 0 | AJ131: =AI131*7.8 -> 0 | AK131: =AG131 -> 0 | AL131: =AJ131-AK131 -> 0 | AM131: =ROUNDDOWN(AL131*請求書・納品書!$M$13,) -> 0
A132: 連続 | AG132: =SUM(B132:AF132) -> 0 | AH132: 連続 | AL132: =AG132 -> 0 | AM132: =AL132*請求書・納品書!$M$14 -> 0
AL133: 合 計 | AM133: =SUM(AM129:AM132) -> 0
AH134: =A134 -> 0 | AI134: 日数(日) | AJ134: 勤務時間(h) | AK134: 早退（h） | AL134: 合計(h) | AM134: 金額(円)
A135: 残業 | AG135: =SUM(B135:AF135) -> 0 | AH135: 出勤 | AI135: =COUNTIF(B134:AF134,"出") -> 0 | AJ135: =AI135*7.8 -> 0 | AK135: =AG136 -> 0 | AL135: =AJ135-AK135 -> 0 | AM135: =ROUNDDOWN(AL135*請求書・納品書!$M$11,) -> 0
A136: 遅・早(出) | AG136: =SUM(B136:AF136) -> 0 | AH136: 残業 | AL136: =AG135 -> 0 | AM136: =ROUNDDOWN(AL136*請求書・納品書!$M$12,) -> 0
A137: 遅・早(公) | AG137: =SUM(B137:AF137) -> 0 | AH137: 公出 | AI137: =COUNTIF(B134:AF134,"公") -> 0 | AJ137: =AI137*7.8 -> 0 | AK137: =AG137 -> 0 | AL137: =AJ137-AK137 -> 0 | AM137: =ROUNDDOWN(AL137*請求書・納品書!$M$13,) -> 0
A138: 連続 | AG138: =SUM(B138:AF138) -> 0 | AH138: 連続 | AL138: =AG138 -> 0 | AM138: =AL138*請求書・納品書!$M$14 -> 0
AL139: 合 計 | AM139: =SUM(AM135:AM138) -> 0
AH140: =A140 -> 0 | AI140: 日数(日) | AJ140: 勤務時間(h) | AK140: 早退（h） | AL140: 合計(h) | AM140: 金額(円)
A141: 残業 | AG141: =SUM(B141:AF141) -> 0 | AH141: 出勤 | AI141: =COUNTIF(B140:AF140,"出") -> 0 | AJ141: =AI141*7.8 -> 0 | AK141: =AG142 -> 0 | AL141: =AJ141-AK141 -> 0 | AM141: =ROUNDDOWN(AL141*請求書・納品書!$M$11,) -> 0
A142: 遅・早(出) | AG142: =SUM(B142:AF142) -> 0 | AH142: 残業 | AL142: =AG141 -> 0 | AM142: =ROUNDDOWN(AL142*請求書・納品書!$M$12,) -> 0
A143: 遅・早(公) | AG143: =SUM(B143:AF143) -> 0 | AH143: 公出 | AI143: =COUNTIF(B140:AF140,"公") -> 0 | AJ143: =AI143*7.8 -> 0 | AK143: =AG143 -> 0 | AL143: =AJ143-AK143 -> 0 | AM143: =ROUNDDOWN(AL143*請求書・納品書!$M$13,) -> 0
A144: 連続 | AG144: =SUM(B144:AF144) -> 0 | AH144: 連続 | AL144: =AG144 -> 0 | AM144: =AL144*請求書・納品書!$M$14 -> 0
AL145: 合 計 | AM145: =SUM(AM141:AM144) -> 0 | AO145: =AM127+AM133+AM139+AM145 -> 0
AH146: =A146 -> 0 | AI146: 日数(日) | AJ146: 勤務時間(h) | AK146: 早退（h） | AL146: 合計(h) | AM146: 金額(円)
A147: 残業 | AG147: =SUM(B147:AF147) -> 0 | AH147: 出勤 | AI147: =COUNTIF(B146:AF146,"出") -> 0 | AJ147: =AI147*7.8 -> 0 | AK147: =AG148 -> 0 | AL147: =AJ147-AK147 -> 0 | AM147: =ROUNDDOWN(AL147*請求書・納品書!$M$11,) -> 0
A148: 遅・早(出) | AG148: =SUM(B148:AF148) -> 0 | AH148: 残業 | AL148: =AG147 -> 0 | AM148: =ROUNDDOWN(AL148*請求書・納品書!$M$12,) -> 0
A149: 遅・早(公) | AG149: =SUM(B149:AF149) -> 0 | AH149: 公出 | AI149: =COUNTIF(B146:AF146,"公") -> 0 | AJ149: =AI149*7.8 -> 0 | AK149: =AG149 -> 0 | AL149: =AJ149-AK149 -> 0 | AM149: =ROUNDDOWN(AL149*請求書・納品書!$M$13,) -> 0
A150: 連続 | AG150: =SUM(B150:AF150) -> 0 | AH150: 連続 | AL150: =AG150 -> 0 | AM150: =AL150*請求書・納品書!$M$14 -> 0
AL151: 合 計 | AM151: =SUM(AM147:AM150) -> 0
AH152: =A152 -> 0 | AI152: 日数(日) | AJ152: 勤務時間(h) | AK152: 早退（h） | AL152: 合計(h) | AM152: 金額(円)
A153: 残業 | AG153: =SUM(B153:AF153) -> 0 | AH153: 出勤 | AI153: =COUNTIF(B152:AF152,"出") -> 0 | AJ153: =AI153*7.8 -> 0 | AK153: =AG154 -> 0 | AL153: =AJ153-AK153 -> 0 | AM153: =ROUNDDOWN(AL153*請求書・納品書!$M$11,) -> 0
A154: 遅・早(出) | AG154: =SUM(B154:AF154) -> 0 | AH154: 残業 | AL154: =AG153 -> 0 | AM154: =ROUNDDOWN(AL154*請求書・納品書!$M$12,) -> 0
A155: 遅・早(公) | AG155: =SUM(B155:AF155) -> 0 | AH155: 公出 | AI155: =COUNTIF(B152:AF152,"公") -> 0 | AJ155: =AI155*7.8 -> 0 | AK155: =AG155 -> 0 | AL155: =AJ155-AK155 -> 0 | AM155: =ROUNDDOWN(AL155*請求書・納品書!$M$13,) -> 0
A156: 連続 | AG156: =SUM(B156:AF156) -> 0 | AH156: 連続 | AL156: =AG156 -> 0 | AM156: =AL156*請求書・納品書!$M$14 -> 0
AL157: 合 計 | AM157: =SUM(AM153:AM156) -> 0
AH158: =A158 -> 0 | AI158: 日数(日) | AJ158: 勤務時間(h) | AK158: 早退（h） | AL158: 合計(h) | AM158: 金額(円)
A159: 残業 | AG159: =SUM(B159:AF159) -> 0 | AH159: 出勤 | AI159: =COUNTIF(B158:AF158,"出") -> 0 | AJ159: =AI159*7.8 -> 0 | AK159: =AG160 -> 0 | AL159: =AJ159-AK159 -> 0 | AM159: =ROUNDDOWN(AL159*請求書・納品書!$M$11,) -> 0
A160: 遅・早(出) | AG160: =SUM(B160:AF160) -> 0 | AH160: 残業 | AL160: =AG159 -> 0 | AM160: =ROUNDDOWN(AL160*請求書・納品書!$M$12,) -> 0
A161: 遅・早(公) | AG161: =SUM(B161:AF161) -> 0 | AH161: 公出 | AI161: =COUNTIF(B158:AF158,"公") -> 0 | AJ161: =AI161*7.8 -> 0 | AK161: =AG161 -> 0 | AL161: =AJ161-AK161 -> 0 | AM161: =ROUNDDOWN(AL161*請求書・納品書!$M$13,) -> 0
A162: 連続 | AG162: =SUM(B162:AF162) -> 0 | AH162: 連続 | AL162: =AG162 -> 0 | AM162: =AL162*請求書・納品書!$M$14 -> 0
AL163: 合 計 | AM163: =SUM(AM159:AM162) -> 0
AH164: =A164 -> 0 | AI164: 日数(日) | AJ164: 勤務時間(h) | AK164: 早退（h） | AL164: 合計(h) | AM164: 金額(円)
A165: 残業 | AG165: =SUM(B165:AF165) -> 0 | AH165: 出勤 | AI165: =COUNTIF(B164:AF164,"出") -> 0 | AJ165: =AI165*7.8 -> 0 | AK165: =AG166 -> 0 | AL165: =AJ165-AK165 -> 0 | AM165: =ROUNDDOWN(AL165*請求書・納品書!$M$11,) -> 0
A166: 遅・早(出) | AG166: =SUM(B166:AF166) -> 0 | AH166: 残業 | AL166: =AG165 -> 0 | AM166: =ROUNDDOWN(AL166*請求書・納品書!$M$12,) -> 0
A167: 遅・早(公) | AG167: =SUM(B167:AF167) -> 0 | AH167: 公出 | AI167: =COUNTIF(B164:AF164,"公") -> 0 | AJ167: =AI167*7.8 -> 0 | AK167: =AG167 -> 0 | AL167: =AJ167-AK167 -> 0 | AM167: =ROUNDDOWN(AL167*請求書・納品書!$M$13,) -> 0
A168: 連続 | AG168: =SUM(B168:AF168) -> 0 | AH168: 連続 | AL168: =AG168 -> 0 | AM168: =AL168*請求書・納品書!$M$14 -> 0
AL169: 合 計 | AM169: =SUM(AM165:AM168) -> 0 | AO169: =AM151+AM157+AM163+AM169 -> 0
AH170: =A170 -> 0 | AI170: 日数(日) | AJ170: 勤務時間(h) | AK170: 早退（h） | AL170: 合計(h) | AM170: 金額(円)
A171: 残業 | AG171: =SUM(B171:AF171) -> 0 | AH171: 出勤 | AI171: =COUNTIF(B170:AF170,"出") -> 0 | AJ171: =AI171*7.8 -> 0 | AK171: =AG172 -> 0 | AL171: =AJ171-AK171 -> 0 | AM171: =ROUNDDOWN(AL171*請求書・納品書!$M$11,) -> 0
A172: 遅・早(出) | AG172: =SUM(B172:AF172) -> 0 | AH172: 残業 | AL172: =AG171 -> 0 | AM172: =ROUNDDOWN(AL172*請求書・納品書!$M$12,) -> 0
A173: 遅・早(公) | AG173: =SUM(B173:AF173) -> 0 | AH173: 公出 | AI173: =COUNTIF(B170:AF170,"公") -> 0 | AJ173: =AI173*7.8 -> 0 | AK173: =AG173 -> 0 | AL173: =AJ173-AK173 -> 0 | AM173: =ROUNDDOWN(AL173*請求書・納品書!$M$13,) -> 0
A174: 連続 | AG174: =SUM(B174:AF174) -> 0 | AH174: 連続 | AL174: =AG174 -> 0 | AM174: =AL174*請求書・納品書!$M$14 -> 0
AL175: 合 計 | AM175: =SUM(AM171:AM174) -> 0
AH176: =A176 -> 0 | AI176: 日数(日) | AJ176: 勤務時間(h) | AK176: 早退（h） | AL176: 合計(h) | AM176: 金額(円)
A177: 残業 | AG177: =SUM(B177:AF177) -> 0 | AH177: 出勤 | AI177: =COUNTIF(B176:AF176,"出") -> 0 | AJ177: =AI177*7.8 -> 0 | AK177: =AG178 -> 0 | AL177: =AJ177-AK177 -> 0 | AM177: =ROUNDDOWN(AL177*請求書・納品書!$M$11,) -> 0
A178: 遅・早(出) | AG178: =SUM(B178:AF178) -> 0 | AH178: 残業 | AL178: =AG177 -> 0 | AM178: =ROUNDDOWN(AL178*請求書・納品書!$M$12,) -> 0
A179: 遅・早(公) | AG179: =SUM(B179:AF179) -> 0 | AH179: 公出 | AI179: =COUNTIF(B176:AF176,"公") -> 0 | AJ179: =AI179*7.8 -> 0 | AK179: =AG179 -> 0 | AL179: =AJ179-AK179 -> 0 | AM179: =ROUNDDOWN(AL179*請求書・納品書!$M$13,) -> 0
A180: 連続 | AG180: =SUM(B180:AF180) -> 0 | AH180: 連続 | AL180: =AG180 -> 0 | AM180: =AL180*請求書・納品書!$M$14 -> 0
AL181: 合 計 | AM181: =SUM(AM177:AM180) -> 0
AH182: =A182 -> 0 | AI182: 日数(日) | AJ182: 勤務時間(h) | AK182: 早退（h） | AL182: 合計(h) | AM182: 金額(円)
A183: 残業 | AG183: =SUM(B183:AF183) -> 0 | AH183: 出勤 | AI183: =COUNTIF(B182:AF182,"出") -> 0 | AJ183: =AI183*7.8 -> 0 | AK183: =AG184 -> 0 | AL183: =AJ183-AK183 -> 0 | AM183: =ROUNDDOWN(AL183*請求書・納品書!$M$11,) -> 0
A184: 遅・早(出) | AG184: =SUM(B184:AF184) -> 0 | AH184: 残業 | AL184: =AG183 -> 0 | AM184: =ROUNDDOWN(AL184*請求書・納品書!$M$12,) -> 0
A185: 遅・早(公) | AG185: =SUM(B185:AF185) -> 0 | AH185: 公出 | AI185: =COUNTIF(B182:AF182,"公") -> 0 | AJ185: =AI185*7.8 -> 0 | AK185: =AG185 -> 0 | AL185: =AJ185-AK185 -> 0 | AM185: =ROUNDDOWN(AL185*請求書・納品書!$M$13,) -> 0
A186: 連続 | AG186: =SUM(B186:AF186) -> 0 | AH186: 連続 | AL186: =AG186 -> 0 | AM186: =AL186*請求書・納品書!$M$14 -> 0
AL187: 合 計 | AM187: =SUM(AM183:AM186) -> 0
AH188: =A188 -> 0 | AI188: 日数(日) | AJ188: 勤務時間(h) | AK188: 早退（h） | AL188: 合計(h) | AM188: 金額(円)
A189: 残業 | AG189: =SUM(B189:AF189) -> 0 | AH189: 出勤 | AI189: =COUNTIF(B188:AF188,"出") -> 0 | AJ189: =AI189*7.8 -> 0 | AK189: =AG190 -> 0 | AL189: =AJ189-AK189 -> 0 | AM189: =ROUNDDOWN(AL189*請求書・納品書!$M$11,) -> 0
A190: 遅・早(出) | AG190: =SUM(B190:AF190) -> 0 | AH190: 残業 | AL190: =AG189 -> 0 | AM190: =ROUNDDOWN(AL190*請求書・納品書!$M$12,) -> 0
A191: 遅・早(公) | AG191: =SUM(B191:AF191) -> 0 | AH191: 公出 | AI191: =COUNTIF(B188:AF188,"公") -> 0 | AJ191: =AI191*7.8 -> 0 | AK191: =AG191 -> 0 | AL191: =AJ191-AK191 -> 0 | AM191: =ROUNDDOWN(AL191*請求書・納品書!$M$13,) -> 0
A192: 連続 | AG192: =SUM(B192:AF192) -> 0 | AH192: 連続 | AL192: =AG192 -> 0 | AM192: =AL192*請求書・納品書!$M$14 -> 0
AL193: 合 計 | AM193: =SUM(AM189:AM192) -> 0 | AO193: =AM175+AM181+AM187+AM193 -> 0

Sheet 6
A1: ='4'!A1 -> 2010 | B1: 1 | C1: 2 | D1: 3 | E1: 4 | F1: 5 | G1: 6 | H1: 7 | I1: 8 | J1: 9 | K1: 10 | L1: 11 | M1: 12 | N1: 13 | O1: 14 | P1: 15 | Q1: 16 | R1: 17 | S1: 18 | T1: 19 | U1: 20 | V1: 21 | W1: 22 | X1: 23 | Y1: 24 | Z1: 25 | AA1: 26 | AB1: 27 | AC1: 28 | AD1: 29 | AE1: 30 | AF1: 31 | AG1: 計 | AH1: =A1&"年"&MID(CELL("filename",$A$1),FIND("]",CELL("filename",$A$1))+1,31) &"月" -> 2010年6月
AH2: =A2 -> 0 | AI2: 日数(日) | AJ2: 勤務時間(h) | AK2: 早退（h） | AL2: 合計(h) | AM2: 金額(円) | AN2: 出 | AO2: 合計 | AP2: =SUM(AM:AM)/2 -> 0
A3: 残業 | AG3: =SUM(B3:AF3) -> 0 | AH3: 出勤 | AI3: =COUNTIF(B2:AF2,"出") -> 0 | AJ3: =AI3*7.8 -> 0 | AK3: =AG4 -> 0 | AL3: =AJ3-AK3 -> 0 | AM3: =ROUNDDOWN(AL3*請求書・納品書!$M$11,) -> 0 | AN3: 公 | AO3: 人数 | AP3: =COUNTA(AH:AH)-COUNTIF(AH:AH,0)-32*4-1 -> 0
A4: 遅・早(出) | AG4: =SUM(B4:AF4) -> 0 | AH4: 残業 | AL4: =AG3 -> 0 | AM4: =ROUNDDOWN(AL4*請求書・納品書!$M$12,) -> 0 | AN4: 欠 | AO4: 管理費 | AP4: =(AP3-AP9)*19400 -> 0
A5: 遅・早(公) | AG5: =SUM(B5:AF5) -> 0 | AH5: 公出 | AI5: =COUNTIF(B2:AF2,"公") -> 0 | AJ5: =AI5*7.8 -> 0 | AK5: =AG5 -> 0 | AL5: =AJ5-AK5 -> 0 | AM5: =ROUNDDOWN(AL5*請求書・納品書!$M$13,) -> 0 | AN5: 有 | AO5: 小計 | AP5: =AP2+AP4 -> 0
A6: 連続 | AG6: =SUM(B6:AF6) -> 0 | AH6: 連続 | AL6: =AG6 -> 0 | AM6: =AL6*請求書・納品書!$M$14 -> 0 | AN6: 半 | AO6: 消費税 | AP6: =ROUNDDOWN(AP5*0.05,) -> 0
AL7: 合 計 | AM7: =SUM(AM3:AM6) -> 0 | AO7: 総合計 | AP7: =AP5+AP6 -> 0
AH8: =A8 -> 0 | AI8: 日数(日) | AJ8: 勤務時間(h) | AK8: 早退（h） | AL8: 合計(h) | AM8: 金額(円)
A9: 残業 | AG9: =SUM(B9:AF9) -> 0 | AH9: 出勤 | AI9: =COUNTIF(B8:AF8,"出") -> 0 | AJ9: =AI9*7.8 -> 0 | AK9: =AG10 -> 0 | AL9: =AJ9-AK9 -> 0 | AM9: =ROUNDDOWN(AL9*請求書・納品書!$M$11,) -> 0 | AO9: 管理費に入れない人数
A10: 遅・早(出) | AG10: =SUM(B10:AF10) -> 0 | AH10: 残業 | AL10: =AG9 -> 0 | AM10: =ROUNDDOWN(AL10*請求書・納品書!$M$12,) -> 0
A11: 遅・早(公) | AG11: =SUM(B11:AF11) -> 0 | AH11: 公出 | AI11: =COUNTIF(B8:AF8,"公") -> 0 | AJ11: =AI11*7.8 -> 0 | AK11: =AG11 -> 0 | AL11: =AJ11-AK11 -> 0 | AM11: =ROUNDDOWN(AL11*請求書・納品書!$M$13,) -> 0
A12: 連続 | AG12: =SUM(B12:AF12) -> 0 | AH12: 連続 | AL12: =AG12 -> 0 | AM12: =AL12*請求書・納品書!$M$14 -> 0
AL13: 合 計 | AM13: =SUM(AM9:AM12) -> 0
AH14: =A14 -> 0 | AI14: 日数(日) | AJ14: 勤務時間(h) | AK14: 早退（h） | AL14: 合計(h) | AM14: 金額(円)
A15: 残業 | AG15: =SUM(B15:AF15) -> 0 | AH15: 出勤 | AI15: =COUNTIF(B14:AF14,"出") -> 0 | AJ15: =AI15*7.8 -> 0 | AK15: =AG16 -> 0 | AL15: =AJ15-AK15 -> 0 | AM15: =ROUNDDOWN(AL15*請求書・納品書!$M$11,) -> 0
A16: 遅・早(出) | AG16: =SUM(B16:AF16) -> 0 | AH16: 残業 | AL16: =AG15 -> 0 | AM16: =ROUNDDOWN(AL16*請求書・納品書!$M$12,) -> 0
A17: 遅・早(公) | AG17: =SUM(B17:AF17) -> 0 | AH17: 公出 | AI17: =COUNTIF(B14:AF14,"公") -> 0 | AJ17: =AI17*7.8 -> 0 | AK17: =AG17 -> 0 | AL17: =AJ17-AK17 -> 0 | AM17: =ROUNDDOWN(AL17*請求書・納品書!$M$13,) -> 0
A18: 連続 | AG18: =SUM(B18:AF18) -> 0 | AH18: 連続 | AL18: =AG18 -> 0 | AM18: =AL18*請求書・納品書!$M$14 -> 0
AL19: 合 計 | AM19: =SUM(AM15:AM18) -> 0
AH20: =A20 -> 0 | AI20: 日数(日) | AJ20: 勤務時間(h) | AK20: 早退（h） | AL20: 合計(h) | AM20: 金額(円)
A21: 残業 | AG21: =SUM(B21:AF21) -> 0 | AH21: 出勤 | AI21: =COUNTIF(B20:AF20,"出") -> 0 | AJ21: =AI21*7.8 -> 0 | AK21: =AG22 -> 0 | AL21: =AJ21-AK21 -> 0 | AM21: =ROUNDDOWN(AL21*請求書・納品書!$M$11,) -> 0
A22: 遅・早(出) | AG22: =SUM(B22:AF22) -> 0 | AH22: 残業 | AL22: =AG21 -> 0 | AM22: =ROUNDDOWN(AL22*請求書・納品書!$M$12,) -> 0
A23: 遅・早(公) | AG23: =SUM(B23:AF23) -> 0 | AH23: 公出 | AI23: =COUNTIF(B20:AF20,"公") -> 0 | AJ23: =AI23*7.8 -> 0 | AK23: =AG23 -> 0 | AL23: =AJ23-AK23 -> 0 | AM23: =ROUNDDOWN(AL23*請求書・納品書!$M$13,) -> 0
A24: 連続 | AG24: =SUM(B24:AF24) -> 0 | AH24: 連続 | AL24: =AG24 -> 0 | AM24: =AL24*請求書・納品書!$M$14 -> 0
AL25: 合 計 | AM25: =SUM(AM21:AM24) -> 0 | AO25: =AM7+AM13+AM19+AM25 -> 0
AH26: =A26 -> 0 | AI26: 日数(日) | AJ26: 勤務時間(h) | AK26: 早退（h） | AL26: 合計(h) | AM26: 金額(円)
A27: 残業 | AG27: =SUM(B27:AF27) -> 0 | AH27: 出勤 | AI27: =COUNTIF(B26:AF26,"出") -> 0 | AJ27: =AI27*7.8 -> 0 | AK27: =AG28 -> 0 | AL27: =AJ27-AK27 -> 0 | AM27: =ROUNDDOWN(AL27*請求書・納品書!$M$11,) -> 0
A28: 遅・早(出) | AG28: =SUM(B28:AF28) -> 0 | AH28: 残業 | AL28: =AG27 -> 0 | AM28: =ROUNDDOWN(AL28*請求書・納品書!$M$12,) -> 0
A29: 遅・早(公) | AG29: =SUM(B29:AF29) -> 0 | AH29: 公出 | AI29: =COUNTIF(B26:AF26,"公") -> 0 | AJ29: =AI29*7.8 -> 0 | AK29: =AG29 -> 0 | AL29: =AJ29-AK29 -> 0 | AM29: =ROUNDDOWN(AL29*請求書・納品書!$M$13,) -> 0
A30: 連続 | AG30: =SUM(B30:AF30) -> 0 | AH30: 連続 | AL30: =AG30 -> 0 | AM30: =AL30*請求書・納品書!$M$14 -> 0
AL31: 合 計 | AM31: =SUM(AM27:AM30) -> 0
AH32: =A32 -> 0 | AI32: 日数(日) | AJ32: 勤務時間(h) | AK32: 早退（h） | AL32: 合計(h) | AM32: 金額(円)
A33: 残業 | AG33: =SUM(B33:AF33) -> 0 | AH33: 出勤 | AI33: =COUNTIF(B32:AF32,"出") -> 0 | AJ33: =AI33*7.8 -> 0 | AK33: =AG34 -> 0 | AL33: =AJ33-AK33 -> 0 | AM33: =ROUNDDOWN(AL33*請求書・納品書!$M$11,) -> 0
A34: 遅・早(出) | AG34: =SUM(B34:AF34) -> 0 | AH34: 残業 | AL34: =AG33 -> 0 | AM34: =ROUNDDOWN(AL34*請求書・納品書!$M$12,) -> 0
A35: 遅・早(公) | AG35: =SUM(B35:AF35) -> 0 | AH35: 公出 | AI35: =COUNTIF(B32:AF32,"公") -> 0 | AJ35: =AI35*7.8 -> 0 | AK35: =AG35 -> 0 | AL35: =AJ35-AK35 -> 0 | AM35: =ROUNDDOWN(AL35*請求書・納品書!$M$13,) -> 0
A36: 連続 | AG36: =SUM(B36:AF36) -> 0 | AH36: 連続 | AL36: =AG36 -> 0 | AM36: =AL36*請求書・納品書!$M$14 -> 0
AL37: 合 計 | AM37: =SUM(AM33:AM36) -> 0
AH38: =A38 -> 0 | AI38: 日数(日) | AJ38: 勤務時間(h) | AK38: 早退（h） | AL38: 合計(h) | AM38: 金額(円)
A39: 残業 | AG39: =SUM(B39:AF39) -> 0 | AH39: 出勤 | AI39: =COUNTIF(B38:AF38,"出") -> 0 | AJ39: =AI39*7.8 -> 0 | AK39: =AG40 -> 0 | AL39: =AJ39-AK39 -> 0 | AM39: =ROUNDDOWN(AL39*請求書・納品書!$M$11,) -> 0
A40: 遅・早(出) | AG40: =SUM(B40:AF40) -> 0 | AH40: 残業 | AL40: =AG39 -> 0 | AM40: =ROUNDDOWN(AL40*請求書・納品書!$M$12,) -> 0
A41: 遅・早(公) | AG41: =SUM(B41:AF41) -> 0 | AH41: 公出 | AI41: =COUNTIF(B38:AF38,"公") -> 0 | AJ41: =AI41*7.8 -> 0 | AK41: =AG41 -> 0 | AL41: =AJ41-AK41 -> 0 | AM41: =ROUNDDOWN(AL41*請求書・納品書!$M$13,) -> 0
A42: 連続 | AG42: =SUM(B42:AF42) -> 0 | AH42: 連続 | AL42: =AG42 -> 0 | AM42: =AL42*請求書・納品書!$M$14 -> 0
AL43: 合 計 | AM43: =SUM(AM39:AM42) -> 0
AH44: =A44 -> 0 | AI44: 日数(日) | AJ44: 勤務時間(h) | AK44: 早退（h） | AL44: 合計(h) | AM44: 金額(円)
A45: 残業 | AG45: =SUM(B45:AF45) -> 0 | AH45: 出勤 | AI45: =COUNTIF(B44:AF44,"出") -> 0 | AJ45: =AI45*7.8 -> 0 | AK45: =AG46 -> 0 | AL45: =AJ45-AK45 -> 0 | AM45: =ROUNDDOWN(AL45*請求書・納品書!$M$11,) -> 0
A46: 遅・早(出) | AG46: =SUM(B46:AF46) -> 0 | AH46: 残業 | AL46: =AG45 -> 0 | AM46: =ROUNDDOWN(AL46*請求書・納品書!$M$12,) -> 0
A47: 遅・早(公) | AG47: =SUM(B47:AF47) -> 0 | AH47: 公出 | AI47: =COUNTIF(B44:AF44,"公") -> 0 | AJ47: =AI47*7.8 -> 0 | AK47: =AG47 -> 0 | AL47: =AJ47-AK47 -> 0 | AM47: =ROUNDDOWN(AL47*請求書・納品書!$M$13,) -> 0
A48: 連続 | AG48: =SUM(B48:AF48) -> 0 | AH48: 連続 | AL48: =AG48 -> 0 | AM48: =AL48*請求書・納品書!$M$14 -> 0
AL49: 合 計 | AM49: =SUM(AM45:AM48) -> 0 | AO49: =AM31+AM37+AM43+AM49 -> 0
AH50: =A50 -> 0 | AI50: 日数(日) | AJ50: 勤務時間(h) | AK50: 早退（h） | AL50: 合計(h) | AM50: 金額(円)
A51: 残業 | AG51: =SUM(B51:AF51) -> 0 | AH51: 出勤 | AI51: =COUNTIF(B50:AF50,"出") -> 0 | AJ51: =AI51*7.8 -> 0 | AK51: =AG52 -> 0 | AL51: =AJ51-AK51 -> 0 | AM51: =ROUNDDOWN(AL51*請求書・納品書!$M$11,) -> 0
A52: 遅・早(出) | AG52: =SUM(B52:AF52) -> 0 | AH52: 残業 | AL52: =AG51 -> 0 | AM52: =ROUNDDOWN(AL52*請求書・納品書!$M$12,) -> 0
A53: 遅・早(公) | AG53: =SUM(B53:AF53) -> 0 | AH53: 公出 | AI53: =COUNTIF(B50:AF50,"公") -> 0 | AJ53: =AI53*7.8 -> 0 | AK53: =AG53 -> 0 | AL53: =AJ53-AK53 -> 0 | AM53: =ROUNDDOWN(AL53*請求書・納品書!$M$13,) -> 0
A54: 連続 | AG54: =SUM(B54:AF54) -> 0 | AH54: 連続 | AL54: =AG54 -> 0 | AM54: =AL54*請求書・納品書!$M$14 -> 0
AL55: 合 計 | AM55: =SUM(AM51:AM54) -> 0
AH56: =A56 -> 0 | AI56: 日数(日) | AJ56: 勤務時間(h) | AK56: 早退（h） | AL56: 合計(h) | AM56: 金額(円)
A57: 残業 | AG57: =SUM(B57:AF57) -> 0 | AH57: 出勤 | AI57: =COUNTIF(B56:AF56,"出") -> 0 | AJ57: =AI57*7.8 -> 0 | AK57: =AG58 -> 0 | AL57: =AJ57-AK57 -> 0 | AM57: =ROUNDDOWN(AL57*請求書・納品書!$M$11,) -> 0
A58: 遅・早(出) | AG58: =SUM(B58:AF58) -> 0 | AH58: 残業 | AL58: =AG57 -> 0 | AM58: =ROUNDDOWN(AL58*請求書・納品書!$M$12,) -> 0
A59: 遅・早(公) | AG59: =SUM(B59:AF59) -> 0 | AH59: 公出 | AI59: =COUNTIF(B56:AF56,"公") -> 0 | AJ59: =AI59*7.8 -> 0 | AK59: =AG59 -> 0 | AL59: =AJ59-AK59 -> 0 | AM59: =ROUNDDOWN(AL59*請求書・納品書!$M$13,) -> 0
A60: 連続 | AG60: =SUM(B60:AF60) -> 0 | AH60: 連続 | AL60: =AG60 -> 0 | AM60: =AL60*請求書・納品書!$M$14 -> 0
AL61: 合 計 | AM61: =SUM(AM57:AM60) -> 0
AH62: =A62 -> 0 | AI62: 日数(日) | AJ62: 勤務時間(h) | AK62: 早退（h） | AL62: 合計(h) | AM62: 金額(円)
A63: 残業 | AG63: =SUM(B63:AF63) -> 0 | AH63: 出勤 | AI63: =COUNTIF(B62:AF62,"出") -> 0 | AJ63: =AI63*7.8 -> 0 | AK63: =AG64 -> 0 | AL63: =AJ63-AK63 -> 0 | AM63: =ROUNDDOWN(AL63*請求書・納品書!$M$11,) -> 0
A64: 遅・早(出) | AG64: =SUM(B64:AF64) -> 0 | AH64: 残業 | AL64: =AG63 -> 0 | AM64: =ROUNDDOWN(AL64*請求書・納品書!$M$12,) -> 0
A65: 遅・早(公) | AG65: =SUM(B65:AF65) -> 0 | AH65: 公出 | AI65: =COUNTIF(B62:AF62,"公") -> 0 | AJ65: =AI65*7.8 -> 0 | AK65: =AG65 -> 0 | AL65: =AJ65-AK65 -> 0 | AM65: =ROUNDDOWN(AL65*請求書・納品書!$M$13,) -> 0
A66: 連続 | AG66: =SUM(B66:AF66) -> 0 | AH66: 連続 | AL66: =AG66 -> 0 | AM66: =AL66*請求書・納品書!$M$14 -> 0
AL67: 合 計 | AM67: =SUM(AM63:AM66) -> 0
AH68: =A68 -> 0 | AI68: 日数(日) | AJ68: 勤務時間(h) | AK68: 早退（h） | AL68: 合計(h) | AM68: 金額(円)
A69: 残業 | AG69: =SUM(B69:AF69) -> 0 | AH69: 出勤 | AI69: =COUNTIF(B68:AF68,"出") -> 0 | AJ69: =AI69*7.8 -> 0 | AK69: =AG70 -> 0 | AL69: =AJ69-AK69 -> 0 | AM69: =ROUNDDOWN(AL69*請求書・納品書!$M$11,) -> 0
A70: 遅・早(出) | AG70: =SUM(B70:AF70) -> 0 | AH70: 残業 | AL70: =AG69 -> 0 | AM70: =ROUNDDOWN(AL70*請求書・納品書!$M$12,) -> 0
A71: 遅・早(公) | AG71: =SUM(B71:AF71) -> 0 | AH71: 公出 | AI71: =COUNTIF(B68:AF68,"公") -> 0 | AJ71: =AI71*7.8 -> 0 | AK71: =AG71 -> 0 | AL71: =AJ71-AK71 -> 0 | AM71: =ROUNDDOWN(AL71*請求書・納品書!$M$13,) -> 0
A72: 連続 | AG72: =SUM(B72:AF72) -> 0 | AH72: 連続 | AL72: =AG72 -> 0 | AM72: =AL72*請求書・納品書!$M$14 -> 0
AL73: 合 計 | AM73: =SUM(AM69:AM72) -> 0 | AO73: =AM55+AM61+AM67+AM73 -> 0
AH74: =A74 -> 0 | AI74: 日数(日) | AJ74: 勤務時間(h) | AK74: 早退（h） | AL74: 合計(h) | AM74: 金額(円)
A75: 残業 | AG75: =SUM(B75:AF75) -> 0 | AH75: 出勤 | AI75: =COUNTIF(B74:AF74,"出") -> 0 | AJ75: =AI75*7.8 -> 0 | AK75: =AG76 -> 0 | AL75: =AJ75-AK75 -> 0 | AM75: =ROUNDDOWN(AL75*請求書・納品書!$M$11,) -> 0
A76: 遅・早(出) | AG76: =SUM(B76:AF76) -> 0 | AH76: 残業 | AL76: =AG75 -> 0 | AM76: =ROUNDDOWN(AL76*請求書・納品書!$M$12,) -> 0
A77: 遅・早(公) | AG77: =SUM(B77:AF77) -> 0 | AH77: 公出 | AI77: =COUNTIF(B74:AF74,"公") -> 0 | AJ77: =AI77*7.8 -> 0 | AK77: =AG77 -> 0 | AL77: =AJ77-AK77 -> 0 | AM77: =ROUNDDOWN(AL77*請求書・納品書!$M$13,) -> 0
A78: 連続 | AG78: =SUM(B78:AF78) -> 0 | AH78: 連続 | AL78: =AG78 -> 0 | AM78: =AL78*請求書・納品書!$M$14 -> 0
AL79: 合 計 | AM79: =SUM(AM75:AM78) -> 0
AH80: =A80 -> 0 | AI80: 日数(日) | AJ80: 勤務時間(h) | AK80: 早退（h） | AL80: 合計(h) | AM80: 金額(円)
A81: 残業 | AG81: =SUM(B81:AF81) -> 0 | AH81: 出勤 | AI81: =COUNTIF(B80:AF80,"出") -> 0 | AJ81: =AI81*7.8 -> 0 | AK81: =AG82 -> 0 | AL81: =AJ81-AK81 -> 0 | AM81: =ROUNDDOWN(AL81*請求書・納品書!$M$11,) -> 0
A82: 遅・早(出) | AG82: =SUM(B82:AF82) -> 0 | AH82: 残業 | AL82: =AG81 -> 0 | AM82: =ROUNDDOWN(AL82*請求書・納品書!$M$12,) -> 0
A83: 遅・早(公) | AG83: =SUM(B83:AF83) -> 0 | AH83: 公出 | AI83: =COUNTIF(B80:AF80,"公") -> 0 | AJ83: =AI83*7.8 -> 0 | AK83: =AG83 -> 0 | AL83: =AJ83-AK83 -> 0 | AM83: =ROUNDDOWN(AL83*請求書・納品書!$M$13,) -> 0
A84: 連続 | AG84: =SUM(B84:AF84) -> 0 | AH84: 連続 | AL84: =AG84 -> 0 | AM84: =AL84*請求書・納品書!$M$14 -> 0
AL85: 合 計 | AM85: =SUM(AM81:AM84) -> 0
AH86: =A86 -> 0 | AI86: 日数(日) | AJ86: 勤務時間(h) | AK86: 早退（h） | AL86: 合計(h) | AM86: 金額(円)
A87: 残業 | AG87: =SUM(B87:AF87) -> 0 | AH87: 出勤 | AI87: =COUNTIF(B86:AF86,"出") -> 0 | AJ87: =AI87*7.8 -> 0 | AK87: =AG88 -> 0 | AL87: =AJ87-AK87 -> 0 | AM87: =ROUNDDOWN(AL87*請求書・納品書!$M$11,) -> 0
A88: 遅・早(出) | AG88: =SUM(B88:AF88) -> 0 | AH88: 残業 | AL88: =AG87 -> 0 | AM88: =ROUNDDOWN(AL88*請求書・納品書!$M$12,) -> 0
A89: 遅・早(公) | AG89: =SUM(B89:AF89) -> 0 | AH89: 公出 | AI89: =COUNTIF(B86:AF86,"公") -> 0 | AJ89: =AI89*7.8 -> 0 | AK89: =AG89 -> 0 | AL89: =AJ89-AK89 -> 0 | AM89: =ROUNDDOWN(AL89*請求書・納品書!$M$13,) -> 0
A90: 連続 | AG90: =SUM(B90:AF90) -> 0 | AH90: 連続 | AL90: =AG90 -> 0 | AM90: =AL90*請求書・納品書!$M$14 -> 0
AL91: 合 計 | AM91: =SUM(AM87:AM90) -> 0
AH92: =A92 -> 0 | AI92: 日数(日) | AJ92: 勤務時間(h) | AK92: 早退（h） | AL92: 合計(h) | AM92: 金額(円)
A93: 残業 | AG93: =SUM(B93:AF93) -> 0 | AH93: 出勤 | AI93: =COUNTIF(B92:AF92,"出") -> 0 | AJ93: =AI93*7.8 -> 0 | AK93: =AG94 -> 0 | AL93: =AJ93-AK93 -> 0 | AM93: =ROUNDDOWN(AL93*請求書・納品書!$M$11,) -> 0
A94: 遅・早(出) | AG94: =SUM(B94:AF94) -> 0 | AH94: 残業 | AL94: =AG93 -> 0 | AM94: =ROUNDDOWN(AL94*請求書・納品書!$M$12,) -> 0
A95: 遅・早(公) | AG95: =SUM(B95:AF95) -> 0 | AH95: 公出 | AI95: =COUNTIF(B92:AF92,"公") -> 0 | AJ95: =AI95*7.8 -> 0 | AK95: =AG95 -> 0 | AL95: =AJ95-AK95 -> 0 | AM95: =ROUNDDOWN(AL95*請求書・納品書!$M$13,) -> 0
A96: 連続 | AG96: =SUM(B96:AF96) -> 0 | AH96: 連続 | AL96: =AG96 -> 0 | AM96: =AL96*請求書・納品書!$M$14 -> 0
AL97: 合 計 | AM97: =SUM(AM93:AM96) -> 0 | AO97: =AM79+AM85+AM91+AM97 -> 0
AH98: =A98 -> 0 | AI98: 日数(日) | AJ98: 勤務時間(h) | AK98: 早退（h） | AL98: 合計(h) | AM98: 金額(円)
A99: 残業 | AG99: =SUM(B99:AF99) -> 0 | AH99: 出勤 | AI99: =COUNTIF(B98:AF98,"出") -> 0 | AJ99: =AI99*7.8 -> 0 | AK99: =AG100 -> 0 | AL99: =AJ99-AK99 -> 0 | AM99: =ROUNDDOWN(AL99*請求書・納品書!$M$11,) -> 0
A100: 遅・早(出) | AG100: =SUM(B100:AF100) -> 0 | AH100: 残業 | AL100: =AG99 -> 0 | AM100: =ROUNDDOWN(AL100*請求書・納品書!$M$12,) -> 0
A101: 遅・早(公) | AG101: =SUM(B101:AF101) -> 0 | AH101: 公出 | AI101: =COUNTIF(B98:AF98,"公") -> 0 | AJ101: =AI101*7.8 -> 0 | AK101: =AG101 -> 0 | AL101: =AJ101-AK101 -> 0 | AM101: =ROUNDDOWN(AL101*請求書・納品書!$M$13,) -> 0
A102: 連続 | AG102: =SUM(B102:AF102) -> 0 | AH102: 連続 | AL102: =AG102 -> 0 | AM102: =AL102*請求書・納品書!$M$14 -> 0
AL103: 合 計 | AM103: =SUM(AM99:AM102) -> 0
AH104: =A104 -> 0 | AI104: 日数(日) | AJ104: 勤務時間(h) | AK104: 早退（h） | AL104: 合計(h) | AM104: 金額(円)
A105: 残業 | AG105: =SUM(B105:AF105) -> 0 | AH105: 出勤 | AI105: =COUNTIF(B104:AF104,"出") -> 0 | AJ105: =AI105*7.8 -> 0 | AK105: =AG106 -> 0 | AL105: =AJ105-AK105 -> 0 | AM105: =ROUNDDOWN(AL105*請求書・納品書!$M$11,) -> 0
A106: 遅・早(出) | AG106: =SUM(B106:AF106) -> 0 | AH106: 残業 | AL106: =AG105 -> 0 | AM106: =ROUNDDOWN(AL106*請求書・納品書!$M$12,) -> 0
A107: 遅・早(公) | AG107: =SUM(B107:AF107) -> 0 | AH107: 公出 | AI107: =COUNTIF(B104:AF104,"公") -> 0 | AJ107: =AI107*7.8 -> 0 | AK107: =AG107 -> 0 | AL107: =AJ107-AK107 -> 0 | AM107: =ROUNDDOWN(AL107*請求書・納品書!$M$13,) -> 0
A108: 連続 | AG108: =SUM(B108:AF108) -> 0 | AH108: 連続 | AL108: =AG108 -> 0 | AM108: =AL108*請求書・納品書!$M$14 -> 0
AL109: 合 計 | AM109: =SUM(AM105:AM108) -> 0
AH110: =A110 -> 0 | AI110: 日数(日) | AJ110: 勤務時間(h) | AK110: 早退（h） | AL110: 合計(h) | AM110: 金額(円)
A111: 残業 | AG111: =SUM(B111:AF111) -> 0 | AH111: 出勤 | AI111: =COUNTIF(B110:AF110,"出") -> 0 | AJ111: =AI111*7.8 -> 0 | AK111: =AG112 -> 0 | AL111: =AJ111-AK111 -> 0 | AM111: =ROUNDDOWN(AL111*請求書・納品書!$M$11,) -> 0
A112: 遅・早(出) | AG112: =SUM(B112:AF112) -> 0 | AH112: 残業 | AL112: =AG111 -> 0 | AM112: =ROUNDDOWN(AL112*請求書・納品書!$M$12,) -> 0
A113: 遅・早(公) | AG113: =SUM(B113:AF113) -> 0 | AH113: 公出 | AI113: =COUNTIF(B110:AF110,"公") -> 0 | AJ113: =AI113*7.8 -> 0 | AK113: =AG113 -> 0 | AL113: =AJ113-AK113 -> 0 | AM113: =ROUNDDOWN(AL113*請求書・納品書!$M$13,) -> 0
A114: 連続 | AG114: =SUM(B114:AF114) -> 0 | AH114: 連続 | AL114: =AG114 -> 0 | AM114: =AL114*請求書・納品書!$M$14 -> 0
AL115: 合 計 | AM115: =SUM(AM111:AM114) -> 0
AH116: =A116 -> 0 | AI116: 日数(日) | AJ116: 勤務時間(h) | AK116: 早退（h） | AL116: 合計(h) | AM116: 金額(円)
A117: 残業 | AG117: =SUM(B117:AF117) -> 0 | AH117: 出勤 | AI117: =COUNTIF(B116:AF116,"出") -> 0 | AJ117: =AI117*7.8 -> 0 | AK117: =AG118 -> 0 | AL117: =AJ117-AK117 -> 0 | AM117: =ROUNDDOWN(AL117*請求書・納品書!$M$11,) -> 0
A118: 遅・早(出) | AG118: =SUM(B118:AF118) -> 0 | AH118: 残業 | AL118: =AG117 -> 0 | AM118: =ROUNDDOWN(AL118*請求書・納品書!$M$12,) -> 0
A119: 遅・早(公) | AG119: =SUM(B119:AF119) -> 0 | AH119: 公出 | AI119: =COUNTIF(B116:AF116,"公") -> 0 | AJ119: =AI119*7.8 -> 0 | AK119: =AG119 -> 0 | AL119: =AJ119-AK119 -> 0 | AM119: =ROUNDDOWN(AL119*請求書・納品書!$M$13,) -> 0
A120: 連続 | AG120: =SUM(B120:AF120) -> 0 | AH120: 連続 | AL120: =AG120 -> 0 | AM120: =AL120*請求書・納品書!$M$14 -> 0
AL121: 合 計 | AM121: =SUM(AM117:AM120) -> 0 | AO121: =AM103+AM109+AM115+AM121 -> 0
AH122: =A122 -> 0 | AI122: 日数(日) | AJ122: 勤務時間(h) | AK122: 早退（h） | AL122: 合計(h) | AM122: 金額(円)
A123: 残業 | AG123: =SUM(B123:AF123) -> 0 | AH123: 出勤 | AI123: =COUNTIF(B122:AF122,"出") -> 0 | AJ123: =AI123*7.8 -> 0 | AK123: =AG124 -> 0 | AL123: =AJ123-AK123 -> 0 | AM123: =ROUNDDOWN(AL123*請求書・納品書!$M$11,) -> 0
A124: 遅・早(出) | AG124: =SUM(B124:AF124) -> 0 | AH124: 残業 | AL124: =AG123 -> 0 | AM124: =ROUNDDOWN(AL124*請求書・納品書!$M$12,) -> 0
A125: 遅・早(公) | AG125: =SUM(B125:AF125) -> 0 | AH125: 公出 | AI125: =COUNTIF(B122:AF122,"公") -> 0 | AJ125: =AI125*7.8 -> 0 | AK125: =AG125 -> 0 | AL125: =AJ125-AK125 -> 0 | AM125: =ROUNDDOWN(AL125*請求書・納品書!$M$13,) -> 0
A126: 連続 | AG126: =SUM(B126:AF126) -> 0 | AH126: 連続 | AL126: =AG126 -> 0 | AM126: =AL126*請求書・納品書!$M$14 -> 0
AL127: 合 計 | AM127: =SUM(AM123:AM126) -> 0
AH128: =A128 -> 0 | AI128: 日数(日) | AJ128: 勤務時間(h) | AK128: 早退（h） | AL128: 合計(h) | AM128: 金額(円)
A129: 残業 | AG129: =SUM(B129:AF129) -> 0 | AH129: 出勤 | AI129: =COUNTIF(B128:AF128,"出") -> 0 | AJ129: =AI129*7.8 -> 0 | AK129: =AG130 -> 0 | AL129: =AJ129-AK129 -> 0 | AM129: =ROUNDDOWN(AL129*請求書・納品書!$M$11,) -> 0
A130: 遅・早(出) | AG130: =SUM(B130:AF130) -> 0 | AH130: 残業 | AL130: =AG129 -> 0 | AM130: =ROUNDDOWN(AL130*請求書・納品書!$M$12,) -> 0
A131: 遅・早(公) | AG131: =SUM(B131:AF131) -> 0 | AH131: 公出 | AI131: =COUNTIF(B128:AF128,"公") -> 0 | AJ131: =AI131*7.8 -> 0 | AK131: =AG131 -> 0 | AL131: =AJ131-AK131 -> 0 | AM131: =ROUNDDOWN(AL131*請求書・納品書!$M$13,) -> 0
A132: 連続 | AG132: =SUM(B132:AF132) -> 0 | AH132: 連続 | AL132: =AG132 -> 0 | AM132: =AL132*請求書・納品書!$M$14 -> 0
AL133: 合 計 | AM133: =SUM(AM129:AM132) -> 0
AH134: =A134 -> 0 | AI134: 日数(日) | AJ134: 勤務時間(h) | AK134: 早退（h） | AL134: 合計(h) | AM134: 金額(円)
A135: 残業 | AG135: =SUM(B135:AF135) -> 0 | AH135: 出勤 | AI135: =COUNTIF(B134:AF134,"出") -> 0 | AJ135: =AI135*7.8 -> 0 | AK135: =AG136 -> 0 | AL135: =AJ135-AK135 -> 0 | AM135: =ROUNDDOWN(AL135*請求書・納品書!$M$11,) -> 0
A136: 遅・早(出) | AG136: =SUM(B136:AF136) -> 0 | AH136: 残業 | AL136: =AG135 -> 0 | AM136: =ROUNDDOWN(AL136*請求書・納品書!$M$12,) -> 0
A137: 遅・早(公) | AG137: =SUM(B137:AF137) -> 0 | AH137: 公出 | AI137: =COUNTIF(B134:AF134,"公") -> 0 | AJ137: =AI137*7.8 -> 0 | AK137: =AG137 -> 0 | AL137: =AJ137-AK137 -> 0 | AM137: =ROUNDDOWN(AL137*請求書・納品書!$M$13,) -> 0
A138: 連続 | AG138: =SUM(B138:AF138) -> 0 | AH138: 連続 | AL138: =AG138 -> 0 | AM138: =AL138*請求書・納品書!$M$14 -> 0
AL139: 合 計 | AM139: =SUM(AM135:AM138) -> 0
AH140: =A140 -> 0 | AI140: 日数(日) | AJ140: 勤務時間(h) | AK140: 早退（h） | AL140: 合計(h) | AM140: 金額(円)
A141: 残業 | AG141: =SUM(B141:AF141) -> 0 | AH141: 出勤 | AI141: =COUNTIF(B140:AF140,"出") -> 0 | AJ141: =AI141*7.8 -> 0 | AK141: =AG142 -> 0 | AL141: =AJ141-AK141 -> 0 | AM141: =ROUNDDOWN(AL141*請求書・納品書!$M$11,) -> 0
A142: 遅・早(出) | AG142: =SUM(B142:AF142) -> 0 | AH142: 残業 | AL142: =AG141 -> 0 | AM142: =ROUNDDOWN(AL142*請求書・納品書!$M$12,) -> 0
A143: 遅・早(公) | AG143: =SUM(B143:AF143) -> 0 | AH143: 公出 | AI143: =COUNTIF(B140:AF140,"公") -> 0 | AJ143: =AI143*7.8 -> 0 | AK143: =AG143 -> 0 | AL143: =AJ143-AK143 -> 0 | AM143: =ROUNDDOWN(AL143*請求書・納品書!$M$13,) -> 0
A144: 連続 | AG144: =SUM(B144:AF144) -> 0 | AH144: 連続 | AL144: =AG144 -> 0 | AM144: =AL144*請求書・納品書!$M$14 -> 0
AL145: 合 計 | AM145: =SUM(AM141:AM144) -> 0 | AO145: =AM127+AM133+AM139+AM145 -> 0
AH146: =A146 -> 0 | AI146: 日数(日) | AJ146: 勤務時間(h) | AK146: 早退（h） | AL146: 合計(h) | AM146: 金額(円)
A147: 残業 | AG147: =SUM(B147:AF147) -> 0 | AH147: 出勤 | AI147: =COUNTIF(B146:AF146,"出") -> 0 | AJ147: =AI147*7.8 -> 0 | AK147: =AG148 -> 0 | AL147: =AJ147-AK147 -> 0 | AM147: =ROUNDDOWN(AL147*請求書・納品書!$M$11,) -> 0
A148: 遅・早(出) | AG148: =SUM(B148:AF148) -> 0 | AH148: 残業 | AL148: =AG147 -> 0 | AM148: =ROUNDDOWN(AL148*請求書・納品書!$M$12,) -> 0
A149: 遅・早(公) | AG149: =SUM(B149:AF149) -> 0 | AH149: 公出 | AI149: =COUNTIF(B146:AF146,"公") -> 0 | AJ149: =AI149*7.8 -> 0 | AK149: =AG149 -> 0 | AL149: =AJ149-AK149 -> 0 | AM149: =ROUNDDOWN(AL149*請求書・納品書!$M$13,) -> 0
A150: 連続 | AG150: =SUM(B150:AF150) -> 0 | AH150: 連続 | AL150: =AG150 -> 0 | AM150: =AL150*請求書・納品書!$M$14 -> 0
AL151: 合 計 | AM151: =SUM(AM147:AM150) -> 0
AH152: =A152 -> 0 | AI152: 日数(日) | AJ152: 勤務時間(h) | AK152: 早退（h） | AL152: 合計(h) | AM152: 金額(円)
A153: 残業 | AG153: =SUM(B153:AF153) -> 0 | AH153: 出勤 | AI153: =COUNTIF(B152:AF152,"出") -> 0 | AJ153: =AI153*7.8 -> 0 | AK153: =AG154 -> 0 | AL153: =AJ153-AK153 -> 0 | AM153: =ROUNDDOWN(AL153*請求書・納品書!$M$11,) -> 0
A154: 遅・早(出) | AG154: =SUM(B154:AF154) -> 0 | AH154: 残業 | AL154: =AG153 -> 0 | AM154: =ROUNDDOWN(AL154*請求書・納品書!$M$12,) -> 0
A155: 遅・早(公) | AG155: =SUM(B155:AF155) -> 0 | AH155: 公出 | AI155: =COUNTIF(B152:AF152,"公") -> 0 | AJ155: =AI155*7.8 -> 0 | AK155: =AG155 -> 0 | AL155: =AJ155-AK155 -> 0 | AM155: =ROUNDDOWN(AL155*請求書・納品書!$M$13,) -> 0
A156: 連続 | AG156: =SUM(B156:AF156) -> 0 | AH156: 連続 | AL156: =AG156 -> 0 | AM156: =AL156*請求書・納品書!$M$14 -> 0
AL157: 合 計 | AM157: =SUM(AM153:AM156) -> 0
AH158: =A158 -> 0 | AI158: 日数(日) | AJ158: 勤務時間(h) | AK158: 早退（h） | AL158: 合計(h) | AM158: 金額(円)
A159: 残業 | AG159: =SUM(B159:AF159) -> 0 | AH159: 出勤 | AI159: =COUNTIF(B158:AF158,"出") -> 0 | AJ159: =AI159*7.8 -> 0 | AK159: =AG160 -> 0 | AL159: =AJ159-AK159 -> 0 | AM159: =ROUNDDOWN(AL159*請求書・納品書!$M$11,) -> 0
A160: 遅・早(出) | AG160: =SUM(B160:AF160) -> 0 | AH160: 残業 | AL160: =AG159 -> 0 | AM160: =ROUNDDOWN(AL160*請求書・納品書!$M$12,) -> 0
A161: 遅・早(公) | AG161: =SUM(B161:AF161) -> 0 | AH161: 公出 | AI161: =COUNTIF(B158:AF158,"公") -> 0 | AJ161: =AI161*7.8 -> 0 | AK161: =AG161 -> 0 | AL161: =AJ161-AK161 -> 0 | AM161: =ROUNDDOWN(AL161*請求書・納品書!$M$13,) -> 0
A162: 連続 | AG162: =SUM(B162:AF162) -> 0 | AH162: 連続 | AL162: =AG162 -> 0 | AM162: =AL162*請求書・納品書!$M$14 -> 0
AL163: 合 計 | AM163: =SUM(AM159:AM162) -> 0
AH164: =A164 -> 0 | AI164: 日数(日) | AJ164: 勤務時間(h) | AK164: 早退（h） | AL164: 合計(h) | AM164: 金額(円)
A165: 残業 | AG165: =SUM(B165:AF165) -> 0 | AH165: 出勤 | AI165: =COUNTIF(B164:AF164,"出") -> 0 | AJ165: =AI165*7.8 -> 0 | AK165: =AG166 -> 0 | AL165: =AJ165-AK165 -> 0 | AM165: =ROUNDDOWN(AL165*請求書・納品書!$M$11,) -> 0
A166: 遅・早(出) | AG166: =SUM(B166:AF166) -> 0 | AH166: 残業 | AL166: =AG165 -> 0 | AM166: =ROUNDDOWN(AL166*請求書・納品書!$M$12,) -> 0
A167: 遅・早(公) | AG167: =SUM(B167:AF167) -> 0 | AH167: 公出 | AI167: =COUNTIF(B164:AF164,"公") -> 0 | AJ167: =AI167*7.8 -> 0 | AK167: =AG167 -> 0 | AL167: =AJ167-AK167 -> 0 | AM167: =ROUNDDOWN(AL167*請求書・納品書!$M$13,) -> 0
A168: 連続 | AG168: =SUM(B168:AF168) -> 0 | AH168: 連続 | AL168: =AG168 -> 0 | AM168: =AL168*請求書・納品書!$M$14 -> 0
AL169: 合 計 | AM169: =SUM(AM165:AM168) -> 0 | AO169: =AM151+AM157+AM163+AM169 -> 0
AH170: =A170 -> 0 | AI170: 日数(日) | AJ170: 勤務時間(h) | AK170: 早退（h） | AL170: 合計(h) | AM170: 金額(円)
A171: 残業 | AG171: =SUM(B171:AF171) -> 0 | AH171: 出勤 | AI171: =COUNTIF(B170:AF170,"出") -> 0 | AJ171: =AI171*7.8 -> 0 | AK171: =AG172 -> 0 | AL171: =AJ171-AK171 -> 0 | AM171: =ROUNDDOWN(AL171*請求書・納品書!$M$11,) -> 0
A172: 遅・早(出) | AG172: =SUM(B172:AF172) -> 0 | AH172: 残業 | AL172: =AG171 -> 0 | AM172: =ROUNDDOWN(AL172*請求書・納品書!$M$12,) -> 0
A173: 遅・早(公) | AG173: =SUM(B173:AF173) -> 0 | AH173: 公出 | AI173: =COUNTIF(B170:AF170,"公") -> 0 | AJ173: =AI173*7.8 -> 0 | AK173: =AG173 -> 0 | AL173: =AJ173-AK173 -> 0 | AM173: =ROUNDDOWN(AL173*請求書・納品書!$M$13,) -> 0
A174: 連続 | AG174: =SUM(B174:AF174) -> 0 | AH174: 連続 | AL174: =AG174 -> 0 | AM174: =AL174*請求書・納品書!$M$14 -> 0
AL175: 合 計 | AM175: =SUM(AM171:AM174) -> 0
AH176: =A176 -> 0 | AI176: 日数(日) | AJ176: 勤務時間(h) | AK176: 早退（h） | AL176: 合計(h) | AM176: 金額(円)
A177: 残業 | AG177: =SUM(B177:AF177) -> 0 | AH177: 出勤 | AI177: =COUNTIF(B176:AF176,"出") -> 0 | AJ177: =AI177*7.8 -> 0 | AK177: =AG178 -> 0 | AL177: =AJ177-AK177 -> 0 | AM177: =ROUNDDOWN(AL177*請求書・納品書!$M$11,) -> 0
A178: 遅・早(出) | AG178: =SUM(B178:AF178) -> 0 | AH178: 残業 | AL178: =AG177 -> 0 | AM178: =ROUNDDOWN(AL178*請求書・納品書!$M$12,) -> 0
A179: 遅・早(公) | AG179: =SUM(B179:AF179) -> 0 | AH179: 公出 | AI179: =COUNTIF(B176:AF176,"公") -> 0 | AJ179: =AI179*7.8 -> 0 | AK179: =AG179 -> 0 | AL179: =AJ179-AK179 -> 0 | AM179: =ROUNDDOWN(AL179*請求書・納品書!$M$13,) -> 0
A180: 連続 | AG180: =SUM(B180:AF180) -> 0 | AH180: 連続 | AL180: =AG180 -> 0 | AM180: =AL180*請求書・納品書!$M$14 -> 0
AL181: 合 計 | AM181: =SUM(AM177:AM180) -> 0
AH182: =A182 -> 0 | AI182: 日数(日) | AJ182: 勤務時間(h) | AK182: 早退（h） | AL182: 合計(h) | AM182: 金額(円)
A183: 残業 | AG183: =SUM(B183:AF183) -> 0 | AH183: 出勤 | AI183: =COUNTIF(B182:AF182,"出") -> 0 | AJ183: =AI183*7.8 -> 0 | AK183: =AG184 -> 0 | AL183: =AJ183-AK183 -> 0 | AM183: =ROUNDDOWN(AL183*請求書・納品書!$M$11,) -> 0
A184: 遅・早(出) | AG184: =SUM(B184:AF184) -> 0 | AH184: 残業 | AL184: =AG183 -> 0 | AM184: =ROUNDDOWN(AL184*請求書・納品書!$M$12,) -> 0
A185: 遅・早(公) | AG185: =SUM(B185:AF185) -> 0 | AH185: 公出 | AI185: =COUNTIF(B182:AF182,"公") -> 0 | AJ185: =AI185*7.8 -> 0 | AK185: =AG185 -> 0 | AL185: =AJ185-AK185 -> 0 | AM185: =ROUNDDOWN(AL185*請求書・納品書!$M$13,) -> 0
A186: 連続 | AG186: =SUM(B186:AF186) -> 0 | AH186: 連続 | AL186: =AG186 -> 0 | AM186: =AL186*請求書・納品書!$M$14 -> 0
AL187: 合 計 | AM187: =SUM(AM183:AM186) -> 0
AH188: =A188 -> 0 | AI188: 日数(日) | AJ188: 勤務時間(h) | AK188: 早退（h） | AL188: 合計(h) | AM188: 金額(円)
A189: 残業 | AG189: =SUM(B189:AF189) -> 0 | AH189: 出勤 | AI189: =COUNTIF(B188:AF188,"出") -> 0 | AJ189: =AI189*7.8 -> 0 | AK189: =AG190 -> 0 | AL189: =AJ189-AK189 -> 0 | AM189: =ROUNDDOWN(AL189*請求書・納品書!$M$11,) -> 0
A190: 遅・早(出) | AG190: =SUM(B190:AF190) -> 0 | AH190: 残業 | AL190: =AG189 -> 0 | AM190: =ROUNDDOWN(AL190*請求書・納品書!$M$12,) -> 0
A191: 遅・早(公) | AG191: =SUM(B191:AF191) -> 0 | AH191: 公出 | AI191: =COUNTIF(B188:AF188,"公") -> 0 | AJ191: =AI191*7.8 -> 0 | AK191: =AG191 -> 0 | AL191: =AJ191-AK191 -> 0 | AM191: =ROUNDDOWN(AL191*請求書・納品書!$M$13,) -> 0
A192: 連続 | AG192: =SUM(B192:AF192) -> 0 | AH192: 連続 | AL192: =AG192 -> 0 | AM192: =AL192*請求書・納品書!$M$14 -> 0
AL193: 合 計 | AM193: =SUM(AM189:AM192) -> 0 | AO193: =AM175+AM181+AM187+AM193 -> 0

Sheet 7
A1: ='4'!A1 -> 2010 | B1: 1 | C1: 2 | D1: 3 | E1: 4 | F1: 5 | G1: 6 | H1: 7 | I1: 8 | J1: 9 | K1: 10 | L1: 11 | M1: 12 | N1: 13 | O1: 14 | P1: 15 | Q1: 16 | R1: 17 | S1: 18 | T1: 19 | U1: 20 | V1: 21 | W1: 22 | X1: 23 | Y1: 24 | Z1: 25 | AA1: 26 | AB1: 27 | AC1: 28 | AD1: 29 | AE1: 30 | AF1: 31 | AG1: 計 | AH1: =A1&"年"&MID(CELL("filename",$A$1),FIND("]",CELL("filename",$A$1))+1,31) &"月" -> 2010年7月
AH2: =A2 -> 0 | AI2: 日数(日) | AJ2: 勤務時間(h) | AK2: 早退（h） | AL2: 合計(h) | AM2: 金額(円) | AN2: 出 | AO2: 合計 | AP2: =SUM(AM:AM)/2 -> 0
A3: 残業 | AG3: =SUM(B3:AF3) -> 0 | AH3: 出勤 | AI3: =COUNTIF(B2:AF2,"出") -> 0 | AJ3: =AI3*7.8 -> 0 | AK3: =AG4 -> 0 | AL3: =AJ3-AK3 -> 0 | AM3: =ROUNDDOWN(AL3*請求書・納品書!$M$11,) -> 0 | AN3: 公 | AO3: 人数 | AP3: =COUNTA(AH:AH)-COUNTIF(AH:AH,0)-32*4-1 -> 0
A4: 遅・早(出) | AG4: =SUM(B4:AF4) -> 0 | AH4: 残業 | AL4: =AG3 -> 0 | AM4: =ROUNDDOWN(AL4*請求書・納品書!$M$12,) -> 0 | AN4: 欠 | AO4: 管理費 | AP4: =(AP3-AP9)*19400 -> 0
A5: 遅・早(公) | AG5: =SUM(B5:AF5) -> 0 | AH5: 公出 | AI5: =COUNTIF(B2:AF2,"公") -> 0 | AJ5: =AI5*7.8 -> 0 | AK5: =AG5 -> 0 | AL5: =AJ5-AK5 -> 0 | AM5: =ROUNDDOWN(AL5*請求書・納品書!$M$13,) -> 0 | AN5: 有 | AO5: 小計 | AP5: =AP2+AP4 -> 0
A6: 連続 | AG6: =SUM(B6:AF6) -> 0 | AH6: 連続 | AL6: =AG6 -> 0 | AM6: =AL6*請求書・納品書!$M$14 -> 0 | AN6: 半 | AO6: 消費税 | AP6: =ROUNDDOWN(AP5*0.05,) -> 0
AL7: 合 計 | AM7: =SUM(AM3:AM6) -> 0 | AO7: 総合計 | AP7: =AP5+AP6 -> 0
AH8: =A8 -> 0 | AI8: 日数(日) | AJ8: 勤務時間(h) | AK8: 早退（h） | AL8: 合計(h) | AM8: 金額(円)
A9: 残業 | AG9: =SUM(B9:AF9) -> 0 | AH9: 出勤 | AI9: =COUNTIF(B8:AF8,"出") -> 0 | AJ9: =AI9*7.8 -> 0 | AK9: =AG10 -> 0 | AL9: =AJ9-AK9 -> 0 | AM9: =ROUNDDOWN(AL9*請求書・納品書!$M$11,) -> 0 | AO9: 管理費に入れない人数
A10: 遅・早(出) | AG10: =SUM(B10:AF10) -> 0 | AH10: 残業 | AL10: =AG9 -> 0 | AM10: =ROUNDDOWN(AL10*請求書・納品書!$M$12,) -> 0
A11: 遅・早(公) | AG11: =SUM(B11:AF11) -> 0 | AH11: 公出 | AI11: =COUNTIF(B8:AF8,"公") -> 0 | AJ11: =AI11*7.8 -> 0 | AK11: =AG11 -> 0 | AL11: =AJ11-AK11 -> 0 | AM11: =ROUNDDOWN(AL11*請求書・納品書!$M$13,) -> 0
A12: 連続 | AG12: =SUM(B12:AF12) -> 0 | AH12: 連続 | AL12: =AG12 -> 0 | AM12: =AL12*請求書・納品書!$M$14 -> 0
AL13: 合 計 | AM13: =SUM(AM9:AM12) -> 0
AH14: =A14 -> 0 | AI14: 日数(日) | AJ14: 勤務時間(h) | AK14: 早退（h） | AL14: 合計(h) | AM14: 金額(円)
A15: 残業 | AG15: =SUM(B15:AF15) -> 0 | AH15: 出勤 | AI15: =COUNTIF(B14:AF14,"出") -> 0 | AJ15: =AI15*7.8 -> 0 | AK15: =AG16 -> 0 | AL15: =AJ15-AK15 -> 0 | AM15: =ROUNDDOWN(AL15*請求書・納品書!$M$11,) -> 0
A16: 遅・早(出) | AG16: =SUM(B16:AF16) -> 0 | AH16: 残業 | AL16: =AG15 -> 0 | AM16: =ROUNDDOWN(AL16*請求書・納品書!$M$12,) -> 0
A17: 遅・早(公) | AG17: =SUM(B17:AF17) -> 0 | AH17: 公出 | AI17: =COUNTIF(B14:AF14,"公") -> 0 | AJ17: =AI17*7.8 -> 0 | AK17: =AG17 -> 0 | AL17: =AJ17-AK17 -> 0 | AM17: =ROUNDDOWN(AL17*請求書・納品書!$M$13,) -> 0
A18: 連続 | AG18: =SUM(B18:AF18) -> 0 | AH18: 連続 | AL18: =AG18 -> 0 | AM18: =AL18*請求書・納品書!$M$14 -> 0
AL19: 合 計 | AM19: =SUM(AM15:AM18) -> 0
AH20: =A20 -> 0 | AI20: 日数(日) | AJ20: 勤務時間(h) | AK20: 早退（h） | AL20: 合計(h) | AM20: 金額(円)
A21: 残業 | AG21: =SUM(B21:AF21) -> 0 | AH21: 出勤 | AI21: =COUNTIF(B20:AF20,"出") -> 0 | AJ21: =AI21*7.8 -> 0 | AK21: =AG22 -> 0 | AL21: =AJ21-AK21 -> 0 | AM21: =ROUNDDOWN(AL21*請求書・納品書!$M$11,) -> 0
A22: 遅・早(出) | AG22: =SUM(B22:AF22) -> 0 | AH22: 残業 | AL22: =AG21 -> 0 | AM22: =ROUNDDOWN(AL22*請求書・納品書!$M$12,) -> 0
A23: 遅・早(公) | AG23: =SUM(B23:AF23) -> 0 | AH23: 公出 | AI23: =COUNTIF(B20:AF20,"公") -> 0 | AJ23: =AI23*7.8 -> 0 | AK23: =AG23 -> 0 | AL23: =AJ23-AK23 -> 0 | AM23: =ROUNDDOWN(AL23*請求書・納品書!$M$13,) -> 0
A24: 連続 | AG24: =SUM(B24:AF24) -> 0 | AH24: 連続 | AL24: =AG24 -> 0 | AM24: =AL24*請求書・納品書!$M$14 -> 0
AL25: 合 計 | AM25: =SUM(AM21:AM24) -> 0 | AO25: =AM7+AM13+AM19+AM25 -> 0
AH26: =A26 -> 0 | AI26: 日数(日) | AJ26: 勤務時間(h) | AK26: 早退（h） | AL26: 合計(h) | AM26: 金額(円)
A27: 残業 | AG27: =SUM(B27:AF27) -> 0 | AH27: 出勤 | AI27: =COUNTIF(B26:AF26,"出") -> 0 | AJ27: =AI27*7.8 -> 0 | AK27: =AG28 -> 0 | AL27: =AJ27-AK27 -> 0 | AM27: =ROUNDDOWN(AL27*請求書・納品書!$M$11,) -> 0
A28: 遅・早(出) | AG28: =SUM(B28:AF28) -> 0 | AH28: 残業 | AL28: =AG27 -> 0 | AM28: =ROUNDDOWN(AL28*請求書・納品書!$M$12,) -> 0
A29: 遅・早(公) | AG29: =SUM(B29:AF29) -> 0 | AH29: 公出 | AI29: =COUNTIF(B26:AF26,"公") -> 0 | AJ29: =AI29*7.8 -> 0 | AK29: =AG29 -> 0 | AL29: =AJ29-AK29 -> 0 | AM29: =ROUNDDOWN(AL29*請求書・納品書!$M$13,) -> 0
A30: 連続 | AG30: =SUM(B30:AF30) -> 0 | AH30: 連続 | AL30: =AG30 -> 0 | AM30: =AL30*請求書・納品書!$M$14 -> 0
AL31: 合 計 | AM31: =SUM(AM27:AM30) -> 0
AH32: =A32 -> 0 | AI32: 日数(日) | AJ32: 勤務時間(h) | AK32: 早退（h） | AL32: 合計(h) | AM32: 金額(円)
A33: 残業 | AG33: =SUM(B33:AF33) -> 0 | AH33: 出勤 | AI33: =COUNTIF(B32:AF32,"出") -> 0 | AJ33: =AI33*7.8 -> 0 | AK33: =AG34 -> 0 | AL33: =AJ33-AK33 -> 0 | AM33: =ROUNDDOWN(AL33*請求書・納品書!$M$11,) -> 0
A34: 遅・早(出) | AG34: =SUM(B34:AF34) -> 0 | AH34: 残業 | AL34: =AG33 -> 0 | AM34: =ROUNDDOWN(AL34*請求書・納品書!$M$12,) -> 0
A35: 遅・早(公) | AG35: =SUM(B35:AF35) -> 0 | AH35: 公出 | AI35: =COUNTIF(B32:AF32,"公") -> 0 | AJ35: =AI35*7.8 -> 0 | AK35: =AG35 -> 0 | AL35: =AJ35-AK35 -> 0 | AM35: =ROUNDDOWN(AL35*請求書・納品書!$M$13,) -> 0
A36: 連続 | AG36: =SUM(B36:AF36) -> 0 | AH36: 連続 | AL36: =AG36 -> 0 | AM36: =AL36*請求書・納品書!$M$14 -> 0
AL37: 合 計 | AM37: =SUM(AM33:AM36) -> 0
AH38: =A38 -> 0 | AI38: 日数(日) | AJ38: 勤務時間(h) | AK38: 早退（h） | AL38: 合計(h) | AM38: 金額(円)
A39: 残業 | AG39: =SUM(B39:AF39) -> 0 | AH39: 出勤 | AI39: =COUNTIF(B38:AF38,"出") -> 0 | AJ39: =AI39*7.8 -> 0 | AK39: =AG40 -> 0 | AL39: =AJ39-AK39 -> 0 | AM39: =ROUNDDOWN(AL39*請求書・納品書!$M$11,) -> 0
A40: 遅・早(出) | AG40: =SUM(B40:AF40) -> 0 | AH40: 残業 | AL40: =AG39 -> 0 | AM40: =ROUNDDOWN(AL40*請求書・納品書!$M$12,) -> 0
A41: 遅・早(公) | AG41: =SUM(B41:AF41) -> 0 | AH41: 公出 | AI41: =COUNTIF(B38:AF38,"公") -> 0 | AJ41: =AI41*7.8 -> 0 | AK41: =AG41 -> 0 | AL41: =AJ41-AK41 -> 0 | AM41: =ROUNDDOWN(AL41*請求書・納品書!$M$13,) -> 0
A42: 連続 | AG42: =SUM(B42:AF42) -> 0 | AH42: 連続 | AL42: =AG42 -> 0 | AM42: =AL42*請求書・納品書!$M$14 -> 0
AL43: 合 計 | AM43: =SUM(AM39:AM42) -> 0
AH44: =A44 -> 0 | AI44: 日数(日) | AJ44: 勤務時間(h) | AK44: 早退（h） | AL44: 合計(h) | AM44: 金額(円)
A45: 残業 | AG45: =SUM(B45:AF45) -> 0 | AH45: 出勤 | AI45: =COUNTIF(B44:AF44,"出") -> 0 | AJ45: =AI45*7.8 -> 0 | AK45: =AG46 -> 0 | AL45: =AJ45-AK45 -> 0 | AM45: =ROUNDDOWN(AL45*請求書・納品書!$M$11,) -> 0
A46: 遅・早(出) | AG46: =SUM(B46:AF46) -> 0 | AH46: 残業 | AL46: =AG45 -> 0 | AM46: =ROUNDDOWN(AL46*請求書・納品書!$M$12,) -> 0
A47: 遅・早(公) | AG47: =SUM(B47:AF47) -> 0 | AH47: 公出 | AI47: =COUNTIF(B44:AF44,"公") -> 0 | AJ47: =AI47*7.8 -> 0 | AK47: =AG47 -> 0 | AL47: =AJ47-AK47 -> 0 | AM47: =ROUNDDOWN(AL47*請求書・納品書!$M$13,) -> 0
A48: 連続 | AG48: =SUM(B48:AF48) -> 0 | AH48: 連続 | AL48: =AG48 -> 0 | AM48: =AL48*請求書・納品書!$M$14 -> 0
AL49: 合 計 | AM49: =SUM(AM45:AM48) -> 0 | AO49: =AM31+AM37+AM43+AM49 -> 0
AH50: =A50 -> 0 | AI50: 日数(日) | AJ50: 勤務時間(h) | AK50: 早退（h） | AL50: 合計(h) | AM50: 金額(円)
A51: 残業 | AG51: =SUM(B51:AF51) -> 0 | AH51: 出勤 | AI51: =COUNTIF(B50:AF50,"出") -> 0 | AJ51: =AI51*7.8 -> 0 | AK51: =AG52 -> 0 | AL51: =AJ51-AK51 -> 0 | AM51: =ROUNDDOWN(AL51*請求書・納品書!$M$11,) -> 0
A52: 遅・早(出) | AG52: =SUM(B52:AF52) -> 0 | AH52: 残業 | AL52: =AG51 -> 0 | AM52: =ROUNDDOWN(AL52*請求書・納品書!$M$12,) -> 0
A53: 遅・早(公) | AG53: =SUM(B53:AF53) -> 0 | AH53: 公出 | AI53: =COUNTIF(B50:AF50,"公") -> 0 | AJ53: =AI53*7.8 -> 0 | AK53: =AG53 -> 0 | AL53: =AJ53-AK53 -> 0 | AM53: =ROUNDDOWN(AL53*請求書・納品書!$M$13,) -> 0
A54: 連続 | AG54: =SUM(B54:AF54) -> 0 | AH54: 連続 | AL54: =AG54 -> 0 | AM54: =AL54*請求書・納品書!$M$14 -> 0
AL55: 合 計 | AM55: =SUM(AM51:AM54) -> 0
AH56: =A56 -> 0 | AI56: 日数(日) | AJ56: 勤務時間(h) | AK56: 早退（h） | AL56: 合計(h) | AM56: 金額(円)
A57: 残業 | AG57: =SUM(B57:AF57) -> 0 | AH57: 出勤 | AI57: =COUNTIF(B56:AF56,"出") -> 0 | AJ57: =AI57*7.8 -> 0 | AK57: =AG58 -> 0 | AL57: =AJ57-AK57 -> 0 | AM57: =ROUNDDOWN(AL57*請求書・納品書!$M$11,) -> 0
A58: 遅・早(出) | AG58: =SUM(B58:AF58) -> 0 | AH58: 残業 | AL58: =AG57 -> 0 | AM58: =ROUNDDOWN(AL58*請求書・納品書!$M$12,) -> 0
A59: 遅・早(公) | AG59: =SUM(B59:AF59) -> 0 | AH59: 公出 | AI59: =COUNTIF(B56:AF56,"公") -> 0 | AJ59: =AI59*7.8 -> 0 | AK59: =AG59 -> 0 | AL59: =AJ59-AK59 -> 0 | AM59: =ROUNDDOWN(AL59*請求書・納品書!$M$13,) -> 0
A60: 連続 | AG60: =SUM(B60:AF60) -> 0 | AH60: 連続 | AL60: =AG60 -> 0 | AM60: =AL60*請求書・納品書!$M$14 -> 0
AL61: 合 計 | AM61: =SUM(AM57:AM60) -> 0
AH62: =A62 -> 0 | AI62: 日数(日) | AJ62: 勤務時間(h) | AK62: 早退（h） | AL62: 合計(h) | AM62: 金額(円)
A63: 残業 | AG63: =SUM(B63:AF63) -> 0 | AH63: 出勤 | AI63: =COUNTIF(B62:AF62,"出") -> 0 | AJ63: =AI63*7.8 -> 0 | AK63: =AG64 -> 0 | AL63: =AJ63-AK63 -> 0 | AM63: =ROUNDDOWN(AL63*請求書・納品書!$M$11,) -> 0
A64: 遅・早(出) | AG64: =SUM(B64:AF64) -> 0 | AH64: 残業 | AL64: =AG63 -> 0 | AM64: =ROUNDDOWN(AL64*請求書・納品書!$M$12,) -> 0
A65: 遅・早(公) | AG65: =SUM(B65:AF65) -> 0 | AH65: 公出 | AI65: =COUNTIF(B62:AF62,"公") -> 0 | AJ65: =AI65*7.8 -> 0 | AK65: =AG65 -> 0 | AL65: =AJ65-AK65 -> 0 | AM65: =ROUNDDOWN(AL65*請求書・納品書!$M$13,) -> 0
A66: 連続 | AG66: =SUM(B66:AF66) -> 0 | AH66: 連続 | AL66: =AG66 -> 0 | AM66: =AL66*請求書・納品書!$M$14 -> 0
AL67: 合 計 | AM67: =SUM(AM63:AM66) -> 0
AH68: =A68 -> 0 | AI68: 日数(日) | AJ68: 勤務時間(h) | AK68: 早退（h） | AL68: 合計(h) | AM68: 金額(円)
A69: 残業 | AG69: =SUM(B69:AF69) -> 0 | AH69: 出勤 | AI69: =COUNTIF(B68:AF68,"出") -> 0 | AJ69: =AI69*7.8 -> 0 | AK69: =AG70 -> 0 | AL69: =AJ69-AK69 -> 0 | AM69: =ROUNDDOWN(AL69*請求書・納品書!$M$11,) -> 0
A70: 遅・早(出) | AG70: =SUM(B70:AF70) -> 0 | AH70: 残業 | AL70: =AG69 -> 0 | AM70: =ROUNDDOWN(AL70*請求書・納品書!$M$12,) -> 0
A71: 遅・早(公) | AG71: =SUM(B71:AF71) -> 0 | AH71: 公出 | AI71: =COUNTIF(B68:AF68,"公") -> 0 | AJ71: =AI71*7.8 -> 0 | AK71: =AG71 -> 0 | AL71: =AJ71-AK71 -> 0 | AM71: =ROUNDDOWN(AL71*請求書・納品書!$M$13,) -> 0
A72: 連続 | AG72: =SUM(B72:AF72) -> 0 | AH72: 連続 | AL72: =AG72 -> 0 | AM72: =AL72*請求書・納品書!$M$14 -> 0
AL73: 合 計 | AM73: =SUM(AM69:AM72) -> 0 | AO73: =AM55+AM61+AM67+AM73 -> 0
AH74: =A74 -> 0 | AI74: 日数(日) | AJ74: 勤務時間(h) | AK74: 早退（h） | AL74: 合計(h) | AM74: 金額(円)
A75: 残業 | AG75: =SUM(B75:AF75) -> 0 | AH75: 出勤 | AI75: =COUNTIF(B74:AF74,"出") -> 0 | AJ75: =AI75*7.8 -> 0 | AK75: =AG76 -> 0 | AL75: =AJ75-AK75 -> 0 | AM75: =ROUNDDOWN(AL75*請求書・納品書!$M$11,) -> 0
A76: 遅・早(出) | AG76: =SUM(B76:AF76) -> 0 | AH76: 残業 | AL76: =AG75 -> 0 | AM76: =ROUNDDOWN(AL76*請求書・納品書!$M$12,) -> 0
A77: 遅・早(公) | AG77: =SUM(B77:AF77) -> 0 | AH77: 公出 | AI77: =COUNTIF(B74:AF74,"公") -> 0 | AJ77: =AI77*7.8 -> 0 | AK77: =AG77 -> 0 | AL77: =AJ77-AK77 -> 0 | AM77: =ROUNDDOWN(AL77*請求書・納品書!$M$13,) -> 0
A78: 連続 | AG78: =SUM(B78:AF78) -> 0 | AH78: 連続 | AL78: =AG78 -> 0 | AM78: =AL78*請求書・納品書!$M$14 -> 0
AL79: 合 計 | AM79: =SUM(AM75:AM78) -> 0
AH80: =A80 -> 0 | AI80: 日数(日) | AJ80: 勤務時間(h) | AK80: 早退（h） | AL80: 合計(h) | AM80: 金額(円)
A81: 残業 | AG81: =SUM(B81:AF81) -> 0 | AH81: 出勤 | AI81: =COUNTIF(B80:AF80,"出") -> 0 | AJ81: =AI81*7.8 -> 0 | AK81: =AG82 -> 0 | AL81: =AJ81-AK81 -> 0 | AM81: =ROUNDDOWN(AL81*請求書・納品書!$M$11,) -> 0
A82: 遅・早(出) | AG82: =SUM(B82:AF82) -> 0 | AH82: 残業 | AL82: =AG81 -> 0 | AM82: =ROUNDDOWN(AL82*請求書・納品書!$M$12,) -> 0
A83: 遅・早(公) | AG83: =SUM(B83:AF83) -> 0 | AH83: 公出 | AI83: =COUNTIF(B80:AF80,"公") -> 0 | AJ83: =AI83*7.8 -> 0 | AK83: =AG83 -> 0 | AL83: =AJ83-AK83 -> 0 | AM83: =ROUNDDOWN(AL83*請求書・納品書!$M$13,) -> 0
A84: 連続 | AG84: =SUM(B84:AF84) -> 0 | AH84: 連続 | AL84: =AG84 -> 0 | AM84: =AL84*請求書・納品書!$M$14 -> 0
AL85: 合 計 | AM85: =SUM(AM81:AM84) -> 0
AH86: =A86 -> 0 | AI86: 日数(日) | AJ86: 勤務時間(h) | AK86: 早退（h） | AL86: 合計(h) | AM86: 金額(円)
A87: 残業 | AG87: =SUM(B87:AF87) -> 0 | AH87: 出勤 | AI87: =COUNTIF(B86:AF86,"出") -> 0 | AJ87: =AI87*7.8 -> 0 | AK87: =AG88 -> 0 | AL87: =AJ87-AK87 -> 0 | AM87: =ROUNDDOWN(AL87*請求書・納品書!$M$11,) -> 0
A88: 遅・早(出) | AG88: =SUM(B88:AF88) -> 0 | AH88: 残業 | AL88: =AG87 -> 0 | AM88: =ROUNDDOWN(AL88*請求書・納品書!$M$12,) -> 0
A89: 遅・早(公) | AG89: =SUM(B89:AF89) -> 0 | AH89: 公出 | AI89: =COUNTIF(B86:AF86,"公") -> 0 | AJ89: =AI89*7.8 -> 0 | AK89: =AG89 -> 0 | AL89: =AJ89-AK89 -> 0 | AM89: =ROUNDDOWN(AL89*請求書・納品書!$M$13,) -> 0
A90: 連続 | AG90: =SUM(B90:AF90) -> 0 | AH90: 連続 | AL90: =AG90 -> 0 | AM90: =AL90*請求書・納品書!$M$14 -> 0
AL91: 合 計 | AM91: =SUM(AM87:AM90) -> 0
AH92: =A92 -> 0 | AI92: 日数(日) | AJ92: 勤務時間(h) | AK92: 早退（h） | AL92: 合計(h) | AM92: 金額(円)
A93: 残業 | AG93: =SUM(B93:AF93) -> 0 | AH93: 出勤 | AI93: =COUNTIF(B92:AF92,"出") -> 0 | AJ93: =AI93*7.8 -> 0 | AK93: =AG94 -> 0 | AL93: =AJ93-AK93 -> 0 | AM93: =ROUNDDOWN(AL93*請求書・納品書!$M$11,) -> 0
A94: 遅・早(出) | AG94: =SUM(B94:AF94) -> 0 | AH94: 残業 | AL94: =AG93 -> 0 | AM94: =ROUNDDOWN(AL94*請求書・納品書!$M$12,) -> 0
A95: 遅・早(公) | AG95: =SUM(B95:AF95) -> 0 | AH95: 公出 | AI95: =COUNTIF(B92:AF92,"公") -> 0 | AJ95: =AI95*7.8 -> 0 | AK95: =AG95 -> 0 | AL95: =AJ95-AK95 -> 0 | AM95: =ROUNDDOWN(AL95*請求書・納品書!$M$13,) -> 0
A96: 連続 | AG96: =SUM(B96:AF96) -> 0 | AH96: 連続 | AL96: =AG96 -> 0 | AM96: =AL96*請求書・納品書!$M$14 -> 0
AL97: 合 計 | AM97: =SUM(AM93:AM96) -> 0 | AO97: =AM79+AM85+AM91+AM97 -> 0
AH98: =A98 -> 0 | AI98: 日数(日) | AJ98: 勤務時間(h) | AK98: 早退（h） | AL98: 合計(h) | AM98: 金額(円)
A99: 残業 | AG99: =SUM(B99:AF99) -> 0 | AH99: 出勤 | AI99: =COUNTIF(B98:AF98,"出") -> 0 | AJ99: =AI99*7.8 -> 0 | AK99: =AG100 -> 0 | AL99: =AJ99-AK99 -> 0 | AM99: =ROUNDDOWN(AL99*請求書・納品書!$M$11,) -> 0
A100: 遅・早(出) | AG100: =SUM(B100:AF100) -> 0 | AH100: 残業 | AL100: =AG99 -> 0 | AM100: =ROUNDDOWN(AL100*請求書・納品書!$M$12,) -> 0
A101: 遅・早(公) | AG101: =SUM(B101:AF101) -> 0 | AH101: 公出 | AI101: =COUNTIF(B98:AF98,"公") -> 0 | AJ101: =AI101*7.8 -> 0 | AK101: =AG101 -> 0 | AL101: =AJ101-AK101 -> 0 | AM101: =ROUNDDOWN(AL101*請求書・納品書!$M$13,) -> 0
A102: 連続 | AG102: =SUM(B102:AF102) -> 0 | AH102: 連続 | AL102: =AG102 -> 0 | AM102: =AL102*請求書・納品書!$M$14 -> 0
AL103: 合 計 | AM103: =SUM(AM99:AM102) -> 0
AH104: =A104 -> 0 | AI104: 日数(日) | AJ104: 勤務時間(h) | AK104: 早退（h） | AL104: 合計(h) | AM104: 金額(円)
A105: 残業 | AG105: =SUM(B105:AF105) -> 0 | AH105: 出勤 | AI105: =COUNTIF(B104:AF104,"出") -> 0 | AJ105: =AI105*7.8 -> 0 | AK105: =AG106 -> 0 | AL105: =AJ105-AK105 -> 0 | AM105: =ROUNDDOWN(AL105*請求書・納品書!$M$11,) -> 0
A106: 遅・早(出) | AG106: =SUM(B106:AF106) -> 0 | AH106: 残業 | AL106: =AG105 -> 0 | AM106: =ROUNDDOWN(AL106*請求書・納品書!$M$12,) -> 0
A107: 遅・早(公) | AG107: =SUM(B107:AF107) -> 0 | AH107: 公出 | AI107: =COUNTIF(B104:AF104,"公") -> 0 | AJ107: =AI107*7.8 -> 0 | AK107: =AG107 -> 0 | AL107: =AJ107-AK107 -> 0 | AM107: =ROUNDDOWN(AL107*請求書・納品書!$M$13,) -> 0
A108: 連続 | AG108: =SUM(B108:AF108) -> 0 | AH108: 連続 | AL108: =AG108 -> 0 | AM108: =AL108*請求書・納品書!$M$14 -> 0
AL109: 合 計 | AM109: =SUM(AM105:AM108) -> 0
AH110: =A110 -> 0 | AI110: 日数(日) | AJ110: 勤務時間(h) | AK110: 早退（h） | AL110: 合計(h) | AM110: 金額(円)
A111: 残業 | AG111: =SUM(B111:AF111) -> 0 | AH111: 出勤 | AI111: =COUNTIF(B110:AF110,"出") -> 0 | AJ111: =AI111*7.8 -> 0 | AK111: =AG112 -> 0 | AL111: =AJ111-AK111 -> 0 | AM111: =ROUNDDOWN(AL111*請求書・納品書!$M$11,) -> 0
A112: 遅・早(出) | AG112: =SUM(B112:AF112) -> 0 | AH112: 残業 | AL112: =AG111 -> 0 | AM112: =ROUNDDOWN(AL112*請求書・納品書!$M$12,) -> 0
A113: 遅・早(公) | AG113: =SUM(B113:AF113) -> 0 | AH113: 公出 | AI113: =COUNTIF(B110:AF110,"公") -> 0 | AJ113: =AI113*7.8 -> 0 | AK113: =AG113 -> 0 | AL113: =AJ113-AK113 -> 0 | AM113: =ROUNDDOWN(AL113*請求書・納品書!$M$13,) -> 0
A114: 連続 | AG114: =SUM(B114:AF114) -> 0 | AH114: 連続 | AL114: =AG114 -> 0 | AM114: =AL114*請求書・納品書!$M$14 -> 0
AL115: 合 計 | AM115: =SUM(AM111:AM114) -> 0
AH116: =A116 -> 0 | AI116: 日数(日) | AJ116: 勤務時間(h) | AK116: 早退（h） | AL116: 合計(h) | AM116: 金額(円)
A117: 残業 | AG117: =SUM(B117:AF117) -> 0 | AH117: 出勤 | AI117: =COUNTIF(B116:AF116,"出") -> 0 | AJ117: =AI117*7.8 -> 0 | AK117: =AG118 -> 0 | AL117: =AJ117-AK117 -> 0 | AM117: =ROUNDDOWN(AL117*請求書・納品書!$M$11,) -> 0
A118: 遅・早(出) | AG118: =SUM(B118:AF118) -> 0 | AH118: 残業 | AL118: =AG117 -> 0 | AM118: =ROUNDDOWN(AL118*請求書・納品書!$M$12,) -> 0
A119: 遅・早(公) | AG119: =SUM(B119:AF119) -> 0 | AH119: 公出 | AI119: =COUNTIF(B116:AF116,"公") -> 0 | AJ119: =AI119*7.8 -> 0 | AK119: =AG119 -> 0 | AL119: =AJ119-AK119 -> 0 | AM119: =ROUNDDOWN(AL119*請求書・納品書!$M$13,) -> 0
A120: 連続 | AG120: =SUM(B120:AF120) -> 0 | AH120: 連続 | AL120: =AG120 -> 0 | AM120: =AL120*請求書・納品書!$M$14 -> 0
AL121: 合 計 | AM121: =SUM(AM117:AM120) -> 0 | AO121: =AM103+AM109+AM115+AM121 -> 0
AH122: =A122 -> 0 | AI122: 日数(日) | AJ122: 勤務時間(h) | AK122: 早退（h） | AL122: 合計(h) | AM122: 金額(円)
A123: 残業 | AG123: =SUM(B123:AF123) -> 0 | AH123: 出勤 | AI123: =COUNTIF(B122:AF122,"出") -> 0 | AJ123: =AI123*7.8 -> 0 | AK123: =AG124 -> 0 | AL123: =AJ123-AK123 -> 0 | AM123: =ROUNDDOWN(AL123*請求書・納品書!$M$11,) -> 0
A124: 遅・早(出) | AG124: =SUM(B124:AF124) -> 0 | AH124: 残業 | AL124: =AG123 -> 0 | AM124: =ROUNDDOWN(AL124*請求書・納品書!$M$12,) -> 0
A125: 遅・早(公) | AG125: =SUM(B125:AF125) -> 0 | AH125: 公出 | AI125: =COUNTIF(B122:AF122,"公") -> 0 | AJ125: =AI125*7.8 -> 0 | AK125: =AG125 -> 0 | AL125: =AJ125-AK125 -> 0 | AM125: =ROUNDDOWN(AL125*請求書・納品書!$M$13,) -> 0
A126: 連続 | AG126: =SUM(B126:AF126) -> 0 | AH126: 連続 | AL126: =AG126 -> 0 | AM126: =AL126*請求書・納品書!$M$14 -> 0
AL127: 合 計 | AM127: =SUM(AM123:AM126) -> 0
AH128: =A128 -> 0 | AI128: 日数(日) | AJ128: 勤務時間(h) | AK128: 早退（h） | AL128: 合計(h) | AM128: 金額(円)
A129: 残業 | AG129: =SUM(B129:AF129) -> 0 | AH129: 出勤 | AI129: =COUNTIF(B128:AF128,"出") -> 0 | AJ129: =AI129*7.8 -> 0 | AK129: =AG130 -> 0 | AL129: =AJ129-AK129 -> 0 | AM129: =ROUNDDOWN(AL129*請求書・納品書!$M$11,) -> 0
A130: 遅・早(出) | AG130: =SUM(B130:AF130) -> 0 | AH130: 残業 | AL130: =AG129 -> 0 | AM130: =ROUNDDOWN(AL130*請求書・納品書!$M$12,) -> 0
A131: 遅・早(公) | AG131: =SUM(B131:AF131) -> 0 | AH131: 公出 | AI131: =COUNTIF(B128:AF128,"公") -> 0 | AJ131: =AI131*7.8 -> 0 | AK131: =AG131 -> 0 | AL131: =AJ131-AK131 -> 0 | AM131: =ROUNDDOWN(AL131*請求書・納品書!$M$13,) -> 0
A132: 連続 | AG132: =SUM(B132:AF132) -> 0 | AH132: 連続 | AL132: =AG132 -> 0 | AM132: =AL132*請求書・納品書!$M$14 -> 0
AL133: 合 計 | AM133: =SUM(AM129:AM132) -> 0
AH134: =A134 -> 0 | AI134: 日数(日) | AJ134: 勤務時間(h) | AK134: 早退（h） | AL134: 合計(h) | AM134: 金額(円)
A135: 残業 | AG135: =SUM(B135:AF135) -> 0 | AH135: 出勤 | AI135: =COUNTIF(B134:AF134,"出") -> 0 | AJ135: =AI135*7.8 -> 0 | AK135: =AG136 -> 0 | AL135: =AJ135-AK135 -> 0 | AM135: =ROUNDDOWN(AL135*請求書・納品書!$M$11,) -> 0
A136: 遅・早(出) | AG136: =SUM(B136:AF136) -> 0 | AH136: 残業 | AL136: =AG135 -> 0 | AM136: =ROUNDDOWN(AL136*請求書・納品書!$M$12,) -> 0
A137: 遅・早(公) | AG137: =SUM(B137:AF137) -> 0 | AH137: 公出 | AI137: =COUNTIF(B134:AF134,"公") -> 0 | AJ137: =AI137*7.8 -> 0 | AK137: =AG137 -> 0 | AL137: =AJ137-AK137 -> 0 | AM137: =ROUNDDOWN(AL137*請求書・納品書!$M$13,) -> 0
A138: 連続 | AG138: =SUM(B138:AF138) -> 0 | AH138: 連続 | AL138: =AG138 -> 0 | AM138: =AL138*請求書・納品書!$M$14 -> 0
AL139: 合 計 | AM139: =SUM(AM135:AM138) -> 0
AH140: =A140 -> 0 | AI140: 日数(日) | AJ140: 勤務時間(h) | AK140: 早退（h） | AL140: 合計(h) | AM140: 金額(円)
A141: 残業 | AG141: =SUM(B141:AF141) -> 0 | AH141: 出勤 | AI141: =COUNTIF(B140:AF140,"出") -> 0 | AJ141: =AI141*7.8 -> 0 | AK141: =AG142 -> 0 | AL141: =AJ141-AK141 -> 0 | AM141: =ROUNDDOWN(AL141*請求書・納品書!$M$11,) -> 0
A142: 遅・早(出) | AG142: =SUM(B142:AF142) -> 0 | AH142: 残業 | AL142: =AG141 -> 0 | AM142: =ROUNDDOWN(AL142*請求書・納品書!$M$12,) -> 0
A143: 遅・早(公) | AG143: =SUM(B143:AF143) -> 0 | AH143: 公出 | AI143: =COUNTIF(B140:AF140,"公") -> 0 | AJ143: =AI143*7.8 -> 0 | AK143: =AG143 -> 0 | AL143: =AJ143-AK143 -> 0 | AM143: =ROUNDDOWN(AL143*請求書・納品書!$M$13,) -> 0
A144: 連続 | AG144: =SUM(B144:AF144) -> 0 | AH144: 連続 | AL144: =AG144 -> 0 | AM144: =AL144*請求書・納品書!$M$14 -> 0
AL145: 合 計 | AM145: =SUM(AM141:AM144) -> 0 | AO145: =AM127+AM133+AM139+AM145 -> 0
AH146: =A146 -> 0 | AI146: 日数(日) | AJ146: 勤務時間(h) | AK146: 早退（h） | AL146: 合計(h) | AM146: 金額(円)
A147: 残業 | AG147: =SUM(B147:AF147) -> 0 | AH147: 出勤 | AI147: =COUNTIF(B146:AF146,"出") -> 0 | AJ147: =AI147*7.8 -> 0 | AK147: =AG148 -> 0 | AL147: =AJ147-AK147 -> 0 | AM147: =ROUNDDOWN(AL147*請求書・納品書!$M$11,) -> 0
A148: 遅・早(出) | AG148: =SUM(B148:AF148) -> 0 | AH148: 残業 | AL148: =AG147 -> 0 | AM148: =ROUNDDOWN(AL148*請求書・納品書!$M$12,) -> 0
A149: 遅・早(公) | AG149: =SUM(B149:AF149) -> 0 | AH149: 公出 | AI149: =COUNTIF(B146:AF146,"公") -> 0 | AJ149: =AI149*7.8 -> 0 | AK149: =AG149 -> 0 | AL149: =AJ149-AK149 -> 0 | AM149: =ROUNDDOWN(AL149*請求書・納品書!$M$13,) -> 0
A150: 連続 | AG150: =SUM(B150:AF150) -> 0 | AH150: 連続 | AL150: =AG150 -> 0 | AM150: =AL150*請求書・納品書!$M$14 -> 0
AL151: 合 計 | AM151: =SUM(AM147:AM150) -> 0
AH152: =A152 -> 0 | AI152: 日数(日) | AJ152: 勤務時間(h) | AK152: 早退（h） | AL152: 合計(h) | AM152: 金額(円)
A153: 残業 | AG153: =SUM(B153:AF153) -> 0 | AH153: 出勤 | AI153: =COUNTIF(B152:AF152,"出") -> 0 | AJ153: =AI153*7.8 -> 0 | AK153: =AG154 -> 0 | AL153: =AJ153-AK153 -> 0 | AM153: =ROUNDDOWN(AL153*請求書・納品書!$M$11,) -> 0
A154: 遅・早(出) | AG154: =SUM(B154:AF154) -> 0 | AH154: 残業 | AL154: =AG153 -> 0 | AM154: =ROUNDDOWN(AL154*請求書・納品書!$M$12,) -> 0
A155: 遅・早(公) | AG155: =SUM(B155:AF155) -> 0 | AH155: 公出 | AI155: =COUNTIF(B152:AF152,"公") -> 0 | AJ155: =AI155*7.8 -> 0 | AK155: =AG155 -> 0 | AL155: =AJ155-AK155 -> 0 | AM155: =ROUNDDOWN(AL155*請求書・納品書!$M$13,) -> 0
A156: 連続 | AG156: =SUM(B156:AF156) -> 0 | AH156: 連続 | AL156: =AG156 -> 0 | AM156: =AL156*請求書・納品書!$M$14 -> 0
AL157: 合 計 | AM157: =SUM(AM153:AM156) -> 0
AH158: =A158 -> 0 | AI158: 日数(日) | AJ158: 勤務時間(h) | AK158: 早退（h） | AL158: 合計(h) | AM158: 金額(円)
A159: 残業 | AG159: =SUM(B159:AF159) -> 0 | AH159: 出勤 | AI159: =COUNTIF(B158:AF158,"出") -> 0 | AJ159: =AI159*7.8 -> 0 | AK159: =AG160 -> 0 | AL159: =AJ159-AK159 -> 0 | AM159: =ROUNDDOWN(AL159*請求書・納品書!$M$11,) -> 0
A160: 遅・早(出) | AG160: =SUM(B160:AF160) -> 0 | AH160: 残業 | AL160: =AG159 -> 0 | AM160: =ROUNDDOWN(AL160*請求書・納品書!$M$12,) -> 0
A161: 遅・早(公) | AG161: =SUM(B161:AF161) -> 0 | AH161: 公出 | AI161: =COUNTIF(B158:AF158,"公") -> 0 | AJ161: =AI161*7.8 -> 0 | AK161: =AG161 -> 0 | AL161: =AJ161-AK161 -> 0 | AM161: =ROUNDDOWN(AL161*請求書・納品書!$M$13,) -> 0
A162: 連続 | AG162: =SUM(B162:AF162) -> 0 | AH162: 連続 | AL162: =AG162 -> 0 | AM162: =AL162*請求書・納品書!$M$14 -> 0
AL163: 合 計 | AM163: =SUM(AM159:AM162) -> 0
AH164: =A164 -> 0 | AI164: 日数(日) | AJ164: 勤務時間(h) | AK164: 早退（h） | AL164: 合計(h) | AM164: 金額(円)
A165: 残業 | AG165: =SUM(B165:AF165) -> 0 | AH165: 出勤 | AI165: =COUNTIF(B164:AF164,"出") -> 0 | AJ165: =AI165*7.8 -> 0 | AK165: =AG166 -> 0 | AL165: =AJ165-AK165 -> 0 | AM165: =ROUNDDOWN(AL165*請求書・納品書!$M$11,) -> 0
A166: 遅・早(出) | AG166: =SUM(B166:AF166) -> 0 | AH166: 残業 | AL166: =AG165 -> 0 | AM166: =ROUNDDOWN(AL166*請求書・納品書!$M$12,) -> 0
A167: 遅・早(公) | AG167: =SUM(B167:AF167) -> 0 | AH167: 公出 | AI167: =COUNTIF(B164:AF164,"公") -> 0 | AJ167: =AI167*7.8 -> 0 | AK167: =AG167 -> 0 | AL167: =AJ167-AK167 -> 0 | AM167: =ROUNDDOWN(AL167*請求書・納品書!$M$13,) -> 0
A168: 連続 | AG168: =SUM(B168:AF168) -> 0 | AH168: 連続 | AL168: =AG168 -> 0 | AM168: =AL168*請求書・納品書!$M$14 -> 0
AL169: 合 計 | AM169: =SUM(AM165:AM168) -> 0 | AO169: =AM151+AM157+AM163+AM169 -> 0
AH170: =A170 -> 0 | AI170: 日数(日) | AJ170: 勤務時間(h) | AK170: 早退（h） | AL170: 合計(h) | AM170: 金額(円)
A171: 残業 | AG171: =SUM(B171:AF171) -> 0 | AH171: 出勤 | AI171: =COUNTIF(B170:AF170,"出") -> 0 | AJ171: =AI171*7.8 -> 0 | AK171: =AG172 -> 0 | AL171: =AJ171-AK171 -> 0 | AM171: =ROUNDDOWN(AL171*請求書・納品書!$M$11,) -> 0
A172: 遅・早(出) | AG172: =SUM(B172:AF172) -> 0 | AH172: 残業 | AL172: =AG171 -> 0 | AM172: =ROUNDDOWN(AL172*請求書・納品書!$M$12,) -> 0
A173: 遅・早(公) | AG173: =SUM(B173:AF173) -> 0 | AH173: 公出 | AI173: =COUNTIF(B170:AF170,"公") -> 0 | AJ173: =AI173*7.8 -> 0 | AK173: =AG173 -> 0 | AL173: =AJ173-AK173 -> 0 | AM173: =ROUNDDOWN(AL173*請求書・納品書!$M$13,) -> 0
A174: 連続 | AG174: =SUM(B174:AF174) -> 0 | AH174: 連続 | AL174: =AG174 -> 0 | AM174: =AL174*請求書・納品書!$M$14 -> 0
AL175: 合 計 | AM175: =SUM(AM171:AM174) -> 0
AH176: =A176 -> 0 | AI176: 日数(日) | AJ176: 勤務時間(h) | AK176: 早退（h） | AL176: 合計(h) | AM176: 金額(円)
A177: 残業 | AG177: =SUM(B177:AF177) -> 0 | AH177: 出勤 | AI177: =COUNTIF(B176:AF176,"出") -> 0 | AJ177: =AI177*7.8 -> 0 | AK177: =AG178 -> 0 | AL177: =AJ177-AK177 -> 0 | AM177: =ROUNDDOWN(AL177*請求書・納品書!$M$11,) -> 0
A178: 遅・早(出) | AG178: =SUM(B178:AF178) -> 0 | AH178: 残業 | AL178: =AG177 -> 0 | AM178: =ROUNDDOWN(AL178*請求書・納品書!$M$12,) -> 0
A179: 遅・早(公) | AG179: =SUM(B179:AF179) -> 0 | AH179: 公出 | AI179: =COUNTIF(B176:AF176,"公") -> 0 | AJ179: =AI179*7.8 -> 0 | AK179: =AG179 -> 0 | AL179: =AJ179-AK179 -> 0 | AM179: =ROUNDDOWN(AL179*請求書・納品書!$M$13,) -> 0
A180: 連続 | AG180: =SUM(B180:AF180) -> 0 | AH180: 連続 | AL180: =AG180 -> 0 | AM180: =AL180*請求書・納品書!$M$14 -> 0
AL181: 合 計 | AM181: =SUM(AM177:AM180) -> 0
AH182: =A182 -> 0 | AI182: 日数(日) | AJ182: 勤務時間(h) | AK182: 早退（h） | AL182: 合計(h) | AM182: 金額(円)
A183: 残業 | AG183: =SUM(B183:AF183) -> 0 | AH183: 出勤 | AI183: =COUNTIF(B182:AF182,"出") -> 0 | AJ183: =AI183*7.8 -> 0 | AK183: =AG184 -> 0 | AL183: =AJ183-AK183 -> 0 | AM183: =ROUNDDOWN(AL183*請求書・納品書!$M$11,) -> 0
A184: 遅・早(出) | AG184: =SUM(B184:AF184) -> 0 | AH184: 残業 | AL184: =AG183 -> 0 | AM184: =ROUNDDOWN(AL184*請求書・納品書!$M$12,) -> 0
A185: 遅・早(公) | AG185: =SUM(B185:AF185) -> 0 | AH185: 公出 | AI185: =COUNTIF(B182:AF182,"公") -> 0 | AJ185: =AI185*7.8 -> 0 | AK185: =AG185 -> 0 | AL185: =AJ185-AK185 -> 0 | AM185: =ROUNDDOWN(AL185*請求書・納品書!$M$13,) -> 0
A186: 連続 | AG186: =SUM(B186:AF186) -> 0 | AH186: 連続 | AL186: =AG186 -> 0 | AM186: =AL186*請求書・納品書!$M$14 -> 0
AL187: 合 計 | AM187: =SUM(AM183:AM186) -> 0
AH188: =A188 -> 0 | AI188: 日数(日) | AJ188: 勤務時間(h) | AK188: 早退（h） | AL188: 合計(h) | AM188: 金額(円)
A189: 残業 | AG189: =SUM(B189:AF189) -> 0 | AH189: 出勤 | AI189: =COUNTIF(B188:AF188,"出") -> 0 | AJ189: =AI189*7.8 -> 0 | AK189: =AG190 -> 0 | AL189: =AJ189-AK189 -> 0 | AM189: =ROUNDDOWN(AL189*請求書・納品書!$M$11,) -> 0
A190: 遅・早(出) | AG190: =SUM(B190:AF190) -> 0 | AH190: 残業 | AL190: =AG189 -> 0 | AM190: =ROUNDDOWN(AL190*請求書・納品書!$M$12,) -> 0
A191: 遅・早(公) | AG191: =SUM(B191:AF191) -> 0 | AH191: 公出 | AI191: =COUNTIF(B188:AF188,"公") -> 0 | AJ191: =AI191*7.8 -> 0 | AK191: =AG191 -> 0 | AL191: =AJ191-AK191 -> 0 | AM191: =ROUNDDOWN(AL191*請求書・納品書!$M$13,) -> 0
A192: 連続 | AG192: =SUM(B192:AF192) -> 0 | AH192: 連続 | AL192: =AG192 -> 0 | AM192: =AL192*請求書・納品書!$M$14 -> 0
AL193: 合 計 | AM193: =SUM(AM189:AM192) -> 0 | AO193: =AM175+AM181+AM187+AM193 -> 0

Sheet 8
A1: ='4'!A1 -> 2010 | B1: 1 | C1: 2 | D1: 3 | E1: 4 | F1: 5 | G1: 6 | H1: 7 | I1: 8 | J1: 9 | K1: 10 | L1: 11 | M1: 12 | N1: 13 | O1: 14 | P1: 15 | Q1: 16 | R1: 17 | S1: 18 | T1: 19 | U1: 20 | V1: 21 | W1: 22 | X1: 23 | Y1: 24 | Z1: 25 | AA1: 26 | AB1: 27 | AC1: 28 | AD1: 29 | AE1: 30 | AF1: 31 | AG1: 計 | AH1: =A1&"年"&MID(CELL("filename",$A$1),FIND("]",CELL("filename",$A$1))+1,31) &"月" -> 2010年8月
AH2: =A2 -> 0 | AI2: 日数(日) | AJ2: 勤務時間(h) | AK2: 早退（h） | AL2: 合計(h) | AM2: 金額(円) | AN2: 出 | AO2: 合計 | AP2: =SUM(AM:AM)/2 -> 0
A3: 残業 | AG3: =SUM(B3:AF3) -> 0 | AH3: 出勤 | AI3: =COUNTIF(B2:AF2,"出") -> 0 | AJ3: =AI3*7.8 -> 0 | AK3: =AG4 -> 0 | AL3: =AJ3-AK3 -> 0 | AM3: =ROUNDDOWN(AL3*請求書・納品書!$M$11,) -> 0 | AN3: 公 | AO3: 人数 | AP3: =COUNTA(AH:AH)-COUNTIF(AH:AH,0)-32*4-1 -> 0
A4: 遅・早(出) | AG4: =SUM(B4:AF4) -> 0 | AH4: 残業 | AL4: =AG3 -> 0 | AM4: =ROUNDDOWN(AL4*請求書・納品書!$M$12,) -> 0 | AN4: 欠 | AO4: 管理費 | AP4: =(AP3-AP9)*19400 -> 0
A5: 遅・早(公) | AG5: =SUM(B5:AF5) -> 0 | AH5: 公出 | AI5: =COUNTIF(B2:AF2,"公") -> 0 | AJ5: =AI5*7.8 -> 0 | AK5: =AG5 -> 0 | AL5: =AJ5-AK5 -> 0 | AM5: =ROUNDDOWN(AL5*請求書・納品書!$M$13,) -> 0 | AN5: 有 | AO5: 小計 | AP5: =AP2+AP4 -> 0
A6: 連続 | AG6: =SUM(B6:AF6) -> 0 | AH6: 連続 | AL6: =AG6 -> 0 | AM6: =AL6*請求書・納品書!$M$14 -> 0 | AN6: 半 | AO6: 消費税 | AP6: =ROUNDDOWN(AP5*0.05,) -> 0
AL7: 合 計 | AM7: =SUM(AM3:AM6) -> 0 | AO7: 総合計 | AP7: =AP5+AP6 -> 0
AH8: =A8 -> 0 | AI8: 日数(日) | AJ8: 勤務時間(h) | AK8: 早退（h） | AL8: 合計(h) | AM8: 金額(円)
A9: 残業 | AG9: =SUM(B9:AF9) -> 0 | AH9: 出勤 | AI9: =COUNTIF(B8:AF8,"出") -> 0 | AJ9: =AI9*7.8 -> 0 | AK9: =AG10 -> 0 | AL9: =AJ9-AK9 -> 0 | AM9: =ROUNDDOWN(AL9*請求書・納品書!$M$11,) -> 0 | AO9: 管理費に入れない人数
A10: 遅・早(出) | AG10: =SUM(B10:AF10) -> 0 | AH10: 残業 | AL10: =AG9 -> 0 | AM10: =ROUNDDOWN(AL10*請求書・納品書!$M$12,) -> 0
A11: 遅・早(公) | AG11: =SUM(B11:AF11) -> 0 | AH11: 公出 | AI11: =COUNTIF(B8:AF8,"公") -> 0 | AJ11: =AI11*7.8 -> 0 | AK11: =AG11 -> 0 | AL11: =AJ11-AK11 -> 0 | AM11: =ROUNDDOWN(AL11*請求書・納品書!$M$13,) -> 0
A12: 連続 | AG12: =SUM(B12:AF12) -> 0 | AH12: 連続 | AL12: =AG12 -> 0 | AM12: =AL12*請求書・納品書!$M$14 -> 0
AL13: 合 計 | AM13: =SUM(AM9:AM12) -> 0
AH14: =A14 -> 0 | AI14: 日数(日) | AJ14: 勤務時間(h) | AK14: 早退（h） | AL14: 合計(h) | AM14: 金額(円)
A15: 残業 | AG15: =SUM(B15:AF15) -> 0 | AH15: 出勤 | AI15: =COUNTIF(B14:AF14,"出") -> 0 | AJ15: =AI15*7.8 -> 0 | AK15: =AG16 -> 0 | AL15: =AJ15-AK15 -> 0 | AM15: =ROUNDDOWN(AL15*請求書・納品書!$M$11,) -> 0
A16: 遅・早(出) | AG16: =SUM(B16:AF16) -> 0 | AH16: 残業 | AL16: =AG15 -> 0 | AM16: =ROUNDDOWN(AL16*請求書・納品書!$M$12,) -> 0
A17: 遅・早(公) | AG17: =SUM(B17:AF17) -> 0 | AH17: 公出 | AI17: =COUNTIF(B14:AF14,"公") -> 0 | AJ17: =AI17*7.8 -> 0 | AK17: =AG17 -> 0 | AL17: =AJ17-AK17 -> 0 | AM17: =ROUNDDOWN(AL17*請求書・納品書!$M$13,) -> 0
A18: 連続 | AG18: =SUM(B18:AF18) -> 0 | AH18: 連続 | AL18: =AG18 -> 0 | AM18: =AL18*請求書・納品書!$M$14 -> 0
AL19: 合 計 | AM19: =SUM(AM15:AM18) -> 0
AH20: =A20 -> 0 | AI20: 日数(日) | AJ20: 勤務時間(h) | AK20: 早退（h） | AL20: 合計(h) | AM20: 金額(円)
A21: 残業 | AG21: =SUM(B21:AF21) -> 0 | AH21: 出勤 | AI21: =COUNTIF(B20:AF20,"出") -> 0 | AJ21: =AI21*7.8 -> 0 | AK21: =AG22 -> 0 | AL21: =AJ21-AK21 -> 0 | AM21: =ROUNDDOWN(AL21*請求書・納品書!$M$11,) -> 0
A22: 遅・早(出) | AG22: =SUM(B22:AF22) -> 0 | AH22: 残業 | AL22: =AG21 -> 0 | AM22: =ROUNDDOWN(AL22*請求書・納品書!$M$12,) -> 0
A23: 遅・早(公) | AG23: =SUM(B23:AF23) -> 0 | AH23: 公出 | AI23: =COUNTIF(B20:AF20,"公") -> 0 | AJ23: =AI23*7.8 -> 0 | AK23: =AG23 -> 0 | AL23: =AJ23-AK23 -> 0 | AM23: =ROUNDDOWN(AL23*請求書・納品書!$M$13,) -> 0
A24: 連続 | AG24: =SUM(B24:AF24) -> 0 | AH24: 連続 | AL24: =AG24 -> 0 | AM24: =AL24*請求書・納品書!$M$14 -> 0
AL25: 合 計 | AM25: =SUM(AM21:AM24) -> 0 | AO25: =AM7+AM13+AM19+AM25 -> 0
AH26: =A26 -> 0 | AI26: 日数(日) | AJ26: 勤務時間(h) | AK26: 早退（h） | AL26: 合計(h) | AM26: 金額(円)
A27: 残業 | AG27: =SUM(B27:AF27) -> 0 | AH27: 出勤 | AI27: =COUNTIF(B26:AF26,"出") -> 0 | AJ27: =AI27*7.8 -> 0 | AK27: =AG28 -> 0 | AL27: =AJ27-AK27 -> 0 | AM27: =ROUNDDOWN(AL27*請求書・納品書!$M$11,) -> 0
A28: 遅・早(出) | AG28: =SUM(B28:AF28) -> 0 | AH28: 残業 | AL28: =AG27 -> 0 | AM28: =ROUNDDOWN(AL28*請求書・納品書!$M$12,) -> 0
A29: 遅・早(公) | AG29: =SUM(B29:AF29) -> 0 | AH29: 公出 | AI29: =COUNTIF(B26:AF26,"公") -> 0 | AJ29: =AI29*7.8 -> 0 | AK29: =AG29 -> 0 | AL29: =AJ29-AK29 -> 0 | AM29: =ROUNDDOWN(AL29*請求書・納品書!$M$13,) -> 0
A30: 連続 | AG30: =SUM(B30:AF30) -> 0 | AH30: 連続 | AL30: =AG30 -> 0 | AM30: =AL30*請求書・納品書!$M$14 -> 0
AL31: 合 計 | AM31: =SUM(AM27:AM30) -> 0
AH32: =A32 -> 0 | AI32: 日数(日) | AJ32: 勤務時間(h) | AK32: 早退（h） | AL32: 合計(h) | AM32: 金額(円)
A33: 残業 | AG33: =SUM(B33:AF33) -> 0 | AH33: 出勤 | AI33: =COUNTIF(B32:AF32,"出") -> 0 | AJ33: =AI33*7.8 -> 0 | AK33: =AG34 -> 0 | AL33: =AJ33-AK33 -> 0 | AM33: =ROUNDDOWN(AL33*請求書・納品書!$M$11,) -> 0
A34: 遅・早(出) | AG34: =SUM(B34:AF34) -> 0 | AH34: 残業 | AL34: =AG33 -> 0 | AM34: =ROUNDDOWN(AL34*請求書・納品書!$M$12,) -> 0
A35: 遅・早(公) | AG35: =SUM(B35:AF35) -> 0 | AH35: 公出 | AI35: =COUNTIF(B32:AF32,"公") -> 0 | AJ35: =AI35*7.8 -> 0 | AK35: =AG35 -> 0 | AL35: =AJ35-AK35 -> 0 | AM35: =ROUNDDOWN(AL35*請求書・納品書!$M$13,) -> 0
A36: 連続 | AG36: =SUM(B36:AF36) -> 0 | AH36: 連続 | AL36: =AG36 -> 0 | AM36: =AL36*請求書・納品書!$M$14 -> 0
AL37: 合 計 | AM37: =SUM(AM33:AM36) -> 0
AH38: =A38 -> 0 | AI38: 日数(日) | AJ38: 勤務時間(h) | AK38: 早退（h） | AL38: 合計(h) | AM38: 金額(円)
A39: 残業 | AG39: =SUM(B39:AF39) -> 0 | AH39: 出勤 | AI39: =COUNTIF(B38:AF38,"出") -> 0 | AJ39: =AI39*7.8 -> 0 | AK39: =AG40 -> 0 | AL39: =AJ39-AK39 -> 0 | AM39: =ROUNDDOWN(AL39*請求書・納品書!$M$11,) -> 0
A40: 遅・早(出) | AG40: =SUM(B40:AF40) -> 0 | AH40: 残業 | AL40: =AG39 -> 0 | AM40: =ROUNDDOWN(AL40*請求書・納品書!$M$12,) -> 0
A41: 遅・早(公) | AG41: =SUM(B41:AF41) -> 0 | AH41: 公出 | AI41: =COUNTIF(B38:AF38,"公") -> 0 | AJ41: =AI41*7.8 -> 0 | AK41: =AG41 -> 0 | AL41: =AJ41-AK41 -> 0 | AM41: =ROUNDDOWN(AL41*請求書・納品書!$M$13,) -> 0
A42: 連続 | AG42: =SUM(B42:AF42) -> 0 | AH42: 連続 | AL42: =AG42 -> 0 | AM42: =AL42*請求書・納品書!$M$14 -> 0
AL43: 合 計 | AM43: =SUM(AM39:AM42) -> 0
AH44: =A44 -> 0 | AI44: 日数(日) | AJ44: 勤務時間(h) | AK44: 早退（h） | AL44: 合計(h) | AM44: 金額(円)
A45: 残業 | AG45: =SUM(B45:AF45) -> 0 | AH45: 出勤 | AI45: =COUNTIF(B44:AF44,"出") -> 0 | AJ45: =AI45*7.8 -> 0 | AK45: =AG46 -> 0 | AL45: =AJ45-AK45 -> 0 | AM45: =ROUNDDOWN(AL45*請求書・納品書!$M$11,) -> 0
A46: 遅・早(出) | AG46: =SUM(B46:AF46) -> 0 | AH46: 残業 | AL46: =AG45 -> 0 | AM46: =ROUNDDOWN(AL46*請求書・納品書!$M$12,) -> 0
A47: 遅・早(公) | AG47: =SUM(B47:AF47) -> 0 | AH47: 公出 | AI47: =COUNTIF(B44:AF44,"公") -> 0 | AJ47: =AI47*7.8 -> 0 | AK47: =AG47 -> 0 | AL47: =AJ47-AK47 -> 0 | AM47: =ROUNDDOWN(AL47*請求書・納品書!$M$13,) -> 0
A48: 連続 | AG48: =SUM(B48:AF48) -> 0 | AH48: 連続 | AL48: =AG48 -> 0 | AM48: =AL48*請求書・納品書!$M$14 -> 0
AL49: 合 計 | AM49: =SUM(AM45:AM48) -> 0 | AO49: =AM31+AM37+AM43+AM49 -> 0
AH50: =A50 -> 0 | AI50: 日数(日) | AJ50: 勤務時間(h) | AK50: 早退（h） | AL50: 合計(h) | AM50: 金額(円)
A51: 残業 | AG51: =SUM(B51:AF51) -> 0 | AH51: 出勤 | AI51: =COUNTIF(B50:AF50,"出") -> 0 | AJ51: =AI51*7.8 -> 0 | AK51: =AG52 -> 0 | AL51: =AJ51-AK51 -> 0 | AM51: =ROUNDDOWN(AL51*請求書・納品書!$M$11,) -> 0
A52: 遅・早(出) | AG52: =SUM(B52:AF52) -> 0 | AH52: 残業 | AL52: =AG51 -> 0 | AM52: =ROUNDDOWN(AL52*請求書・納品書!$M$12,) -> 0
A53: 遅・早(公) | AG53: =SUM(B53:AF53) -> 0 | AH53: 公出 | AI53: =COUNTIF(B50:AF50,"公") -> 0 | AJ53: =AI53*7.8 -> 0 | AK53: =AG53 -> 0 | AL53: =AJ53-AK53 -> 0 | AM53: =ROUNDDOWN(AL53*請求書・納品書!$M$13,) -> 0
A54: 連続 | AG54: =SUM(B54:AF54) -> 0 | AH54: 連続 | AL54: =AG54 -> 0 | AM54: =AL54*請求書・納品書!$M$14 -> 0
AL55: 合 計 | AM55: =SUM(AM51:AM54) -> 0
AH56: =A56 -> 0 | AI56: 日数(日) | AJ56: 勤務時間(h) | AK56: 早退（h） | AL56: 合計(h) | AM56: 金額(円)
A57: 残業 | AG57: =SUM(B57:AF57) -> 0 | AH57: 出勤 | AI57: =COUNTIF(B56:AF56,"出") -> 0 | AJ57: =AI57*7.8 -> 0 | AK57: =AG58 -> 0 | AL57: =AJ57-AK57 -> 0 | AM57: =ROUNDDOWN(AL57*請求書・納品書!$M$11,) -> 0
A58: 遅・早(出) | AG58: =SUM(B58:AF58) -> 0 | AH58: 残業 | AL58: =AG57 -> 0 | AM58: =ROUNDDOWN(AL58*請求書・納品書!$M$12,) -> 0
A59: 遅・早(公) | AG59: =SUM(B59:AF59) -> 0 | AH59: 公出 | AI59: =COUNTIF(B56:AF56,"公") -> 0 | AJ59: =AI59*7.8 -> 0 | AK59: =AG59 -> 0 | AL59: =AJ59-AK59 -> 0 | AM59: =ROUNDDOWN(AL59*請求書・納品書!$M$13,) -> 0
A60: 連続 | AG60: =SUM(B60:AF60) -> 0 | AH60: 連続 | AL60: =AG60 -> 0 | AM60: =AL60*請求書・納品書!$M$14 -> 0
AL61: 合 計 | AM61: =SUM(AM57:AM60) -> 0
AH62: =A62 -> 0 | AI62: 日数(日) | AJ62: 勤務時間(h) | AK62: 早退（h） | AL62: 合計(h) | AM62: 金額(円)
A63: 残業 | AG63: =SUM(B63:AF63) -> 0 | AH63: 出勤 | AI63: =COUNTIF(B62:AF62,"出") -> 0 | AJ63: =AI63*7.8 -> 0 | AK63: =AG64 -> 0 | AL63: =AJ63-AK63 -> 0 | AM63: =ROUNDDOWN(AL63*請求書・納品書!$M$11,) -> 0
A64: 遅・早(出) | AG64: =SUM(B64:AF64) -> 0 | AH64: 残業 | AL64: =AG63 -> 0 | AM64: =ROUNDDOWN(AL64*請求書・納品書!$M$12,) -> 0
A65: 遅・早(公) | AG65: =SUM(B65:AF65) -> 0 | AH65: 公出 | AI65: =COUNTIF(B62:AF62,"公") -> 0 | AJ65: =AI65*7.8 -> 0 | AK65: =AG65 -> 0 | AL65: =AJ65-AK65 -> 0 | AM65: =ROUNDDOWN(AL65*請求書・納品書!$M$13,) -> 0
A66: 連続 | AG66: =SUM(B66:AF66) -> 0 | AH66: 連続 | AL66: =AG66 -> 0 | AM66: =AL66*請求書・納品書!$M$14 -> 0
AL67: 合 計 | AM67: =SUM(AM63:AM66) -> 0
AH68: =A68 -> 0 | AI68: 日数(日) | AJ68: 勤務時間(h) | AK68: 早退（h） | AL68: 合計(h) | AM68: 金額(円)
A69: 残業 | AG69: =SUM(B69:AF69) -> 0 | AH69: 出勤 | AI69: =COUNTIF(B68:AF68,"出") -> 0 | AJ69: =AI69*7.8 -> 0 | AK69: =AG70 -> 0 | AL69: =AJ69-AK69 -> 0 | AM69: =ROUNDDOWN(AL69*請求書・納品書!$M$11,) -> 0
A70: 遅・早(出) | AG70: =SUM(B70:AF70) -> 0 | AH70: 残業 | AL70: =AG69 -> 0 | AM70: =ROUNDDOWN(AL70*請求書・納品書!$M$12,) -> 0
A71: 遅・早(公) | AG71: =SUM(B71:AF71) -> 0 | AH71: 公出 | AI71: =COUNTIF(B68:AF68,"公") -> 0 | AJ71: =AI71*7.8 -> 0 | AK71: =AG71 -> 0 | AL71: =AJ71-AK71 -> 0 | AM71: =ROUNDDOWN(AL71*請求書・納品書!$M$13,) -> 0
A72: 連続 | AG72: =SUM(B72:AF72) -> 0 | AH72: 連続 | AL72: =AG72 -> 0 | AM72: =AL72*請求書・納品書!$M$14 -> 0
AL73: 合 計 | AM73: =SUM(AM69:AM72) -> 0 | AO73: =AM55+AM61+AM67+AM73 -> 0
AH74: =A74 -> 0 | AI74: 日数(日) | AJ74: 勤務時間(h) | AK74: 早退（h） | AL74: 合計(h) | AM74: 金額(円)
A75: 残業 | AG75: =SUM(B75:AF75) -> 0 | AH75: 出勤 | AI75: =COUNTIF(B74:AF74,"出") -> 0 | AJ75: =AI75*7.8 -> 0 | AK75: =AG76 -> 0 | AL75: =AJ75-AK75 -> 0 | AM75: =ROUNDDOWN(AL75*請求書・納品書!$M$11,) -> 0
A76: 遅・早(出) | AG76: =SUM(B76:AF76) -> 0 | AH76: 残業 | AL76: =AG75 -> 0 | AM76: =ROUNDDOWN(AL76*請求書・納品書!$M$12,) -> 0
A77: 遅・早(公) | AG77: =SUM(B77:AF77) -> 0 | AH77: 公出 | AI77: =COUNTIF(B74:AF74,"公") -> 0 | AJ77: =AI77*7.8 -> 0 | AK77: =AG77 -> 0 | AL77: =AJ77-AK77 -> 0 | AM77: =ROUNDDOWN(AL77*請求書・納品書!$M$13,) -> 0
A78: 連続 | AG78: =SUM(B78:AF78) -> 0 | AH78: 連続 | AL78: =AG78 -> 0 | AM78: =AL78*請求書・納品書!$M$14 -> 0
AL79: 合 計 | AM79: =SUM(AM75:AM78) -> 0
AH80: =A80 -> 0 | AI80: 日数(日) | AJ80: 勤務時間(h) | AK80: 早退（h） | AL80: 合計(h) | AM80: 金額(円)
A81: 残業 | AG81: =SUM(B81:AF81) -> 0 | AH81: 出勤 | AI81: =COUNTIF(B80:AF80,"出") -> 0 | AJ81: =AI81*7.8 -> 0 | AK81: =AG82 -> 0 | AL81: =AJ81-AK81 -> 0 | AM81: =ROUNDDOWN(AL81*請求書・納品書!$M$11,) -> 0
A82: 遅・早(出) | AG82: =SUM(B82:AF82) -> 0 | AH82: 残業 | AL82: =AG81 -> 0 | AM82: =ROUNDDOWN(AL82*請求書・納品書!$M$12,) -> 0
A83: 遅・早(公) | AG83: =SUM(B83:AF83) -> 0 | AH83: 公出 | AI83: =COUNTIF(B80:AF80,"公") -> 0 | AJ83: =AI83*7.8 -> 0 | AK83: =AG83 -> 0 | AL83: =AJ83-AK83 -> 0 | AM83: =ROUNDDOWN(AL83*請求書・納品書!$M$13,) -> 0
A84: 連続 | AG84: =SUM(B84:AF84) -> 0 | AH84: 連続 | AL84: =AG84 -> 0 | AM84: =AL84*請求書・納品書!$M$14 -> 0
AL85: 合 計 | AM85: =SUM(AM81:AM84) -> 0
AH86: =A86 -> 0 | AI86: 日数(日) | AJ86: 勤務時間(h) | AK86: 早退（h） | AL86: 合計(h) | AM86: 金額(円)
A87: 残業 | AG87: =SUM(B87:AF87) -> 0 | AH87: 出勤 | AI87: =COUNTIF(B86:AF86,"出") -> 0 | AJ87: =AI87*7.8 -> 0 | AK87: =AG88 -> 0 | AL87: =AJ87-AK87 -> 0 | AM87: =ROUNDDOWN(AL87*請求書・納品書!$M$11,) -> 0
A88: 遅・早(出) | AG88: =SUM(B88:AF88) -> 0 | AH88: 残業 | AL88: =AG87 -> 0 | AM88: =ROUNDDOWN(AL88*請求書・納品書!$M$12,) -> 0
A89: 遅・早(公) | AG89: =SUM(B89:AF89) -> 0 | AH89: 公出 | AI89: =COUNTIF(B86:AF86,"公") -> 0 | AJ89: =AI89*7.8 -> 0 | AK89: =AG89 -> 0 | AL89: =AJ89-AK89 -> 0 | AM89: =ROUNDDOWN(AL89*請求書・納品書!$M$13,) -> 0
A90: 連続 | AG90: =SUM(B90:AF90) -> 0 | AH90: 連続 | AL90: =AG90 -> 0 | AM90: =AL90*請求書・納品書!$M$14 -> 0
AL91: 合 計 | AM91: =SUM(AM87:AM90) -> 0
AH92: =A92 -> 0 | AI92: 日数(日) | AJ92: 勤務時間(h) | AK92: 早退（h） | AL92: 合計(h) | AM92: 金額(円)
A93: 残業 | AG93: =SUM(B93:AF93) -> 0 | AH93: 出勤 | AI93: =COUNTIF(B92:AF92,"出") -> 0 | AJ93: =AI93*7.8 -> 0 | AK93: =AG94 -> 0 | AL93: =AJ93-AK93 -> 0 | AM93: =ROUNDDOWN(AL93*請求書・納品書!$M$11,) -> 0
A94: 遅・早(出) | AG94: =SUM(B94:AF94) -> 0 | AH94: 残業 | AL94: =AG93 -> 0 | AM94: =ROUNDDOWN(AL94*請求書・納品書!$M$12,) -> 0
A95: 遅・早(公) | AG95: =SUM(B95:AF95) -> 0 | AH95: 公出 | AI95: =COUNTIF(B92:AF92,"公") -> 0 | AJ95: =AI95*7.8 -> 0 | AK95: =AG95 -> 0 | AL95: =AJ95-AK95 -> 0 | AM95: =ROUNDDOWN(AL95*請求書・納品書!$M$13,) -> 0
A96: 連続 | AG96: =SUM(B96:AF96) -> 0 | AH96: 連続 | AL96: =AG96 -> 0 | AM96: =AL96*請求書・納品書!$M$14 -> 0
AL97: 合 計 | AM97: =SUM(AM93:AM96) -> 0 | AO97: =AM79+AM85+AM91+AM97 -> 0
AH98: =A98 -> 0 | AI98: 日数(日) | AJ98: 勤務時間(h) | AK98: 早退（h） | AL98: 合計(h) | AM98: 金額(円)
A99: 残業 | AG99: =SUM(B99:AF99) -> 0 | AH99: 出勤 | AI99: =COUNTIF(B98:AF98,"出") -> 0 | AJ99: =AI99*7.8 -> 0 | AK99: =AG100 -> 0 | AL99: =AJ99-AK99 -> 0 | AM99: =ROUNDDOWN(AL99*請求書・納品書!$M$11,) -> 0
A100: 遅・早(出) | AG100: =SUM(B100:AF100) -> 0 | AH100: 残業 | AL100: =AG99 -> 0 | AM100: =ROUNDDOWN(AL100*請求書・納品書!$M$12,) -> 0
A101: 遅・早(公) | AG101: =SUM(B101:AF101) -> 0 | AH101: 公出 | AI101: =COUNTIF(B98:AF98,"公") -> 0 | AJ101: =AI101*7.8 -> 0 | AK101: =AG101 -> 0 | AL101: =AJ101-AK101 -> 0 | AM101: =ROUNDDOWN(AL101*請求書・納品書!$M$13,) -> 0
A102: 連続 | AG102: =SUM(B102:AF102) -> 0 | AH102: 連続 | AL102: =AG102 -> 0 | AM102: =AL102*請求書・納品書!$M$14 -> 0
AL103: 合 計 | AM103: =SUM(AM99:AM102) -> 0
AH104: =A104 -> 0 | AI104: 日数(日) | AJ104: 勤務時間(h) | AK104: 早退（h） | AL104: 合計(h) | AM104: 金額(円)
A105: 残業 | AG105: =SUM(B105:AF105) -> 0 | AH105: 出勤 | AI105: =COUNTIF(B104:AF104,"出") -> 0 | AJ105: =AI105*7.8 -> 0 | AK105: =AG106 -> 0 | AL105: =AJ105-AK105 -> 0 | AM105: =ROUNDDOWN(AL105*請求書・納品書!$M$11,) -> 0
A106: 遅・早(出) | AG106: =SUM(B106:AF106) -> 0 | AH106: 残業 | AL106: =AG105 -> 0 | AM106: =ROUNDDOWN(AL106*請求書・納品書!$M$12,) -> 0
A107: 遅・早(公) | AG107: =SUM(B107:AF107) -> 0 | AH107: 公出 | AI107: =COUNTIF(B104:AF104,"公") -> 0 | AJ107: =AI107*7.8 -> 0 | AK107: =AG107 -> 0 | AL107: =AJ107-AK107 -> 0 | AM107: =ROUNDDOWN(AL107*請求書・納品書!$M$13,) -> 0
A108: 連続 | AG108: =SUM(B108:AF108) -> 0 | AH108: 連続 | AL108: =AG108 -> 0 | AM108: =AL108*請求書・納品書!$M$14 -> 0
AL109: 合 計 | AM109: =SUM(AM105:AM108) -> 0
AH110: =A110 -> 0 | AI110: 日数(日) | AJ110: 勤務時間(h) | AK110: 早退（h） | AL110: 合計(h) | AM110: 金額(円)
A111: 残業 | AG111: =SUM(B111:AF111) -> 0 | AH111: 出勤 | AI111: =COUNTIF(B110:AF110,"出") -> 0 | AJ111: =AI111*7.8 -> 0 | AK111: =AG112 -> 0 | AL111: =AJ111-AK111 -> 0 | AM111: =ROUNDDOWN(AL111*請求書・納品書!$M$11,) -> 0
A112: 遅・早(出) | AG112: =SUM(B112:AF112) -> 0 | AH112: 残業 | AL112: =AG111 -> 0 | AM112: =ROUNDDOWN(AL112*請求書・納品書!$M$12,) -> 0
A113: 遅・早(公) | AG113: =SUM(B113:AF113) -> 0 | AH113: 公出 | AI113: =COUNTIF(B110:AF110,"公") -> 0 | AJ113: =AI113*7.8 -> 0 | AK113: =AG113 -> 0 | AL113: =AJ113-AK113 -> 0 | AM113: =ROUNDDOWN(AL113*請求書・納品書!$M$13,) -> 0
A114: 連続 | AG114: =SUM(B114:AF114) -> 0 | AH114: 連続 | AL114: =AG114 -> 0 | AM114: =AL114*請求書・納品書!$M$14 -> 0
AL115: 合 計 | AM115: =SUM(AM111:AM114) -> 0
AH116: =A116 -> 0 | AI116: 日数(日) | AJ116: 勤務時間(h) | AK116: 早退（h） | AL116: 合計(h) | AM116: 金額(円)
A117: 残業 | AG117: =SUM(B117:AF117) -> 0 | AH117: 出勤 | AI117: =COUNTIF(B116:AF116,"出") -> 0 | AJ117: =AI117*7.8 -> 0 | AK117: =AG118 -> 0 | AL117: =AJ117-AK117 -> 0 | AM117: =ROUNDDOWN(AL117*請求書・納品書!$M$11,) -> 0
A118: 遅・早(出) | AG118: =SUM(B118:AF118) -> 0 | AH118: 残業 | AL118: =AG117 -> 0 | AM118: =ROUNDDOWN(AL118*請求書・納品書!$M$12,) -> 0
A119: 遅・早(公) | AG119: =SUM(B119:AF119) -> 0 | AH119: 公出 | AI119: =COUNTIF(B116:AF116,"公") -> 0 | AJ119: =AI119*7.8 -> 0 | AK119: =AG119 -> 0 | AL119: =AJ119-AK119 -> 0 | AM119: =ROUNDDOWN(AL119*請求書・納品書!$M$13,) -> 0
A120: 連続 | AG120: =SUM(B120:AF120) -> 0 | AH120: 連続 | AL120: =AG120 -> 0 | AM120: =AL120*請求書・納品書!$M$14 -> 0
AL121: 合 計 | AM121: =SUM(AM117:AM120) -> 0 | AO121: =AM103+AM109+AM115+AM121 -> 0
AH122: =A122 -> 0 | AI122: 日数(日) | AJ122: 勤務時間(h) | AK122: 早退（h） | AL122: 合計(h) | AM122: 金額(円)
A123: 残業 | AG123: =SUM(B123:AF123) -> 0 | AH123: 出勤 | AI123: =COUNTIF(B122:AF122,"出") -> 0 | AJ123: =AI123*7.8 -> 0 | AK123: =AG124 -> 0 | AL123: =AJ123-AK123 -> 0 | AM123: =ROUNDDOWN(AL123*請求書・納品書!$M$11,) -> 0
A124: 遅・早(出) | AG124: =SUM(B124:AF124) -> 0 | AH124: 残業 | AL124: =AG123 -> 0 | AM124: =ROUNDDOWN(AL124*請求書・納品書!$M$12,) -> 0
A125: 遅・早(公) | AG125: =SUM(B125:AF125) -> 0 | AH125: 公出 | AI125: =COUNTIF(B122:AF122,"公") -> 0 | AJ125: =AI125*7.8 -> 0 | AK125: =AG125 -> 0 | AL125: =AJ125-AK125 -> 0 | AM125: =ROUNDDOWN(AL125*請求書・納品書!$M$13,) -> 0
A126: 連続 | AG126: =SUM(B126:AF126) -> 0 | AH126: 連続 | AL126: =AG126 -> 0 | AM126: =AL126*請求書・納品書!$M$14 -> 0
AL127: 合 計 | AM127: =SUM(AM123:AM126) -> 0
AH128: =A128 -> 0 | AI128: 日数(日) | AJ128: 勤務時間(h) | AK128: 早退（h） | AL128: 合計(h) | AM128: 金額(円)
A129: 残業 | AG129: =SUM(B129:AF129) -> 0 | AH129: 出勤 | AI129: =COUNTIF(B128:AF128,"出") -> 0 | AJ129: =AI129*7.8 -> 0 | AK129: =AG130 -> 0 | AL129: =AJ129-AK129 -> 0 | AM129: =ROUNDDOWN(AL129*請求書・納品書!$M$11,) -> 0
A130: 遅・早(出) | AG130: =SUM(B130:AF130) -> 0 | AH130: 残業 | AL130: =AG129 -> 0 | AM130: =ROUNDDOWN(AL130*請求書・納品書!$M$12,) -> 0
A131: 遅・早(公) | AG131: =SUM(B131:AF131) -> 0 | AH131: 公出 | AI131: =COUNTIF(B128:AF128,"公") -> 0 | AJ131: =AI131*7.8 -> 0 | AK131: =AG131 -> 0 | AL131: =AJ131-AK131 -> 0 | AM131: =ROUNDDOWN(AL131*請求書・納品書!$M$13,) -> 0
A132: 連続 | AG132: =SUM(B132:AF132) -> 0 | AH132: 連続 | AL132: =AG132 -> 0 | AM132: =AL132*請求書・納品書!$M$14 -> 0
AL133: 合 計 | AM133: =SUM(AM129:AM132) -> 0
AH134: =A134 -> 0 | AI134: 日数(日) | AJ134: 勤務時間(h) | AK134: 早退（h） | AL134: 合計(h) | AM134: 金額(円)
A135: 残業 | AG135: =SUM(B135:AF135) -> 0 | AH135: 出勤 | AI135: =COUNTIF(B134:AF134,"出") -> 0 | AJ135: =AI135*7.8 -> 0 | AK135: =AG136 -> 0 | AL135: =AJ135-AK135 -> 0 | AM135: =ROUNDDOWN(AL135*請求書・納品書!$M$11,) -> 0
A136: 遅・早(出) | AG136: =SUM(B136:AF136) -> 0 | AH136: 残業 | AL136: =AG135 -> 0 | AM136: =ROUNDDOWN(AL136*請求書・納品書!$M$12,) -> 0
A137: 遅・早(公) | AG137: =SUM(B137:AF137) -> 0 | AH137: 公出 | AI137: =COUNTIF(B134:AF134,"公") -> 0 | AJ137: =AI137*7.8 -> 0 | AK137: =AG137 -> 0 | AL137: =AJ137-AK137 -> 0 | AM137: =ROUNDDOWN(AL137*請求書・納品書!$M$13,) -> 0
A138: 連続 | AG138: =SUM(B138:AF138) -> 0 | AH138: 連続 | AL138: =AG138 -> 0 | AM138: =AL138*請求書・納品書!$M$14 -> 0
AL139: 合 計 | AM139: =SUM(AM135:AM138) -> 0
AH140: =A140 -> 0 | AI140: 日数(日) | AJ140: 勤務時間(h) | AK140: 早退（h） | AL140: 合計(h) | AM140: 金額(円)
A141: 残業 | AG141: =SUM(B141:AF141) -> 0 | AH141: 出勤 | AI141: =COUNTIF(B140:AF140,"出") -> 0 | AJ141: =AI141*7.8 -> 0 | AK141: =AG142 -> 0 | AL141: =AJ141-AK141 -> 0 | AM141: =ROUNDDOWN(AL141*請求書・納品書!$M$11,) -> 0
A142: 遅・早(出) | AG142: =SUM(B142:AF142) -> 0 | AH142: 残業 | AL142: =AG141 -> 0 | AM142: =ROUNDDOWN(AL142*請求書・納品書!$M$12,) -> 0
A143: 遅・早(公) | AG143: =SUM(B143:AF143) -> 0 | AH143: 公出 | AI143: =COUNTIF(B140:AF140,"公") -> 0 | AJ143: =AI143*7.8 -> 0 | AK143: =AG143 -> 0 | AL143: =AJ143-AK143 -> 0 | AM143: =ROUNDDOWN(AL143*請求書・納品書!$M$13,) -> 0
A144: 連続 | AG144: =SUM(B144:AF144) -> 0 | AH144: 連続 | AL144: =AG144 -> 0 | AM144: =AL144*請求書・納品書!$M$14 -> 0
AL145: 合 計 | AM145: =SUM(AM141:AM144) -> 0 | AO145: =AM127+AM133+AM139+AM145 -> 0
AH146: =A146 -> 0 | AI146: 日数(日) | AJ146: 勤務時間(h) | AK146: 早退（h） | AL146: 合計(h) | AM146: 金額(円)
A147: 残業 | AG147: =SUM(B147:AF147) -> 0 | AH147: 出勤 | AI147: =COUNTIF(B146:AF146,"出") -> 0 | AJ147: =AI147*7.8 -> 0 | AK147: =AG148 -> 0 | AL147: =AJ147-AK147 -> 0 | AM147: =ROUNDDOWN(AL147*請求書・納品書!$M$11,) -> 0
A148: 遅・早(出) | AG148: =SUM(B148:AF148) -> 0 | AH148: 残業 | AL148: =AG147 -> 0 | AM148: =ROUNDDOWN(AL148*請求書・納品書!$M$12,) -> 0
A149: 遅・早(公) | AG149: =SUM(B149:AF149) -> 0 | AH149: 公出 | AI149: =COUNTIF(B146:AF146,"公") -> 0 | AJ149: =AI149*7.8 -> 0 | AK149: =AG149 -> 0 | AL149: =AJ149-AK149 -> 0 | AM149: =ROUNDDOWN(AL149*請求書・納品書!$M$13,) -> 0
A150: 連続 | AG150: =SUM(B150:AF150) -> 0 | AH150: 連続 | AL150: =AG150 -> 0 | AM150: =AL150*請求書・納品書!$M$14 -> 0
AL151: 合 計 | AM151: =SUM(AM147:AM150) -> 0
AH152: =A152 -> 0 | AI152: 日数(日) | AJ152: 勤務時間(h) | AK152: 早退（h） | AL152: 合計(h) | AM152: 金額(円)
A153: 残業 | AG153: =SUM(B153:AF153) -> 0 | AH153: 出勤 | AI153: =COUNTIF(B152:AF152,"出") -> 0 | AJ153: =AI153*7.8 -> 0 | AK153: =AG154 -> 0 | AL153: =AJ153-AK153 -> 0 | AM153: =ROUNDDOWN(AL153*請求書・納品書!$M$11,) -> 0
A154: 遅・早(出) | AG154: =SUM(B154:AF154) -> 0 | AH154: 残業 | AL154: =AG153 -> 0 | AM154: =ROUNDDOWN(AL154*請求書・納品書!$M$12,) -> 0
A155: 遅・早(公) | AG155: =SUM(B155:AF155) -> 0 | AH155: 公出 | AI155: =COUNTIF(B152:AF152,"公") -> 0 | AJ155: =AI155*7.8 -> 0 | AK155: =AG155 -> 0 | AL155: =AJ155-AK155 -> 0 | AM155: =ROUNDDOWN(AL155*請求書・納品書!$M$13,) -> 0
A156: 連続 | AG156: =SUM(B156:AF156) -> 0 | AH156: 連続 | AL156: =AG156 -> 0 | AM156: =AL156*請求書・納品書!$M$14 -> 0
AL157: 合 計 | AM157: =SUM(AM153:AM156) -> 0
AH158: =A158 -> 0 | AI158: 日数(日) | AJ158: 勤務時間(h) | AK158: 早退（h） | AL158: 合計(h) | AM158: 金額(円)
A159: 残業 | AG159: =SUM(B159:AF159) -> 0 | AH159: 出勤 | AI159: =COUNTIF(B158:AF158,"出") -> 0 | AJ159: =AI159*7.8 -> 0 | AK159: =AG160 -> 0 | AL159: =AJ159-AK159 -> 0 | AM159: =ROUNDDOWN(AL159*請求書・納品書!$M$11,) -> 0
A160: 遅・早(出) | AG160: =SUM(B160:AF160) -> 0 | AH160: 残業 | AL160: =AG159 -> 0 | AM160: =ROUNDDOWN(AL160*請求書・納品書!$M$12,) -> 0
A161: 遅・早(公) | AG161: =SUM(B161:AF161) -> 0 | AH161: 公出 | AI161: =COUNTIF(B158:AF158,"公") -> 0 | AJ161: =AI161*7.8 -> 0 | AK161: =AG161 -> 0 | AL161: =AJ161-AK161 -> 0 | AM161: =ROUNDDOWN(AL161*請求書・納品書!$M$13,) -> 0
A162: 連続 | AG162: =SUM(B162:AF162) -> 0 | AH162: 連続 | AL162: =AG162 -> 0 | AM162: =AL162*請求書・納品書!$M$14 -> 0
AL163: 合 計 | AM163: =SUM(AM159:AM162) -> 0
AH164: =A164 -> 0 | AI164: 日数(日) | AJ164: 勤務時間(h) | AK164: 早退（h） | AL164: 合計(h) | AM164: 金額(円)
A165: 残業 | AG165: =SUM(B165:AF165) -> 0 | AH165: 出勤 | AI165: =COUNTIF(B164:AF164,"出") -> 0 | AJ165: =AI165*7.8 -> 0 | AK165: =AG166 -> 0 | AL165: =AJ165-AK165 -> 0 | AM165: =ROUNDDOWN(AL165*請求書・納品書!$M$11,) -> 0
A166: 遅・早(出) | AG166: =SUM(B166:AF166) -> 0 | AH166: 残業 | AL166: =AG165 -> 0 | AM166: =ROUNDDOWN(AL166*請求書・納品書!$M$12,) -> 0
A167: 遅・早(公) | AG167: =SUM(B167:AF167) -> 0 | AH167: 公出 | AI167: =COUNTIF(B164:AF164,"公") -> 0 | AJ167: =AI167*7.8 -> 0 | AK167: =AG167 -> 0 | AL167: =AJ167-AK167 -> 0 | AM167: =ROUNDDOWN(AL167*請求書・納品書!$M$13,) -> 0
A168: 連続 | AG168: =SUM(B168:AF168) -> 0 | AH168: 連続 | AL168: =AG168 -> 0 | AM168: =AL168*請求書・納品書!$M$14 -> 0
AL169: 合 計 | AM169: =SUM(AM165:AM168) -> 0 | AO169: =AM151+AM157+AM163+AM169 -> 0
AH170: =A170 -> 0 | AI170: 日数(日) | AJ170: 勤務時間(h) | AK170: 早退（h） | AL170: 合計(h) | AM170: 金額(円)
A171: 残業 | AG171: =SUM(B171:AF171) -> 0 | AH171: 出勤 | AI171: =COUNTIF(B170:AF170,"出") -> 0 | AJ171: =AI171*7.8 -> 0 | AK171: =AG172 -> 0 | AL171: =AJ171-AK171 -> 0 | AM171: =ROUNDDOWN(AL171*請求書・納品書!$M$11,) -> 0
A172: 遅・早(出) | AG172: =SUM(B172:AF172) -> 0 | AH172: 残業 | AL172: =AG171 -> 0 | AM172: =ROUNDDOWN(AL172*請求書・納品書!$M$12,) -> 0
A173: 遅・早(公) | AG173: =SUM(B173:AF173) -> 0 | AH173: 公出 | AI173: =COUNTIF(B170:AF170,"公") -> 0 | AJ173: =AI173*7.8 -> 0 | AK173: =AG173 -> 0 | AL173: =AJ173-AK173 -> 0 | AM173: =ROUNDDOWN(AL173*請求書・納品書!$M$13,) -> 0
A174: 連続 | AG174: =SUM(B174:AF174) -> 0 | AH174: 連続 | AL174: =AG174 -> 0 | AM174: =AL174*請求書・納品書!$M$14 -> 0
AL175: 合 計 | AM175: =SUM(AM171:AM174) -> 0
AH176: =A176 -> 0 | AI176: 日数(日) | AJ176: 勤務時間(h) | AK176: 早退（h） | AL176: 合計(h) | AM176: 金額(円)
A177: 残業 | AG177: =SUM(B177:AF177) -> 0 | AH177: 出勤 | AI177: =COUNTIF(B176:AF176,"出") -> 0 | AJ177: =AI177*7.8 -> 0 | AK177: =AG178 -> 0 | AL177: =AJ177-AK177 -> 0 | AM177: =ROUNDDOWN(AL177*請求書・納品書!$M$11,) -> 0
A178: 遅・早(出) | AG178: =SUM(B178:AF178) -> 0 | AH178: 残業 | AL178: =AG177 -> 0 | AM178: =ROUNDDOWN(AL178*請求書・納品書!$M$12,) -> 0
A179: 遅・早(公) | AG179: =SUM(B179:AF179) -> 0 | AH179: 公出 | AI179: =COUNTIF(B176:AF176,"公") -> 0 | AJ179: =AI179*7.8 -> 0 | AK179: =AG179 -> 0 | AL179: =AJ179-AK179 -> 0 | AM179: =ROUNDDOWN(AL179*請求書・納品書!$M$13,) -> 0
A180: 連続 | AG180: =SUM(B180:AF180) -> 0 | AH180: 連続 | AL180: =AG180 -> 0 | AM180: =AL180*請求書・納品書!$M$14 -> 0
AL181: 合 計 | AM181: =SUM(AM177:AM180) -> 0
AH182: =A182 -> 0 | AI182: 日数(日) | AJ182: 勤務時間(h) | AK182: 早退（h） | AL182: 合計(h) | AM182: 金額(円)
A183: 残業 | AG183: =SUM(B183:AF183) -> 0 | AH183: 出勤 | AI183: =COUNTIF(B182:AF182,"出") -> 0 | AJ183: =AI183*7.8 -> 0 | AK183: =AG184 -> 0 | AL183: =AJ183-AK183 -> 0 | AM183: =ROUNDDOWN(AL183*請求書・納品書!$M$11,) -> 0
A184: 遅・早(出) | AG184: =SUM(B184:AF184) -> 0 | AH184: 残業 | AL184: =AG183 -> 0 | AM184: =ROUNDDOWN(AL184*請求書・納品書!$M$12,) -> 0
A185: 遅・早(公) | AG185: =SUM(B185:AF185) -> 0 | AH185: 公出 | AI185: =COUNTIF(B182:AF182,"公") -> 0 | AJ185: =AI185*7.8 -> 0 | AK185: =AG185 -> 0 | AL185: =AJ185-AK185 -> 0 | AM185: =ROUNDDOWN(AL185*請求書・納品書!$M$13,) -> 0
A186: 連続 | AG186: =SUM(B186:AF186) -> 0 | AH186: 連続 | AL186: =AG186 -> 0 | AM186: =AL186*請求書・納品書!$M$14 -> 0
AL187: 合 計 | AM187: =SUM(AM183:AM186) -> 0
AH188: =A188 -> 0 | AI188: 日数(日) | AJ188: 勤務時間(h) | AK188: 早退（h） | AL188: 合計(h) | AM188: 金額(円)
A189: 残業 | AG189: =SUM(B189:AF189) -> 0 | AH189: 出勤 | AI189: =COUNTIF(B188:AF188,"出") -> 0 | AJ189: =AI189*7.8 -> 0 | AK189: =AG190 -> 0 | AL189: =AJ189-AK189 -> 0 | AM189: =ROUNDDOWN(AL189*請求書・納品書!$M$11,) -> 0
A190: 遅・早(出) | AG190: =SUM(B190:AF190) -> 0 | AH190: 残業 | AL190: =AG189 -> 0 | AM190: =ROUNDDOWN(AL190*請求書・納品書!$M$12,) -> 0
A191: 遅・早(公) | AG191: =SUM(B191:AF191) -> 0 | AH191: 公出 | AI191: =COUNTIF(B188:AF188,"公") -> 0 | AJ191: =AI191*7.8 -> 0 | AK191: =AG191 -> 0 | AL191: =AJ191-AK191 -> 0 | AM191: =ROUNDDOWN(AL191*請求書・納品書!$M$13,) -> 0
A192: 連続 | AG192: =SUM(B192:AF192) -> 0 | AH192: 連続 | AL192: =AG192 -> 0 | AM192: =AL192*請求書・納品書!$M$14 -> 0
AL193: 合 計 | AM193: =SUM(AM189:AM192) -> 0 | AO193: =AM175+AM181+AM187+AM193 -> 0

Sheet 9
A1: ='4'!A1 -> 2010 | B1: 1 | C1: 2 | D1: 3 | E1: 4 | F1: 5 | G1: 6 | H1: 7 | I1: 8 | J1: 9 | K1: 10 | L1: 11 | M1: 12 | N1: 13 | O1: 14 | P1: 15 | Q1: 16 | R1: 17 | S1: 18 | T1: 19 | U1: 20 | V1: 21 | W1: 22 | X1: 23 | Y1: 24 | Z1: 25 | AA1: 26 | AB1: 27 | AC1: 28 | AD1: 29 | AE1: 30 | AF1: 31 | AG1: 計 | AH1: =A1&"年"&MID(CELL("filename",$A$1),FIND("]",CELL("filename",$A$1))+1,31) &"月" -> 2010年9月
AH2: =A2 -> 0 | AI2: 日数(日) | AJ2: 勤務時間(h) | AK2: 早退（h） | AL2: 合計(h) | AM2: 金額(円) | AN2: 出 | AO2: 合計 | AP2: =SUM(AM:AM)/2 -> 0
A3: 残業 | AG3: =SUM(B3:AF3) -> 0 | AH3: 出勤 | AI3: =COUNTIF(B2:AF2,"出") -> 0 | AJ3: =AI3*7.8 -> 0 | AK3: =AG4 -> 0 | AL3: =AJ3-AK3 -> 0 | AM3: =ROUNDDOWN(AL3*請求書・納品書!$M$11,) -> 0 | AN3: 公 | AO3: 人数 | AP3: =COUNTA(AH:AH)-COUNTIF(AH:AH,0)-32*4-1 -> 0
A4: 遅・早(出) | AG4: =SUM(B4:AF4) -> 0 | AH4: 残業 | AL4: =AG3 -> 0 | AM4: =ROUNDDOWN(AL4*請求書・納品書!$M$12,) -> 0 | AN4: 欠 | AO4: 管理費 | AP4: =(AP3-AP9)*19400 -> 0
A5: 遅・早(公) | AG5: =SUM(B5:AF5) -> 0 | AH5: 公出 | AI5: =COUNTIF(B2:AF2,"公") -> 0 | AJ5: =AI5*7.8 -> 0 | AK5: =AG5 -> 0 | AL5: =AJ5-AK5 -> 0 | AM5: =ROUNDDOWN(AL5*請求書・納品書!$M$13,) -> 0 | AN5: 有 | AO5: 小計 | AP5: =AP2+AP4 -> 0
A6: 連続 | AG6: =SUM(B6:AF6) -> 0 | AH6: 連続 | AL6: =AG6 -> 0 | AM6: =AL6*請求書・納品書!$M$14 -> 0 | AN6: 半 | AO6: 消費税 | AP6: =ROUNDDOWN(AP5*0.05,) -> 0
AL7: 合 計 | AM7: =SUM(AM3:AM6) -> 0 | AO7: 総合計 | AP7: =AP5+AP6 -> 0
AH8: =A8 -> 0 | AI8: 日数(日) | AJ8: 勤務時間(h) | AK8: 早退（h） | AL8: 合計(h) | AM8: 金額(円)
A9: 残業 | AG9: =SUM(B9:AF9) -> 0 | AH9: 出勤 | AI9: =COUNTIF(B8:AF8,"出") -> 0 | AJ9: =AI9*7.8 -> 0 | AK9: =AG10 -> 0 | AL9: =AJ9-AK9 -> 0 | AM9: =ROUNDDOWN(AL9*請求書・納品書!$M$11,) -> 0 | AO9: 管理費に入れない人数
A10: 遅・早(出) | AG10: =SUM(B10:AF10) -> 0 | AH10: 残業 | AL10: =AG9 -> 0 | AM10: =ROUNDDOWN(AL10*請求書・納品書!$M$12,) -> 0
A11: 遅・早(公) | AG11: =SUM(B11:AF11) -> 0 | AH11: 公出 | AI11: =COUNTIF(B8:AF8,"公") -> 0 | AJ11: =AI11*7.8 -> 0 | AK11: =AG11 -> 0 | AL11: =AJ11-AK11 -> 0 | AM11: =ROUNDDOWN(AL11*請求書・納品書!$M$13,) -> 0
A12: 連続 | AG12: =SUM(B12:AF12) -> 0 | AH12: 連続 | AL12: =AG12 -> 0 | AM12: =AL12*請求書・納品書!$M$14 -> 0
AL13: 合 計 | AM13: =SUM(AM9:AM12) -> 0
AH14: =A14 -> 0 | AI14: 日数(日) | AJ14: 勤務時間(h) | AK14: 早退（h） | AL14: 合計(h) | AM14: 金額(円)
A15: 残業 | AG15: =SUM(B15:AF15) -> 0 | AH15: 出勤 | AI15: =COUNTIF(B14:AF14,"出") -> 0 | AJ15: =AI15*7.8 -> 0 | AK15: =AG16 -> 0 | AL15: =AJ15-AK15 -> 0 | AM15: =ROUNDDOWN(AL15*請求書・納品書!$M$11,) -> 0
A16: 遅・早(出) | AG16: =SUM(B16:AF16) -> 0 | AH16: 残業 | AL16: =AG15 -> 0 | AM16: =ROUNDDOWN(AL16*請求書・納品書!$M$12,) -> 0
A17: 遅・早(公) | AG17: =SUM(B17:AF17) -> 0 | AH17: 公出 | AI17: =COUNTIF(B14:AF14,"公") -> 0 | AJ17: =AI17*7.8 -> 0 | AK17: =AG17 -> 0 | AL17: =AJ17-AK17 -> 0 | AM17: =ROUNDDOWN(AL17*請求書・納品書!$M$13,) -> 0
A18: 連続 | AG18: =SUM(B18:AF18) -> 0 | AH18: 連続 | AL18: =AG18 -> 0 | AM18: =AL18*請求書・納品書!$M$14 -> 0
AL19: 合 計 | AM19: =SUM(AM15:AM18) -> 0
AH20: =A20 -> 0 | AI20: 日数(日) | AJ20: 勤務時間(h) | AK20: 早退（h） | AL20: 合計(h) | AM20: 金額(円)
A21: 残業 | AG21: =SUM(B21:AF21) -> 0 | AH21: 出勤 | AI21: =COUNTIF(B20:AF20,"出") -> 0 | AJ21: =AI21*7.8 -> 0 | AK21: =AG22 -> 0 | AL21: =AJ21-AK21 -> 0 | AM21: =ROUNDDOWN(AL21*請求書・納品書!$M$11,) -> 0
A22: 遅・早(出) | AG22: =SUM(B22:AF22) -> 0 | AH22: 残業 | AL22: =AG21 -> 0 | AM22: =ROUNDDOWN(AL22*請求書・納品書!$M$12,) -> 0
A23: 遅・早(公) | AG23: =SUM(B23:AF23) -> 0 | AH23: 公出 | AI23: =COUNTIF(B20:AF20,"公") -> 0 | AJ23: =AI23*7.8 -> 0 | AK23: =AG23 -> 0 | AL23: =AJ23-AK23 -> 0 | AM23: =ROUNDDOWN(AL23*請求書・納品書!$M$13,) -> 0
A24: 連続 | AG24: =SUM(B24:AF24) -> 0 | AH24: 連続 | AL24: =AG24 -> 0 | AM24: =AL24*請求書・納品書!$M$14 -> 0
AL25: 合 計 | AM25: =SUM(AM21:AM24) -> 0 | AO25: =AM7+AM13+AM19+AM25 -> 0
AH26: =A26 -> 0 | AI26: 日数(日) | AJ26: 勤務時間(h) | AK26: 早退（h） | AL26: 合計(h) | AM26: 金額(円)
A27: 残業 | AG27: =SUM(B27:AF27) -> 0 | AH27: 出勤 | AI27: =COUNTIF(B26:AF26,"出") -> 0 | AJ27: =AI27*7.8 -> 0 | AK27: =AG28 -> 0 | AL27: =AJ27-AK27 -> 0 | AM27: =ROUNDDOWN(AL27*請求書・納品書!$M$11,) -> 0
A28: 遅・早(出) | AG28: =SUM(B28:AF28) -> 0 | AH28: 残業 | AL28: =AG27 -> 0 | AM28: =ROUNDDOWN(AL28*請求書・納品書!$M$12,) -> 0
A29: 遅・早(公) | AG29: =SUM(B29:AF29) -> 0 | AH29: 公出 | AI29: =COUNTIF(B26:AF26,"公") -> 0 | AJ29: =AI29*7.8 -> 0 | AK29: =AG29 -> 0 | AL29: =AJ29-AK29 -> 0 | AM29: =ROUNDDOWN(AL29*請求書・納品書!$M$13,) -> 0
A30: 連続 | AG30: =SUM(B30:AF30) -> 0 | AH30: 連続 | AL30: =AG30 -> 0 | AM30: =AL30*請求書・納品書!$M$14 -> 0
AL31: 合 計 | AM31: =SUM(AM27:AM30) -> 0
AH32: =A32 -> 0 | AI32: 日数(日) | AJ32: 勤務時間(h) | AK32: 早退（h） | AL32: 合計(h) | AM32: 金額(円)
A33: 残業 | AG33: =SUM(B33:AF33) -> 0 | AH33: 出勤 | AI33: =COUNTIF(B32:AF32,"出") -> 0 | AJ33: =AI33*7.8 -> 0 | AK33: =AG34 -> 0 | AL33: =AJ33-AK33 -> 0 | AM33: =ROUNDDOWN(AL33*請求書・納品書!$M$11,) -> 0
A34: 遅・早(出) | AG34: =SUM(B34:AF34) -> 0 | AH34: 残業 | AL34: =AG33 -> 0 | AM34: =ROUNDDOWN(AL34*請求書・納品書!$M$12,) -> 0
A35: 遅・早(公) | AG35: =SUM(B35:AF35) -> 0 | AH35: 公出 | AI35: =COUNTIF(B32:AF32,"公") -> 0 | AJ35: =AI35*7.8 -> 0 | AK35: =AG35 -> 0 | AL35: =AJ35-AK35 -> 0 | AM35: =ROUNDDOWN(AL35*請求書・納品書!$M$13,) -> 0
A36: 連続 | AG36: =SUM(B36:AF36) -> 0 | AH36: 連続 | AL36: =AG36 -> 0 | AM36: =AL36*請求書・納品書!$M$14 -> 0
AL37: 合 計 | AM37: =SUM(AM33:AM36) -> 0
AH38: =A38 -> 0 | AI38: 日数(日) | AJ38: 勤務時間(h) | AK38: 早退（h） | AL38: 合計(h) | AM38: 金額(円)
A39: 残業 | AG39: =SUM(B39:AF39) -> 0 | AH39: 出勤 | AI39: =COUNTIF(B38:AF38,"出") -> 0 | AJ39: =AI39*7.8 -> 0 | AK39: =AG40 -> 0 | AL39: =AJ39-AK39 -> 0 | AM39: =ROUNDDOWN(AL39*請求書・納品書!$M$11,) -> 0
A40: 遅・早(出) | AG40: =SUM(B40:AF40) -> 0 | AH40: 残業 | AL40: =AG39 -> 0 | AM40: =ROUNDDOWN(AL40*請求書・納品書!$M$12,) -> 0
A41: 遅・早(公) | AG41: =SUM(B41:AF41) -> 0 | AH41: 公出 | AI41: =COUNTIF(B38:AF38,"公") -> 0 | AJ41: =AI41*7.8 -> 0 | AK41: =AG41 -> 0 | AL41: =AJ41-AK41 -> 0 | AM41: =ROUNDDOWN(AL41*請求書・納品書!$M$13,) -> 0
A42: 連続 | AG42: =SUM(B42:AF42) -> 0 | AH42: 連続 | AL42: =AG42 -> 0 | AM42: =AL42*請求書・納品書!$M$14 -> 0
AL43: 合 計 | AM43: =SUM(AM39:AM42) -> 0
AH44: =A44 -> 0 | AI44: 日数(日) | AJ44: 勤務時間(h) | AK44: 早退（h） | AL44: 合計(h) | AM44: 金額(円)
A45: 残業 | AG45: =SUM(B45:AF45) -> 0 | AH45: 出勤 | AI45: =COUNTIF(B44:AF44,"出") -> 0 | AJ45: =AI45*7.8 -> 0 | AK45: =AG46 -> 0 | AL45: =AJ45-AK45 -> 0 | AM45: =ROUNDDOWN(AL45*請求書・納品書!$M$11,) -> 0
A46: 遅・早(出) | AG46: =SUM(B46:AF46) -> 0 | AH46: 残業 | AL46: =AG45 -> 0 | AM46: =ROUNDDOWN(AL46*請求書・納品書!$M$12,) -> 0
A47: 遅・早(公) | AG47: =SUM(B47:AF47) -> 0 | AH47: 公出 | AI47: =COUNTIF(B44:AF44,"公") -> 0 | AJ47: =AI47*7.8 -> 0 | AK47: =AG47 -> 0 | AL47: =AJ47-AK47 -> 0 | AM47: =ROUNDDOWN(AL47*請求書・納品書!$M$13,) -> 0
A48: 連続 | AG48: =SUM(B48:AF48) -> 0 | AH48: 連続 | AL48: =AG48 -> 0 | AM48: =AL48*請求書・納品書!$M$14 -> 0
AL49: 合 計 | AM49: =SUM(AM45:AM48) -> 0 | AO49: =AM31+AM37+AM43+AM49 -> 0
AH50: =A50 -> 0 | AI50: 日数(日) | AJ50: 勤務時間(h) | AK50: 早退（h） | AL50: 合計(h) | AM50: 金額(円)
A51: 残業 | AG51: =SUM(B51:AF51) -> 0 | AH51: 出勤 | AI51: =COUNTIF(B50:AF50,"出") -> 0 | AJ51: =AI51*7.8 -> 0 | AK51: =AG52 -> 0 | AL51: =AJ51-AK51 -> 0 | AM51: =ROUNDDOWN(AL51*請求書・納品書!$M$11,) -> 0
A52: 遅・早(出) | AG52: =SUM(B52:AF52) -> 0 | AH52: 残業 | AL52: =AG51 -> 0 | AM52: =ROUNDDOWN(AL52*請求書・納品書!$M$12,) -> 0
A53: 遅・早(公) | AG53: =SUM(B53:AF53) -> 0 | AH53: 公出 | AI53: =COUNTIF(B50:AF50,"公") -> 0 | AJ53: =AI53*7.8 -> 0 | AK53: =AG53 -> 0 | AL53: =AJ53-AK53 -> 0 | AM53: =ROUNDDOWN(AL53*請求書・納品書!$M$13,) -> 0
A54: 連続 | AG54: =SUM(B54:AF54) -> 0 | AH54: 連続 | AL54: =AG54 -> 0 | AM54: =AL54*請求書・納品書!$M$14 -> 0
AL55: 合 計 | AM55: =SUM(AM51:AM54) -> 0
AH56: =A56 -> 0 | AI56: 日数(日) | AJ56: 勤務時間(h) | AK56: 早退（h） | AL56: 合計(h) | AM56: 金額(円)
A57: 残業 | AG57: =SUM(B57:AF57) -> 0 | AH57: 出勤 | AI57: =COUNTIF(B56:AF56,"出") -> 0 | AJ57: =AI57*7.8 -> 0 | AK57: =AG58 -> 0 | AL57: =AJ57-AK57 -> 0 | AM57: =ROUNDDOWN(AL57*請求書・納品書!$M$11,) -> 0
A58: 遅・早(出) | AG58: =SUM(B58:AF58) -> 0 | AH58: 残業 | AL58: =AG57 -> 0 | AM58: =ROUNDDOWN(AL58*請求書・納品書!$M$12,) -> 0
A59: 遅・早(公) | AG59: =SUM(B59:AF59) -> 0 | AH59: 公出 | AI59: =COUNTIF(B56:AF56,"公") -> 0 | AJ59: =AI59*7.8 -> 0 | AK59: =AG59 -> 0 | AL59: =AJ59-AK59 -> 0 | AM59: =ROUNDDOWN(AL59*請求書・納品書!$M$13,) -> 0
A60: 連続 | AG60: =SUM(B60:AF60) -> 0 | AH60: 連続 | AL60: =AG60 -> 0 | AM60: =AL60*請求書・納品書!$M$14 -> 0
AL61: 合 計 | AM61: =SUM(AM57:AM60) -> 0
AH62: =A62 -> 0 | AI62: 日数(日) | AJ62: 勤務時間(h) | AK62: 早退（h） | AL62: 合計(h) | AM62: 金額(円)
A63: 残業 | AG63: =SUM(B63:AF63) -> 0 | AH63: 出勤 | AI63: =COUNTIF(B62:AF62,"出") -> 0 | AJ63: =AI63*7.8 -> 0 | AK63: =AG64 -> 0 | AL63: =AJ63-AK63 -> 0 | AM63: =ROUNDDOWN(AL63*請求書・納品書!$M$11,) -> 0
A64: 遅・早(出) | AG64: =SUM(B64:AF64) -> 0 | AH64: 残業 | AL64: =AG63 -> 0 | AM64: =ROUNDDOWN(AL64*請求書・納品書!$M$12,) -> 0
A65: 遅・早(公) | AG65: =SUM(B65:AF65) -> 0 | AH65: 公出 | AI65: =COUNTIF(B62:AF62,"公") -> 0 | AJ65: =AI65*7.8 -> 0 | AK65: =AG65 -> 0 | AL65: =AJ65-AK65 -> 0 | AM65: =ROUNDDOWN(AL65*請求書・納品書!$M$13,) -> 0
A66: 連続 | AG66: =SUM(B66:AF66) -> 0 | AH66: 連続 | AL66: =AG66 -> 0 | AM66: =AL66*請求書・納品書!$M$14 -> 0
AL67: 合 計 | AM67: =SUM(AM63:AM66) -> 0
AH68: =A68 -> 0 | AI68: 日数(日) | AJ68: 勤務時間(h) | AK68: 早退（h） | AL68: 合計(h) | AM68: 金額(円)
A69: 残業 | AG69: =SUM(B69:AF69) -> 0 | AH69: 出勤 | AI69: =COUNTIF(B68:AF68,"出") -> 0 | AJ69: =AI69*7.8 -> 0 | AK69: =AG70 -> 0 | AL69: =AJ69-AK69 -> 0 | AM69: =ROUNDDOWN(AL69*請求書・納品書!$M$11,) -> 0
A70: 遅・早(出) | AG70: =SUM(B70:AF70) -> 0 | AH70: 残業 | AL70: =AG69 -> 0 | AM70: =ROUNDDOWN(AL70*請求書・納品書!$M$12,) -> 0
A71: 遅・早(公) | AG71: =SUM(B71:AF71) -> 0 | AH71: 公出 | AI71: =COUNTIF(B68:AF68,"公") -> 0 | AJ71: =AI71*7.8 -> 0 | AK71: =AG71 -> 0 | AL71: =AJ71-AK71 -> 0 | AM71: =ROUNDDOWN(AL71*請求書・納品書!$M$13,) -> 0
A72: 連続 | AG72: =SUM(B72:AF72) -> 0 | AH72: 連続 | AL72: =AG72 -> 0 | AM72: =AL72*請求書・納品書!$M$14 -> 0
AL73: 合 計 | AM73: =SUM(AM69:AM72) -> 0 | AO73: =AM55+AM61+AM67+AM73 -> 0
AH74: =A74 -> 0 | AI74: 日数(日) | AJ74: 勤務時間(h) | AK74: 早退（h） | AL74: 合計(h) | AM74: 金額(円)
A75: 残業 | AG75: =SUM(B75:AF75) -> 0 | AH75: 出勤 | AI75: =COUNTIF(B74:AF74,"出") -> 0 | AJ75: =AI75*7.8 -> 0 | AK75: =AG76 -> 0 | AL75: =AJ75-AK75 -> 0 | AM75: =ROUNDDOWN(AL75*請求書・納品書!$M$11,) -> 0
A76: 遅・早(出) | AG76: =SUM(B76:AF76) -> 0 | AH76: 残業 | AL76: =AG75 -> 0 | AM76: =ROUNDDOWN(AL76*請求書・納品書!$M$12,) -> 0
A77: 遅・早(公) | AG77: =SUM(B77:AF77) -> 0 | AH77: 公出 | AI77: =COUNTIF(B74:AF74,"公") -> 0 | AJ77: =AI77*7.8 -> 0 | AK77: =AG77 -> 0 | AL77: =AJ77-AK77 -> 0 | AM77: =ROUNDDOWN(AL77*請求書・納品書!$M$13,) -> 0
A78: 連続 | AG78: =SUM(B78:AF78) -> 0 | AH78: 連続 | AL78: =AG78 -> 0 | AM78: =AL78*請求書・納品書!$M$14 -> 0
AL79: 合 計 | AM79: =SUM(AM75:AM78) -> 0
AH80: =A80 -> 0 | AI80: 日数(日) | AJ80: 勤務時間(h) | AK80: 早退（h） | AL80: 合計(h) | AM80: 金額(円)
A81: 残業 | AG81: =SUM(B81:AF81) -> 0 | AH81: 出勤 | AI81: =COUNTIF(B80:AF80,"出") -> 0 | AJ81: =AI81*7.8 -> 0 | AK81: =AG82 -> 0 | AL81: =AJ81-AK81 -> 0 | AM81: =ROUNDDOWN(AL81*請求書・納品書!$M$11,) -> 0
A82: 遅・早(出) | AG82: =SUM(B82:AF82) -> 0 | AH82: 残業 | AL82: =AG81 -> 0 | AM82: =ROUNDDOWN(AL82*請求書・納品書!$M$12,) -> 0
A83: 遅・早(公) | AG83: =SUM(B83:AF83) -> 0 | AH83: 公出 | AI83: =COUNTIF(B80:AF80,"公") -> 0 | AJ83: =AI83*7.8 -> 0 | AK83: =AG83 -> 0 | AL83: =AJ83-AK83 -> 0 | AM83: =ROUNDDOWN(AL83*請求書・納品書!$M$13,) -> 0
A84: 連続 | AG84: =SUM(B84:AF84) -> 0 | AH84: 連続 | AL84: =AG84 -> 0 | AM84: =AL84*請求書・納品書!$M$14 -> 0
AL85: 合 計 | AM85: =SUM(AM81:AM84) -> 0
AH86: =A86 -> 0 | AI86: 日数(日) | AJ86: 勤務時間(h) | AK86: 早退（h） | AL86: 合計(h) | AM86: 金額(円)
A87: 残業 | AG87: =SUM(B87:AF87) -> 0 | AH87: 出勤 | AI87: =COUNTIF(B86:AF86,"出") -> 0 | AJ87: =AI87*7.8 -> 0 | AK87: =AG88 -> 0 | AL87: =AJ87-AK87 -> 0 | AM87: =ROUNDDOWN(AL87*請求書・納品書!$M$11,) -> 0
A88: 遅・早(出) | AG88: =SUM(B88:AF88) -> 0 | AH88: 残業 | AL88: =AG87 -> 0 | AM88: =ROUNDDOWN(AL88*請求書・納品書!$M$12,) -> 0
A89: 遅・早(公) | AG89: =SUM(B89:AF89) -> 0 | AH89: 公出 | AI89: =COUNTIF(B86:AF86,"公") -> 0 | AJ89: =AI89*7.8 -> 0 | AK89: =AG89 -> 0 | AL89: =AJ89-AK89 -> 0 | AM89: =ROUNDDOWN(AL89*請求書・納品書!$M$13,) -> 0
A90: 連続 | AG90: =SUM(B90:AF90) -> 0 | AH90: 連続 | AL90: =AG90 -> 0 | AM90: =AL90*請求書・納品書!$M$14 -> 0
AL91: 合 計 | AM91: =SUM(AM87:AM90) -> 0
AH92: =A92 -> 0 | AI92: 日数(日) | AJ92: 勤務時間(h) | AK92: 早退（h） | AL92: 合計(h) | AM92: 金額(円)
A93: 残業 | AG93: =SUM(B93:AF93) -> 0 | AH93: 出勤 | AI93: =COUNTIF(B92:AF92,"出") -> 0 | AJ93: =AI93*7.8 -> 0 | AK93: =AG94 -> 0 | AL93: =AJ93-AK93 -> 0 | AM93: =ROUNDDOWN(AL93*請求書・納品書!$M$11,) -> 0
A94: 遅・早(出) | AG94: =SUM(B94:AF94) -> 0 | AH94: 残業 | AL94: =AG93 -> 0 | AM94: =ROUNDDOWN(AL94*請求書・納品書!$M$12,) -> 0
A95: 遅・早(公) | AG95: =SUM(B95:AF95) -> 0 | AH95: 公出 | AI95: =COUNTIF(B92:AF92,"公") -> 0 | AJ95: =AI95*7.8 -> 0 | AK95: =AG95 -> 0 | AL95: =AJ95-AK95 -> 0 | AM95: =ROUNDDOWN(AL95*請求書・納品書!$M$13,) -> 0
A96: 連続 | AG96: =SUM(B96:AF96) -> 0 | AH96: 連続 | AL96: =AG96 -> 0 | AM96: =AL96*請求書・納品書!$M$14 -> 0
AL97: 合 計 | AM97: =SUM(AM93:AM96) -> 0 | AO97: =AM79+AM85+AM91+AM97 -> 0
AH98: =A98 -> 0 | AI98: 日数(日) | AJ98: 勤務時間(h) | AK98: 早退（h） | AL98: 合計(h) | AM98: 金額(円)
A99: 残業 | AG99: =SUM(B99:AF99) -> 0 | AH99: 出勤 | AI99: =COUNTIF(B98:AF98,"出") -> 0 | AJ99: =AI99*7.8 -> 0 | AK99: =AG100 -> 0 | AL99: =AJ99-AK99 -> 0 | AM99: =ROUNDDOWN(AL99*請求書・納品書!$M$11,) -> 0
A100: 遅・早(出) | AG100: =SUM(B100:AF100) -> 0 | AH100: 残業 | AL100: =AG99 -> 0 | AM100: =ROUNDDOWN(AL100*請求書・納品書!$M$12,) -> 0
A101: 遅・早(公) | AG101: =SUM(B101:AF101) -> 0 | AH101: 公出 | AI101: =COUNTIF(B98:AF98,"公") -> 0 | AJ101: =AI101*7.8 -> 0 | AK101: =AG101 -> 0 | AL101: =AJ101-AK101 -> 0 | AM101: =ROUNDDOWN(AL101*請求書・納品書!$M$13,) -> 0
A102: 連続 | AG102: =SUM(B102:AF102) -> 0 | AH102: 連続 | AL102: =AG102 -> 0 | AM102: =AL102*請求書・納品書!$M$14 -> 0
AL103: 合 計 | AM103: =SUM(AM99:AM102) -> 0
AH104: =A104 -> 0 | AI104: 日数(日) | AJ104: 勤務時間(h) | AK104: 早退（h） | AL104: 合計(h) | AM104: 金額(円)
A105: 残業 | AG105: =SUM(B105:AF105) -> 0 | AH105: 出勤 | AI105: =COUNTIF(B104:AF104,"出") -> 0 | AJ105: =AI105*7.8 -> 0 | AK105: =AG106 -> 0 | AL105: =AJ105-AK105 -> 0 | AM105: =ROUNDDOWN(AL105*請求書・納品書!$M$11,) -> 0
A106: 遅・早(出) | AG106: =SUM(B106:AF106) -> 0 | AH106: 残業 | AL106: =AG105 -> 0 | AM106: =ROUNDDOWN(AL106*請求書・納品書!$M$12,) -> 0
A107: 遅・早(公) | AG107: =SUM(B107:AF107) -> 0 | AH107: 公出 | AI107: =COUNTIF(B104:AF104,"公") -> 0 | AJ107: =AI107*7.8 -> 0 | AK107: =AG107 -> 0 | AL107: =AJ107-AK107 -> 0 | AM107: =ROUNDDOWN(AL107*請求書・納品書!$M$13,) -> 0
A108: 連続 | AG108: =SUM(B108:AF108) -> 0 | AH108: 連続 | AL108: =AG108 -> 0 | AM108: =AL108*請求書・納品書!$M$14 -> 0
AL109: 合 計 | AM109: =SUM(AM105:AM108) -> 0
AH110: =A110 -> 0 | AI110: 日数(日) | AJ110: 勤務時間(h) | AK110: 早退（h） | AL110: 合計(h) | AM110: 金額(円)
A111: 残業 | AG111: =SUM(B111:AF111) -> 0 | AH111: 出勤 | AI111: =COUNTIF(B110:AF110,"出") -> 0 | AJ111: =AI111*7.8 -> 0 | AK111: =AG112 -> 0 | AL111: =AJ111-AK111 -> 0 | AM111: =ROUNDDOWN(AL111*請求書・納品書!$M$11,) -> 0
A112: 遅・早(出) | AG112: =SUM(B112:AF112) -> 0 | AH112: 残業 | AL112: =AG111 -> 0 | AM112: =ROUNDDOWN(AL112*請求書・納品書!$M$12,) -> 0
A113: 遅・早(公) | AG113: =SUM(B113:AF113) -> 0 | AH113: 公出 | AI113: =COUNTIF(B110:AF110,"公") -> 0 | AJ113: =AI113*7.8 -> 0 | AK113: =AG113 -> 0 | AL113: =AJ113-AK113 -> 0 | AM113: =ROUNDDOWN(AL113*請求書・納品書!$M$13,) -> 0
A114: 連続 | AG114: =SUM(B114:AF114) -> 0 | AH114: 連続 | AL114: =AG114 -> 0 | AM114: =AL114*請求書・納品書!$M$14 -> 0
AL115: 合 計 | AM115: =SUM(AM111:AM114) -> 0
AH116: =A116 -> 0 | AI116: 日数(日) | AJ116: 勤務時間(h) | AK116: 早退（h） | AL116: 合計(h) | AM116: 金額(円)
A117: 残業 | AG117: =SUM(B117:AF117) -> 0 | AH117: 出勤 | AI117: =COUNTIF(B116:AF116,"出") -> 0 | AJ117: =AI117*7.8 -> 0 | AK117: =AG118 -> 0 | AL117: =AJ117-AK117 -> 0 | AM117: =ROUNDDOWN(AL117*請求書・納品書!$M$11,) -> 0
A118: 遅・早(出) | AG118: =SUM(B118:AF118) -> 0 | AH118: 残業 | AL118: =AG117 -> 0 | AM118: =ROUNDDOWN(AL118*請求書・納品書!$M$12,) -> 0
A119: 遅・早(公) | AG119: =SUM(B119:AF119) -> 0 | AH119: 公出 | AI119: =COUNTIF(B116:AF116,"公") -> 0 | AJ119: =AI119*7.8 -> 0 | AK119: =AG119 -> 0 | AL119: =AJ119-AK119 -> 0 | AM119: =ROUNDDOWN(AL119*請求書・納品書!$M$13,) -> 0
A120: 連続 | AG120: =SUM(B120:AF120) -> 0 | AH120: 連続 | AL120: =AG120 -> 0 | AM120: =AL120*請求書・納品書!$M$14 -> 0
AL121: 合 計 | AM121: =SUM(AM117:AM120) -> 0 | AO121: =AM103+AM109+AM115+AM121 -> 0
AH122: =A122 -> 0 | AI122: 日数(日) | AJ122: 勤務時間(h) | AK122: 早退（h） | AL122: 合計(h) | AM122: 金額(円)
A123: 残業 | AG123: =SUM(B123:AF123) -> 0 | AH123: 出勤 | AI123: =COUNTIF(B122:AF122,"出") -> 0 | AJ123: =AI123*7.8 -> 0 | AK123: =AG124 -> 0 | AL123: =AJ123-AK123 -> 0 | AM123: =ROUNDDOWN(AL123*請求書・納品書!$M$11,) -> 0
A124: 遅・早(出) | AG124: =SUM(B124:AF124) -> 0 | AH124: 残業 | AL124: =AG123 -> 0 | AM124: =ROUNDDOWN(AL124*請求書・納品書!$M$12,) -> 0
A125: 遅・早(公) | AG125: =SUM(B125:AF125) -> 0 | AH125: 公出 | AI125: =COUNTIF(B122:AF122,"公") -> 0 | AJ125: =AI125*7.8 -> 0 | AK125: =AG125 -> 0 | AL125: =AJ125-AK125 -> 0 | AM125: =ROUNDDOWN(AL125*請求書・納品書!$M$13,) -> 0
A126: 連続 | AG126: =SUM(B126:AF126) -> 0 | AH126: 連続 | AL126: =AG126 -> 0 | AM126: =AL126*請求書・納品書!$M$14 -> 0
AL127: 合 計 | AM127: =SUM(AM123:AM126) -> 0
AH128: =A128 -> 0 | AI128: 日数(日) | AJ128: 勤務時間(h) | AK128: 早退（h） | AL128: 合計(h) | AM128: 金額(円)
A129: 残業 | AG129: =SUM(B129:AF129) -> 0 | AH129: 出勤 | AI129: =COUNTIF(B128:AF128,"出") -> 0 | AJ129: =AI129*7.8 -> 0 | AK129: =AG130 -> 0 | AL129: =AJ129-AK129 -> 0 | AM129: =ROUNDDOWN(AL129*請求書・納品書!$M$11,) -> 0
A130: 遅・早(出) | AG130: =SUM(B130:AF130) -> 0 | AH130: 残業 | AL130: =AG129 -> 0 | AM130: =ROUNDDOWN(AL130*請求書・納品書!$M$12,) -> 0
A131: 遅・早(公) | AG131: =SUM(B131:AF131) -> 0 | AH131: 公出 | AI131: =COUNTIF(B128:AF128,"公") -> 0 | AJ131: =AI131*7.8 -> 0 | AK131: =AG131 -> 0 | AL131: =AJ131-AK131 -> 0 | AM131: =ROUNDDOWN(AL131*請求書・納品書!$M$13,) -> 0
A132: 連続 | AG132: =SUM(B132:AF132) -> 0 | AH132: 連続 | AL132: =AG132 -> 0 | AM132: =AL132*請求書・納品書!$M$14 -> 0
AL133: 合 計 | AM133: =SUM(AM129:AM132) -> 0
AH134: =A134 -> 0 | AI134: 日数(日) | AJ134: 勤務時間(h) | AK134: 早退（h） | AL134: 合計(h) | AM134: 金額(円)
A135: 残業 | AG135: =SUM(B135:AF135) -> 0 | AH135: 出勤 | AI135: =COUNTIF(B134:AF134,"出") -> 0 | AJ135: =AI135*7.8 -> 0 | AK135: =AG136 -> 0 | AL135: =AJ135-AK135 -> 0 | AM135: =ROUNDDOWN(AL135*請求書・納品書!$M$11,) -> 0
A136: 遅・早(出) | AG136: =SUM(B136:AF136) -> 0 | AH136: 残業 | AL136: =AG135 -> 0 | AM136: =ROUNDDOWN(AL136*請求書・納品書!$M$12,) -> 0
A137: 遅・早(公) | AG137: =SUM(B137:AF137) -> 0 | AH137: 公出 | AI137: =COUNTIF(B134:AF134,"公") -> 0 | AJ137: =AI137*7.8 -> 0 | AK137: =AG137 -> 0 | AL137: =AJ137-AK137 -> 0 | AM137: =ROUNDDOWN(AL137*請求書・納品書!$M$13,) -> 0
A138: 連続 | AG138: =SUM(B138:AF138) -> 0 | AH138: 連続 | AL138: =AG138 -> 0 | AM138: =AL138*請求書・納品書!$M$14 -> 0
AL139: 合 計 | AM139: =SUM(AM135:AM138) -> 0
AH140: =A140 -> 0 | AI140: 日数(日) | AJ140: 勤務時間(h) | AK140: 早退（h） | AL140: 合計(h) | AM140: 金額(円)
A141: 残業 | AG141: =SUM(B141:AF141) -> 0 | AH141: 出勤 | AI141: =COUNTIF(B140:AF140,"出") -> 0 | AJ141: =AI141*7.8 -> 0 | AK141: =AG142 -> 0 | AL141: =AJ141-AK141 -> 0 | AM141: =ROUNDDOWN(AL141*請求書・納品書!$M$11,) -> 0
A142: 遅・早(出) | AG142: =SUM(B142:AF142) -> 0 | AH142: 残業 | AL142: =AG141 -> 0 | AM142: =ROUNDDOWN(AL142*請求書・納品書!$M$12,) -> 0
A143: 遅・早(公) | AG143: =SUM(B143:AF143) -> 0 | AH143: 公出 | AI143: =COUNTIF(B140:AF140,"公") -> 0 | AJ143: =AI143*7.8 -> 0 | AK143: =AG143 -> 0 | AL143: =AJ143-AK143 -> 0 | AM143: =ROUNDDOWN(AL143*請求書・納品書!$M$13,) -> 0
A144: 連続 | AG144: =SUM(B144:AF144) -> 0 | AH144: 連続 | AL144: =AG144 -> 0 | AM144: =AL144*請求書・納品書!$M$14 -> 0
AL145: 合 計 | AM145: =SUM(AM141:AM144) -> 0 | AO145: =AM127+AM133+AM139+AM145 -> 0
AH146: =A146 -> 0 | AI146: 日数(日) | AJ146: 勤務時間(h) | AK146: 早退（h） | AL146: 合計(h) | AM146: 金額(円)
A147: 残業 | AG147: =SUM(B147:AF147) -> 0 | AH147: 出勤 | AI147: =COUNTIF(B146:AF146,"出") -> 0 | AJ147: =AI147*7.8 -> 0 | AK147: =AG148 -> 0 | AL147: =AJ147-AK147 -> 0 | AM147: =ROUNDDOWN(AL147*請求書・納品書!$M$11,) -> 0
A148: 遅・早(出) | AG148: =SUM(B148:AF148) -> 0 | AH148: 残業 | AL148: =AG147 -> 0 | AM148: =ROUNDDOWN(AL148*請求書・納品書!$M$12,) -> 0
A149: 遅・早(公) | AG149: =SUM(B149:AF149) -> 0 | AH149: 公出 | AI149: =COUNTIF(B146:AF146,"公") -> 0 | AJ149: =AI149*7.8 -> 0 | AK149: =AG149 -> 0 | AL149: =AJ149-AK149 -> 0 | AM149: =ROUNDDOWN(AL149*請求書・納品書!$M$13,) -> 0
A150: 連続 | AG150: =SUM(B150:AF150) -> 0 | AH150: 連続 | AL150: =AG150 -> 0 | AM150: =AL150*請求書・納品書!$M$14 -> 0
AL151: 合 計 | AM151: =SUM(AM147:AM150) -> 0
AH152: =A152 -> 0 | AI152: 日数(日) | AJ152: 勤務時間(h) | AK152: 早退（h） | AL152: 合計(h) | AM152: 金額(円)
A153: 残業 | AG153: =SUM(B153:AF153) -> 0 | AH153: 出勤 | AI153: =COUNTIF(B152:AF152,"出") -> 0 | AJ153: =AI153*7.8 -> 0 | AK153: =AG154 -> 0 | AL153: =AJ153-AK153 -> 0 | AM153: =ROUNDDOWN(AL153*請求書・納品書!$M$11,) -> 0
A154: 遅・早(出) | AG154: =SUM(B154:AF154) -> 0 | AH154: 残業 | AL154: =AG153 -> 0 | AM154: =ROUNDDOWN(AL154*請求書・納品書!$M$12,) -> 0
A155: 遅・早(公) | AG155: =SUM(B155:AF155) -> 0 | AH155: 公出 | AI155: =COUNTIF(B152:AF152,"公") -> 0 | AJ155: =AI155*7.8 -> 0 | AK155: =AG155 -> 0 | AL155: =AJ155-AK155 -> 0 | AM155: =ROUNDDOWN(AL155*請求書・納品書!$M$13,) -> 0
A156: 連続 | AG156: =SUM(B156:AF156) -> 0 | AH156: 連続 | AL156: =AG156 -> 0 | AM156: =AL156*請求書・納品書!$M$14 -> 0
AL157: 合 計 | AM157: =SUM(AM153:AM156) -> 0
AH158: =A158 -> 0 | AI158: 日数(日) | AJ158: 勤務時間(h) | AK158: 早退（h） | AL158: 合計(h) | AM158: 金額(円)
A159: 残業 | AG159: =SUM(B159:AF159) -> 0 | AH159: 出勤 | AI159: =COUNTIF(B158:AF158,"出") -> 0 | AJ159: =AI159*7.8 -> 0 | AK159: =AG160 -> 0 | AL159: =AJ159-AK159 -> 0 | AM159: =ROUNDDOWN(AL159*請求書・納品書!$M$11,) -> 0
A160: 遅・早(出) | AG160: =SUM(B160:AF160) -> 0 | AH160: 残業 | AL160: =AG159 -> 0 | AM160: =ROUNDDOWN(AL160*請求書・納品書!$M$12,) -> 0
A161: 遅・早(公) | AG161: =SUM(B161:AF161) -> 0 | AH161: 公出 | AI161: =COUNTIF(B158:AF158,"公") -> 0 | AJ161: =AI161*7.8 -> 0 | AK161: =AG161 -> 0 | AL161: =AJ161-AK161 -> 0 | AM161: =ROUNDDOWN(AL161*請求書・納品書!$M$13,) -> 0
A162: 連続 | AG162: =SUM(B162:AF162) -> 0 | AH162: 連続 | AL162: =AG162 -> 0 | AM162: =AL162*請求書・納品書!$M$14 -> 0
AL163: 合 計 | AM163: =SUM(AM159:AM162) -> 0
AH164: =A164 -> 0 | AI164: 日数(日) | AJ164: 勤務時間(h) | AK164: 早退（h） | AL164: 合計(h) | AM164: 金額(円)
A165: 残業 | AG165: =SUM(B165:AF165) -> 0 | AH165: 出勤 | AI165: =COUNTIF(B164:AF164,"出") -> 0 | AJ165: =AI165*7.8 -> 0 | AK165: =AG166 -> 0 | AL165: =AJ165-AK165 -> 0 | AM165: =ROUNDDOWN(AL165*請求書・納品書!$M$11,) -> 0
A166: 遅・早(出) | AG166: =SUM(B166:AF166) -> 0 | AH166: 残業 | AL166: =AG165 -> 0 | AM166: =ROUNDDOWN(AL166*請求書・納品書!$M$12,) -> 0
A167: 遅・早(公) | AG167: =SUM(B167:AF167) -> 0 | AH167: 公出 | AI167: =COUNTIF(B164:AF164,"公") -> 0 | AJ167: =AI167*7.8 -> 0 | AK167: =AG167 -> 0 | AL167: =AJ167-AK167 -> 0 | AM167: =ROUNDDOWN(AL167*請求書・納品書!$M$13,) -> 0
A168: 連続 | AG168: =SUM(B168:AF168) -> 0 | AH168: 連続 | AL168: =AG168 -> 0 | AM168: =AL168*請求書・納品書!$M$14 -> 0
AL169: 合 計 | AM169: =SUM(AM165:AM168) -> 0 | AO169: =AM151+AM157+AM163+AM169 -> 0
AH170: =A170 -> 0 | AI170: 日数(日) | AJ170: 勤務時間(h) | AK170: 早退（h） | AL170: 合計(h) | AM170: 金額(円)
A171: 残業 | AG171: =SUM(B171:AF171) -> 0 | AH171: 出勤 | AI171: =COUNTIF(B170:AF170,"出") -> 0 | AJ171: =AI171*7.8 -> 0 | AK171: =AG172 -> 0 | AL171: =AJ171-AK171 -> 0 | AM171: =ROUNDDOWN(AL171*請求書・納品書!$M$11,) -> 0
A172: 遅・早(出) | AG172: =SUM(B172:AF172) -> 0 | AH172: 残業 | AL172: =AG171 -> 0 | AM172: =ROUNDDOWN(AL172*請求書・納品書!$M$12,) -> 0
A173: 遅・早(公) | AG173: =SUM(B173:AF173) -> 0 | AH173: 公出 | AI173: =COUNTIF(B170:AF170,"公") -> 0 | AJ173: =AI173*7.8 -> 0 | AK173: =AG173 -> 0 | AL173: =AJ173-AK173 -> 0 | AM173: =ROUNDDOWN(AL173*請求書・納品書!$M$13,) -> 0
A174: 連続 | AG174: =SUM(B174:AF174) -> 0 | AH174: 連続 | AL174: =AG174 -> 0 | AM174: =AL174*請求書・納品書!$M$14 -> 0
AL175: 合 計 | AM175: =SUM(AM171:AM174) -> 0
AH176: =A176 -> 0 | AI176: 日数(日) | AJ176: 勤務時間(h) | AK176: 早退（h） | AL176: 合計(h) | AM176: 金額(円)
A177: 残業 | AG177: =SUM(B177:AF177) -> 0 | AH177: 出勤 | AI177: =COUNTIF(B176:AF176,"出") -> 0 | AJ177: =AI177*7.8 -> 0 | AK177: =AG178 -> 0 | AL177: =AJ177-AK177 -> 0 | AM177: =ROUNDDOWN(AL177*請求書・納品書!$M$11,) -> 0
A178: 遅・早(出) | AG178: =SUM(B178:AF178) -> 0 | AH178: 残業 | AL178: =AG177 -> 0 | AM178: =ROUNDDOWN(AL178*請求書・納品書!$M$12,) -> 0
A179: 遅・早(公) | AG179: =SUM(B179:AF179) -> 0 | AH179: 公出 | AI179: =COUNTIF(B176:AF176,"公") -> 0 | AJ179: =AI179*7.8 -> 0 | AK179: =AG179 -> 0 | AL179: =AJ179-AK179 -> 0 | AM179: =ROUNDDOWN(AL179*請求書・納品書!$M$13,) -> 0
A180: 連続 | AG180: =SUM(B180:AF180) -> 0 | AH180: 連続 | AL180: =AG180 -> 0 | AM180: =AL180*請求書・納品書!$M$14 -> 0
AL181: 合 計 | AM181: =SUM(AM177:AM180) -> 0
AH182: =A182 -> 0 | AI182: 日数(日) | AJ182: 勤務時間(h) | AK182: 早退（h） | AL182: 合計(h) | AM182: 金額(円)
A183: 残業 | AG183: =SUM(B183:AF183) -> 0 | AH183: 出勤 | AI183: =COUNTIF(B182:AF182,"出") -> 0 | AJ183: =AI183*7.8 -> 0 | AK183: =AG184 -> 0 | AL183: =AJ183-AK183 -> 0 | AM183: =ROUNDDOWN(AL183*請求書・納品書!$M$11,) -> 0
A184: 遅・早(出) | AG184: =SUM(B184:AF184) -> 0 | AH184: 残業 | AL184: =AG183 -> 0 | AM184: =ROUNDDOWN(AL184*請求書・納品書!$M$12,) -> 0
A185: 遅・早(公) | AG185: =SUM(B185:AF185) -> 0 | AH185: 公出 | AI185: =COUNTIF(B182:AF182,"公") -> 0 | AJ185: =AI185*7.8 -> 0 | AK185: =AG185 -> 0 | AL185: =AJ185-AK185 -> 0 | AM185: =ROUNDDOWN(AL185*請求書・納品書!$M$13,) -> 0
A186: 連続 | AG186: =SUM(B186:AF186) -> 0 | AH186: 連続 | AL186: =AG186 -> 0 | AM186: =AL186*請求書・納品書!$M$14 -> 0
AL187: 合 計 | AM187: =SUM(AM183:AM186) -> 0
AH188: =A188 -> 0 | AI188: 日数(日) | AJ188: 勤務時間(h) | AK188: 早退（h） | AL188: 合計(h) | AM188: 金額(円)
A189: 残業 | AG189: =SUM(B189:AF189) -> 0 | AH189: 出勤 | AI189: =COUNTIF(B188:AF188,"出") -> 0 | AJ189: =AI189*7.8 -> 0 | AK189: =AG190 -> 0 | AL189: =AJ189-AK189 -> 0 | AM189: =ROUNDDOWN(AL189*請求書・納品書!$M$11,) -> 0
A190: 遅・早(出) | AG190: =SUM(B190:AF190) -> 0 | AH190: 残業 | AL190: =AG189 -> 0 | AM190: =ROUNDDOWN(AL190*請求書・納品書!$M$12,) -> 0
A191: 遅・早(公) | AG191: =SUM(B191:AF191) -> 0 | AH191: 公出 | AI191: =COUNTIF(B188:AF188,"公") -> 0 | AJ191: =AI191*7.8 -> 0 | AK191: =AG191 -> 0 | AL191: =AJ191-AK191 -> 0 | AM191: =ROUNDDOWN(AL191*請求書・納品書!$M$13,) -> 0
A192: 連続 | AG192: =SUM(B192:AF192) -> 0 | AH192: 連続 | AL192: =AG192 -> 0 | AM192: =AL192*請求書・納品書!$M$14 -> 0
AL193: 合 計 | AM193: =SUM(AM189:AM192) -> 0 | AO193: =AM175+AM181+AM187+AM193 -> 0

Sheet 10
A1: ='4'!A1 -> 2010 | B1: 1 | C1: 2 | D1: 3 | E1: 4 | F1: 5 | G1: 6 | H1: 7 | I1: 8 | J1: 9 | K1: 10 | L1: 11 | M1: 12 | N1: 13 | O1: 14 | P1: 15 | Q1: 16 | R1: 17 | S1: 18 | T1: 19 | U1: 20 | V1: 21 | W1: 22 | X1: 23 | Y1: 24 | Z1: 25 | AA1: 26 | AB1: 27 | AC1: 28 | AD1: 29 | AE1: 30 | AF1: 31 | AG1: 計 | AH1: =A1&"年"&MID(CELL("filename",$A$1),FIND("]",CELL("filename",$A$1))+1,31) &"月" -> 2010年10月
AH2: =A2 -> 0 | AI2: 日数(日) | AJ2: 勤務時間(h) | AK2: 早退（h） | AL2: 合計(h) | AM2: 金額(円) | AN2: 出 | AO2: 合計 | AP2: =SUM(AM:AM)/2 -> 0
A3: 残業 | AG3: =SUM(B3:AF3) -> 0 | AH3: 出勤 | AI3: =COUNTIF(B2:AF2,"出") -> 0 | AJ3: =AI3*7.8 -> 0 | AK3: =AG4 -> 0 | AL3: =AJ3-AK3 -> 0 | AM3: =ROUNDDOWN(AL3*請求書・納品書!$M$11,) -> 0 | AN3: 公 | AO3: 人数 | AP3: =COUNTA(AH:AH)-COUNTIF(AH:AH,0)-32*4-1 -> 0
A4: 遅・早(出) | AG4: =SUM(B4:AF4) -> 0 | AH4: 残業 | AL4: =AG3 -> 0 | AM4: =ROUNDDOWN(AL4*請求書・納品書!$M$12,) -> 0 | AN4: 欠 | AO4: 管理費 | AP4: =(AP3-AP9)*19400 -> 0
A5: 遅・早(公) | AG5: =SUM(B5:AF5) -> 0 | AH5: 公出 | AI5: =COUNTIF(B2:AF2,"公") -> 0 | AJ5: =AI5*7.8 -> 0 | AK5: =AG5 -> 0 | AL5: =AJ5-AK5 -> 0 | AM5: =ROUNDDOWN(AL5*請求書・納品書!$M$13,) -> 0 | AN5: 有 | AO5: 小計 | AP5: =AP2+AP4 -> 0
A6: 連続 | AG6: =SUM(B6:AF6) -> 0 | AH6: 連続 | AL6: =AG6 -> 0 | AM6: =AL6*請求書・納品書!$M$14 -> 0 | AN6: 半 | AO6: 消費税 | AP6: =ROUNDDOWN(AP5*0.05,) -> 0
AL7: 合 計 | AM7: =SUM(AM3:AM6) -> 0 | AO7: 総合計 | AP7: =AP5+AP6 -> 0
AH8: =A8 -> 0 | AI8: 日数(日) | AJ8: 勤務時間(h) | AK8: 早退（h） | AL8: 合計(h) | AM8: 金額(円)
A9: 残業 | AG9: =SUM(B9:AF9) -> 0 | AH9: 出勤 | AI9: =COUNTIF(B8:AF8,"出") -> 0 | AJ9: =AI9*7.8 -> 0 | AK9: =AG10 -> 0 | AL9: =AJ9-AK9 -> 0 | AM9: =ROUNDDOWN(AL9*請求書・納品書!$M$11,) -> 0 | AO9: 管理費に入れない人数
A10: 遅・早(出) | AG10: =SUM(B10:AF10) -> 0 | AH10: 残業 | AL10: =AG9 -> 0 | AM10: =ROUNDDOWN(AL10*請求書・納品書!$M$12,) -> 0
A11: 遅・早(公) | AG11: =SUM(B11:AF11) -> 0 | AH11: 公出 | AI11: =COUNTIF(B8:AF8,"公") -> 0 | AJ11: =AI11*7.8 -> 0 | AK11: =AG11 -> 0 | AL11: =AJ11-AK11 -> 0 | AM11: =ROUNDDOWN(AL11*請求書・納品書!$M$13,) -> 0
A12: 連続 | AG12: =SUM(B12:AF12) -> 0 | AH12: 連続 | AL12: =AG12 -> 0 | AM12: =AL12*請求書・納品書!$M$14 -> 0
AL13: 合 計 | AM13: =SUM(AM9:AM12) -> 0
AH14: =A14 -> 0 | AI14: 日数(日) | AJ14: 勤務時間(h) | AK14: 早退（h） | AL14: 合計(h) | AM14: 金額(円)
A15: 残業 | AG15: =SUM(B15:AF15) -> 0 | AH15: 出勤 | AI15: =COUNTIF(B14:AF14,"出") -> 0 | AJ15: =AI15*7.8 -> 0 | AK15: =AG16 -> 0 | AL15: =AJ15-AK15 -> 0 | AM15: =ROUNDDOWN(AL15*請求書・納品書!$M$11,) -> 0
A16: 遅・早(出) | AG16: =SUM(B16:AF16) -> 0 | AH16: 残業 | AL16: =AG15 -> 0 | AM16: =ROUNDDOWN(AL16*請求書・納品書!$M$12,) -> 0
A17: 遅・早(公) | AG17: =SUM(B17:AF17) -> 0 | AH17: 公出 | AI17: =COUNTIF(B14:AF14,"公") -> 0 | AJ17: =AI17*7.8 -> 0 | AK17: =AG17 -> 0 | AL17: =AJ17-AK17 -> 0 | AM17: =ROUNDDOWN(AL17*請求書・納品書!$M$13,) -> 0
A18: 連続 | AG18: =SUM(B18:AF18) -> 0 | AH18: 連続 | AL18: =AG18 -> 0 | AM18: =AL18*請求書・納品書!$M$14 -> 0
AL19: 合 計 | AM19: =SUM(AM15:AM18) -> 0
AH20: =A20 -> 0 | AI20: 日数(日) | AJ20: 勤務時間(h) | AK20: 早退（h） | AL20: 合計(h) | AM20: 金額(円)
A21: 残業 | AG21: =SUM(B21:AF21) -> 0 | AH21: 出勤 | AI21: =COUNTIF(B20:AF20,"出") -> 0 | AJ21: =AI21*7.8 -> 0 | AK21: =AG22 -> 0 | AL21: =AJ21-AK21 -> 0 | AM21: =ROUNDDOWN(AL21*請求書・納品書!$M$11,) -> 0
A22: 遅・早(出) | AG22: =SUM(B22:AF22) -> 0 | AH22: 残業 | AL22: =AG21 -> 0 | AM22: =ROUNDDOWN(AL22*請求書・納品書!$M$12,) -> 0
A23: 遅・早(公) | AG23: =SUM(B23:AF23) -> 0 | AH23: 公出 | AI23: =COUNTIF(B20:AF20,"公") -> 0 | AJ23: =AI23*7.8 -> 0 | AK23: =AG23 -> 0 | AL23: =AJ23-AK23 -> 0 | AM23: =ROUNDDOWN(AL23*請求書・納品書!$M$13,) -> 0
A24: 連続 | AG24: =SUM(B24:AF24) -> 0 | AH24: 連続 | AL24: =AG24 -> 0 | AM24: =AL24*請求書・納品書!$M$14 -> 0
AL25: 合 計 | AM25: =SUM(AM21:AM24) -> 0 | AO25: =AM7+AM13+AM19+AM25 -> 0
AH26: =A26 -> 0 | AI26: 日数(日) | AJ26: 勤務時間(h) | AK26: 早退（h） | AL26: 合計(h) | AM26: 金額(円)
A27: 残業 | AG27: =SUM(B27:AF27) -> 0 | AH27: 出勤 | AI27: =COUNTIF(B26:AF26,"出") -> 0 | AJ27: =AI27*7.8 -> 0 | AK27: =AG28 -> 0 | AL27: =AJ27-AK27 -> 0 | AM27: =ROUNDDOWN(AL27*請求書・納品書!$M$11,) -> 0
A28: 遅・早(出) | AG28: =SUM(B28:AF28) -> 0 | AH28: 残業 | AL28: =AG27 -> 0 | AM28: =ROUNDDOWN(AL28*請求書・納品書!$M$12,) -> 0
A29: 遅・早(公) | AG29: =SUM(B29:AF29) -> 0 | AH29: 公出 | AI29: =COUNTIF(B26:AF26,"公") -> 0 | AJ29: =AI29*7.8 -> 0 | AK29: =AG29 -> 0 | AL29: =AJ29-AK29 -> 0 | AM29: =ROUNDDOWN(AL29*請求書・納品書!$M$13,) -> 0
A30: 連続 | AG30: =SUM(B30:AF30) -> 0 | AH30: 連続 | AL30: =AG30 -> 0 | AM30: =AL30*請求書・納品書!$M$14 -> 0
AL31: 合 計 | AM31: =SUM(AM27:AM30) -> 0
AH32: =A32 -> 0 | AI32: 日数(日) | AJ32: 勤務時間(h) | AK32: 早退（h） | AL32: 合計(h) | AM32: 金額(円)
A33: 残業 | AG33: =SUM(B33:AF33) -> 0 | AH33: 出勤 | AI33: =COUNTIF(B32:AF32,"出") -> 0 | AJ33: =AI33*7.8 -> 0 | AK33: =AG34 -> 0 | AL33: =AJ33-AK33 -> 0 | AM33: =ROUNDDOWN(AL33*請求書・納品書!$M$11,) -> 0
A34: 遅・早(出) | AG34: =SUM(B34:AF34) -> 0 | AH34: 残業 | AL34: =AG33 -> 0 | AM34: =ROUNDDOWN(AL34*請求書・納品書!$M$12,) -> 0
A35: 遅・早(公) | AG35: =SUM(B35:AF35) -> 0 | AH35: 公出 | AI35: =COUNTIF(B32:AF32,"公") -> 0 | AJ35: =AI35*7.8 -> 0 | AK35: =AG35 -> 0 | AL35: =AJ35-AK35 -> 0 | AM35: =ROUNDDOWN(AL35*請求書・納品書!$M$13,) -> 0
A36: 連続 | AG36: =SUM(B36:AF36) -> 0 | AH36: 連続 | AL36: =AG36 -> 0 | AM36: =AL36*請求書・納品書!$M$14 -> 0
AL37: 合 計 | AM37: =SUM(AM33:AM36) -> 0
AH38: =A38 -> 0 | AI38: 日数(日) | AJ38: 勤務時間(h) | AK38: 早退（h） | AL38: 合計(h) | AM38: 金額(円)
A39: 残業 | AG39: =SUM(B39:AF39) -> 0 | AH39: 出勤 | AI39: =COUNTIF(B38:AF38,"出") -> 0 | AJ39: =AI39*7.8 -> 0 | AK39: =AG40 -> 0 | AL39: =AJ39-AK39 -> 0 | AM39: =ROUNDDOWN(AL39*請求書・納品書!$M$11,) -> 0
A40: 遅・早(出) | AG40: =SUM(B40:AF40) -> 0 | AH40: 残業 | AL40: =AG39 -> 0 | AM40: =ROUNDDOWN(AL40*請求書・納品書!$M$12,) -> 0
A41: 遅・早(公) | AG41: =SUM(B41:AF41) -> 0 | AH41: 公出 | AI41: =COUNTIF(B38:AF38,"公") -> 0 | AJ41: =AI41*7.8 -> 0 | AK41: =AG41 -> 0 | AL41: =AJ41-AK41 -> 0 | AM41: =ROUNDDOWN(AL41*請求書・納品書!$M$13,) -> 0
A42: 連続 | AG42: =SUM(B42:AF42) -> 0 | AH42: 連続 | AL42: =AG42 -> 0 | AM42: =AL42*請求書・納品書!$M$14 -> 0
AL43: 合 計 | AM43: =SUM(AM39:AM42) -> 0
AH44: =A44 -> 0 | AI44: 日数(日) | AJ44: 勤務時間(h) | AK44: 早退（h） | AL44: 合計(h) | AM44: 金額(円)
A45: 残業 | AG45: =SUM(B45:AF45) -> 0 | AH45: 出勤 | AI45: =COUNTIF(B44:AF44,"出") -> 0 | AJ45: =AI45*7.8 -> 0 | AK45: =AG46 -> 0 | AL45: =AJ45-AK45 -> 0 | AM45: =ROUNDDOWN(AL45*請求書・納品書!$M$11,) -> 0
A46: 遅・早(出) | AG46: =SUM(B46:AF46) -> 0 | AH46: 残業 | AL46: =AG45 -> 0 | AM46: =ROUNDDOWN(AL46*請求書・納品書!$M$12,) -> 0
A47: 遅・早(公) | AG47: =SUM(B47:AF47) -> 0 | AH47: 公出 | AI47: =COUNTIF(B44:AF44,"公") -> 0 | AJ47: =AI47*7.8 -> 0 | AK47: =AG47 -> 0 | AL47: =AJ47-AK47 -> 0 | AM47: =ROUNDDOWN(AL47*請求書・納品書!$M$13,) -> 0
A48: 連続 | AG48: =SUM(B48:AF48) -> 0 | AH48: 連続 | AL48: =AG48 -> 0 | AM48: =AL48*請求書・納品書!$M$14 -> 0
AL49: 合 計 | AM49: =SUM(AM45:AM48) -> 0 | AO49: =AM31+AM37+AM43+AM49 -> 0
AH50: =A50 -> 0 | AI50: 日数(日) | AJ50: 勤務時間(h) | AK50: 早退（h） | AL50: 合計(h) | AM50: 金額(円)
A51: 残業 | AG51: =SUM(B51:AF51) -> 0 | AH51: 出勤 | AI51: =COUNTIF(B50:AF50,"出") -> 0 | AJ51: =AI51*7.8 -> 0 | AK51: =AG52 -> 0 | AL51: =AJ51-AK51 -> 0 | AM51: =ROUNDDOWN(AL51*請求書・納品書!$M$11,) -> 0
A52: 遅・早(出) | AG52: =SUM(B52:AF52) -> 0 | AH52: 残業 | AL52: =AG51 -> 0 | AM52: =ROUNDDOWN(AL52*請求書・納品書!$M$12,) -> 0
A53: 遅・早(公) | AG53: =SUM(B53:AF53) -> 0 | AH53: 公出 | AI53: =COUNTIF(B50:AF50,"公") -> 0 | AJ53: =AI53*7.8 -> 0 | AK53: =AG53 -> 0 | AL53: =AJ53-AK53 -> 0 | AM53: =ROUNDDOWN(AL53*請求書・納品書!$M$13,) -> 0
A54: 連続 | AG54: =SUM(B54:AF54) -> 0 | AH54: 連続 | AL54: =AG54 -> 0 | AM54: =AL54*請求書・納品書!$M$14 -> 0
AL55: 合 計 | AM55: =SUM(AM51:AM54) -> 0
AH56: =A56 -> 0 | AI56: 日数(日) | AJ56: 勤務時間(h) | AK56: 早退（h） | AL56: 合計(h) | AM56: 金額(円)
A57: 残業 | AG57: =SUM(B57:AF57) -> 0 | AH57: 出勤 | AI57: =COUNTIF(B56:AF56,"出") -> 0 | AJ57: =AI57*7.8 -> 0 | AK57: =AG58 -> 0 | AL57: =AJ57-AK57 -> 0 | AM57: =ROUNDDOWN(AL57*請求書・納品書!$M$11,) -> 0
A58: 遅・早(出) | AG58: =SUM(B58:AF58) -> 0 | AH58: 残業 | AL58: =AG57 -> 0 | AM58: =ROUNDDOWN(AL58*請求書・納品書!$M$12,) -> 0
A59: 遅・早(公) | AG59: =SUM(B59:AF59) -> 0 | AH59: 公出 | AI59: =COUNTIF(B56:AF56,"公") -> 0 | AJ59: =AI59*7.8 -> 0 | AK59: =AG59 -> 0 | AL59: =AJ59-AK59 -> 0 | AM59: =ROUNDDOWN(AL59*請求書・納品書!$M$13,) -> 0
A60: 連続 | AG60: =SUM(B60:AF60) -> 0 | AH60: 連続 | AL60: =AG60 -> 0 | AM60: =AL60*請求書・納品書!$M$14 -> 0
AL61: 合 計 | AM61: =SUM(AM57:AM60) -> 0
AH62: =A62 -> 0 | AI62: 日数(日) | AJ62: 勤務時間(h) | AK62: 早退（h） | AL62: 合計(h) | AM62: 金額(円)
A63: 残業 | AG63: =SUM(B63:AF63) -> 0 | AH63: 出勤 | AI63: =COUNTIF(B62:AF62,"出") -> 0 | AJ63: =AI63*7.8 -> 0 | AK63: =AG64 -> 0 | AL63: =AJ63-AK63 -> 0 | AM63: =ROUNDDOWN(AL63*請求書・納品書!$M$11,) -> 0
A64: 遅・早(出) | AG64: =SUM(B64:AF64) -> 0 | AH64: 残業 | AL64: =AG63 -> 0 | AM64: =ROUNDDOWN(AL64*請求書・納品書!$M$12,) -> 0
A65: 遅・早(公) | AG65: =SUM(B65:AF65) -> 0 | AH65: 公出 | AI65: =COUNTIF(B62:AF62,"公") -> 0 | AJ65: =AI65*7.8 -> 0 | AK65: =AG65 -> 0 | AL65: =AJ65-AK65 -> 0 | AM65: =ROUNDDOWN(AL65*請求書・納品書!$M$13,) -> 0
A66: 連続 | AG66: =SUM(B66:AF66) -> 0 | AH66: 連続 | AL66: =AG66 -> 0 | AM66: =AL66*請求書・納品書!$M$14 -> 0
AL67: 合 計 | AM67: =SUM(AM63:AM66) -> 0
AH68: =A68 -> 0 | AI68: 日数(日) | AJ68: 勤務時間(h) | AK68: 早退（h） | AL68: 合計(h) | AM68: 金額(円)
A69: 残業 | AG69: =SUM(B69:AF69) -> 0 | AH69: 出勤 | AI69: =COUNTIF(B68:AF68,"出") -> 0 | AJ69: =AI69*7.8 -> 0 | AK69: =AG70 -> 0 | AL69: =AJ69-AK69 -> 0 | AM69: =ROUNDDOWN(AL69*請求書・納品書!$M$11,) -> 0
A70: 遅・早(出) | AG70: =SUM(B70:AF70) -> 0 | AH70: 残業 | AL70: =AG69 -> 0 | AM70: =ROUNDDOWN(AL70*請求書・納品書!$M$12,) -> 0
A71: 遅・早(公) | AG71: =SUM(B71:AF71) -> 0 | AH71: 公出 | AI71: =COUNTIF(B68:AF68,"公") -> 0 | AJ71: =AI71*7.8 -> 0 | AK71: =AG71 -> 0 | AL71: =AJ71-AK71 -> 0 | AM71: =ROUNDDOWN(AL71*請求書・納品書!$M$13,) -> 0
A72: 連続 | AG72: =SUM(B72:AF72) -> 0 | AH72: 連続 | AL72: =AG72 -> 0 | AM72: =AL72*請求書・納品書!$M$14 -> 0
AL73: 合 計 | AM73: =SUM(AM69:AM72) -> 0 | AO73: =AM55+AM61+AM67+AM73 -> 0
AH74: =A74 -> 0 | AI74: 日数(日) | AJ74: 勤務時間(h) | AK74: 早退（h） | AL74: 合計(h) | AM74: 金額(円)
A75: 残業 | AG75: =SUM(B75:AF75) -> 0 | AH75: 出勤 | AI75: =COUNTIF(B74:AF74,"出") -> 0 | AJ75: =AI75*7.8 -> 0 | AK75: =AG76 -> 0 | AL75: =AJ75-AK75 -> 0 | AM75: =ROUNDDOWN(AL75*請求書・納品書!$M$11,) -> 0
A76: 遅・早(出) | AG76: =SUM(B76:AF76) -> 0 | AH76: 残業 | AL76: =AG75 -> 0 | AM76: =ROUNDDOWN(AL76*請求書・納品書!$M$12,) -> 0
A77: 遅・早(公) | AG77: =SUM(B77:AF77) -> 0 | AH77: 公出 | AI77: =COUNTIF(B74:AF74,"公") -> 0 | AJ77: =AI77*7.8 -> 0 | AK77: =AG77 -> 0 | AL77: =AJ77-AK77 -> 0 | AM77: =ROUNDDOWN(AL77*請求書・納品書!$M$13,) -> 0
A78: 連続 | AG78: =SUM(B78:AF78) -> 0 | AH78: 連続 | AL78: =AG78 -> 0 | AM78: =AL78*請求書・納品書!$M$14 -> 0
AL79: 合 計 | AM79: =SUM(AM75:AM78) -> 0
AH80: =A80 -> 0 | AI80: 日数(日) | AJ80: 勤務時間(h) | AK80: 早退（h） | AL80: 合計(h) | AM80: 金額(円)
A81: 残業 | AG81: =SUM(B81:AF81) -> 0 | AH81: 出勤 | AI81: =COUNTIF(B80:AF80,"出") -> 0 | AJ81: =AI81*7.8 -> 0 | AK81: =AG82 -> 0 | AL81: =AJ81-AK81 -> 0 | AM81: =ROUNDDOWN(AL81*請求書・納品書!$M$11,) -> 0
A82: 遅・早(出) | AG82: =SUM(B82:AF82) -> 0 | AH82: 残業 | AL82: =AG81 -> 0 | AM82: =ROUNDDOWN(AL82*請求書・納品書!$M$12,) -> 0
A83: 遅・早(公) | AG83: =SUM(B83:AF83) -> 0 | AH83: 公出 | AI83: =COUNTIF(B80:AF80,"公") -> 0 | AJ83: =AI83*7.8 -> 0 | AK83: =AG83 -> 0 | AL83: =AJ83-AK83 -> 0 | AM83: =ROUNDDOWN(AL83*請求書・納品書!$M$13,) -> 0
A84: 連続 | AG84: =SUM(B84:AF84) -> 0 | AH84: 連続 | AL84: =AG84 -> 0 | AM84: =AL84*請求書・納品書!$M$14 -> 0
AL85: 合 計 | AM85: =SUM(AM81:AM84) -> 0
AH86: =A86 -> 0 | AI86: 日数(日) | AJ86: 勤務時間(h) | AK86: 早退（h） | AL86: 合計(h) | AM86: 金額(円)
A87: 残業 | AG87: =SUM(B87:AF87) -> 0 | AH87: 出勤 | AI87: =COUNTIF(B86:AF86,"出") -> 0 | AJ87: =AI87*7.8 -> 0 | AK87: =AG88 -> 0 | AL87: =AJ87-AK87 -> 0 | AM87: =ROUNDDOWN(AL87*請求書・納品書!$M$11,) -> 0
A88: 遅・早(出) | AG88: =SUM(B88:AF88) -> 0 | AH88: 残業 | AL88: =AG87 -> 0 | AM88: =ROUNDDOWN(AL88*請求書・納品書!$M$12,) -> 0
A89: 遅・早(公) | AG89: =SUM(B89:AF89) -> 0 | AH89: 公出 | AI89: =COUNTIF(B86:AF86,"公") -> 0 | AJ89: =AI89*7.8 -> 0 | AK89: =AG89 -> 0 | AL89: =AJ89-AK89 -> 0 | AM89: =ROUNDDOWN(AL89*請求書・納品書!$M$13,) -> 0
A90: 連続 | AG90: =SUM(B90:AF90) -> 0 | AH90: 連続 | AL90: =AG90 -> 0 | AM90: =AL90*請求書・納品書!$M$14 -> 0
AL91: 合 計 | AM91: =SUM(AM87:AM90) -> 0
AH92: =A92 -> 0 | AI92: 日数(日) | AJ92: 勤務時間(h) | AK92: 早退（h） | AL92: 合計(h) | AM92: 金額(円)
A93: 残業 | AG93: =SUM(B93:AF93) -> 0 | AH93: 出勤 | AI93: =COUNTIF(B92:AF92,"出") -> 0 | AJ93: =AI93*7.8 -> 0 | AK93: =AG94 -> 0 | AL93: =AJ93-AK93 -> 0 | AM93: =ROUNDDOWN(AL93*請求書・納品書!$M$11,) -> 0
A94: 遅・早(出) | AG94: =SUM(B94:AF94) -> 0 | AH94: 残業 | AL94: =AG93 -> 0 | AM94: =ROUNDDOWN(AL94*請求書・納品書!$M$12,) -> 0
A95: 遅・早(公) | AG95: =SUM(B95:AF95) -> 0 | AH95: 公出 | AI95: =COUNTIF(B92:AF92,"公") -> 0 | AJ95: =AI95*7.8 -> 0 | AK95: =AG95 -> 0 | AL95: =AJ95-AK95 -> 0 | AM95: =ROUNDDOWN(AL95*請求書・納品書!$M$13,) -> 0
A96: 連続 | AG96: =SUM(B96:AF96) -> 0 | AH96: 連続 | AL96: =AG96 -> 0 | AM96: =AL96*請求書・納品書!$M$14 -> 0
AL97: 合 計 | AM97: =SUM(AM93:AM96) -> 0 | AO97: =AM79+AM85+AM91+AM97 -> 0
AH98: =A98 -> 0 | AI98: 日数(日) | AJ98: 勤務時間(h) | AK98: 早退（h） | AL98: 合計(h) | AM98: 金額(円)
A99: 残業 | AG99: =SUM(B99:AF99) -> 0 | AH99: 出勤 | AI99: =COUNTIF(B98:AF98,"出") -> 0 | AJ99: =AI99*7.8 -> 0 | AK99: =AG100 -> 0 | AL99: =AJ99-AK99 -> 0 | AM99: =ROUNDDOWN(AL99*請求書・納品書!$M$11,) -> 0
A100: 遅・早(出) | AG100: =SUM(B100:AF100) -> 0 | AH100: 残業 | AL100: =AG99 -> 0 | AM100: =ROUNDDOWN(AL100*請求書・納品書!$M$12,) -> 0
A101: 遅・早(公) | AG101: =SUM(B101:AF101) -> 0 | AH101: 公出 | AI101: =COUNTIF(B98:AF98,"公") -> 0 | AJ101: =AI101*7.8 -> 0 | AK101: =AG101 -> 0 | AL101: =AJ101-AK101 -> 0 | AM101: =ROUNDDOWN(AL101*請求書・納品書!$M$13,) -> 0
A102: 連続 | AG102: =SUM(B102:AF102) -> 0 | AH102: 連続 | AL102: =AG102 -> 0 | AM102: =AL102*請求書・納品書!$M$14 -> 0
AL103: 合 計 | AM103: =SUM(AM99:AM102) -> 0
AH104: =A104 -> 0 | AI104: 日数(日) | AJ104: 勤務時間(h) | AK104: 早退（h） | AL104: 合計(h) | AM104: 金額(円)
A105: 残業 | AG105: =SUM(B105:AF105) -> 0 | AH105: 出勤 | AI105: =COUNTIF(B104:AF104,"出") -> 0 | AJ105: =AI105*7.8 -> 0 | AK105: =AG106 -> 0 | AL105: =AJ105-AK105 -> 0 | AM105: =ROUNDDOWN(AL105*請求書・納品書!$M$11,) -> 0
A106: 遅・早(出) | AG106: =SUM(B106:AF106) -> 0 | AH106: 残業 | AL106: =AG105 -> 0 | AM106: =ROUNDDOWN(AL106*請求書・納品書!$M$12,) -> 0
A107: 遅・早(公) | AG107: =SUM(B107:AF107) -> 0 | AH107: 公出 | AI107: =COUNTIF(B104:AF104,"公") -> 0 | AJ107: =AI107*7.8 -> 0 | AK107: =AG107 -> 0 | AL107: =AJ107-AK107 -> 0 | AM107: =ROUNDDOWN(AL107*請求書・納品書!$M$13,) -> 0
A108: 連続 | AG108: =SUM(B108:AF108) -> 0 | AH108: 連続 | AL108: =AG108 -> 0 | AM108: =AL108*請求書・納品書!$M$14 -> 0
AL109: 合 計 | AM109: =SUM(AM105:AM108) -> 0
AH110: =A110 -> 0 | AI110: 日数(日) | AJ110: 勤務時間(h) | AK110: 早退（h） | AL110: 合計(h) | AM110: 金額(円)
A111: 残業 | AG111: =SUM(B111:AF111) -> 0 | AH111: 出勤 | AI111: =COUNTIF(B110:AF110,"出") -> 0 | AJ111: =AI111*7.8 -> 0 | AK111: =AG112 -> 0 | AL111: =AJ111-AK111 -> 0 | AM111: =ROUNDDOWN(AL111*請求書・納品書!$M$11,) -> 0
A112: 遅・早(出) | AG112: =SUM(B112:AF112) -> 0 | AH112: 残業 | AL112: =AG111 -> 0 | AM112: =ROUNDDOWN(AL112*請求書・納品書!$M$12,) -> 0
A113: 遅・早(公) | AG113: =SUM(B113:AF113) -> 0 | AH113: 公出 | AI113: =COUNTIF(B110:AF110,"公") -> 0 | AJ113: =AI113*7.8 -> 0 | AK113: =AG113 -> 0 | AL113: =AJ113-AK113 -> 0 | AM113: =ROUNDDOWN(AL113*請求書・納品書!$M$13,) -> 0
A114: 連続 | AG114: =SUM(B114:AF114) -> 0 | AH114: 連続 | AL114: =AG114 -> 0 | AM114: =AL114*請求書・納品書!$M$14 -> 0
AL115: 合 計 | AM115: =SUM(AM111:AM114) -> 0
AH116: =A116 -> 0 | AI116: 日数(日) | AJ116: 勤務時間(h) | AK116: 早退（h） | AL116: 合計(h) | AM116: 金額(円)
A117: 残業 | AG117: =SUM(B117:AF117) -> 0 | AH117: 出勤 | AI117: =COUNTIF(B116:AF116,"出") -> 0 | AJ117: =AI117*7.8 -> 0 | AK117: =AG118 -> 0 | AL117: =AJ117-AK117 -> 0 | AM117: =ROUNDDOWN(AL117*請求書・納品書!$M$11,) -> 0
A118: 遅・早(出) | AG118: =SUM(B118:AF118) -> 0 | AH118: 残業 | AL118: =AG117 -> 0 | AM118: =ROUNDDOWN(AL118*請求書・納品書!$M$12,) -> 0
A119: 遅・早(公) | AG119: =SUM(B119:AF119) -> 0 | AH119: 公出 | AI119: =COUNTIF(B116:AF116,"公") -> 0 | AJ119: =AI119*7.8 -> 0 | AK119: =AG119 -> 0 | AL119: =AJ119-AK119 -> 0 | AM119: =ROUNDDOWN(AL119*請求書・納品書!$M$13,) -> 0
A120: 連続 | AG120: =SUM(B120:AF120) -> 0 | AH120: 連続 | AL120: =AG120 -> 0 | AM120: =AL120*請求書・納品書!$M$14 -> 0
AL121: 合 計 | AM121: =SUM(AM117:AM120) -> 0 | AO121: =AM103+AM109+AM115+AM121 -> 0
AH122: =A122 -> 0 | AI122: 日数(日) | AJ122: 勤務時間(h) | AK122: 早退（h） | AL122: 合計(h) | AM122: 金額(円)
A123: 残業 | AG123: =SUM(B123:AF123) -> 0 | AH123: 出勤 | AI123: =COUNTIF(B122:AF122,"出") -> 0 | AJ123: =AI123*7.8 -> 0 | AK123: =AG124 -> 0 | AL123: =AJ123-AK123 -> 0 | AM123: =ROUNDDOWN(AL123*請求書・納品書!$M$11,) -> 0
A124: 遅・早(出) | AG124: =SUM(B124:AF124) -> 0 | AH124: 残業 | AL124: =AG123 -> 0 | AM124: =ROUNDDOWN(AL124*請求書・納品書!$M$12,) -> 0
A125: 遅・早(公) | AG125: =SUM(B125:AF125) -> 0 | AH125: 公出 | AI125: =COUNTIF(B122:AF122,"公") -> 0 | AJ125: =AI125*7.8 -> 0 | AK125: =AG125 -> 0 | AL125: =AJ125-AK125 -> 0 | AM125: =ROUNDDOWN(AL125*請求書・納品書!$M$13,) -> 0
A126: 連続 | AG126: =SUM(B126:AF126) -> 0 | AH126: 連続 | AL126: =AG126 -> 0 | AM126: =AL126*請求書・納品書!$M$14 -> 0
AL127: 合 計 | AM127: =SUM(AM123:AM126) -> 0
AH128: =A128 -> 0 | AI128: 日数(日) | AJ128: 勤務時間(h) | AK128: 早退（h） | AL128: 合計(h) | AM128: 金額(円)
A129: 残業 | AG129: =SUM(B129:AF129) -> 0 | AH129: 出勤 | AI129: =COUNTIF(B128:AF128,"出") -> 0 | AJ129: =AI129*7.8 -> 0 | AK129: =AG130 -> 0 | AL129: =AJ129-AK129 -> 0 | AM129: =ROUNDDOWN(AL129*請求書・納品書!$M$11,) -> 0
A130: 遅・早(出) | AG130: =SUM(B130:AF130) -> 0 | AH130: 残業 | AL130: =AG129 -> 0 | AM130: =ROUNDDOWN(AL130*請求書・納品書!$M$12,) -> 0
A131: 遅・早(公) | AG131: =SUM(B131:AF131) -> 0 | AH131: 公出 | AI131: =COUNTIF(B128:AF128,"公") -> 0 | AJ131: =AI131*7.8 -> 0 | AK131: =AG131 -> 0 | AL131: =AJ131-AK131 -> 0 | AM131: =ROUNDDOWN(AL131*請求書・納品書!$M$13,) -> 0
A132: 連続 | AG132: =SUM(B132:AF132) -> 0 | AH132: 連続 | AL132: =AG132 -> 0 | AM132: =AL132*請求書・納品書!$M$14 -> 0
AL133: 合 計 | AM133: =SUM(AM129:AM132) -> 0
AH134: =A134 -> 0 | AI134: 日数(日) | AJ134: 勤務時間(h) | AK134: 早退（h） | AL134: 合計(h) | AM134: 金額(円)
A135: 残業 | AG135: =SUM(B135:AF135) -> 0 | AH135: 出勤 | AI135: =COUNTIF(B134:AF134,"出") -> 0 | AJ135: =AI135*7.8 -> 0 | AK135: =AG136 -> 0 | AL135: =AJ135-AK135 -> 0 | AM135: =ROUNDDOWN(AL135*請求書・納品書!$M$11,) -> 0
A136: 遅・早(出) | AG136: =SUM(B136:AF136) -> 0 | AH136: 残業 | AL136: =AG135 -> 0 | AM136: =ROUNDDOWN(AL136*請求書・納品書!$M$12,) -> 0
A137: 遅・早(公) | AG137: =SUM(B137:AF137) -> 0 | AH137: 公出 | AI137: =COUNTIF(B134:AF134,"公") -> 0 | AJ137: =AI137*7.8 -> 0 | AK137: =AG137 -> 0 | AL137: =AJ137-AK137 -> 0 | AM137: =ROUNDDOWN(AL137*請求書・納品書!$M$13,) -> 0
A138: 連続 | AG138: =SUM(B138:AF138) -> 0 | AH138: 連続 | AL138: =AG138 -> 0 | AM138: =AL138*請求書・納品書!$M$14 -> 0
AL139: 合 計 | AM139: =SUM(AM135:AM138) -> 0
AH140: =A140 -> 0 | AI140: 日数(日) | AJ140: 勤務時間(h) | AK140: 早退（h） | AL140: 合計(h) | AM140: 金額(円)
A141: 残業 | AG141: =SUM(B141:AF141) -> 0 | AH141: 出勤 | AI141: =COUNTIF(B140:AF140,"出") -> 0 | AJ141: =AI141*7.8 -> 0 | AK141: =AG142 -> 0 | AL141: =AJ141-AK141 -> 0 | AM141: =ROUNDDOWN(AL141*請求書・納品書!$M$11,) -> 0
A142: 遅・早(出) | AG142: =SUM(B142:AF142) -> 0 | AH142: 残業 | AL142: =AG141 -> 0 | AM142: =ROUNDDOWN(AL142*請求書・納品書!$M$12,) -> 0
A143: 遅・早(公) | AG143: =SUM(B143:AF143) -> 0 | AH143: 公出 | AI143: =COUNTIF(B140:AF140,"公") -> 0 | AJ143: =AI143*7.8 -> 0 | AK143: =AG143 -> 0 | AL143: =AJ143-AK143 -> 0 | AM143: =ROUNDDOWN(AL143*請求書・納品書!$M$13,) -> 0
A144: 連続 | AG144: =SUM(B144:AF144) -> 0 | AH144: 連続 | AL144: =AG144 -> 0 | AM144: =AL144*請求書・納品書!$M$14 -> 0
AL145: 合 計 | AM145: =SUM(AM141:AM144) -> 0 | AO145: =AM127+AM133+AM139+AM145 -> 0
AH146: =A146 -> 0 | AI146: 日数(日) | AJ146: 勤務時間(h) | AK146: 早退（h） | AL146: 合計(h) | AM146: 金額(円)
A147: 残業 | AG147: =SUM(B147:AF147) -> 0 | AH147: 出勤 | AI147: =COUNTIF(B146:AF146,"出") -> 0 | AJ147: =AI147*7.8 -> 0 | AK147: =AG148 -> 0 | AL147: =AJ147-AK147 -> 0 | AM147: =ROUNDDOWN(AL147*請求書・納品書!$M$11,) -> 0
A148: 遅・早(出) | AG148: =SUM(B148:AF148) -> 0 | AH148: 残業 | AL148: =AG147 -> 0 | AM148: =ROUNDDOWN(AL148*請求書・納品書!$M$12,) -> 0
A149: 遅・早(公) | AG149: =SUM(B149:AF149) -> 0 | AH149: 公出 | AI149: =COUNTIF(B146:AF146,"公") -> 0 | AJ149: =AI149*7.8 -> 0 | AK149: =AG149 -> 0 | AL149: =AJ149-AK149 -> 0 | AM149: =ROUNDDOWN(AL149*請求書・納品書!$M$13,) -> 0
A150: 連続 | AG150: =SUM(B150:AF150) -> 0 | AH150: 連続 | AL150: =AG150 -> 0 | AM150: =AL150*請求書・納品書!$M$14 -> 0
AL151: 合 計 | AM151: =SUM(AM147:AM150) -> 0
AH152: =A152 -> 0 | AI152: 日数(日) | AJ152: 勤務時間(h) | AK152: 早退（h） | AL152: 合計(h) | AM152: 金額(円)
A153: 残業 | AG153: =SUM(B153:AF153) -> 0 | AH153: 出勤 | AI153: =COUNTIF(B152:AF152,"出") -> 0 | AJ153: =AI153*7.8 -> 0 | AK153: =AG154 -> 0 | AL153: =AJ153-AK153 -> 0 | AM153: =ROUNDDOWN(AL153*請求書・納品書!$M$11,) -> 0
A154: 遅・早(出) | AG154: =SUM(B154:AF154) -> 0 | AH154: 残業 | AL154: =AG153 -> 0 | AM154: =ROUNDDOWN(AL154*請求書・納品書!$M$12,) -> 0
A155: 遅・早(公) | AG155: =SUM(B155:AF155) -> 0 | AH155: 公出 | AI155: =COUNTIF(B152:AF152,"公") -> 0 | AJ155: =AI155*7.8 -> 0 | AK155: =AG155 -> 0 | AL155: =AJ155-AK155 -> 0 | AM155: =ROUNDDOWN(AL155*請求書・納品書!$M$13,) -> 0
A156: 連続 | AG156: =SUM(B156:AF156) -> 0 | AH156: 連続 | AL156: =AG156 -> 0 | AM156: =AL156*請求書・納品書!$M$14 -> 0
AL157: 合 計 | AM157: =SUM(AM153:AM156) -> 0
AH158: =A158 -> 0 | AI158: 日数(日) | AJ158: 勤務時間(h) | AK158: 早退（h） | AL158: 合計(h) | AM158: 金額(円)
A159: 残業 | AG159: =SUM(B159:AF159) -> 0 | AH159: 出勤 | AI159: =COUNTIF(B158:AF158,"出") -> 0 | AJ159: =AI159*7.8 -> 0 | AK159: =AG160 -> 0 | AL159: =AJ159-AK159 -> 0 | AM159: =ROUNDDOWN(AL159*請求書・納品書!$M$11,) -> 0
A160: 遅・早(出) | AG160: =SUM(B160:AF160) -> 0 | AH160: 残業 | AL160: =AG159 -> 0 | AM160: =ROUNDDOWN(AL160*請求書・納品書!$M$12,) -> 0
A161: 遅・早(公) | AG161: =SUM(B161:AF161) -> 0 | AH161: 公出 | AI161: =COUNTIF(B158:AF158,"公") -> 0 | AJ161: =AI161*7.8 -> 0 | AK161: =AG161 -> 0 | AL161: =AJ161-AK161 -> 0 | AM161: =ROUNDDOWN(AL161*請求書・納品書!$M$13,) -> 0
A162: 連続 | AG162: =SUM(B162:AF162) -> 0 | AH162: 連続 | AL162: =AG162 -> 0 | AM162: =AL162*請求書・納品書!$M$14 -> 0
AL163: 合 計 | AM163: =SUM(AM159:AM162) -> 0
AH164: =A164 -> 0 | AI164: 日数(日) | AJ164: 勤務時間(h) | AK164: 早退（h） | AL164: 合計(h) | AM164: 金額(円)
A165: 残業 | AG165: =SUM(B165:AF165) -> 0 | AH165: 出勤 | AI165: =COUNTIF(B164:AF164,"出") -> 0 | AJ165: =AI165*7.8 -> 0 | AK165: =AG166 -> 0 | AL165: =AJ165-AK165 -> 0 | AM165: =ROUNDDOWN(AL165*請求書・納品書!$M$11,) -> 0
A166: 遅・早(出) | AG166: =SUM(B166:AF166) -> 0 | AH166: 残業 | AL166: =AG165 -> 0 | AM166: =ROUNDDOWN(AL166*請求書・納品書!$M$12,) -> 0
A167: 遅・早(公) | AG167: =SUM(B167:AF167) -> 0 | AH167: 公出 | AI167: =COUNTIF(B164:AF164,"公") -> 0 | AJ167: =AI167*7.8 -> 0 | AK167: =AG167 -> 0 | AL167: =AJ167-AK167 -> 0 | AM167: =ROUNDDOWN(AL167*請求書・納品書!$M$13,) -> 0
A168: 連続 | AG168: =SUM(B168:AF168) -> 0 | AH168: 連続 | AL168: =AG168 -> 0 | AM168: =AL168*請求書・納品書!$M$14 -> 0
AL169: 合 計 | AM169: =SUM(AM165:AM168) -> 0 | AO169: =AM151+AM157+AM163+AM169 -> 0
AH170: =A170 -> 0 | AI170: 日数(日) | AJ170: 勤務時間(h) | AK170: 早退（h） | AL170: 合計(h) | AM170: 金額(円)
A171: 残業 | AG171: =SUM(B171:AF171) -> 0 | AH171: 出勤 | AI171: =COUNTIF(B170:AF170,"出") -> 0 | AJ171: =AI171*7.8 -> 0 | AK171: =AG172 -> 0 | AL171: =AJ171-AK171 -> 0 | AM171: =ROUNDDOWN(AL171*請求書・納品書!$M$11,) -> 0
A172: 遅・早(出) | AG172: =SUM(B172:AF172) -> 0 | AH172: 残業 | AL172: =AG171 -> 0 | AM172: =ROUNDDOWN(AL172*請求書・納品書!$M$12,) -> 0
A173: 遅・早(公) | AG173: =SUM(B173:AF173) -> 0 | AH173: 公出 | AI173: =COUNTIF(B170:AF170,"公") -> 0 | AJ173: =AI173*7.8 -> 0 | AK173: =AG173 -> 0 | AL173: =AJ173-AK173 -> 0 | AM173: =ROUNDDOWN(AL173*請求書・納品書!$M$13,) -> 0
A174: 連続 | AG174: =SUM(B174:AF174) -> 0 | AH174: 連続 | AL174: =AG174 -> 0 | AM174: =AL174*請求書・納品書!$M$14 -> 0
AL175: 合 計 | AM175: =SUM(AM171:AM174) -> 0
AH176: =A176 -> 0 | AI176: 日数(日) | AJ176: 勤務時間(h) | AK176: 早退（h） | AL176: 合計(h) | AM176: 金額(円)
A177: 残業 | AG177: =SUM(B177:AF177) -> 0 | AH177: 出勤 | AI177: =COUNTIF(B176:AF176,"出") -> 0 | AJ177: =AI177*7.8 -> 0 | AK177: =AG178 -> 0 | AL177: =AJ177-AK177 -> 0 | AM177: =ROUNDDOWN(AL177*請求書・納品書!$M$11,) -> 0
A178: 遅・早(出) | AG178: =SUM(B178:AF178) -> 0 | AH178: 残業 | AL178: =AG177 -> 0 | AM178: =ROUNDDOWN(AL178*請求書・納品書!$M$12,) -> 0
A179: 遅・早(公) | AG179: =SUM(B179:AF179) -> 0 | AH179: 公出 | AI179: =COUNTIF(B176:AF176,"公") -> 0 | AJ179: =AI179*7.8 -> 0 | AK179: =AG179 -> 0 | AL179: =AJ179-AK179 -> 0 | AM179: =ROUNDDOWN(AL179*請求書・納品書!$M$13,) -> 0
A180: 連続 | AG180: =SUM(B180:AF180) -> 0 | AH180: 連続 | AL180: =AG180 -> 0 | AM180: =AL180*請求書・納品書!$M$14 -> 0
AL181: 合 計 | AM181: =SUM(AM177:AM180) -> 0
AH182: =A182 -> 0 | AI182: 日数(日) | AJ182: 勤務時間(h) | AK182: 早退（h） | AL182: 合計(h) | AM182: 金額(円)
A183: 残業 | AG183: =SUM(B183:AF183) -> 0 | AH183: 出勤 | AI183: =COUNTIF(B182:AF182,"出") -> 0 | AJ183: =AI183*7.8 -> 0 | AK183: =AG184 -> 0 | AL183: =AJ183-AK183 -> 0 | AM183: =ROUNDDOWN(AL183*請求書・納品書!$M$11,) -> 0
A184: 遅・早(出) | AG184: =SUM(B184:AF184) -> 0 | AH184: 残業 | AL184: =AG183 -> 0 | AM184: =ROUNDDOWN(AL184*請求書・納品書!$M$12,) -> 0
A185: 遅・早(公) | AG185: =SUM(B185:AF185) -> 0 | AH185: 公出 | AI185: =COUNTIF(B182:AF182,"公") -> 0 | AJ185: =AI185*7.8 -> 0 | AK185: =AG185 -> 0 | AL185: =AJ185-AK185 -> 0 | AM185: =ROUNDDOWN(AL185*請求書・納品書!$M$13,) -> 0
A186: 連続 | AG186: =SUM(B186:AF186) -> 0 | AH186: 連続 | AL186: =AG186 -> 0 | AM186: =AL186*請求書・納品書!$M$14 -> 0
AL187: 合 計 | AM187: =SUM(AM183:AM186) -> 0
AH188: =A188 -> 0 | AI188: 日数(日) | AJ188: 勤務時間(h) | AK188: 早退（h） | AL188: 合計(h) | AM188: 金額(円)
A189: 残業 | AG189: =SUM(B189:AF189) -> 0 | AH189: 出勤 | AI189: =COUNTIF(B188:AF188,"出") -> 0 | AJ189: =AI189*7.8 -> 0 | AK189: =AG190 -> 0 | AL189: =AJ189-AK189 -> 0 | AM189: =ROUNDDOWN(AL189*請求書・納品書!$M$11,) -> 0
A190: 遅・早(出) | AG190: =SUM(B190:AF190) -> 0 | AH190: 残業 | AL190: =AG189 -> 0 | AM190: =ROUNDDOWN(AL190*請求書・納品書!$M$12,) -> 0
A191: 遅・早(公) | AG191: =SUM(B191:AF191) -> 0 | AH191: 公出 | AI191: =COUNTIF(B188:AF188,"公") -> 0 | AJ191: =AI191*7.8 -> 0 | AK191: =AG191 -> 0 | AL191: =AJ191-AK191 -> 0 | AM191: =ROUNDDOWN(AL191*請求書・納品書!$M$13,) -> 0
A192: 連続 | AG192: =SUM(B192:AF192) -> 0 | AH192: 連続 | AL192: =AG192 -> 0 | AM192: =AL192*請求書・納品書!$M$14 -> 0
AL193: 合 計 | AM193: =SUM(AM189:AM192) -> 0 | AO193: =AM175+AM181+AM187+AM193 -> 0

Sheet 11
A1: ='4'!A1 -> 2010 | B1: 1 | C1: 2 | D1: 3 | E1: 4 | F1: 5 | G1: 6 | H1: 7 | I1: 8 | J1: 9 | K1: 10 | L1: 11 | M1: 12 | N1: 13 | O1: 14 | P1: 15 | Q1: 16 | R1: 17 | S1: 18 | T1: 19 | U1: 20 | V1: 21 | W1: 22 | X1: 23 | Y1: 24 | Z1: 25 | AA1: 26 | AB1: 27 | AC1: 28 | AD1: 29 | AE1: 30 | AF1: 31 | AG1: 計 | AH1: =A1&"年"&MID(CELL("filename",$A$1),FIND("]",CELL("filename",$A$1))+1,31) &"月" -> 2010年11月
AH2: =A2 -> 0 | AI2: 日数(日) | AJ2: 勤務時間(h) | AK2: 早退（h） | AL2: 合計(h) | AM2: 金額(円) | AN2: 出 | AO2: 合計 | AP2: =SUM(AM:AM)/2 -> 0
A3: 残業 | AG3: =SUM(B3:AF3) -> 0 | AH3: 出勤 | AI3: =COUNTIF(B2:AF2,"出") -> 0 | AJ3: =AI3*7.8 -> 0 | AK3: =AG4 -> 0 | AL3: =AJ3-AK3 -> 0 | AM3: =ROUNDDOWN(AL3*請求書・納品書!$M$11,) -> 0 | AN3: 公 | AO3: 人数 | AP3: =COUNTA(AH:AH)-COUNTIF(AH:AH,0)-32*4-1 -> 0
A4: 遅・早(出) | AG4: =SUM(B4:AF4) -> 0 | AH4: 残業 | AL4: =AG3 -> 0 | AM4: =ROUNDDOWN(AL4*請求書・納品書!$M$12,) -> 0 | AN4: 欠 | AO4: 管理費 | AP4: =(AP3-AP9)*19400 -> 0
A5: 遅・早(公) | AG5: =SUM(B5:AF5) -> 0 | AH5: 公出 | AI5: =COUNTIF(B2:AF2,"公") -> 0 | AJ5: =AI5*7.8 -> 0 | AK5: =AG5 -> 0 | AL5: =AJ5-AK5 -> 0 | AM5: =ROUNDDOWN(AL5*請求書・納品書!$M$13,) -> 0 | AN5: 有 | AO5: 小計 | AP5: =AP2+AP4 -> 0
A6: 連続 | AG6: =SUM(B6:AF6) -> 0 | AH6: 連続 | AL6: =AG6 -> 0 | AM6: =AL6*請求書・納品書!$M$14 -> 0 | AN6: 半 | AO6: 消費税 | AP6: =ROUNDDOWN(AP5*0.05,) -> 0
AL7: 合 計 | AM7: =SUM(AM3:AM6) -> 0 | AO7: 総合計 | AP7: =AP5+AP6 -> 0
AH8: =A8 -> 0 | AI8: 日数(日) | AJ8: 勤務時間(h) | AK8: 早退（h） | AL8: 合計(h) | AM8: 金額(円)
A9: 残業 | AG9: =SUM(B9:AF9) -> 0 | AH9: 出勤 | AI9: =COUNTIF(B8:AF8,"出") -> 0 | AJ9: =AI9*7.8 -> 0 | AK9: =AG10 -> 0 | AL9: =AJ9-AK9 -> 0 | AM9: =ROUNDDOWN(AL9*請求書・納品書!$M$11,) -> 0 | AO9: 管理費に入れない人数
A10: 遅・早(出) | AG10: =SUM(B10:AF10) -> 0 | AH10: 残業 | AL10: =AG9 -> 0 | AM10: =ROUNDDOWN(AL10*請求書・納品書!$M$12,) -> 0
A11: 遅・早(公) | AG11: =SUM(B11:AF11) -> 0 | AH11: 公出 | AI11: =COUNTIF(B8:AF8,"公") -> 0 | AJ11: =AI11*7.8 -> 0 | AK11: =AG11 -> 0 | AL11: =AJ11-AK11 -> 0 | AM11: =ROUNDDOWN(AL11*請求書・納品書!$M$13,) -> 0
A12: 連続 | AG12: =SUM(B12:AF12) -> 0 | AH12: 連続 | AL12: =AG12 -> 0 | AM12: =AL12*請求書・納品書!$M$14 -> 0
AL13: 合 計 | AM13: =SUM(AM9:AM12) -> 0
AH14: =A14 -> 0 | AI14: 日数(日) | AJ14: 勤務時間(h) | AK14: 早退（h） | AL14: 合計(h) | AM14: 金額(円)
A15: 残業 | AG15: =SUM(B15:AF15) -> 0 | AH15: 出勤 | AI15: =COUNTIF(B14:AF14,"出") -> 0 | AJ15: =AI15*7.8 -> 0 | AK15: =AG16 -> 0 | AL15: =AJ15-AK15 -> 0 | AM15: =ROUNDDOWN(AL15*請求書・納品書!$M$11,) -> 0
A16: 遅・早(出) | AG16: =SUM(B16:AF16) -> 0 | AH16: 残業 | AL16: =AG15 -> 0 | AM16: =ROUNDDOWN(AL16*請求書・納品書!$M$12,) -> 0
A17: 遅・早(公) | AG17: =SUM(B17:AF17) -> 0 | AH17: 公出 | AI17: =COUNTIF(B14:AF14,"公") -> 0 | AJ17: =AI17*7.8 -> 0 | AK17: =AG17 -> 0 | AL17: =AJ17-AK17 -> 0 | AM17: =ROUNDDOWN(AL17*請求書・納品書!$M$13,) -> 0
A18: 連続 | AG18: =SUM(B18:AF18) -> 0 | AH18: 連続 | AL18: =AG18 -> 0 | AM18: =AL18*請求書・納品書!$M$14 -> 0
AL19: 合 計 | AM19: =SUM(AM15:AM18) -> 0
AH20: =A20 -> 0 | AI20: 日数(日) | AJ20: 勤務時間(h) | AK20: 早退（h） | AL20: 合計(h) | AM20: 金額(円)
A21: 残業 | AG21: =SUM(B21:AF21) -> 0 | AH21: 出勤 | AI21: =COUNTIF(B20:AF20,"出") -> 0 | AJ21: =AI21*7.8 -> 0 | AK21: =AG22 -> 0 | AL21: =AJ21-AK21 -> 0 | AM21: =ROUNDDOWN(AL21*請求書・納品書!$M$11,) -> 0
A22: 遅・早(出) | AG22: =SUM(B22:AF22) -> 0 | AH22: 残業 | AL22: =AG21 -> 0 | AM22: =ROUNDDOWN(AL22*請求書・納品書!$M$12,) -> 0
A23: 遅・早(公) | AG23: =SUM(B23:AF23) -> 0 | AH23: 公出 | AI23: =COUNTIF(B20:AF20,"公") -> 0 | AJ23: =AI23*7.8 -> 0 | AK23: =AG23 -> 0 | AL23: =AJ23-AK23 -> 0 | AM23: =ROUNDDOWN(AL23*請求書・納品書!$M$13,) -> 0
A24: 連続 | AG24: =SUM(B24:AF24) -> 0 | AH24: 連続 | AL24: =AG24 -> 0 | AM24: =AL24*請求書・納品書!$M$14 -> 0
AL25: 合 計 | AM25: =SUM(AM21:AM24) -> 0 | AO25: =AM7+AM13+AM19+AM25 -> 0
AH26: =A26 -> 0 | AI26: 日数(日) | AJ26: 勤務時間(h) | AK26: 早退（h） | AL26: 合計(h) | AM26: 金額(円)
A27: 残業 | AG27: =SUM(B27:AF27) -> 0 | AH27: 出勤 | AI27: =COUNTIF(B26:AF26,"出") -> 0 | AJ27: =AI27*7.8 -> 0 | AK27: =AG28 -> 0 | AL27: =AJ27-AK27 -> 0 | AM27: =ROUNDDOWN(AL27*請求書・納品書!$M$11,) -> 0
A28: 遅・早(出) | AG28: =SUM(B28:AF28) -> 0 | AH28: 残業 | AL28: =AG27 -> 0 | AM28: =ROUNDDOWN(AL28*請求書・納品書!$M$12,) -> 0
A29: 遅・早(公) | AG29: =SUM(B29:AF29) -> 0 | AH29: 公出 | AI29: =COUNTIF(B26:AF26,"公") -> 0 | AJ29: =AI29*7.8 -> 0 | AK29: =AG29 -> 0 | AL29: =AJ29-AK29 -> 0 | AM29: =ROUNDDOWN(AL29*請求書・納品書!$M$13,) -> 0
A30: 連続 | AG30: =SUM(B30:AF30) -> 0 | AH30: 連続 | AL30: =AG30 -> 0 | AM30: =AL30*請求書・納品書!$M$14 -> 0
AL31: 合 計 | AM31: =SUM(AM27:AM30) -> 0
AH32: =A32 -> 0 | AI32: 日数(日) | AJ32: 勤務時間(h) | AK32: 早退（h） | AL32: 合計(h) | AM32: 金額(円)
A33: 残業 | AG33: =SUM(B33:AF33) -> 0 | AH33: 出勤 | AI33: =COUNTIF(B32:AF32,"出") -> 0 | AJ33: =AI33*7.8 -> 0 | AK33: =AG34 -> 0 | AL33: =AJ33-AK33 -> 0 | AM33: =ROUNDDOWN(AL33*請求書・納品書!$M$11,) -> 0
A34: 遅・早(出) | AG34: =SUM(B34:AF34) -> 0 | AH34: 残業 | AL34: =AG33 -> 0 | AM34: =ROUNDDOWN(AL34*請求書・納品書!$M$12,) -> 0
A35: 遅・早(公) | AG35: =SUM(B35:AF35) -> 0 | AH35: 公出 | AI35: =COUNTIF(B32:AF32,"公") -> 0 | AJ35: =AI35*7.8 -> 0 | AK35: =AG35 -> 0 | AL35: =AJ35-AK35 -> 0 | AM35: =ROUNDDOWN(AL35*請求書・納品書!$M$13,) -> 0
A36: 連続 | AG36: =SUM(B36:AF36) -> 0 | AH36: 連続 | AL36: =AG36 -> 0 | AM36: =AL36*請求書・納品書!$M$14 -> 0
AL37: 合 計 | AM37: =SUM(AM33:AM36) -> 0
AH38: =A38 -> 0 | AI38: 日数(日) | AJ38: 勤務時間(h) | AK38: 早退（h） | AL38: 合計(h) | AM38: 金額(円)
A39: 残業 | AG39: =SUM(B39:AF39) -> 0 | AH39: 出勤 | AI39: =COUNTIF(B38:AF38,"出") -> 0 | AJ39: =AI39*7.8 -> 0 | AK39: =AG40 -> 0 | AL39: =AJ39-AK39 -> 0 | AM39: =ROUNDDOWN(AL39*請求書・納品書!$M$11,) -> 0
A40: 遅・早(出) | AG40: =SUM(B40:AF40) -> 0 | AH40: 残業 | AL40: =AG39 -> 0 | AM40: =ROUNDDOWN(AL40*請求書・納品書!$M$12,) -> 0
A41: 遅・早(公) | AG41: =SUM(B41:AF41) -> 0 | AH41: 公出 | AI41: =COUNTIF(B38:AF38,"公") -> 0 | AJ41: =AI41*7.8 -> 0 | AK41: =AG41 -> 0 | AL41: =AJ41-AK41 -> 0 | AM41: =ROUNDDOWN(AL41*請求書・納品書!$M$13,) -> 0
A42: 連続 | AG42: =SUM(B42:AF42) -> 0 | AH42: 連続 | AL42: =AG42 -> 0 | AM42: =AL42*請求書・納品書!$M$14 -> 0
AL43: 合 計 | AM43: =SUM(AM39:AM42) -> 0
AH44: =A44 -> 0 | AI44: 日数(日) | AJ44: 勤務時間(h) | AK44: 早退（h） | AL44: 合計(h) | AM44: 金額(円)
A45: 残業 | AG45: =SUM(B45:AF45) -> 0 | AH45: 出勤 | AI45: =COUNTIF(B44:AF44,"出") -> 0 | AJ45: =AI45*7.8 -> 0 | AK45: =AG46 -> 0 | AL45: =AJ45-AK45 -> 0 | AM45: =ROUNDDOWN(AL45*請求書・納品書!$M$11,) -> 0
A46: 遅・早(出) | AG46: =SUM(B46:AF46) -> 0 | AH46: 残業 | AL46: =AG45 -> 0 | AM46: =ROUNDDOWN(AL46*請求書・納品書!$M$12,) -> 0
A47: 遅・早(公) | AG47: =SUM(B47:AF47) -> 0 | AH47: 公出 | AI47: =COUNTIF(B44:AF44,"公") -> 0 | AJ47: =AI47*7.8 -> 0 | AK47: =AG47 -> 0 | AL47: =AJ47-AK47 -> 0 | AM47: =ROUNDDOWN(AL47*請求書・納品書!$M$13,) -> 0
A48: 連続 | AG48: =SUM(B48:AF48) -> 0 | AH48: 連続 | AL48: =AG48 -> 0 | AM48: =AL48*請求書・納品書!$M$14 -> 0
AL49: 合 計 | AM49: =SUM(AM45:AM48) -> 0 | AO49: =AM31+AM37+AM43+AM49 -> 0
AH50: =A50 -> 0 | AI50: 日数(日) | AJ50: 勤務時間(h) | AK50: 早退（h） | AL50: 合計(h) | AM50: 金額(円)
A51: 残業 | AG51: =SUM(B51:AF51) -> 0 | AH51: 出勤 | AI51: =COUNTIF(B50:AF50,"出") -> 0 | AJ51: =AI51*7.8 -> 0 | AK51: =AG52 -> 0 | AL51: =AJ51-AK51 -> 0 | AM51: =ROUNDDOWN(AL51*請求書・納品書!$M$11,) -> 0
A52: 遅・早(出) | AG52: =SUM(B52:AF52) -> 0 | AH52: 残業 | AL52: =AG51 -> 0 | AM52: =ROUNDDOWN(AL52*請求書・納品書!$M$12,) -> 0
A53: 遅・早(公) | AG53: =SUM(B53:AF53) -> 0 | AH53: 公出 | AI53: =COUNTIF(B50:AF50,"公") -> 0 | AJ53: =AI53*7.8 -> 0 | AK53: =AG53 -> 0 | AL53: =AJ53-AK53 -> 0 | AM53: =ROUNDDOWN(AL53*請求書・納品書!$M$13,) -> 0
A54: 連続 | AG54: =SUM(B54:AF54) -> 0 | AH54: 連続 | AL54: =AG54 -> 0 | AM54: =AL54*請求書・納品書!$M$14 -> 0
AL55: 合 計 | AM55: =SUM(AM51:AM54) -> 0
AH56: =A56 -> 0 | AI56: 日数(日) | AJ56: 勤務時間(h) | AK56: 早退（h） | AL56: 合計(h) | AM56: 金額(円)
A57: 残業 | AG57: =SUM(B57:AF57) -> 0 | AH57: 出勤 | AI57: =COUNTIF(B56:AF56,"出") -> 0 | AJ57: =AI57*7.8 -> 0 | AK57: =AG58 -> 0 | AL57: =AJ57-AK57 -> 0 | AM57: =ROUNDDOWN(AL57*請求書・納品書!$M$11,) -> 0
A58: 遅・早(出) | AG58: =SUM(B58:AF58) -> 0 | AH58: 残業 | AL58: =AG57 -> 0 | AM58: =ROUNDDOWN(AL58*請求書・納品書!$M$12,) -> 0
A59: 遅・早(公) | AG59: =SUM(B59:AF59) -> 0 | AH59: 公出 | AI59: =COUNTIF(B56:AF56,"公") -> 0 | AJ59: =AI59*7.8 -> 0 | AK59: =AG59 -> 0 | AL59: =AJ59-AK59 -> 0 | AM59: =ROUNDDOWN(AL59*請求書・納品書!$M$13,) -> 0
A60: 連続 | AG60: =SUM(B60:AF60) -> 0 | AH60: 連続 | AL60: =AG60 -> 0 | AM60: =AL60*請求書・納品書!$M$14 -> 0
AL61: 合 計 | AM61: =SUM(AM57:AM60) -> 0
AH62: =A62 -> 0 | AI62: 日数(日) | AJ62: 勤務時間(h) | AK62: 早退（h） | AL62: 合計(h) | AM62: 金額(円)
A63: 残業 | AG63: =SUM(B63:AF63) -> 0 | AH63: 出勤 | AI63: =COUNTIF(B62:AF62,"出") -> 0 | AJ63: =AI63*7.8 -> 0 | AK63: =AG64 -> 0 | AL63: =AJ63-AK63 -> 0 | AM63: =ROUNDDOWN(AL63*請求書・納品書!$M$11,) -> 0
A64: 遅・早(出) | AG64: =SUM(B64:AF64) -> 0 | AH64: 残業 | AL64: =AG63 -> 0 | AM64: =ROUNDDOWN(AL64*請求書・納品書!$M$12,) -> 0
A65: 遅・早(公) | AG65: =SUM(B65:AF65) -> 0 | AH65: 公出 | AI65: =COUNTIF(B62:AF62,"公") -> 0 | AJ65: =AI65*7.8 -> 0 | AK65: =AG65 -> 0 | AL65: =AJ65-AK65 -> 0 | AM65: =ROUNDDOWN(AL65*請求書・納品書!$M$13,) -> 0
A66: 連続 | AG66: =SUM(B66:AF66) -> 0 | AH66: 連続 | AL66: =AG66 -> 0 | AM66: =AL66*請求書・納品書!$M$14 -> 0
AL67: 合 計 | AM67: =SUM(AM63:AM66) -> 0
AH68: =A68 -> 0 | AI68: 日数(日) | AJ68: 勤務時間(h) | AK68: 早退（h） | AL68: 合計(h) | AM68: 金額(円)
A69: 残業 | AG69: =SUM(B69:AF69) -> 0 | AH69: 出勤 | AI69: =COUNTIF(B68:AF68,"出") -> 0 | AJ69: =AI69*7.8 -> 0 | AK69: =AG70 -> 0 | AL69: =AJ69-AK69 -> 0 | AM69: =ROUNDDOWN(AL69*請求書・納品書!$M$11,) -> 0
A70: 遅・早(出) | AG70: =SUM(B70:AF70) -> 0 | AH70: 残業 | AL70: =AG69 -> 0 | AM70: =ROUNDDOWN(AL70*請求書・納品書!$M$12,) -> 0
A71: 遅・早(公) | AG71: =SUM(B71:AF71) -> 0 | AH71: 公出 | AI71: =COUNTIF(B68:AF68,"公") -> 0 | AJ71: =AI71*7.8 -> 0 | AK71: =AG71 -> 0 | AL71: =AJ71-AK71 -> 0 | AM71: =ROUNDDOWN(AL71*請求書・納品書!$M$13,) -> 0
A72: 連続 | AG72: =SUM(B72:AF72) -> 0 | AH72: 連続 | AL72: =AG72 -> 0 | AM72: =AL72*請求書・納品書!$M$14 -> 0
AL73: 合 計 | AM73: =SUM(AM69:AM72) -> 0 | AO73: =AM55+AM61+AM67+AM73 -> 0
AH74: =A74 -> 0 | AI74: 日数(日) | AJ74: 勤務時間(h) | AK74: 早退（h） | AL74: 合計(h) | AM74: 金額(円)
A75: 残業 | AG75: =SUM(B75:AF75) -> 0 | AH75: 出勤 | AI75: =COUNTIF(B74:AF74,"出") -> 0 | AJ75: =AI75*7.8 -> 0 | AK75: =AG76 -> 0 | AL75: =AJ75-AK75 -> 0 | AM75: =ROUNDDOWN(AL75*請求書・納品書!$M$11,) -> 0
A76: 遅・早(出) | AG76: =SUM(B76:AF76) -> 0 | AH76: 残業 | AL76: =AG75 -> 0 | AM76: =ROUNDDOWN(AL76*請求書・納品書!$M$12,) -> 0
A77: 遅・早(公) | AG77: =SUM(B77:AF77) -> 0 | AH77: 公出 | AI77: =COUNTIF(B74:AF74,"公") -> 0 | AJ77: =AI77*7.8 -> 0 | AK77: =AG77 -> 0 | AL77: =AJ77-AK77 -> 0 | AM77: =ROUNDDOWN(AL77*請求書・納品書!$M$13,) -> 0
A78: 連続 | AG78: =SUM(B78:AF78) -> 0 | AH78: 連続 | AL78: =AG78 -> 0 | AM78: =AL78*請求書・納品書!$M$14 -> 0
AL79: 合 計 | AM79: =SUM(AM75:AM78) -> 0
AH80: =A80 -> 0 | AI80: 日数(日) | AJ80: 勤務時間(h) | AK80: 早退（h） | AL80: 合計(h) | AM80: 金額(円)
A81: 残業 | AG81: =SUM(B81:AF81) -> 0 | AH81: 出勤 | AI81: =COUNTIF(B80:AF80,"出") -> 0 | AJ81: =AI81*7.8 -> 0 | AK81: =AG82 -> 0 | AL81: =AJ81-AK81 -> 0 | AM81: =ROUNDDOWN(AL81*請求書・納品書!$M$11,) -> 0
A82: 遅・早(出) | AG82: =SUM(B82:AF82) -> 0 | AH82: 残業 | AL82: =AG81 -> 0 | AM82: =ROUNDDOWN(AL82*請求書・納品書!$M$12,) -> 0
A83: 遅・早(公) | AG83: =SUM(B83:AF83) -> 0 | AH83: 公出 | AI83: =COUNTIF(B80:AF80,"公") -> 0 | AJ83: =AI83*7.8 -> 0 | AK83: =AG83 -> 0 | AL83: =AJ83-AK83 -> 0 | AM83: =ROUNDDOWN(AL83*請求書・納品書!$M$13,) -> 0
A84: 連続 | AG84: =SUM(B84:AF84) -> 0 | AH84: 連続 | AL84: =AG84 -> 0 | AM84: =AL84*請求書・納品書!$M$14 -> 0
AL85: 合 計 | AM85: =SUM(AM81:AM84) -> 0
AH86: =A86 -> 0 | AI86: 日数(日) | AJ86: 勤務時間(h) | AK86: 早退（h） | AL86: 合計(h) | AM86: 金額(円)
A87: 残業 | AG87: =SUM(B87:AF87) -> 0 | AH87: 出勤 | AI87: =COUNTIF(B86:AF86,"出") -> 0 | AJ87: =AI87*7.8 -> 0 | AK87: =AG88 -> 0 | AL87: =AJ87-AK87 -> 0 | AM87: =ROUNDDOWN(AL87*請求書・納品書!$M$11,) -> 0
A88: 遅・早(出) | AG88: =SUM(B88:AF88) -> 0 | AH88: 残業 | AL88: =AG87 -> 0 | AM88: =ROUNDDOWN(AL88*請求書・納品書!$M$12,) -> 0
A89: 遅・早(公) | AG89: =SUM(B89:AF89) -> 0 | AH89: 公出 | AI89: =COUNTIF(B86:AF86,"公") -> 0 | AJ89: =AI89*7.8 -> 0 | AK89: =AG89 -> 0 | AL89: =AJ89-AK89 -> 0 | AM89: =ROUNDDOWN(AL89*請求書・納品書!$M$13,) -> 0
A90: 連続 | AG90: =SUM(B90:AF90) -> 0 | AH90: 連続 | AL90: =AG90 -> 0 | AM90: =AL90*請求書・納品書!$M$14 -> 0
AL91: 合 計 | AM91: =SUM(AM87:AM90) -> 0
AH92: =A92 -> 0 | AI92: 日数(日) | AJ92: 勤務時間(h) | AK92: 早退（h） | AL92: 合計(h) | AM92: 金額(円)
A93: 残業 | AG93: =SUM(B93:AF93) -> 0 | AH93: 出勤 | AI93: =COUNTIF(B92:AF92,"出") -> 0 | AJ93: =AI93*7.8 -> 0 | AK93: =AG94 -> 0 | AL93: =AJ93-AK93 -> 0 | AM93: =ROUNDDOWN(AL93*請求書・納品書!$M$11,) -> 0
A94: 遅・早(出) | AG94: =SUM(B94:AF94) -> 0 | AH94: 残業 | AL94: =AG93 -> 0 | AM94: =ROUNDDOWN(AL94*請求書・納品書!$M$12,) -> 0
A95: 遅・早(公) | AG95: =SUM(B95:AF95) -> 0 | AH95: 公出 | AI95: =COUNTIF(B92:AF92,"公") -> 0 | AJ95: =AI95*7.8 -> 0 | AK95: =AG95 -> 0 | AL95: =AJ95-AK95 -> 0 | AM95: =ROUNDDOWN(AL95*請求書・納品書!$M$13,) -> 0
A96: 連続 | AG96: =SUM(B96:AF96) -> 0 | AH96: 連続 | AL96: =AG96 -> 0 | AM96: =AL96*請求書・納品書!$M$14 -> 0
AL97: 合 計 | AM97: =SUM(AM93:AM96) -> 0 | AO97: =AM79+AM85+AM91+AM97 -> 0
AH98: =A98 -> 0 | AI98: 日数(日) | AJ98: 勤務時間(h) | AK98: 早退（h） | AL98: 合計(h) | AM98: 金額(円)
A99: 残業 | AG99: =SUM(B99:AF99) -> 0 | AH99: 出勤 | AI99: =COUNTIF(B98:AF98,"出") -> 0 | AJ99: =AI99*7.8 -> 0 | AK99: =AG100 -> 0 | AL99: =AJ99-AK99 -> 0 | AM99: =ROUNDDOWN(AL99*請求書・納品書!$M$11,) -> 0
A100: 遅・早(出) | AG100: =SUM(B100:AF100) -> 0 | AH100: 残業 | AL100: =AG99 -> 0 | AM100: =ROUNDDOWN(AL100*請求書・納品書!$M$12,) -> 0
A101: 遅・早(公) | AG101: =SUM(B101:AF101) -> 0 | AH101: 公出 | AI101: =COUNTIF(B98:AF98,"公") -> 0 | AJ101: =AI101*7.8 -> 0 | AK101: =AG101 -> 0 | AL101: =AJ101-AK101 -> 0 | AM101: =ROUNDDOWN(AL101*請求書・納品書!$M$13,) -> 0
A102: 連続 | AG102: =SUM(B102:AF102) -> 0 | AH102: 連続 | AL102: =AG102 -> 0 | AM102: =AL102*請求書・納品書!$M$14 -> 0
AL103: 合 計 | AM103: =SUM(AM99:AM102) -> 0
AH104: =A104 -> 0 | AI104: 日数(日) | AJ104: 勤務時間(h) | AK104: 早退（h） | AL104: 合計(h) | AM104: 金額(円)
A105: 残業 | AG105: =SUM(B105:AF105) -> 0 | AH105: 出勤 | AI105: =COUNTIF(B104:AF104,"出") -> 0 | AJ105: =AI105*7.8 -> 0 | AK105: =AG106 -> 0 | AL105: =AJ105-AK105 -> 0 | AM105: =ROUNDDOWN(AL105*請求書・納品書!$M$11,) -> 0
A106: 遅・早(出) | AG106: =SUM(B106:AF106) -> 0 | AH106: 残業 | AL106: =AG105 -> 0 | AM106: =ROUNDDOWN(AL106*請求書・納品書!$M$12,) -> 0
A107: 遅・早(公) | AG107: =SUM(B107:AF107) -> 0 | AH107: 公出 | AI107: =COUNTIF(B104:AF104,"公") -> 0 | AJ107: =AI107*7.8 -> 0 | AK107: =AG107 -> 0 | AL107: =AJ107-AK107 -> 0 | AM107: =ROUNDDOWN(AL107*請求書・納品書!$M$13,) -> 0
A108: 連続 | AG108: =SUM(B108:AF108) -> 0 | AH108: 連続 | AL108: =AG108 -> 0 | AM108: =AL108*請求書・納品書!$M$14 -> 0
AL109: 合 計 | AM109: =SUM(AM105:AM108) -> 0
AH110: =A110 -> 0 | AI110: 日数(日) | AJ110: 勤務時間(h) | AK110: 早退（h） | AL110: 合計(h) | AM110: 金額(円)
A111: 残業 | AG111: =SUM(B111:AF111) -> 0 | AH111: 出勤 | AI111: =COUNTIF(B110:AF110,"出") -> 0 | AJ111: =AI111*7.8 -> 0 | AK111: =AG112 -> 0 | AL111: =AJ111-AK111 -> 0 | AM111: =ROUNDDOWN(AL111*請求書・納品書!$M$11,) -> 0
A112: 遅・早(出) | AG112: =SUM(B112:AF112) -> 0 | AH112: 残業 | AL112: =AG111 -> 0 | AM112: =ROUNDDOWN(AL112*請求書・納品書!$M$12,) -> 0
A113: 遅・早(公) | AG113: =SUM(B113:AF113) -> 0 | AH113: 公出 | AI113: =COUNTIF(B110:AF110,"公") -> 0 | AJ113: =AI113*7.8 -> 0 | AK113: =AG113 -> 0 | AL113: =AJ113-AK113 -> 0 | AM113: =ROUNDDOWN(AL113*請求書・納品書!$M$13,) -> 0
A114: 連続 | AG114: =SUM(B114:AF114) -> 0 | AH114: 連続 | AL114: =AG114 -> 0 | AM114: =AL114*請求書・納品書!$M$14 -> 0
AL115: 合 計 | AM115: =SUM(AM111:AM114) -> 0
AH116: =A116 -> 0 | AI116: 日数(日) | AJ116: 勤務時間(h) | AK116: 早退（h） | AL116: 合計(h) | AM116: 金額(円)
A117: 残業 | AG117: =SUM(B117:AF117) -> 0 | AH117: 出勤 | AI117: =COUNTIF(B116:AF116,"出") -> 0 | AJ117: =AI117*7.8 -> 0 | AK117: =AG118 -> 0 | AL117: =AJ117-AK117 -> 0 | AM117: =ROUNDDOWN(AL117*請求書・納品書!$M$11,) -> 0
A118: 遅・早(出) | AG118: =SUM(B118:AF118) -> 0 | AH118: 残業 | AL118: =AG117 -> 0 | AM118: =ROUNDDOWN(AL118*請求書・納品書!$M$12,) -> 0
A119: 遅・早(公) | AG119: =SUM(B119:AF119) -> 0 | AH119: 公出 | AI119: =COUNTIF(B116:AF116,"公") -> 0 | AJ119: =AI119*7.8 -> 0 | AK119: =AG119 -> 0 | AL119: =AJ119-AK119 -> 0 | AM119: =ROUNDDOWN(AL119*請求書・納品書!$M$13,) -> 0
A120: 連続 | AG120: =SUM(B120:AF120) -> 0 | AH120: 連続 | AL120: =AG120 -> 0 | AM120: =AL120*請求書・納品書!$M$14 -> 0
AL121: 合 計 | AM121: =SUM(AM117:AM120) -> 0 | AO121: =AM103+AM109+AM115+AM121 -> 0
AH122: =A122 -> 0 | AI122: 日数(日) | AJ122: 勤務時間(h) | AK122: 早退（h） | AL122: 合計(h) | AM122: 金額(円)
A123: 残業 | AG123: =SUM(B123:AF123) -> 0 | AH123: 出勤 | AI123: =COUNTIF(B122:AF122,"出") -> 0 | AJ123: =AI123*7.8 -> 0 | AK123: =AG124 -> 0 | AL123: =AJ123-AK123 -> 0 | AM123: =ROUNDDOWN(AL123*請求書・納品書!$M$11,) -> 0
A124: 遅・早(出) | AG124: =SUM(B124:AF124) -> 0 | AH124: 残業 | AL124: =AG123 -> 0 | AM124: =ROUNDDOWN(AL124*請求書・納品書!$M$12,) -> 0
A125: 遅・早(公) | AG125: =SUM(B125:AF125) -> 0 | AH125: 公出 | AI125: =COUNTIF(B122:AF122,"公") -> 0 | AJ125: =AI125*7.8 -> 0 | AK125: =AG125 -> 0 | AL125: =AJ125-AK125 -> 0 | AM125: =ROUNDDOWN(AL125*請求書・納品書!$M$13,) -> 0
A126: 連続 | AG126: =SUM(B126:AF126) -> 0 | AH126: 連続 | AL126: =AG126 -> 0 | AM126: =AL126*請求書・納品書!$M$14 -> 0
AL127: 合 計 | AM127: =SUM(AM123:AM126) -> 0
AH128: =A128 -> 0 | AI128: 日数(日) | AJ128: 勤務時間(h) | AK128: 早退（h） | AL128: 合計(h) | AM128: 金額(円)
A129: 残業 | AG129: =SUM(B129:AF129) -> 0 | AH129: 出勤 | AI129: =COUNTIF(B128:AF128,"出") -> 0 | AJ129: =AI129*7.8 -> 0 | AK129: =AG130 -> 0 | AL129: =AJ129-AK129 -> 0 | AM129: =ROUNDDOWN(AL129*請求書・納品書!$M$11,) -> 0
A130: 遅・早(出) | AG130: =SUM(B130:AF130) -> 0 | AH130: 残業 | AL130: =AG129 -> 0 | AM130: =ROUNDDOWN(AL130*請求書・納品書!$M$12,) -> 0
A131: 遅・早(公) | AG131: =SUM(B131:AF131) -> 0 | AH131: 公出 | AI131: =COUNTIF(B128:AF128,"公") -> 0 | AJ131: =AI131*7.8 -> 0 | AK131: =AG131 -> 0 | AL131: =AJ131-AK131 -> 0 | AM131: =ROUNDDOWN(AL131*請求書・納品書!$M$13,) -> 0
A132: 連続 | AG132: =SUM(B132:AF132) -> 0 | AH132: 連続 | AL132: =AG132 -> 0 | AM132: =AL132*請求書・納品書!$M$14 -> 0
AL133: 合 計 | AM133: =SUM(AM129:AM132) -> 0
AH134: =A134 -> 0 | AI134: 日数(日) | AJ134: 勤務時間(h) | AK134: 早退（h） | AL134: 合計(h) | AM134: 金額(円)
A135: 残業 | AG135: =SUM(B135:AF135) -> 0 | AH135: 出勤 | AI135: =COUNTIF(B134:AF134,"出") -> 0 | AJ135: =AI135*7.8 -> 0 | AK135: =AG136 -> 0 | AL135: =AJ135-AK135 -> 0 | AM135: =ROUNDDOWN(AL135*請求書・納品書!$M$11,) -> 0
A136: 遅・早(出) | AG136: =SUM(B136:AF136) -> 0 | AH136: 残業 | AL136: =AG135 -> 0 | AM136: =ROUNDDOWN(AL136*請求書・納品書!$M$12,) -> 0
A137: 遅・早(公) | AG137: =SUM(B137:AF137) -> 0 | AH137: 公出 | AI137: =COUNTIF(B134:AF134,"公") -> 0 | AJ137: =AI137*7.8 -> 0 | AK137: =AG137 -> 0 | AL137: =AJ137-AK137 -> 0 | AM137: =ROUNDDOWN(AL137*請求書・納品書!$M$13,) -> 0
A138: 連続 | AG138: =SUM(B138:AF138) -> 0 | AH138: 連続 | AL138: =AG138 -> 0 | AM138: =AL138*請求書・納品書!$M$14 -> 0
AL139: 合 計 | AM139: =SUM(AM135:AM138) -> 0
AH140: =A140 -> 0 | AI140: 日数(日) | AJ140: 勤務時間(h) | AK140: 早退（h） | AL140: 合計(h) | AM140: 金額(円)
A141: 残業 | AG141: =SUM(B141:AF141) -> 0 | AH141: 出勤 | AI141: =COUNTIF(B140:AF140,"出") -> 0 | AJ141: =AI141*7.8 -> 0 | AK141: =AG142 -> 0 | AL141: =AJ141-AK141 -> 0 | AM141: =ROUNDDOWN(AL141*請求書・納品書!$M$11,) -> 0
A142: 遅・早(出) | AG142: =SUM(B142:AF142) -> 0 | AH142: 残業 | AL142: =AG141 -> 0 | AM142: =ROUNDDOWN(AL142*請求書・納品書!$M$12,) -> 0
A143: 遅・早(公) | AG143: =SUM(B143:AF143) -> 0 | AH143: 公出 | AI143: =COUNTIF(B140:AF140,"公") -> 0 | AJ143: =AI143*7.8 -> 0 | AK143: =AG143 -> 0 | AL143: =AJ143-AK143 -> 0 | AM143: =ROUNDDOWN(AL143*請求書・納品書!$M$13,) -> 0
A144: 連続 | AG144: =SUM(B144:AF144) -> 0 | AH144: 連続 | AL144: =AG144 -> 0 | AM144: =AL144*請求書・納品書!$M$14 -> 0
AL145: 合 計 | AM145: =SUM(AM141:AM144) -> 0 | AO145: =AM127+AM133+AM139+AM145 -> 0
AH146: =A146 -> 0 | AI146: 日数(日) | AJ146: 勤務時間(h) | AK146: 早退（h） | AL146: 合計(h) | AM146: 金額(円)
A147: 残業 | AG147: =SUM(B147:AF147) -> 0 | AH147: 出勤 | AI147: =COUNTIF(B146:AF146,"出") -> 0 | AJ147: =AI147*7.8 -> 0 | AK147: =AG148 -> 0 | AL147: =AJ147-AK147 -> 0 | AM147: =ROUNDDOWN(AL147*請求書・納品書!$M$11,) -> 0
A148: 遅・早(出) | AG148: =SUM(B148:AF148) -> 0 | AH148: 残業 | AL148: =AG147 -> 0 | AM148: =ROUNDDOWN(AL148*請求書・納品書!$M$12,) -> 0
A149: 遅・早(公) | AG149: =SUM(B149:AF149) -> 0 | AH149: 公出 | AI149: =COUNTIF(B146:AF146,"公") -> 0 | AJ149: =AI149*7.8 -> 0 | AK149: =AG149 -> 0 | AL149: =AJ149-AK149 -> 0 | AM149: =ROUNDDOWN(AL149*請求書・納品書!$M$13,) -> 0
A150: 連続 | AG150: =SUM(B150:AF150) -> 0 | AH150: 連続 | AL150: =AG150 -> 0 | AM150: =AL150*請求書・納品書!$M$14 -> 0
AL151: 合 計 | AM151: =SUM(AM147:AM150) -> 0
AH152: =A152 -> 0 | AI152: 日数(日) | AJ152: 勤務時間(h) | AK152: 早退（h） | AL152: 合計(h) | AM152: 金額(円)
A153: 残業 | AG153: =SUM(B153:AF153) -> 0 | AH153: 出勤 | AI153: =COUNTIF(B152:AF152,"出") -> 0 | AJ153: =AI153*7.8 -> 0 | AK153: =AG154 -> 0 | AL153: =AJ153-AK153 -> 0 | AM153: =ROUNDDOWN(AL153*請求書・納品書!$M$11,) -> 0
A154: 遅・早(出) | AG154: =SUM(B154:AF154) -> 0 | AH154: 残業 | AL154: =AG153 -> 0 | AM154: =ROUNDDOWN(AL154*請求書・納品書!$M$12,) -> 0
A155: 遅・早(公) | AG155: =SUM(B155:AF155) -> 0 | AH155: 公出 | AI155: =COUNTIF(B152:AF152,"公") -> 0 | AJ155: =AI155*7.8 -> 0 | AK155: =AG155 -> 0 | AL155: =AJ155-AK155 -> 0 | AM155: =ROUNDDOWN(AL155*請求書・納品書!$M$13,) -> 0
A156: 連続 | AG156: =SUM(B156:AF156) -> 0 | AH156: 連続 | AL156: =AG156 -> 0 | AM156: =AL156*請求書・納品書!$M$14 -> 0
AL157: 合 計 | AM157: =SUM(AM153:AM156) -> 0
AH158: =A158 -> 0 | AI158: 日数(日) | AJ158: 勤務時間(h) | AK158: 早退（h） | AL158: 合計(h) | AM158: 金額(円)
A159: 残業 | AG159: =SUM(B159:AF159) -> 0 | AH159: 出勤 | AI159: =COUNTIF(B158:AF158,"出") -> 0 | AJ159: =AI159*7.8 -> 0 | AK159: =AG160 -> 0 | AL159: =AJ159-AK159 -> 0 | AM159: =ROUNDDOWN(AL159*請求書・納品書!$M$11,) -> 0
A160: 遅・早(出) | AG160: =SUM(B160:AF160) -> 0 | AH160: 残業 | AL160: =AG159 -> 0 | AM160: =ROUNDDOWN(AL160*請求書・納品書!$M$12,) -> 0
A161: 遅・早(公) | AG161: =SUM(B161:AF161) -> 0 | AH161: 公出 | AI161: =COUNTIF(B158:AF158,"公") -> 0 | AJ161: =AI161*7.8 -> 0 | AK161: =AG161 -> 0 | AL161: =AJ161-AK161 -> 0 | AM161: =ROUNDDOWN(AL161*請求書・納品書!$M$13,) -> 0
A162: 連続 | AG162: =SUM(B162:AF162) -> 0 | AH162: 連続 | AL162: =AG162 -> 0 | AM162: =AL162*請求書・納品書!$M$14 -> 0
AL163: 合 計 | AM163: =SUM(AM159:AM162) -> 0
AH164: =A164 -> 0 | AI164: 日数(日) | AJ164: 勤務時間(h) | AK164: 早退（h） | AL164: 合計(h) | AM164: 金額(円)
A165: 残業 | AG165: =SUM(B165:AF165) -> 0 | AH165: 出勤 | AI165: =COUNTIF(B164:AF164,"出") -> 0 | AJ165: =AI165*7.8 -> 0 | AK165: =AG166 -> 0 | AL165: =AJ165-AK165 -> 0 | AM165: =ROUNDDOWN(AL165*請求書・納品書!$M$11,) -> 0
A166: 遅・早(出) | AG166: =SUM(B166:AF166) -> 0 | AH166: 残業 | AL166: =AG165 -> 0 | AM166: =ROUNDDOWN(AL166*請求書・納品書!$M$12,) -> 0
A167: 遅・早(公) | AG167: =SUM(B167:AF167) -> 0 | AH167: 公出 | AI167: =COUNTIF(B164:AF164,"公") -> 0 | AJ167: =AI167*7.8 -> 0 | AK167: =AG167 -> 0 | AL167: =AJ167-AK167 -> 0 | AM167: =ROUNDDOWN(AL167*請求書・納品書!$M$13,) -> 0
A168: 連続 | AG168: =SUM(B168:AF168) -> 0 | AH168: 連続 | AL168: =AG168 -> 0 | AM168: =AL168*請求書・納品書!$M$14 -> 0
AL169: 合 計 | AM169: =SUM(AM165:AM168) -> 0 | AO169: =AM151+AM157+AM163+AM169 -> 0
AH170: =A170 -> 0 | AI170: 日数(日) | AJ170: 勤務時間(h) | AK170: 早退（h） | AL170: 合計(h) | AM170: 金額(円)
A171: 残業 | AG171: =SUM(B171:AF171) -> 0 | AH171: 出勤 | AI171: =COUNTIF(B170:AF170,"出") -> 0 | AJ171: =AI171*7.8 -> 0 | AK171: =AG172 -> 0 | AL171: =AJ171-AK171 -> 0 | AM171: =ROUNDDOWN(AL171*請求書・納品書!$M$11,) -> 0
A172: 遅・早(出) | AG172: =SUM(B172:AF172) -> 0 | AH172: 残業 | AL172: =AG171 -> 0 | AM172: =ROUNDDOWN(AL172*請求書・納品書!$M$12,) -> 0
A173: 遅・早(公) | AG173: =SUM(B173:AF173) -> 0 | AH173: 公出 | AI173: =COUNTIF(B170:AF170,"公") -> 0 | AJ173: =AI173*7.8 -> 0 | AK173: =AG173 -> 0 | AL173: =AJ173-AK173 -> 0 | AM173: =ROUNDDOWN(AL173*請求書・納品書!$M$13,) -> 0
A174: 連続 | AG174: =SUM(B174:AF174) -> 0 | AH174: 連続 | AL174: =AG174 -> 0 | AM174: =AL174*請求書・納品書!$M$14 -> 0
AL175: 合 計 | AM175: =SUM(AM171:AM174) -> 0
AH176: =A176 -> 0 | AI176: 日数(日) | AJ176: 勤務時間(h) | AK176: 早退（h） | AL176: 合計(h) | AM176: 金額(円)
A177: 残業 | AG177: =SUM(B177:AF177) -> 0 | AH177: 出勤 | AI177: =COUNTIF(B176:AF176,"出") -> 0 | AJ177: =AI177*7.8 -> 0 | AK177: =AG178 -> 0 | AL177: =AJ177-AK177 -> 0 | AM177: =ROUNDDOWN(AL177*請求書・納品書!$M$11,) -> 0
A178: 遅・早(出) | AG178: =SUM(B178:AF178) -> 0 | AH178: 残業 | AL178: =AG177 -> 0 | AM178: =ROUNDDOWN(AL178*請求書・納品書!$M$12,) -> 0
A179: 遅・早(公) | AG179: =SUM(B179:AF179) -> 0 | AH179: 公出 | AI179: =COUNTIF(B176:AF176,"公") -> 0 | AJ179: =AI179*7.8 -> 0 | AK179: =AG179 -> 0 | AL179: =AJ179-AK179 -> 0 | AM179: =ROUNDDOWN(AL179*請求書・納品書!$M$13,) -> 0
A180: 連続 | AG180: =SUM(B180:AF180) -> 0 | AH180: 連続 | AL180: =AG180 -> 0 | AM180: =AL180*請求書・納品書!$M$14 -> 0
AL181: 合 計 | AM181: =SUM(AM177:AM180) -> 0
AH182: =A182 -> 0 | AI182: 日数(日) | AJ182: 勤務時間(h) | AK182: 早退（h） | AL182: 合計(h) | AM182: 金額(円)
A183: 残業 | AG183: =SUM(B183:AF183) -> 0 | AH183: 出勤 | AI183: =COUNTIF(B182:AF182,"出") -> 0 | AJ183: =AI183*7.8 -> 0 | AK183: =AG184 -> 0 | AL183: =AJ183-AK183 -> 0 | AM183: =ROUNDDOWN(AL183*請求書・納品書!$M$11,) -> 0
A184: 遅・早(出) | AG184: =SUM(B184:AF184) -> 0 | AH184: 残業 | AL184: =AG183 -> 0 | AM184: =ROUNDDOWN(AL184*請求書・納品書!$M$12,) -> 0
A185: 遅・早(公) | AG185: =SUM(B185:AF185) -> 0 | AH185: 公出 | AI185: =COUNTIF(B182:AF182,"公") -> 0 | AJ185: =AI185*7.8 -> 0 | AK185: =AG185 -> 0 | AL185: =AJ185-AK185 -> 0 | AM185: =ROUNDDOWN(AL185*請求書・納品書!$M$13,) -> 0
A186: 連続 | AG186: =SUM(B186:AF186) -> 0 | AH186: 連続 | AL186: =AG186 -> 0 | AM186: =AL186*請求書・納品書!$M$14 -> 0
AL187: 合 計 | AM187: =SUM(AM183:AM186) -> 0
AH188: =A188 -> 0 | AI188: 日数(日) | AJ188: 勤務時間(h) | AK188: 早退（h） | AL188: 合計(h) | AM188: 金額(円)
A189: 残業 | AG189: =SUM(B189:AF189) -> 0 | AH189: 出勤 | AI189: =COUNTIF(B188:AF188,"出") -> 0 | AJ189: =AI189*7.8 -> 0 | AK189: =AG190 -> 0 | AL189: =AJ189-AK189 -> 0 | AM189: =ROUNDDOWN(AL189*請求書・納品書!$M$11,) -> 0
A190: 遅・早(出) | AG190: =SUM(B190:AF190) -> 0 | AH190: 残業 | AL190: =AG189 -> 0 | AM190: =ROUNDDOWN(AL190*請求書・納品書!$M$12,) -> 0
A191: 遅・早(公) | AG191: =SUM(B191:AF191) -> 0 | AH191: 公出 | AI191: =COUNTIF(B188:AF188,"公") -> 0 | AJ191: =AI191*7.8 -> 0 | AK191: =AG191 -> 0 | AL191: =AJ191-AK191 -> 0 | AM191: =ROUNDDOWN(AL191*請求書・納品書!$M$13,) -> 0
A192: 連続 | AG192: =SUM(B192:AF192) -> 0 | AH192: 連続 | AL192: =AG192 -> 0 | AM192: =AL192*請求書・納品書!$M$14 -> 0
AL193: 合 計 | AM193: =SUM(AM189:AM192) -> 0 | AO193: =AM175+AM181+AM187+AM193 -> 0

Sheet 12
A1: ='4'!A1 -> 2010 | B1: 1 | C1: 2 | D1: 3 | E1: 4 | F1: 5 | G1: 6 | H1: 7 | I1: 8 | J1: 9 | K1: 10 | L1: 11 | M1: 12 | N1: 13 | O1: 14 | P1: 15 | Q1: 16 | R1: 17 | S1: 18 | T1: 19 | U1: 20 | V1: 21 | W1: 22 | X1: 23 | Y1: 24 | Z1: 25 | AA1: 26 | AB1: 27 | AC1: 28 | AD1: 29 | AE1: 30 | AF1: 31 | AG1: 計 | AH1: =A1&"年"&MID(CELL("filename",$A$1),FIND("]",CELL("filename",$A$1))+1,31) &"月" -> 2010年12月
AH2: =A2 -> 0 | AI2: 日数(日) | AJ2: 勤務時間(h) | AK2: 早退（h） | AL2: 合計(h) | AM2: 金額(円) | AN2: 出 | AO2: 合計 | AP2: =SUM(AM:AM)/2 -> 0
A3: 残業 | AG3: =SUM(B3:AF3) -> 0 | AH3: 出勤 | AI3: =COUNTIF(B2:AF2,"出") -> 0 | AJ3: =AI3*7.8 -> 0 | AK3: =AG4 -> 0 | AL3: =AJ3-AK3 -> 0 | AM3: =ROUNDDOWN(AL3*請求書・納品書!$M$11,) -> 0 | AN3: 公 | AO3: 人数 | AP3: =COUNTA(AH:AH)-COUNTIF(AH:AH,0)-32*4-1 -> 0
A4: 遅・早(出) | AG4: =SUM(B4:AF4) -> 0 | AH4: 残業 | AL4: =AG3 -> 0 | AM4: =ROUNDDOWN(AL4*請求書・納品書!$M$12,) -> 0 | AN4: 欠 | AO4: 管理費 | AP4: =(AP3-AP9)*19400 -> 0
A5: 遅・早(公) | AG5: =SUM(B5:AF5) -> 0 | AH5: 公出 | AI5: =COUNTIF(B2:AF2,"公") -> 0 | AJ5: =AI5*7.8 -> 0 | AK5: =AG5 -> 0 | AL5: =AJ5-AK5 -> 0 | AM5: =ROUNDDOWN(AL5*請求書・納品書!$M$13,) -> 0 | AN5: 有 | AO5: 小計 | AP5: =AP2+AP4 -> 0
A6: 連続 | AG6: =SUM(B6:AF6) -> 0 | AH6: 連続 | AL6: =AG6 -> 0 | AM6: =AL6*請求書・納品書!$M$14 -> 0 | AN6: 半 | AO6: 消費税 | AP6: =ROUNDDOWN(AP5*0.05,) -> 0
AL7: 合 計 | AM7: =SUM(AM3:AM6) -> 0 | AO7: 総合計 | AP7: =AP5+AP6 -> 0
AH8: =A8 -> 0 | AI8: 日数(日) | AJ8: 勤務時間(h) | AK8: 早退（h） | AL8: 合計(h) | AM8: 金額(円)
A9: 残業 | AG9: =SUM(B9:AF9) -> 0 | AH9: 出勤 | AI9: =COUNTIF(B8:AF8,"出") -> 0 | AJ9: =AI9*7.8 -> 0 | AK9: =AG10 -> 0 | AL9: =AJ9-AK9 -> 0 | AM9: =ROUNDDOWN(AL9*請求書・納品書!$M$11,) -> 0 | AO9: 管理費に入れない人数
A10: 遅・早(出) | AG10: =SUM(B10:AF10) -> 0 | AH10: 残業 | AL10: =AG9 -> 0 | AM10: =ROUNDDOWN(AL10*請求書・納品書!$M$12,) -> 0
A11: 遅・早(公) | AG11: =SUM(B11:AF11) -> 0 | AH11: 公出 | AI11: =COUNTIF(B8:AF8,"公") -> 0 | AJ11: =AI11*7.8 -> 0 | AK11: =AG11 -> 0 | AL11: =AJ11-AK11 -> 0 | AM11: =ROUNDDOWN(AL11*請求書・納品書!$M$13,) -> 0
A12: 連続 | AG12: =SUM(B12:AF12) -> 0 | AH12: 連続 | AL12: =AG12 -> 0 | AM12: =AL12*請求書・納品書!$M$14 -> 0
AL13: 合 計 | AM13: =SUM(AM9:AM12) -> 0
AH14: =A14 -> 0 | AI14: 日数(日) | AJ14: 勤務時間(h) | AK14: 早退（h） | AL14: 合計(h) | AM14: 金額(円)
A15: 残業 | AG15: =SUM(B15:AF15) -> 0 | AH15: 出勤 | AI15: =COUNTIF(B14:AF14,"出") -> 0 | AJ15: =AI15*7.8 -> 0 | AK15: =AG16 -> 0 | AL15: =AJ15-AK15 -> 0 | AM15: =ROUNDDOWN(AL15*請求書・納品書!$M$11,) -> 0
A16: 遅・早(出) | AG16: =SUM(B16:AF16) -> 0 | AH16: 残業 | AL16: =AG15 -> 0 | AM16: =ROUNDDOWN(AL16*請求書・納品書!$M$12,) -> 0
A17: 遅・早(公) | AG17: =SUM(B17:AF17) -> 0 | AH17: 公出 | AI17: =COUNTIF(B14:AF14,"公") -> 0 | AJ17: =AI17*7.8 -> 0 | AK17: =AG17 -> 0 | AL17: =AJ17-AK17 -> 0 | AM17: =ROUNDDOWN(AL17*請求書・納品書!$M$13,) -> 0
A18: 連続 | AG18: =SUM(B18:AF18) -> 0 | AH18: 連続 | AL18: =AG18 -> 0 | AM18: =AL18*請求書・納品書!$M$14 -> 0
AL19: 合 計 | AM19: =SUM(AM15:AM18) -> 0
AH20: =A20 -> 0 | AI20: 日数(日) | AJ20: 勤務時間(h) | AK20: 早退（h） | AL20: 合計(h) | AM20: 金額(円)
A21: 残業 | AG21: =SUM(B21:AF21) -> 0 | AH21: 出勤 | AI21: =COUNTIF(B20:AF20,"出") -> 0 | AJ21: =AI21*7.8 -> 0 | AK21: =AG22 -> 0 | AL21: =AJ21-AK21 -> 0 | AM21: =ROUNDDOWN(AL21*請求書・納品書!$M$11,) -> 0
A22: 遅・早(出) | AG22: =SUM(B22:AF22) -> 0 | AH22: 残業 | AL22: =AG21 -> 0 | AM22: =ROUNDDOWN(AL22*請求書・納品書!$M$12,) -> 0
A23: 遅・早(公) | AG23: =SUM(B23:AF23) -> 0 | AH23: 公出 | AI23: =COUNTIF(B20:AF20,"公") -> 0 | AJ23: =AI23*7.8 -> 0 | AK23: =AG23 -> 0 | AL23: =AJ23-AK23 -> 0 | AM23: =ROUNDDOWN(AL23*請求書・納品書!$M$13,) -> 0
A24: 連続 | AG24: =SUM(B24:AF24) -> 0 | AH24: 連続 | AL24: =AG24 -> 0 | AM24: =AL24*請求書・納品書!$M$14 -> 0
AL25: 合 計 | AM25: =SUM(AM21:AM24) -> 0 | AO25: =AM7+AM13+AM19+AM25 -> 0
AH26: =A26 -> 0 | AI26: 日数(日) | AJ26: 勤務時間(h) | AK26: 早退（h） | AL26: 合計(h) | AM26: 金額(円)
A27: 残業 | AG27: =SUM(B27:AF27) -> 0 | AH27: 出勤 | AI27: =COUNTIF(B26:AF26,"出") -> 0 | AJ27: =AI27*7.8 -> 0 | AK27: =AG28 -> 0 | AL27: =AJ27-AK27 -> 0 | AM27: =ROUNDDOWN(AL27*請求書・納品書!$M$11,) -> 0
A28: 遅・早(出) | AG28: =SUM(B28:AF28) -> 0 | AH28: 残業 | AL28: =AG27 -> 0 | AM28: =ROUNDDOWN(AL28*請求書・納品書!$M$12,) -> 0
A29: 遅・早(公) | AG29: =SUM(B29:AF29) -> 0 | AH29: 公出 | AI29: =COUNTIF(B26:AF26,"公") -> 0 | AJ29: =AI29*7.8 -> 0 | AK29: =AG29 -> 0 | AL29: =AJ29-AK29 -> 0 | AM29: =ROUNDDOWN(AL29*請求書・納品書!$M$13,) -> 0
A30: 連続 | AG30: =SUM(B30:AF30) -> 0 | AH30: 連続 | AL30: =AG30 -> 0 | AM30: =AL30*請求書・納品書!$M$14 -> 0
AL31: 合 計 | AM31: =SUM(AM27:AM30) -> 0
AH32: =A32 -> 0 | AI32: 日数(日) | AJ32: 勤務時間(h) | AK32: 早退（h） | AL32: 合計(h) | AM32: 金額(円)
A33: 残業 | AG33: =SUM(B33:AF33) -> 0 | AH33: 出勤 | AI33: =COUNTIF(B32:AF32,"出") -> 0 | AJ33: =AI33*7.8 -> 0 | AK33: =AG34 -> 0 | AL33: =AJ33-AK33 -> 0 | AM33: =ROUNDDOWN(AL33*請求書・納品書!$M$11,) -> 0
A34: 遅・早(出) | AG34: =SUM(B34:AF34) -> 0 | AH34: 残業 | AL34: =AG33 -> 0 | AM34: =ROUNDDOWN(AL34*請求書・納品書!$M$12,) -> 0
A35: 遅・早(公) | AG35: =SUM(B35:AF35) -> 0 | AH35: 公出 | AI35: =COUNTIF(B32:AF32,"公") -> 0 | AJ35: =AI35*7.8 -> 0 | AK35: =AG35 -> 0 | AL35: =AJ35-AK35 -> 0 | AM35: =ROUNDDOWN(AL35*請求書・納品書!$M$13,) -> 0
A36: 連続 | AG36: =SUM(B36:AF36) -> 0 | AH36: 連続 | AL36: =AG36 -> 0 | AM36: =AL36*請求書・納品書!$M$14 -> 0
AL37: 合 計 | AM37: =SUM(AM33:AM36) -> 0
AH38: =A38 -> 0 | AI38: 日数(日) | AJ38: 勤務時間(h) | AK38: 早退（h） | AL38: 合計(h) | AM38: 金額(円)
A39: 残業 | AG39: =SUM(B39:AF39) -> 0 | AH39: 出勤 | AI39: =COUNTIF(B38:AF38,"出") -> 0 | AJ39: =AI39*7.8 -> 0 | AK39: =AG40 -> 0 | AL39: =AJ39-AK39 -> 0 | AM39: =ROUNDDOWN(AL39*請求書・納品書!$M$11,) -> 0
A40: 遅・早(出) | AG40: =SUM(B40:AF40) -> 0 | AH40: 残業 | AL40: =AG39 -> 0 | AM40: =ROUNDDOWN(AL40*請求書・納品書!$M$12,) -> 0
A41: 遅・早(公) | AG41: =SUM(B41:AF41) -> 0 | AH41: 公出 | AI41: =COUNTIF(B38:AF38,"公") -> 0 | AJ41: =AI41*7.8 -> 0 | AK41: =AG41 -> 0 | AL41: =AJ41-AK41 -> 0 | AM41: =ROUNDDOWN(AL41*請求書・納品書!$M$13,) -> 0
A42: 連続 | AG42: =SUM(B42:AF42) -> 0 | AH42: 連続 | AL42: =AG42 -> 0 | AM42: =AL42*請求書・納品書!$M$14 -> 0
AL43: 合 計 | AM43: =SUM(AM39:AM42) -> 0
AH44: =A44 -> 0 | AI44: 日数(日) | AJ44: 勤務時間(h) | AK44: 早退（h） | AL44: 合計(h) | AM44: 金額(円)
A45: 残業 | AG45: =SUM(B45:AF45) -> 0 | AH45: 出勤 | AI45: =COUNTIF(B44:AF44,"出") -> 0 | AJ45: =AI45*7.8 -> 0 | AK45: =AG46 -> 0 | AL45: =AJ45-AK45 -> 0 | AM45: =ROUNDDOWN(AL45*請求書・納品書!$M$11,) -> 0
A46: 遅・早(出) | AG46: =SUM(B46:AF46) -> 0 | AH46: 残業 | AL46: =AG45 -> 0 | AM46: =ROUNDDOWN(AL46*請求書・納品書!$M$12,) -> 0
A47: 遅・早(公) | AG47: =SUM(B47:AF47) -> 0 | AH47: 公出 | AI47: =COUNTIF(B44:AF44,"公") -> 0 | AJ47: =AI47*7.8 -> 0 | AK47: =AG47 -> 0 | AL47: =AJ47-AK47 -> 0 | AM47: =ROUNDDOWN(AL47*請求書・納品書!$M$13,) -> 0
A48: 連続 | AG48: =SUM(B48:AF48) -> 0 | AH48: 連続 | AL48: =AG48 -> 0 | AM48: =AL48*請求書・納品書!$M$14 -> 0
AL49: 合 計 | AM49: =SUM(AM45:AM48) -> 0 | AO49: =AM31+AM37+AM43+AM49 -> 0
AH50: =A50 -> 0 | AI50: 日数(日) | AJ50: 勤務時間(h) | AK50: 早退（h） | AL50: 合計(h) | AM50: 金額(円)
A51: 残業 | AG51: =SUM(B51:AF51) -> 0 | AH51: 出勤 | AI51: =COUNTIF(B50:AF50,"出") -> 0 | AJ51: =AI51*7.8 -> 0 | AK51: =AG52 -> 0 | AL51: =AJ51-AK51 -> 0 | AM51: =ROUNDDOWN(AL51*請求書・納品書!$M$11,) -> 0
A52: 遅・早(出) | AG52: =SUM(B52:AF52) -> 0 | AH52: 残業 | AL52: =AG51 -> 0 | AM52: =ROUNDDOWN(AL52*請求書・納品書!$M$12,) -> 0
A53: 遅・早(公) | AG53: =SUM(B53:AF53) -> 0 | AH53: 公出 | AI53: =COUNTIF(B50:AF50,"公") -> 0 | AJ53: =AI53*7.8 -> 0 | AK53: =AG53 -> 0 | AL53: =AJ53-AK53 -> 0 | AM53: =ROUNDDOWN(AL53*請求書・納品書!$M$13,) -> 0
A54: 連続 | AG54: =SUM(B54:AF54) -> 0 | AH54: 連続 | AL54: =AG54 -> 0 | AM54: =AL54*請求書・納品書!$M$14 -> 0
AL55: 合 計 | AM55: =SUM(AM51:AM54) -> 0
AH56: =A56 -> 0 | AI56: 日数(日) | AJ56: 勤務時間(h) | AK56: 早退（h） | AL56: 合計(h) | AM56: 金額(円)
A57: 残業 | AG57: =SUM(B57:AF57) -> 0 | AH57: 出勤 | AI57: =COUNTIF(B56:AF56,"出") -> 0 | AJ57: =AI57*7.8 -> 0 | AK57: =AG58 -> 0 | AL57: =AJ57-AK57 -> 0 | AM57: =ROUNDDOWN(AL57*請求書・納品書!$M$11,) -> 0
A58: 遅・早(出) | AG58: =SUM(B58:AF58) -> 0 | AH58: 残業 | AL58: =AG57 -> 0 | AM58: =ROUNDDOWN(AL58*請求書・納品書!$M$12,) -> 0
A59: 遅・早(公) | AG59: =SUM(B59:AF59) -> 0 | AH59: 公出 | AI59: =COUNTIF(B56:AF56,"公") -> 0 | AJ59: =AI59*7.8 -> 0 | AK59: =AG59 -> 0 | AL59: =AJ59-AK59 -> 0 | AM59: =ROUNDDOWN(AL59*請求書・納品書!$M$13,) -> 0
A60: 連続 | AG60: =SUM(B60:AF60) -> 0 | AH60: 連続 | AL60: =AG60 -> 0 | AM60: =AL60*請求書・納品書!$M$14 -> 0
AL61: 合 計 | AM61: =SUM(AM57:AM60) -> 0
AH62: =A62 -> 0 | AI62: 日数(日) | AJ62: 勤務時間(h) | AK62: 早退（h） | AL62: 合計(h) | AM62: 金額(円)
A63: 残業 | AG63: =SUM(B63:AF63) -> 0 | AH63: 出勤 | AI63: =COUNTIF(B62:AF62,"出") -> 0 | AJ63: =AI63*7.8 -> 0 | AK63: =AG64 -> 0 | AL63: =AJ63-AK63 -> 0 | AM63: =ROUNDDOWN(AL63*請求書・納品書!$M$11,) -> 0
A64: 遅・早(出) | AG64: =SUM(B64:AF64) -> 0 | AH64: 残業 | AL64: =AG63 -> 0 | AM64: =ROUNDDOWN(AL64*請求書・納品書!$M$12,) -> 0
A65: 遅・早(公) | AG65: =SUM(B65:AF65) -> 0 | AH65: 公出 | AI65: =COUNTIF(B62:AF62,"公") -> 0 | AJ65: =AI65*7.8 -> 0 | AK65: =AG65 -> 0 | AL65: =AJ65-AK65 -> 0 | AM65: =ROUNDDOWN(AL65*請求書・納品書!$M$13,) -> 0
A66: 連続 | AG66: =SUM(B66:AF66) -> 0 | AH66: 連続 | AL66: =AG66 -> 0 | AM66: =AL66*請求書・納品書!$M$14 -> 0
AL67: 合 計 | AM67: =SUM(AM63:AM66) -> 0
AH68: =A68 -> 0 | AI68: 日数(日) | AJ68: 勤務時間(h) | AK68: 早退（h） | AL68: 合計(h) | AM68: 金額(円)
A69: 残業 | AG69: =SUM(B69:AF69) -> 0 | AH69: 出勤 | AI69: =COUNTIF(B68:AF68,"出") -> 0 | AJ69: =AI69*7.8 -> 0 | AK69: =AG70 -> 0 | AL69: =AJ69-AK69 -> 0 | AM69: =ROUNDDOWN(AL69*請求書・納品書!$M$11,) -> 0
A70: 遅・早(出) | AG70: =SUM(B70:AF70) -> 0 | AH70: 残業 | AL70: =AG69 -> 0 | AM70: =ROUNDDOWN(AL70*請求書・納品書!$M$12,) -> 0
A71: 遅・早(公) | AG71: =SUM(B71:AF71) -> 0 | AH71: 公出 | AI71: =COUNTIF(B68:AF68,"公") -> 0 | AJ71: =AI71*7.8 -> 0 | AK71: =AG71 -> 0 | AL71: =AJ71-AK71 -> 0 | AM71: =ROUNDDOWN(AL71*請求書・納品書!$M$13,) -> 0
A72: 連続 | AG72: =SUM(B72:AF72) -> 0 | AH72: 連続 | AL72: =AG72 -> 0 | AM72: =AL72*請求書・納品書!$M$14 -> 0
AL73: 合 計 | AM73: =SUM(AM69:AM72) -> 0 | AO73: =AM55+AM61+AM67+AM73 -> 0
AH74: =A74 -> 0 | AI74: 日数(日) | AJ74: 勤務時間(h) | AK74: 早退（h） | AL74: 合計(h) | AM74: 金額(円)
A75: 残業 | AG75: =SUM(B75:AF75) -> 0 | AH75: 出勤 | AI75: =COUNTIF(B74:AF74,"出") -> 0 | AJ75: =AI75*7.8 -> 0 | AK75: =AG76 -> 0 | AL75: =AJ75-AK75 -> 0 | AM75: =ROUNDDOWN(AL75*請求書・納品書!$M$11,) -> 0
A76: 遅・早(出) | AG76: =SUM(B76:AF76) -> 0 | AH76: 残業 | AL76: =AG75 -> 0 | AM76: =ROUNDDOWN(AL76*請求書・納品書!$M$12,) -> 0
A77: 遅・早(公) | AG77: =SUM(B77:AF77) -> 0 | AH77: 公出 | AI77: =COUNTIF(B74:AF74,"公") -> 0 | AJ77: =AI77*7.8 -> 0 | AK77: =AG77 -> 0 | AL77: =AJ77-AK77 -> 0 | AM77: =ROUNDDOWN(AL77*請求書・納品書!$M$13,) -> 0
A78: 連続 | AG78: =SUM(B78:AF78) -> 0 | AH78: 連続 | AL78: =AG78 -> 0 | AM78: =AL78*請求書・納品書!$M$14 -> 0
AL79: 合 計 | AM79: =SUM(AM75:AM78) -> 0
AH80: =A80 -> 0 | AI80: 日数(日) | AJ80: 勤務時間(h) | AK80: 早退（h） | AL80: 合計(h) | AM80: 金額(円)
A81: 残業 | AG81: =SUM(B81:AF81) -> 0 | AH81: 出勤 | AI81: =COUNTIF(B80:AF80,"出") -> 0 | AJ81: =AI81*7.8 -> 0 | AK81: =AG82 -> 0 | AL81: =AJ81-AK81 -> 0 | AM81: =ROUNDDOWN(AL81*請求書・納品書!$M$11,) -> 0
A82: 遅・早(出) | AG82: =SUM(B82:AF82) -> 0 | AH82: 残業 | AL82: =AG81 -> 0 | AM82: =ROUNDDOWN(AL82*請求書・納品書!$M$12,) -> 0
A83: 遅・早(公) | AG83: =SUM(B83:AF83) -> 0 | AH83: 公出 | AI83: =COUNTIF(B80:AF80,"公") -> 0 | AJ83: =AI83*7.8 -> 0 | AK83: =AG83 -> 0 | AL83: =AJ83-AK83 -> 0 | AM83: =ROUNDDOWN(AL83*請求書・納品書!$M$13,) -> 0
A84: 連続 | AG84: =SUM(B84:AF84) -> 0 | AH84: 連続 | AL84: =AG84 -> 0 | AM84: =AL84*請求書・納品書!$M$14 -> 0
AL85: 合 計 | AM85: =SUM(AM81:AM84) -> 0
AH86: =A86 -> 0 | AI86: 日数(日) | AJ86: 勤務時間(h) | AK86: 早退（h） | AL86: 合計(h) | AM86: 金額(円)
A87: 残業 | AG87: =SUM(B87:AF87) -> 0 | AH87: 出勤 | AI87: =COUNTIF(B86:AF86,"出") -> 0 | AJ87: =AI87*7.8 -> 0 | AK87: =AG88 -> 0 | AL87: =AJ87-AK87 -> 0 | AM87: =ROUNDDOWN(AL87*請求書・納品書!$M$11,) -> 0
A88: 遅・早(出) | AG88: =SUM(B88:AF88) -> 0 | AH88: 残業 | AL88: =AG87 -> 0 | AM88: =ROUNDDOWN(AL88*請求書・納品書!$M$12,) -> 0
A89: 遅・早(公) | AG89: =SUM(B89:AF89) -> 0 | AH89: 公出 | AI89: =COUNTIF(B86:AF86,"公") -> 0 | AJ89: =AI89*7.8 -> 0 | AK89: =AG89 -> 0 | AL89: =AJ89-AK89 -> 0 | AM89: =ROUNDDOWN(AL89*請求書・納品書!$M$13,) -> 0
A90: 連続 | AG90: =SUM(B90:AF90) -> 0 | AH90: 連続 | AL90: =AG90 -> 0 | AM90: =AL90*請求書・納品書!$M$14 -> 0
AL91: 合 計 | AM91: =SUM(AM87:AM90) -> 0
AH92: =A92 -> 0 | AI92: 日数(日) | AJ92: 勤務時間(h) | AK92: 早退（h） | AL92: 合計(h) | AM92: 金額(円)
A93: 残業 | AG93: =SUM(B93:AF93) -> 0 | AH93: 出勤 | AI93: =COUNTIF(B92:AF92,"出") -> 0 | AJ93: =AI93*7.8 -> 0 | AK93: =AG94 -> 0 | AL93: =AJ93-AK93 -> 0 | AM93: =ROUNDDOWN(AL93*請求書・納品書!$M$11,) -> 0
A94: 遅・早(出) | AG94: =SUM(B94:AF94) -> 0 | AH94: 残業 | AL94: =AG93 -> 0 | AM94: =ROUNDDOWN(AL94*請求書・納品書!$M$12,) -> 0
A95: 遅・早(公) | AG95: =SUM(B95:AF95) -> 0 | AH95: 公出 | AI95: =COUNTIF(B92:AF92,"公") -> 0 | AJ95: =AI95*7.8 -> 0 | AK95: =AG95 -> 0 | AL95: =AJ95-AK95 -> 0 | AM95: =ROUNDDOWN(AL95*請求書・納品書!$M$13,) -> 0
A96: 連続 | AG96: =SUM(B96:AF96) -> 0 | AH96: 連続 | AL96: =AG96 -> 0 | AM96: =AL96*請求書・納品書!$M$14 -> 0
AL97: 合 計 | AM97: =SUM(AM93:AM96) -> 0 | AO97: =AM79+AM85+AM91+AM97 -> 0
AH98: =A98 -> 0 | AI98: 日数(日) | AJ98: 勤務時間(h) | AK98: 早退（h） | AL98: 合計(h) | AM98: 金額(円)
A99: 残業 | AG99: =SUM(B99:AF99) -> 0 | AH99: 出勤 | AI99: =COUNTIF(B98:AF98,"出") -> 0 | AJ99: =AI99*7.8 -> 0 | AK99: =AG100 -> 0 | AL99: =AJ99-AK99 -> 0 | AM99: =ROUNDDOWN(AL99*請求書・納品書!$M$11,) -> 0
A100: 遅・早(出) | AG100: =SUM(B100:AF100) -> 0 | AH100: 残業 | AL100: =AG99 -> 0 | AM100: =ROUNDDOWN(AL100*請求書・納品書!$M$12,) -> 0
A101: 遅・早(公) | AG101: =SUM(B101:AF101) -> 0 | AH101: 公出 | AI101: =COUNTIF(B98:AF98,"公") -> 0 | AJ101: =AI101*7.8 -> 0 | AK101: =AG101 -> 0 | AL101: =AJ101-AK101 -> 0 | AM101: =ROUNDDOWN(AL101*請求書・納品書!$M$13,) -> 0
A102: 連続 | AG102: =SUM(B102:AF102) -> 0 | AH102: 連続 | AL102: =AG102 -> 0 | AM102: =AL102*請求書・納品書!$M$14 -> 0
AL103: 合 計 | AM103: =SUM(AM99:AM102) -> 0
AH104: =A104 -> 0 | AI104: 日数(日) | AJ104: 勤務時間(h) | AK104: 早退（h） | AL104: 合計(h) | AM104: 金額(円)
A105: 残業 | AG105: =SUM(B105:AF105) -> 0 | AH105: 出勤 | AI105: =COUNTIF(B104:AF104,"出") -> 0 | AJ105: =AI105*7.8 -> 0 | AK105: =AG106 -> 0 | AL105: =AJ105-AK105 -> 0 | AM105: =ROUNDDOWN(AL105*請求書・納品書!$M$11,) -> 0
A106: 遅・早(出) | AG106: =SUM(B106:AF106) -> 0 | AH106: 残業 | AL106: =AG105 -> 0 | AM106: =ROUNDDOWN(AL106*請求書・納品書!$M$12,) -> 0
A107: 遅・早(公) | AG107: =SUM(B107:AF107) -> 0 | AH107: 公出 | AI107: =COUNTIF(B104:AF104,"公") -> 0 | AJ107: =AI107*7.8 -> 0 | AK107: =AG107 -> 0 | AL107: =AJ107-AK107 -> 0 | AM107: =ROUNDDOWN(AL107*請求書・納品書!$M$13,) -> 0
A108: 連続 | AG108: =SUM(B108:AF108) -> 0 | AH108: 連続 | AL108: =AG108 -> 0 | AM108: =AL108*請求書・納品書!$M$14 -> 0
AL109: 合 計 | AM109: =SUM(AM105:AM108) -> 0
AH110: =A110 -> 0 | AI110: 日数(日) | AJ110: 勤務時間(h) | AK110: 早退（h） | AL110: 合計(h) | AM110: 金額(円)
A111: 残業 | AG111: =SUM(B111:AF111) -> 0 | AH111: 出勤 | AI111: =COUNTIF(B110:AF110,"出") -> 0 | AJ111: =AI111*7.8 -> 0 | AK111: =AG112 -> 0 | AL111: =AJ111-AK111 -> 0 | AM111: =ROUNDDOWN(AL111*請求書・納品書!$M$11,) -> 0
A112: 遅・早(出) | AG112: =SUM(B112:AF112) -> 0 | AH112: 残業 | AL112: =AG111 -> 0 | AM112: =ROUNDDOWN(AL112*請求書・納品書!$M$12,) -> 0
A113: 遅・早(公) | AG113: =SUM(B113:AF113) -> 0 | AH113: 公出 | AI113: =COUNTIF(B110:AF110,"公") -> 0 | AJ113: =AI113*7.8 -> 0 | AK113: =AG113 -> 0 | AL113: =AJ113-AK113 -> 0 | AM113: =ROUNDDOWN(AL113*請求書・納品書!$M$13,) -> 0
A114: 連続 | AG114: =SUM(B114:AF114) -> 0 | AH114: 連続 | AL114: =AG114 -> 0 | AM114: =AL114*請求書・納品書!$M$14 -> 0
AL115: 合 計 | AM115: =SUM(AM111:AM114) -> 0
AH116: =A116 -> 0 | AI116: 日数(日) | AJ116: 勤務時間(h) | AK116: 早退（h） | AL116: 合計(h) | AM116: 金額(円)
A117: 残業 | AG117: =SUM(B117:AF117) -> 0 | AH117: 出勤 | AI117: =COUNTIF(B116:AF116,"出") -> 0 | AJ117: =AI117*7.8 -> 0 | AK117: =AG118 -> 0 | AL117: =AJ117-AK117 -> 0 | AM117: =ROUNDDOWN(AL117*請求書・納品書!$M$11,) -> 0
A118: 遅・早(出) | AG118: =SUM(B118:AF118) -> 0 | AH118: 残業 | AL118: =AG117 -> 0 | AM118: =ROUNDDOWN(AL118*請求書・納品書!$M$12,) -> 0
A119: 遅・早(公) | AG119: =SUM(B119:AF119) -> 0 | AH119: 公出 | AI119: =COUNTIF(B116:AF116,"公") -> 0 | AJ119: =AI119*7.8 -> 0 | AK119: =AG119 -> 0 | AL119: =AJ119-AK119 -> 0 | AM119: =ROUNDDOWN(AL119*請求書・納品書!$M$13,) -> 0
A120: 連続 | AG120: =SUM(B120:AF120) -> 0 | AH120: 連続 | AL120: =AG120 -> 0 | AM120: =AL120*請求書・納品書!$M$14 -> 0
AL121: 合 計 | AM121: =SUM(AM117:AM120) -> 0 | AO121: =AM103+AM109+AM115+AM121 -> 0
AH122: =A122 -> 0 | AI122: 日数(日) | AJ122: 勤務時間(h) | AK122: 早退（h） | AL122: 合計(h) | AM122: 金額(円)
A123: 残業 | AG123: =SUM(B123:AF123) -> 0 | AH123: 出勤 | AI123: =COUNTIF(B122:AF122,"出") -> 0 | AJ123: =AI123*7.8 -> 0 | AK123: =AG124 -> 0 | AL123: =AJ123-AK123 -> 0 | AM123: =ROUNDDOWN(AL123*請求書・納品書!$M$11,) -> 0
A124: 遅・早(出) | AG124: =SUM(B124:AF124) -> 0 | AH124: 残業 | AL124: =AG123 -> 0 | AM124: =ROUNDDOWN(AL124*請求書・納品書!$M$12,) -> 0
A125: 遅・早(公) | AG125: =SUM(B125:AF125) -> 0 | AH125: 公出 | AI125: =COUNTIF(B122:AF122,"公") -> 0 | AJ125: =AI125*7.8 -> 0 | AK125: =AG125 -> 0 | AL125: =AJ125-AK125 -> 0 | AM125: =ROUNDDOWN(AL125*請求書・納品書!$M$13,) -> 0
A126: 連続 | AG126: =SUM(B126:AF126) -> 0 | AH126: 連続 | AL126: =AG126 -> 0 | AM126: =AL126*請求書・納品書!$M$14 -> 0
AL127: 合 計 | AM127: =SUM(AM123:AM126) -> 0
AH128: =A128 -> 0 | AI128: 日数(日) | AJ128: 勤務時間(h) | AK128: 早退（h） | AL128: 合計(h) | AM128: 金額(円)
A129: 残業 | AG129: =SUM(B129:AF129) -> 0 | AH129: 出勤 | AI129: =COUNTIF(B128:AF128,"出") -> 0 | AJ129: =AI129*7.8 -> 0 | AK129: =AG130 -> 0 | AL129: =AJ129-AK129 -> 0 | AM129: =ROUNDDOWN(AL129*請求書・納品書!$M$11,) -> 0
A130: 遅・早(出) | AG130: =SUM(B130:AF130) -> 0 | AH130: 残業 | AL130: =AG129 -> 0 | AM130: =ROUNDDOWN(AL130*請求書・納品書!$M$12,) -> 0
A131: 遅・早(公) | AG131: =SUM(B131:AF131) -> 0 | AH131: 公出 | AI131: =COUNTIF(B128:AF128,"公") -> 0 | AJ131: =AI131*7.8 -> 0 | AK131: =AG131 -> 0 | AL131: =AJ131-AK131 -> 0 | AM131: =ROUNDDOWN(AL131*請求書・納品書!$M$13,) -> 0
A132: 連続 | AG132: =SUM(B132:AF132) -> 0 | AH132: 連続 | AL132: =AG132 -> 0 | AM132: =AL132*請求書・納品書!$M$14 -> 0
AL133: 合 計 | AM133: =SUM(AM129:AM132) -> 0
AH134: =A134 -> 0 | AI134: 日数(日) | AJ134: 勤務時間(h) | AK134: 早退（h） | AL134: 合計(h) | AM134: 金額(円)
A135: 残業 | AG135: =SUM(B135:AF135) -> 0 | AH135: 出勤 | AI135: =COUNTIF(B134:AF134,"出") -> 0 | AJ135: =AI135*7.8 -> 0 | AK135: =AG136 -> 0 | AL135: =AJ135-AK135 -> 0 | AM135: =ROUNDDOWN(AL135*請求書・納品書!$M$11,) -> 0
A136: 遅・早(出) | AG136: =SUM(B136:AF136) -> 0 | AH136: 残業 | AL136: =AG135 -> 0 | AM136: =ROUNDDOWN(AL136*請求書・納品書!$M$12,) -> 0
A137: 遅・早(公) | AG137: =SUM(B137:AF137) -> 0 | AH137: 公出 | AI137: =COUNTIF(B134:AF134,"公") -> 0 | AJ137: =AI137*7.8 -> 0 | AK137: =AG137 -> 0 | AL137: =AJ137-AK137 -> 0 | AM137: =ROUNDDOWN(AL137*請求書・納品書!$M$13,) -> 0
A138: 連続 | AG138: =SUM(B138:AF138) -> 0 | AH138: 連続 | AL138: =AG138 -> 0 | AM138: =AL138*請求書・納品書!$M$14 -> 0
AL139: 合 計 | AM139: =SUM(AM135:AM138) -> 0
AH140: =A140 -> 0 | AI140: 日数(日) | AJ140: 勤務時間(h) | AK140: 早退（h） | AL140: 合計(h) | AM140: 金額(円)
A141: 残業 | AG141: =SUM(B141:AF141) -> 0 | AH141: 出勤 | AI141: =COUNTIF(B140:AF140,"出") -> 0 | AJ141: =AI141*7.8 -> 0 | AK141: =AG142 -> 0 | AL141: =AJ141-AK141 -> 0 | AM141: =ROUNDDOWN(AL141*請求書・納品書!$M$11,) -> 0
A142: 遅・早(出) | AG142: =SUM(B142:AF142) -> 0 | AH142: 残業 | AL142: =AG141 -> 0 | AM142: =ROUNDDOWN(AL142*請求書・納品書!$M$12,) -> 0
A143: 遅・早(公) | AG143: =SUM(B143:AF143) -> 0 | AH143: 公出 | AI143: =COUNTIF(B140:AF140,"公") -> 0 | AJ143: =AI143*7.8 -> 0 | AK143: =AG143 -> 0 | AL143: =AJ143-AK143 -> 0 | AM143: =ROUNDDOWN(AL143*請求書・納品書!$M$13,) -> 0
A144: 連続 | AG144: =SUM(B144:AF144) -> 0 | AH144: 連続 | AL144: =AG144 -> 0 | AM144: =AL144*請求書・納品書!$M$14 -> 0
AL145: 合 計 | AM145: =SUM(AM141:AM144) -> 0 | AO145: =AM127+AM133+AM139+AM145 -> 0
AH146: =A146 -> 0 | AI146: 日数(日) | AJ146: 勤務時間(h) | AK146: 早退（h） | AL146: 合計(h) | AM146: 金額(円)
A147: 残業 | AG147: =SUM(B147:AF147) -> 0 | AH147: 出勤 | AI147: =COUNTIF(B146:AF146,"出") -> 0 | AJ147: =AI147*7.8 -> 0 | AK147: =AG148 -> 0 | AL147: =AJ147-AK147 -> 0 | AM147: =ROUNDDOWN(AL147*請求書・納品書!$M$11,) -> 0
A148: 遅・早(出) | AG148: =SUM(B148:AF148) -> 0 | AH148: 残業 | AL148: =AG147 -> 0 | AM148: =ROUNDDOWN(AL148*請求書・納品書!$M$12,) -> 0
A149: 遅・早(公) | AG149: =SUM(B149:AF149) -> 0 | AH149: 公出 | AI149: =COUNTIF(B146:AF146,"公") -> 0 | AJ149: =AI149*7.8 -> 0 | AK149: =AG149 -> 0 | AL149: =AJ149-AK149 -> 0 | AM149: =ROUNDDOWN(AL149*請求書・納品書!$M$13,) -> 0
A150: 連続 | AG150: =SUM(B150:AF150) -> 0 | AH150: 連続 | AL150: =AG150 -> 0 | AM150: =AL150*請求書・納品書!$M$14 -> 0
AL151: 合 計 | AM151: =SUM(AM147:AM150) -> 0
AH152: =A152 -> 0 | AI152: 日数(日) | AJ152: 勤務時間(h) | AK152: 早退（h） | AL152: 合計(h) | AM152: 金額(円)
A153: 残業 | AG153: =SUM(B153:AF153) -> 0 | AH153: 出勤 | AI153: =COUNTIF(B152:AF152,"出") -> 0 | AJ153: =AI153*7.8 -> 0 | AK153: =AG154 -> 0 | AL153: =AJ153-AK153 -> 0 | AM153: =ROUNDDOWN(AL153*請求書・納品書!$M$11,) -> 0
A154: 遅・早(出) | AG154: =SUM(B154:AF154) -> 0 | AH154: 残業 | AL154: =AG153 -> 0 | AM154: =ROUNDDOWN(AL154*請求書・納品書!$M$12,) -> 0
A155: 遅・早(公) | AG155: =SUM(B155:AF155) -> 0 | AH155: 公出 | AI155: =COUNTIF(B152:AF152,"公") -> 0 | AJ155: =AI155*7.8 -> 0 | AK155: =AG155 -> 0 | AL155: =AJ155-AK155 -> 0 | AM155: =ROUNDDOWN(AL155*請求書・納品書!$M$13,) -> 0
A156: 連続 | AG156: =SUM(B156:AF156) -> 0 | AH156: 連続 | AL156: =AG156 -> 0 | AM156: =AL156*請求書・納品書!$M$14 -> 0
AL157: 合 計 | AM157: =SUM(AM153:AM156) -> 0
AH158: =A158 -> 0 | AI158: 日数(日) | AJ158: 勤務時間(h) | AK158: 早退（h） | AL158: 合計(h) | AM158: 金額(円)
A159: 残業 | AG159: =SUM(B159:AF159) -> 0 | AH159: 出勤 | AI159: =COUNTIF(B158:AF158,"出") -> 0 | AJ159: =AI159*7.8 -> 0 | AK159: =AG160 -> 0 | AL159: =AJ159-AK159 -> 0 | AM159: =ROUNDDOWN(AL159*請求書・納品書!$M$11,) -> 0
A160: 遅・早(出) | AG160: =SUM(B160:AF160) -> 0 | AH160: 残業 | AL160: =AG159 -> 0 | AM160: =ROUNDDOWN(AL160*請求書・納品書!$M$12,) -> 0
A161: 遅・早(公) | AG161: =SUM(B161:AF161) -> 0 | AH161: 公出 | AI161: =COUNTIF(B158:AF158,"公") -> 0 | AJ161: =AI161*7.8 -> 0 | AK161: =AG161 -> 0 | AL161: =AJ161-AK161 -> 0 | AM161: =ROUNDDOWN(AL161*請求書・納品書!$M$13,) -> 0
A162: 連続 | AG162: =SUM(B162:AF162) -> 0 | AH162: 連続 | AL162: =AG162 -> 0 | AM162: =AL162*請求書・納品書!$M$14 -> 0
AL163: 合 計 | AM163: =SUM(AM159:AM162) -> 0
AH164: =A164 -> 0 | AI164: 日数(日) | AJ164: 勤務時間(h) | AK164: 早退（h） | AL164: 合計(h) | AM164: 金額(円)
A165: 残業 | AG165: =SUM(B165:AF165) -> 0 | AH165: 出勤 | AI165: =COUNTIF(B164:AF164,"出") -> 0 | AJ165: =AI165*7.8 -> 0 | AK165: =AG166 -> 0 | AL165: =AJ165-AK165 -> 0 | AM165: =ROUNDDOWN(AL165*請求書・納品書!$M$11,) -> 0
A166: 遅・早(出) | AG166: =SUM(B166:AF166) -> 0 | AH166: 残業 | AL166: =AG165 -> 0 | AM166: =ROUNDDOWN(AL166*請求書・納品書!$M$12,) -> 0
A167: 遅・早(公) | AG167: =SUM(B167:AF167) -> 0 | AH167: 公出 | AI167: =COUNTIF(B164:AF164,"公") -> 0 | AJ167: =AI167*7.8 -> 0 | AK167: =AG167 -> 0 | AL167: =AJ167-AK167 -> 0 | AM167: =ROUNDDOWN(AL167*請求書・納品書!$M$13,) -> 0
A168: 連続 | AG168: =SUM(B168:AF168) -> 0 | AH168: 連続 | AL168: =AG168 -> 0 | AM168: =AL168*請求書・納品書!$M$14 -> 0
AL169: 合 計 | AM169: =SUM(AM165:AM168) -> 0 | AO169: =AM151+AM157+AM163+AM169 -> 0
AH170: =A170 -> 0 | AI170: 日数(日) | AJ170: 勤務時間(h) | AK170: 早退（h） | AL170: 合計(h) | AM170: 金額(円)
A171: 残業 | AG171: =SUM(B171:AF171) -> 0 | AH171: 出勤 | AI171: =COUNTIF(B170:AF170,"出") -> 0 | AJ171: =AI171*7.8 -> 0 | AK171: =AG172 -> 0 | AL171: =AJ171-AK171 -> 0 | AM171: =ROUNDDOWN(AL171*請求書・納品書!$M$11,) -> 0
A172: 遅・早(出) | AG172: =SUM(B172:AF172) -> 0 | AH172: 残業 | AL172: =AG171 -> 0 | AM172: =ROUNDDOWN(AL172*請求書・納品書!$M$12,) -> 0
A173: 遅・早(公) | AG173: =SUM(B173:AF173) -> 0 | AH173: 公出 | AI173: =COUNTIF(B170:AF170,"公") -> 0 | AJ173: =AI173*7.8 -> 0 | AK173: =AG173 -> 0 | AL173: =AJ173-AK173 -> 0 | AM173: =ROUNDDOWN(AL173*請求書・納品書!$M$13,) -> 0
A174: 連続 | AG174: =SUM(B174:AF174) -> 0 | AH174: 連続 | AL174: =AG174 -> 0 | AM174: =AL174*請求書・納品書!$M$14 -> 0
AL175: 合 計 | AM175: =SUM(AM171:AM174) -> 0
AH176: =A176 -> 0 | AI176: 日数(日) | AJ176: 勤務時間(h) | AK176: 早退（h） | AL176: 合計(h) | AM176: 金額(円)
A177: 残業 | AG177: =SUM(B177:AF177) -> 0 | AH177: 出勤 | AI177: =COUNTIF(B176:AF176,"出") -> 0 | AJ177: =AI177*7.8 -> 0 | AK177: =AG178 -> 0 | AL177: =AJ177-AK177 -> 0 | AM177: =ROUNDDOWN(AL177*請求書・納品書!$M$11,) -> 0
A178: 遅・早(出) | AG178: =SUM(B178:AF178) -> 0 | AH178: 残業 | AL178: =AG177 -> 0 | AM178: =ROUNDDOWN(AL178*請求書・納品書!$M$12,) -> 0
A179: 遅・早(公) | AG179: =SUM(B179:AF179) -> 0 | AH179: 公出 | AI179: =COUNTIF(B176:AF176,"公") -> 0 | AJ179: =AI179*7.8 -> 0 | AK179: =AG179 -> 0 | AL179: =AJ179-AK179 -> 0 | AM179: =ROUNDDOWN(AL179*請求書・納品書!$M$13,) -> 0
A180: 連続 | AG180: =SUM(B180:AF180) -> 0 | AH180: 連続 | AL180: =AG180 -> 0 | AM180: =AL180*請求書・納品書!$M$14 -> 0
AL181: 合 計 | AM181: =SUM(AM177:AM180) -> 0
AH182: =A182 -> 0 | AI182: 日数(日) | AJ182: 勤務時間(h) | AK182: 早退（h） | AL182: 合計(h) | AM182: 金額(円)
A183: 残業 | AG183: =SUM(B183:AF183) -> 0 | AH183: 出勤 | AI183: =COUNTIF(B182:AF182,"出") -> 0 | AJ183: =AI183*7.8 -> 0 | AK183: =AG184 -> 0 | AL183: =AJ183-AK183 -> 0 | AM183: =ROUNDDOWN(AL183*請求書・納品書!$M$11,) -> 0
A184: 遅・早(出) | AG184: =SUM(B184:AF184) -> 0 | AH184: 残業 | AL184: =AG183 -> 0 | AM184: =ROUNDDOWN(AL184*請求書・納品書!$M$12,) -> 0
A185: 遅・早(公) | AG185: =SUM(B185:AF185) -> 0 | AH185: 公出 | AI185: =COUNTIF(B182:AF182,"公") -> 0 | AJ185: =AI185*7.8 -> 0 | AK185: =AG185 -> 0 | AL185: =AJ185-AK185 -> 0 | AM185: =ROUNDDOWN(AL185*請求書・納品書!$M$13,) -> 0
A186: 連続 | AG186: =SUM(B186:AF186) -> 0 | AH186: 連続 | AL186: =AG186 -> 0 | AM186: =AL186*請求書・納品書!$M$14 -> 0
AL187: 合 計 | AM187: =SUM(AM183:AM186) -> 0
AH188: =A188 -> 0 | AI188: 日数(日) | AJ188: 勤務時間(h) | AK188: 早退（h） | AL188: 合計(h) | AM188: 金額(円)
A189: 残業 | AG189: =SUM(B189:AF189) -> 0 | AH189: 出勤 | AI189: =COUNTIF(B188:AF188,"出") -> 0 | AJ189: =AI189*7.8 -> 0 | AK189: =AG190 -> 0 | AL189: =AJ189-AK189 -> 0 | AM189: =ROUNDDOWN(AL189*請求書・納品書!$M$11,) -> 0
A190: 遅・早(出) | AG190: =SUM(B190:AF190) -> 0 | AH190: 残業 | AL190: =AG189 -> 0 | AM190: =ROUNDDOWN(AL190*請求書・納品書!$M$12,) -> 0
A191: 遅・早(公) | AG191: =SUM(B191:AF191) -> 0 | AH191: 公出 | AI191: =COUNTIF(B188:AF188,"公") -> 0 | AJ191: =AI191*7.8 -> 0 | AK191: =AG191 -> 0 | AL191: =AJ191-AK191 -> 0 | AM191: =ROUNDDOWN(AL191*請求書・納品書!$M$13,) -> 0
A192: 連続 | AG192: =SUM(B192:AF192) -> 0 | AH192: 連続 | AL192: =AG192 -> 0 | AM192: =AL192*請求書・納品書!$M$14 -> 0
AL193: 合 計 | AM193: =SUM(AM189:AM192) -> 0 | AO193: =AM175+AM181+AM187+AM193 -> 0

Sheet 1
A1: ='4'!A1+1 -> 2011 | B1: 1 | C1: 2 | D1: 3 | E1: 4 | F1: 5 | G1: 6 | H1: 7 | I1: 8 | J1: 9 | K1: 10 | L1: 11 | M1: 12 | N1: 13 | O1: 14 | P1: 15 | Q1: 16 | R1: 17 | S1: 18 | T1: 19 | U1: 20 | V1: 21 | W1: 22 | X1: 23 | Y1: 24 | Z1: 25 | AA1: 26 | AB1: 27 | AC1: 28 | AD1: 29 | AE1: 30 | AF1: 31 | AG1: 計 | AH1: =A1&"年"&MID(CELL("filename",$A$1),FIND("]",CELL("filename",$A$1))+1,31) &"月" -> 2011年1月
AH2: =A2 -> 0 | AI2: 日数(日) | AJ2: 勤務時間(h) | AK2: 早退（h） | AL2: 合計(h) | AM2: 金額(円) | AN2: 出 | AO2: 合計 | AP2: =SUM(AM:AM)/2 -> 0
A3: 残業 | AG3: =SUM(B3:AF3) -> 0 | AH3: 出勤 | AI3: =COUNTIF(B2:AF2,"出") -> 0 | AJ3: =AI3*7.8 -> 0 | AK3: =AG4 -> 0 | AL3: =AJ3-AK3 -> 0 | AM3: =ROUNDDOWN(AL3*請求書・納品書!$M$11,) -> 0 | AN3: 公 | AO3: 人数 | AP3: =COUNTA(AH:AH)-COUNTIF(AH:AH,0)-32*4-1 -> 0
A4: 遅・早(出) | AG4: =SUM(B4:AF4) -> 0 | AH4: 残業 | AL4: =AG3 -> 0 | AM4: =ROUNDDOWN(AL4*請求書・納品書!$M$12,) -> 0 | AN4: 欠 | AO4: 管理費 | AP4: =(AP3-AP9)*19400 -> 0
A5: 遅・早(公) | AG5: =SUM(B5:AF5) -> 0 | AH5: 公出 | AI5: =COUNTIF(B2:AF2,"公") -> 0 | AJ5: =AI5*7.8 -> 0 | AK5: =AG5 -> 0 | AL5: =AJ5-AK5 -> 0 | AM5: =ROUNDDOWN(AL5*請求書・納品書!$M$13,) -> 0 | AN5: 有 | AO5: 小計 | AP5: =AP2+AP4 -> 0
A6: 連続 | AG6: =SUM(B6:AF6) -> 0 | AH6: 連続 | AL6: =AG6 -> 0 | AM6: =AL6*請求書・納品書!$M$14 -> 0 | AN6: 半 | AO6: 消費税 | AP6: =ROUNDDOWN(AP5*0.05,) -> 0
AL7: 合 計 | AM7: =SUM(AM3:AM6) -> 0 | AO7: 総合計 | AP7: =AP5+AP6 -> 0
AH8: =A8 -> 0 | AI8: 日数(日) | AJ8: 勤務時間(h) | AK8: 早退（h） | AL8: 合計(h) | AM8: 金額(円)
A9: 残業 | AG9: =SUM(B9:AF9) -> 0 | AH9: 出勤 | AI9: =COUNTIF(B8:AF8,"出") -> 0 | AJ9: =AI9*7.8 -> 0 | AK9: =AG10 -> 0 | AL9: =AJ9-AK9 -> 0 | AM9: =ROUNDDOWN(AL9*請求書・納品書!$M$11,) -> 0 | AO9: 管理費に入れない人数
A10: 遅・早(出) | AG10: =SUM(B10:AF10) -> 0 | AH10: 残業 | AL10: =AG9 -> 0 | AM10: =ROUNDDOWN(AL10*請求書・納品書!$M$12,) -> 0
A11: 遅・早(公) | AG11: =SUM(B11:AF11) -> 0 | AH11: 公出 | AI11: =COUNTIF(B8:AF8,"公") -> 0 | AJ11: =AI11*7.8 -> 0 | AK11: =AG11 -> 0 | AL11: =AJ11-AK11 -> 0 | AM11: =ROUNDDOWN(AL11*請求書・納品書!$M$13,) -> 0
A12: 連続 | AG12: =SUM(B12:AF12) -> 0 | AH12: 連続 | AL12: =AG12 -> 0 | AM12: =AL12*請求書・納品書!$M$14 -> 0
AL13: 合 計 | AM13: =SUM(AM9:AM12) -> 0
AH14: =A14 -> 0 | AI14: 日数(日) | AJ14: 勤務時間(h) | AK14: 早退（h） | AL14: 合計(h) | AM14: 金額(円)
A15: 残業 | AG15: =SUM(B15:AF15) -> 0 | AH15: 出勤 | AI15: =COUNTIF(B14:AF14,"出") -> 0 | AJ15: =AI15*7.8 -> 0 | AK15: =AG16 -> 0 | AL15: =AJ15-AK15 -> 0 | AM15: =ROUNDDOWN(AL15*請求書・納品書!$M$11,) -> 0
A16: 遅・早(出) | AG16: =SUM(B16:AF16) -> 0 | AH16: 残業 | AL16: =AG15 -> 0 | AM16: =ROUNDDOWN(AL16*請求書・納品書!$M$12,) -> 0
A17: 遅・早(公) | AG17: =SUM(B17:AF17) -> 0 | AH17: 公出 | AI17: =COUNTIF(B14:AF14,"公") -> 0 | AJ17: =AI17*7.8 -> 0 | AK17: =AG17 -> 0 | AL17: =AJ17-AK17 -> 0 | AM17: =ROUNDDOWN(AL17*請求書・納品書!$M$13,) -> 0
A18: 連続 | AG18: =SUM(B18:AF18) -> 0 | AH18: 連続 | AL18: =AG18 -> 0 | AM18: =AL18*請求書・納品書!$M$14 -> 0
AL19: 合 計 | AM19: =SUM(AM15:AM18) -> 0
AH20: =A20 -> 0 | AI20: 日数(日) | AJ20: 勤務時間(h) | AK20: 早退（h） | AL20: 合計(h) | AM20: 金額(円)
A21: 残業 | AG21: =SUM(B21:AF21) -> 0 | AH21: 出勤 | AI21: =COUNTIF(B20:AF20,"出") -> 0 | AJ21: =AI21*7.8 -> 0 | AK21: =AG22 -> 0 | AL21: =AJ21-AK21 -> 0 | AM21: =ROUNDDOWN(AL21*請求書・納品書!$M$11,) -> 0
A22: 遅・早(出) | AG22: =SUM(B22:AF22) -> 0 | AH22: 残業 | AL22: =AG21 -> 0 | AM22: =ROUNDDOWN(AL22*請求書・納品書!$M$12,) -> 0
A23: 遅・早(公) | AG23: =SUM(B23:AF23) -> 0 | AH23: 公出 | AI23: =COUNTIF(B20:AF20,"公") -> 0 | AJ23: =AI23*7.8 -> 0 | AK23: =AG23 -> 0 | AL23: =AJ23-AK23 -> 0 | AM23: =ROUNDDOWN(AL23*請求書・納品書!$M$13,) -> 0
A24: 連続 | AG24: =SUM(B24:AF24) -> 0 | AH24: 連続 | AL24: =AG24 -> 0 | AM24: =AL24*請求書・納品書!$M$14 -> 0
AL25: 合 計 | AM25: =SUM(AM21:AM24) -> 0 | AO25: =AM7+AM13+AM19+AM25 -> 0
AH26: =A26 -> 0 | AI26: 日数(日) | AJ26: 勤務時間(h) | AK26: 早退（h） | AL26: 合計(h) | AM26: 金額(円)
A27: 残業 | AG27: =SUM(B27:AF27) -> 0 | AH27: 出勤 | AI27: =COUNTIF(B26:AF26,"出") -> 0 | AJ27: =AI27*7.8 -> 0 | AK27: =AG28 -> 0 | AL27: =AJ27-AK27 -> 0 | AM27: =ROUNDDOWN(AL27*請求書・納品書!$M$11,) -> 0
A28: 遅・早(出) | AG28: =SUM(B28:AF28) -> 0 | AH28: 残業 | AL28: =AG27 -> 0 | AM28: =ROUNDDOWN(AL28*請求書・納品書!$M$12,) -> 0
A29: 遅・早(公) | AG29: =SUM(B29:AF29) -> 0 | AH29: 公出 | AI29: =COUNTIF(B26:AF26,"公") -> 0 | AJ29: =AI29*7.8 -> 0 | AK29: =AG29 -> 0 | AL29: =AJ29-AK29 -> 0 | AM29: =ROUNDDOWN(AL29*請求書・納品書!$M$13,) -> 0
A30: 連続 | AG30: =SUM(B30:AF30) -> 0 | AH30: 連続 | AL30: =AG30 -> 0 | AM30: =AL30*請求書・納品書!$M$14 -> 0
AL31: 合 計 | AM31: =SUM(AM27:AM30) -> 0
AH32: =A32 -> 0 | AI32: 日数(日) | AJ32: 勤務時間(h) | AK32: 早退（h） | AL32: 合計(h) | AM32: 金額(円)
A33: 残業 | AG33: =SUM(B33:AF33) -> 0 | AH33: 出勤 | AI33: =COUNTIF(B32:AF32,"出") -> 0 | AJ33: =AI33*7.8 -> 0 | AK33: =AG34 -> 0 | AL33: =AJ33-AK33 -> 0 | AM33: =ROUNDDOWN(AL33*請求書・納品書!$M$11,) -> 0
A34: 遅・早(出) | AG34: =SUM(B34:AF34) -> 0 | AH34: 残業 | AL34: =AG33 -> 0 | AM34: =ROUNDDOWN(AL34*請求書・納品書!$M$12,) -> 0
A35: 遅・早(公) | AG35: =SUM(B35:AF35) -> 0 | AH35: 公出 | AI35: =COUNTIF(B32:AF32,"公") -> 0 | AJ35: =AI35*7.8 -> 0 | AK35: =AG35 -> 0 | AL35: =AJ35-AK35 -> 0 | AM35: =ROUNDDOWN(AL35*請求書・納品書!$M$13,) -> 0
A36: 連続 | AG36: =SUM(B36:AF36) -> 0 | AH36: 連続 | AL36: =AG36 -> 0 | AM36: =AL36*請求書・納品書!$M$14 -> 0
AL37: 合 計 | AM37: =SUM(AM33:AM36) -> 0
AH38: =A38 -> 0 | AI38: 日数(日) | AJ38: 勤務時間(h) | AK38: 早退（h） | AL38: 合計(h) | AM38: 金額(円)
A39: 残業 | AG39: =SUM(B39:AF39) -> 0 | AH39: 出勤 | AI39: =COUNTIF(B38:AF38,"出") -> 0 | AJ39: =AI39*7.8 -> 0 | AK39: =AG40 -> 0 | AL39: =AJ39-AK39 -> 0 | AM39: =ROUNDDOWN(AL39*請求書・納品書!$M$11,) -> 0
A40: 遅・早(出) | AG40: =SUM(B40:AF40) -> 0 | AH40: 残業 | AL40: =AG39 -> 0 | AM40: =ROUNDDOWN(AL40*請求書・納品書!$M$12,) -> 0
A41: 遅・早(公) | AG41: =SUM(B41:AF41) -> 0 | AH41: 公出 | AI41: =COUNTIF(B38:AF38,"公") -> 0 | AJ41: =AI41*7.8 -> 0 | AK41: =AG41 -> 0 | AL41: =AJ41-AK41 -> 0 | AM41: =ROUNDDOWN(AL41*請求書・納品書!$M$13,) -> 0
A42: 連続 | AG42: =SUM(B42:AF42) -> 0 | AH42: 連続 | AL42: =AG42 -> 0 | AM42: =AL42*請求書・納品書!$M$14 -> 0
AL43: 合 計 | AM43: =SUM(AM39:AM42) -> 0
AH44: =A44 -> 0 | AI44: 日数(日) | AJ44: 勤務時間(h) | AK44: 早退（h） | AL44: 合計(h) | AM44: 金額(円)
A45: 残業 | AG45: =SUM(B45:AF45) -> 0 | AH45: 出勤 | AI45: =COUNTIF(B44:AF44,"出") -> 0 | AJ45: =AI45*7.8 -> 0 | AK45: =AG46 -> 0 | AL45: =AJ45-AK45 -> 0 | AM45: =ROUNDDOWN(AL45*請求書・納品書!$M$11,) -> 0
A46: 遅・早(出) | AG46: =SUM(B46:AF46) -> 0 | AH46: 残業 | AL46: =AG45 -> 0 | AM46: =ROUNDDOWN(AL46*請求書・納品書!$M$12,) -> 0
A47: 遅・早(公) | AG47: =SUM(B47:AF47) -> 0 | AH47: 公出 | AI47: =COUNTIF(B44:AF44,"公") -> 0 | AJ47: =AI47*7.8 -> 0 | AK47: =AG47 -> 0 | AL47: =AJ47-AK47 -> 0 | AM47: =ROUNDDOWN(AL47*請求書・納品書!$M$13,) -> 0
A48: 連続 | AG48: =SUM(B48:AF48) -> 0 | AH48: 連続 | AL48: =AG48 -> 0 | AM48: =AL48*請求書・納品書!$M$14 -> 0
AL49: 合 計 | AM49: =SUM(AM45:AM48) -> 0 | AO49: =AM31+AM37+AM43+AM49 -> 0
AH50: =A50 -> 0 | AI50: 日数(日) | AJ50: 勤務時間(h) | AK50: 早退（h） | AL50: 合計(h) | AM50: 金額(円)
A51: 残業 | AG51: =SUM(B51:AF51) -> 0 | AH51: 出勤 | AI51: =COUNTIF(B50:AF50,"出") -> 0 | AJ51: =AI51*7.8 -> 0 | AK51: =AG52 -> 0 | AL51: =AJ51-AK51 -> 0 | AM51: =ROUNDDOWN(AL51*請求書・納品書!$M$11,) -> 0
A52: 遅・早(出) | AG52: =SUM(B52:AF52) -> 0 | AH52: 残業 | AL52: =AG51 -> 0 | AM52: =ROUNDDOWN(AL52*請求書・納品書!$M$12,) -> 0
A53: 遅・早(公) | AG53: =SUM(B53:AF53) -> 0 | AH53: 公出 | AI53: =COUNTIF(B50:AF50,"公") -> 0 | AJ53: =AI53*7.8 -> 0 | AK53: =AG53 -> 0 | AL53: =AJ53-AK53 -> 0 | AM53: =ROUNDDOWN(AL53*請求書・納品書!$M$13,) -> 0
A54: 連続 | AG54: =SUM(B54:AF54) -> 0 | AH54: 連続 | AL54: =AG54 -> 0 | AM54: =AL54*請求書・納品書!$M$14 -> 0
AL55: 合 計 | AM55: =SUM(AM51:AM54) -> 0
AH56: =A56 -> 0 | AI56: 日数(日) | AJ56: 勤務時間(h) | AK56: 早退（h） | AL56: 合計(h) | AM56: 金額(円)
A57: 残業 | AG57: =SUM(B57:AF57) -> 0 | AH57: 出勤 | AI57: =COUNTIF(B56:AF56,"出") -> 0 | AJ57: =AI57*7.8 -> 0 | AK57: =AG58 -> 0 | AL57: =AJ57-AK57 -> 0 | AM57: =ROUNDDOWN(AL57*請求書・納品書!$M$11,) -> 0
A58: 遅・早(出) | AG58: =SUM(B58:AF58) -> 0 | AH58: 残業 | AL58: =AG57 -> 0 | AM58: =ROUNDDOWN(AL58*請求書・納品書!$M$12,) -> 0
A59: 遅・早(公) | AG59: =SUM(B59:AF59) -> 0 | AH59: 公出 | AI59: =COUNTIF(B56:AF56,"公") -> 0 | AJ59: =AI59*7.8 -> 0 | AK59: =AG59 -> 0 | AL59: =AJ59-AK59 -> 0 | AM59: =ROUNDDOWN(AL59*請求書・納品書!$M$13,) -> 0
A60: 連続 | AG60: =SUM(B60:AF60) -> 0 | AH60: 連続 | AL60: =AG60 -> 0 | AM60: =AL60*請求書・納品書!$M$14 -> 0
AL61: 合 計 | AM61: =SUM(AM57:AM60) -> 0
AH62: =A62 -> 0 | AI62: 日数(日) | AJ62: 勤務時間(h) | AK62: 早退（h） | AL62: 合計(h) | AM62: 金額(円)
A63: 残業 | AG63: =SUM(B63:AF63) -> 0 | AH63: 出勤 | AI63: =COUNTIF(B62:AF62,"出") -> 0 | AJ63: =AI63*7.8 -> 0 | AK63: =AG64 -> 0 | AL63: =AJ63-AK63 -> 0 | AM63: =ROUNDDOWN(AL63*請求書・納品書!$M$11,) -> 0
A64: 遅・早(出) | AG64: =SUM(B64:AF64) -> 0 | AH64: 残業 | AL64: =AG63 -> 0 | AM64: =ROUNDDOWN(AL64*請求書・納品書!$M$12,) -> 0
A65: 遅・早(公) | AG65: =SUM(B65:AF65) -> 0 | AH65: 公出 | AI65: =COUNTIF(B62:AF62,"公") -> 0 | AJ65: =AI65*7.8 -> 0 | AK65: =AG65 -> 0 | AL65: =AJ65-AK65 -> 0 | AM65: =ROUNDDOWN(AL65*請求書・納品書!$M$13,) -> 0
A66: 連続 | AG66: =SUM(B66:AF66) -> 0 | AH66: 連続 | AL66: =AG66 -> 0 | AM66: =AL66*請求書・納品書!$M$14 -> 0
AL67: 合 計 | AM67: =SUM(AM63:AM66) -> 0
AH68: =A68 -> 0 | AI68: 日数(日) | AJ68: 勤務時間(h) | AK68: 早退（h） | AL68: 合計(h) | AM68: 金額(円)
A69: 残業 | AG69: =SUM(B69:AF69) -> 0 | AH69: 出勤 | AI69: =COUNTIF(B68:AF68,"出") -> 0 | AJ69: =AI69*7.8 -> 0 | AK69: =AG70 -> 0 | AL69: =AJ69-AK69 -> 0 | AM69: =ROUNDDOWN(AL69*請求書・納品書!$M$11,) -> 0
A70: 遅・早(出) | AG70: =SUM(B70:AF70) -> 0 | AH70: 残業 | AL70: =AG69 -> 0 | AM70: =ROUNDDOWN(AL70*請求書・納品書!$M$12,) -> 0
A71: 遅・早(公) | AG71: =SUM(B71:AF71) -> 0 | AH71: 公出 | AI71: =COUNTIF(B68:AF68,"公") -> 0 | AJ71: =AI71*7.8 -> 0 | AK71: =AG71 -> 0 | AL71: =AJ71-AK71 -> 0 | AM71: =ROUNDDOWN(AL71*請求書・納品書!$M$13,) -> 0
A72: 連続 | AG72: =SUM(B72:AF72) -> 0 | AH72: 連続 | AL72: =AG72 -> 0 | AM72: =AL72*請求書・納品書!$M$14 -> 0
AL73: 合 計 | AM73: =SUM(AM69:AM72) -> 0 | AO73: =AM55+AM61+AM67+AM73 -> 0
AH74: =A74 -> 0 | AI74: 日数(日) | AJ74: 勤務時間(h) | AK74: 早退（h） | AL74: 合計(h) | AM74: 金額(円)
A75: 残業 | AG75: =SUM(B75:AF75) -> 0 | AH75: 出勤 | AI75: =COUNTIF(B74:AF74,"出") -> 0 | AJ75: =AI75*7.8 -> 0 | AK75: =AG76 -> 0 | AL75: =AJ75-AK75 -> 0 | AM75: =ROUNDDOWN(AL75*請求書・納品書!$M$11,) -> 0
A76: 遅・早(出) | AG76: =SUM(B76:AF76) -> 0 | AH76: 残業 | AL76: =AG75 -> 0 | AM76: =ROUNDDOWN(AL76*請求書・納品書!$M$12,) -> 0
A77: 遅・早(公) | AG77: =SUM(B77:AF77) -> 0 | AH77: 公出 | AI77: =COUNTIF(B74:AF74,"公") -> 0 | AJ77: =AI77*7.8 -> 0 | AK77: =AG77 -> 0 | AL77: =AJ77-AK77 -> 0 | AM77: =ROUNDDOWN(AL77*請求書・納品書!$M$13,) -> 0
A78: 連続 | AG78: =SUM(B78:AF78) -> 0 | AH78: 連続 | AL78: =AG78 -> 0 | AM78: =AL78*請求書・納品書!$M$14 -> 0
AL79: 合 計 | AM79: =SUM(AM75:AM78) -> 0
AH80: =A80 -> 0 | AI80: 日数(日) | AJ80: 勤務時間(h) | AK80: 早退（h） | AL80: 合計(h) | AM80: 金額(円)
A81: 残業 | AG81: =SUM(B81:AF81) -> 0 | AH81: 出勤 | AI81: =COUNTIF(B80:AF80,"出") -> 0 | AJ81: =AI81*7.8 -> 0 | AK81: =AG82 -> 0 | AL81: =AJ81-AK81 -> 0 | AM81: =ROUNDDOWN(AL81*請求書・納品書!$M$11,) -> 0
A82: 遅・早(出) | AG82: =SUM(B82:AF82) -> 0 | AH82: 残業 | AL82: =AG81 -> 0 | AM82: =ROUNDDOWN(AL82*請求書・納品書!$M$12,) -> 0
A83: 遅・早(公) | AG83: =SUM(B83:AF83) -> 0 | AH83: 公出 | AI83: =COUNTIF(B80:AF80,"公") -> 0 | AJ83: =AI83*7.8 -> 0 | AK83: =AG83 -> 0 | AL83: =AJ83-AK83 -> 0 | AM83: =ROUNDDOWN(AL83*請求書・納品書!$M$13,) -> 0
A84: 連続 | AG84: =SUM(B84:AF84) -> 0 | AH84: 連続 | AL84: =AG84 -> 0 | AM84: =AL84*請求書・納品書!$M$14 -> 0
AL85: 合 計 | AM85: =SUM(AM81:AM84) -> 0
AH86: =A86 -> 0 | AI86: 日数(日) | AJ86: 勤務時間(h) | AK86: 早退（h） | AL86: 合計(h) | AM86: 金額(円)
A87: 残業 | AG87: =SUM(B87:AF87) -> 0 | AH87: 出勤 | AI87: =COUNTIF(B86:AF86,"出") -> 0 | AJ87: =AI87*7.8 -> 0 | AK87: =AG88 -> 0 | AL87: =AJ87-AK87 -> 0 | AM87: =ROUNDDOWN(AL87*請求書・納品書!$M$11,) -> 0
A88: 遅・早(出) | AG88: =SUM(B88:AF88) -> 0 | AH88: 残業 | AL88: =AG87 -> 0 | AM88: =ROUNDDOWN(AL88*請求書・納品書!$M$12,) -> 0
A89: 遅・早(公) | AG89: =SUM(B89:AF89) -> 0 | AH89: 公出 | AI89: =COUNTIF(B86:AF86,"公") -> 0 | AJ89: =AI89*7.8 -> 0 | AK89: =AG89 -> 0 | AL89: =AJ89-AK89 -> 0 | AM89: =ROUNDDOWN(AL89*請求書・納品書!$M$13,) -> 0
A90: 連続 | AG90: =SUM(B90:AF90) -> 0 | AH90: 連続 | AL90: =AG90 -> 0 | AM90: =AL90*請求書・納品書!$M$14 -> 0
AL91: 合 計 | AM91: =SUM(AM87:AM90) -> 0
AH92: =A92 -> 0 | AI92: 日数(日) | AJ92: 勤務時間(h) | AK92: 早退（h） | AL92: 合計(h) | AM92: 金額(円)
A93: 残業 | AG93: =SUM(B93:AF93) -> 0 | AH93: 出勤 | AI93: =COUNTIF(B92:AF92,"出") -> 0 | AJ93: =AI93*7.8 -> 0 | AK93: =AG94 -> 0 | AL93: =AJ93-AK93 -> 0 | AM93: =ROUNDDOWN(AL93*請求書・納品書!$M$11,) -> 0
A94: 遅・早(出) | AG94: =SUM(B94:AF94) -> 0 | AH94: 残業 | AL94: =AG93 -> 0 | AM94: =ROUNDDOWN(AL94*請求書・納品書!$M$12,) -> 0
A95: 遅・早(公) | AG95: =SUM(B95:AF95) -> 0 | AH95: 公出 | AI95: =COUNTIF(B92:AF92,"公") -> 0 | AJ95: =AI95*7.8 -> 0 | AK95: =AG95 -> 0 | AL95: =AJ95-AK95 -> 0 | AM95: =ROUNDDOWN(AL95*請求書・納品書!$M$13,) -> 0
A96: 連続 | AG96: =SUM(B96:AF96) -> 0 | AH96: 連続 | AL96: =AG96 -> 0 | AM96: =AL96*請求書・納品書!$M$14 -> 0
AL97: 合 計 | AM97: =SUM(AM93:AM96) -> 0 | AO97: =AM79+AM85+AM91+AM97 -> 0
AH98: =A98 -> 0 | AI98: 日数(日) | AJ98: 勤務時間(h) | AK98: 早退（h） | AL98: 合計(h) | AM98: 金額(円)
A99: 残業 | AG99: =SUM(B99:AF99) -> 0 | AH99: 出勤 | AI99: =COUNTIF(B98:AF98,"出") -> 0 | AJ99: =AI99*7.8 -> 0 | AK99: =AG100 -> 0 | AL99: =AJ99-AK99 -> 0 | AM99: =ROUNDDOWN(AL99*請求書・納品書!$M$11,) -> 0
A100: 遅・早(出) | AG100: =SUM(B100:AF100) -> 0 | AH100: 残業 | AL100: =AG99 -> 0 | AM100: =ROUNDDOWN(AL100*請求書・納品書!$M$12,) -> 0
A101: 遅・早(公) | AG101: =SUM(B101:AF101) -> 0 | AH101: 公出 | AI101: =COUNTIF(B98:AF98,"公") -> 0 | AJ101: =AI101*7.8 -> 0 | AK101: =AG101 -> 0 | AL101: =AJ101-AK101 -> 0 | AM101: =ROUNDDOWN(AL101*請求書・納品書!$M$13,) -> 0
A102: 連続 | AG102: =SUM(B102:AF102) -> 0 | AH102: 連続 | AL102: =AG102 -> 0 | AM102: =AL102*請求書・納品書!$M$14 -> 0
AL103: 合 計 | AM103: =SUM(AM99:AM102) -> 0
AH104: =A104 -> 0 | AI104: 日数(日) | AJ104: 勤務時間(h) | AK104: 早退（h） | AL104: 合計(h) | AM104: 金額(円)
A105: 残業 | AG105: =SUM(B105:AF105) -> 0 | AH105: 出勤 | AI105: =COUNTIF(B104:AF104,"出") -> 0 | AJ105: =AI105*7.8 -> 0 | AK105: =AG106 -> 0 | AL105: =AJ105-AK105 -> 0 | AM105: =ROUNDDOWN(AL105*請求書・納品書!$M$11,) -> 0
A106: 遅・早(出) | AG106: =SUM(B106:AF106) -> 0 | AH106: 残業 | AL106: =AG105 -> 0 | AM106: =ROUNDDOWN(AL106*請求書・納品書!$M$12,) -> 0
A107: 遅・早(公) | AG107: =SUM(B107:AF107) -> 0 | AH107: 公出 | AI107: =COUNTIF(B104:AF104,"公") -> 0 | AJ107: =AI107*7.8 -> 0 | AK107: =AG107 -> 0 | AL107: =AJ107-AK107 -> 0 | AM107: =ROUNDDOWN(AL107*請求書・納品書!$M$13,) -> 0
A108: 連続 | AG108: =SUM(B108:AF108) -> 0 | AH108: 連続 | AL108: =AG108 -> 0 | AM108: =AL108*請求書・納品書!$M$14 -> 0
AL109: 合 計 | AM109: =SUM(AM105:AM108) -> 0
AH110: =A110 -> 0 | AI110: 日数(日) | AJ110: 勤務時間(h) | AK110: 早退（h） | AL110: 合計(h) | AM110: 金額(円)
A111: 残業 | AG111: =SUM(B111:AF111) -> 0 | AH111: 出勤 | AI111: =COUNTIF(B110:AF110,"出") -> 0 | AJ111: =AI111*7.8 -> 0 | AK111: =AG112 -> 0 | AL111: =AJ111-AK111 -> 0 | AM111: =ROUNDDOWN(AL111*請求書・納品書!$M$11,) -> 0
A112: 遅・早(出) | AG112: =SUM(B112:AF112) -> 0 | AH112: 残業 | AL112: =AG111 -> 0 | AM112: =ROUNDDOWN(AL112*請求書・納品書!$M$12,) -> 0
A113: 遅・早(公) | AG113: =SUM(B113:AF113) -> 0 | AH113: 公出 | AI113: =COUNTIF(B110:AF110,"公") -> 0 | AJ113: =AI113*7.8 -> 0 | AK113: =AG113 -> 0 | AL113: =AJ113-AK113 -> 0 | AM113: =ROUNDDOWN(AL113*請求書・納品書!$M$13,) -> 0
A114: 連続 | AG114: =SUM(B114:AF114) -> 0 | AH114: 連続 | AL114: =AG114 -> 0 | AM114: =AL114*請求書・納品書!$M$14 -> 0
AL115: 合 計 | AM115: =SUM(AM111:AM114) -> 0
AH116: =A116 -> 0 | AI116: 日数(日) | AJ116: 勤務時間(h) | AK116: 早退（h） | AL116: 合計(h) | AM116: 金額(円)
A117: 残業 | AG117: =SUM(B117:AF117) -> 0 | AH117: 出勤 | AI117: =COUNTIF(B116:AF116,"出") -> 0 | AJ117: =AI117*7.8 -> 0 | AK117: =AG118 -> 0 | AL117: =AJ117-AK117 -> 0 | AM117: =ROUNDDOWN(AL117*請求書・納品書!$M$11,) -> 0
A118: 遅・早(出) | AG118: =SUM(B118:AF118) -> 0 | AH118: 残業 | AL118: =AG117 -> 0 | AM118: =ROUNDDOWN(AL118*請求書・納品書!$M$12,) -> 0
A119: 遅・早(公) | AG119: =SUM(B119:AF119) -> 0 | AH119: 公出 | AI119: =COUNTIF(B116:AF116,"公") -> 0 | AJ119: =AI119*7.8 -> 0 | AK119: =AG119 -> 0 | AL119: =AJ119-AK119 -> 0 | AM119: =ROUNDDOWN(AL119*請求書・納品書!$M$13,) -> 0
A120: 連続 | AG120: =SUM(B120:AF120) -> 0 | AH120: 連続 | AL120: =AG120 -> 0 | AM120: =AL120*請求書・納品書!$M$14 -> 0
AL121: 合 計 | AM121: =SUM(AM117:AM120) -> 0 | AO121: =AM103+AM109+AM115+AM121 -> 0
AH122: =A122 -> 0 | AI122: 日数(日) | AJ122: 勤務時間(h) | AK122: 早退（h） | AL122: 合計(h) | AM122: 金額(円)
A123: 残業 | AG123: =SUM(B123:AF123) -> 0 | AH123: 出勤 | AI123: =COUNTIF(B122:AF122,"出") -> 0 | AJ123: =AI123*7.8 -> 0 | AK123: =AG124 -> 0 | AL123: =AJ123-AK123 -> 0 | AM123: =ROUNDDOWN(AL123*請求書・納品書!$M$11,) -> 0
A124: 遅・早(出) | AG124: =SUM(B124:AF124) -> 0 | AH124: 残業 | AL124: =AG123 -> 0 | AM124: =ROUNDDOWN(AL124*請求書・納品書!$M$12,) -> 0
A125: 遅・早(公) | AG125: =SUM(B125:AF125) -> 0 | AH125: 公出 | AI125: =COUNTIF(B122:AF122,"公") -> 0 | AJ125: =AI125*7.8 -> 0 | AK125: =AG125 -> 0 | AL125: =AJ125-AK125 -> 0 | AM125: =ROUNDDOWN(AL125*請求書・納品書!$M$13,) -> 0
A126: 連続 | AG126: =SUM(B126:AF126) -> 0 | AH126: 連続 | AL126: =AG126 -> 0 | AM126: =AL126*請求書・納品書!$M$14 -> 0
AL127: 合 計 | AM127: =SUM(AM123:AM126) -> 0
AH128: =A128 -> 0 | AI128: 日数(日) | AJ128: 勤務時間(h) | AK128: 早退（h） | AL128: 合計(h) | AM128: 金額(円)
A129: 残業 | AG129: =SUM(B129:AF129) -> 0 | AH129: 出勤 | AI129: =COUNTIF(B128:AF128,"出") -> 0 | AJ129: =AI129*7.8 -> 0 | AK129: =AG130 -> 0 | AL129: =AJ129-AK129 -> 0 | AM129: =ROUNDDOWN(AL129*請求書・納品書!$M$11,) -> 0
A130: 遅・早(出) | AG130: =SUM(B130:AF130) -> 0 | AH130: 残業 | AL130: =AG129 -> 0 | AM130: =ROUNDDOWN(AL130*請求書・納品書!$M$12,) -> 0
A131: 遅・早(公) | AG131: =SUM(B131:AF131) -> 0 | AH131: 公出 | AI131: =COUNTIF(B128:AF128,"公") -> 0 | AJ131: =AI131*7.8 -> 0 | AK131: =AG131 -> 0 | AL131: =AJ131-AK131 -> 0 | AM131: =ROUNDDOWN(AL131*請求書・納品書!$M$13,) -> 0
A132: 連続 | AG132: =SUM(B132:AF132) -> 0 | AH132: 連続 | AL132: =AG132 -> 0 | AM132: =AL132*請求書・納品書!$M$14 -> 0
AL133: 合 計 | AM133: =SUM(AM129:AM132) -> 0
AH134: =A134 -> 0 | AI134: 日数(日) | AJ134: 勤務時間(h) | AK134: 早退（h） | AL134: 合計(h) | AM134: 金額(円)
A135: 残業 | AG135: =SUM(B135:AF135) -> 0 | AH135: 出勤 | AI135: =COUNTIF(B134:AF134,"出") -> 0 | AJ135: =AI135*7.8 -> 0 | AK135: =AG136 -> 0 | AL135: =AJ135-AK135 -> 0 | AM135: =ROUNDDOWN(AL135*請求書・納品書!$M$11,) -> 0
A136: 遅・早(出) | AG136: =SUM(B136:AF136) -> 0 | AH136: 残業 | AL136: =AG135 -> 0 | AM136: =ROUNDDOWN(AL136*請求書・納品書!$M$12,) -> 0
A137: 遅・早(公) | AG137: =SUM(B137:AF137) -> 0 | AH137: 公出 | AI137: =COUNTIF(B134:AF134,"公") -> 0 | AJ137: =AI137*7.8 -> 0 | AK137: =AG137 -> 0 | AL137: =AJ137-AK137 -> 0 | AM137: =ROUNDDOWN(AL137*請求書・納品書!$M$13,) -> 0
A138: 連続 | AG138: =SUM(B138:AF138) -> 0 | AH138: 連続 | AL138: =AG138 -> 0 | AM138: =AL138*請求書・納品書!$M$14 -> 0
AL139: 合 計 | AM139: =SUM(AM135:AM138) -> 0
AH140: =A140 -> 0 | AI140: 日数(日) | AJ140: 勤務時間(h) | AK140: 早退（h） | AL140: 合計(h) | AM140: 金額(円)
A141: 残業 | AG141: =SUM(B141:AF141) -> 0 | AH141: 出勤 | AI141: =COUNTIF(B140:AF140,"出") -> 0 | AJ141: =AI141*7.8 -> 0 | AK141: =AG142 -> 0 | AL141: =AJ141-AK141 -> 0 | AM141: =ROUNDDOWN(AL141*請求書・納品書!$M$11,) -> 0
A142: 遅・早(出) | AG142: =SUM(B142:AF142) -> 0 | AH142: 残業 | AL142: =AG141 -> 0 | AM142: =ROUNDDOWN(AL142*請求書・納品書!$M$12,) -> 0
A143: 遅・早(公) | AG143: =SUM(B143:AF143) -> 0 | AH143: 公出 | AI143: =COUNTIF(B140:AF140,"公") -> 0 | AJ143: =AI143*7.8 -> 0 | AK143: =AG143 -> 0 | AL143: =AJ143-AK143 -> 0 | AM143: =ROUNDDOWN(AL143*請求書・納品書!$M$13,) -> 0
A144: 連続 | AG144: =SUM(B144:AF144) -> 0 | AH144: 連続 | AL144: =AG144 -> 0 | AM144: =AL144*請求書・納品書!$M$14 -> 0
AL145: 合 計 | AM145: =SUM(AM141:AM144) -> 0 | AO145: =AM127+AM133+AM139+AM145 -> 0
AH146: =A146 -> 0 | AI146: 日数(日) | AJ146: 勤務時間(h) | AK146: 早退（h） | AL146: 合計(h) | AM146: 金額(円)
A147: 残業 | AG147: =SUM(B147:AF147) -> 0 | AH147: 出勤 | AI147: =COUNTIF(B146:AF146,"出") -> 0 | AJ147: =AI147*7.8 -> 0 | AK147: =AG148 -> 0 | AL147: =AJ147-AK147 -> 0 | AM147: =ROUNDDOWN(AL147*請求書・納品書!$M$11,) -> 0
A148: 遅・早(出) | AG148: =SUM(B148:AF148) -> 0 | AH148: 残業 | AL148: =AG147 -> 0 | AM148: =ROUNDDOWN(AL148*請求書・納品書!$M$12,) -> 0
A149: 遅・早(公) | AG149: =SUM(B149:AF149) -> 0 | AH149: 公出 | AI149: =COUNTIF(B146:AF146,"公") -> 0 | AJ149: =AI149*7.8 -> 0 | AK149: =AG149 -> 0 | AL149: =AJ149-AK149 -> 0 | AM149: =ROUNDDOWN(AL149*請求書・納品書!$M$13,) -> 0
A150: 連続 | AG150: =SUM(B150:AF150) -> 0 | AH150: 連続 | AL150: =AG150 -> 0 | AM150: =AL150*請求書・納品書!$M$14 -> 0
AL151: 合 計 | AM151: =SUM(AM147:AM150) -> 0
AH152: =A152 -> 0 | AI152: 日数(日) | AJ152: 勤務時間(h) | AK152: 早退（h） | AL152: 合計(h) | AM152: 金額(円)
A153: 残業 | AG153: =SUM(B153:AF153) -> 0 | AH153: 出勤 | AI153: =COUNTIF(B152:AF152,"出") -> 0 | AJ153: =AI153*7.8 -> 0 | AK153: =AG154 -> 0 | AL153: =AJ153-AK153 -> 0 | AM153: =ROUNDDOWN(AL153*請求書・納品書!$M$11,) -> 0
A154: 遅・早(出) | AG154: =SUM(B154:AF154) -> 0 | AH154: 残業 | AL154: =AG153 -> 0 | AM154: =ROUNDDOWN(AL154*請求書・納品書!$M$12,) -> 0
A155: 遅・早(公) | AG155: =SUM(B155:AF155) -> 0 | AH155: 公出 | AI155: =COUNTIF(B152:AF152,"公") -> 0 | AJ155: =AI155*7.8 -> 0 | AK155: =AG155 -> 0 | AL155: =AJ155-AK155 -> 0 | AM155: =ROUNDDOWN(AL155*請求書・納品書!$M$13,) -> 0
A156: 連続 | AG156: =SUM(B156:AF156) -> 0 | AH156: 連続 | AL156: =AG156 -> 0 | AM156: =AL156*請求書・納品書!$M$14 -> 0
AL157: 合 計 | AM157: =SUM(AM153:AM156) -> 0
AH158: =A158 -> 0 | AI158: 日数(日) | AJ158: 勤務時間(h) | AK158: 早退（h） | AL158: 合計(h) | AM158: 金額(円)
A159: 残業 | AG159: =SUM(B159:AF159) -> 0 | AH159: 出勤 | AI159: =COUNTIF(B158:AF158,"出") -> 0 | AJ159: =AI159*7.8 -> 0 | AK159: =AG160 -> 0 | AL159: =AJ159-AK159 -> 0 | AM159: =ROUNDDOWN(AL159*請求書・納品書!$M$11,) -> 0
A160: 遅・早(出) | AG160: =SUM(B160:AF160) -> 0 | AH160: 残業 | AL160: =AG159 -> 0 | AM160: =ROUNDDOWN(AL160*請求書・納品書!$M$12,) -> 0
A161: 遅・早(公) | AG161: =SUM(B161:AF161) -> 0 | AH161: 公出 | AI161: =COUNTIF(B158:AF158,"公") -> 0 | AJ161: =AI161*7.8 -> 0 | AK161: =AG161 -> 0 | AL161: =AJ161-AK161 -> 0 | AM161: =ROUNDDOWN(AL161*請求書・納品書!$M$13,) -> 0
A162: 連続 | AG162: =SUM(B162:AF162) -> 0 | AH162: 連続 | AL162: =AG162 -> 0 | AM162: =AL162*請求書・納品書!$M$14 -> 0
AL163: 合 計 | AM163: =SUM(AM159:AM162) -> 0
AH164: =A164 -> 0 | AI164: 日数(日) | AJ164: 勤務時間(h) | AK164: 早退（h） | AL164: 合計(h) | AM164: 金額(円)
A165: 残業 | AG165: =SUM(B165:AF165) -> 0 | AH165: 出勤 | AI165: =COUNTIF(B164:AF164,"出") -> 0 | AJ165: =AI165*7.8 -> 0 | AK165: =AG166 -> 0 | AL165: =AJ165-AK165 -> 0 | AM165: =ROUNDDOWN(AL165*請求書・納品書!$M$11,) -> 0
A166: 遅・早(出) | AG166: =SUM(B166:AF166) -> 0 | AH166: 残業 | AL166: =AG165 -> 0 | AM166: =ROUNDDOWN(AL166*請求書・納品書!$M$12,) -> 0
A167: 遅・早(公) | AG167: =SUM(B167:AF167) -> 0 | AH167: 公出 | AI167: =COUNTIF(B164:AF164,"公") -> 0 | AJ167: =AI167*7.8 -> 0 | AK167: =AG167 -> 0 | AL167: =AJ167-AK167 -> 0 | AM167: =ROUNDDOWN(AL167*請求書・納品書!$M$13,) -> 0
A168: 連続 | AG168: =SUM(B168:AF168) -> 0 | AH168: 連続 | AL168: =AG168 -> 0 | AM168: =AL168*請求書・納品書!$M$14 -> 0
AL169: 合 計 | AM169: =SUM(AM165:AM168) -> 0 | AO169: =AM151+AM157+AM163+AM169 -> 0
AH170: =A170 -> 0 | AI170: 日数(日) | AJ170: 勤務時間(h) | AK170: 早退（h） | AL170: 合計(h) | AM170: 金額(円)
A171: 残業 | AG171: =SUM(B171:AF171) -> 0 | AH171: 出勤 | AI171: =COUNTIF(B170:AF170,"出") -> 0 | AJ171: =AI171*7.8 -> 0 | AK171: =AG172 -> 0 | AL171: =AJ171-AK171 -> 0 | AM171: =ROUNDDOWN(AL171*請求書・納品書!$M$11,) -> 0
A172: 遅・早(出) | AG172: =SUM(B172:AF172) -> 0 | AH172: 残業 | AL172: =AG171 -> 0 | AM172: =ROUNDDOWN(AL172*請求書・納品書!$M$12,) -> 0
A173: 遅・早(公) | AG173: =SUM(B173:AF173) -> 0 | AH173: 公出 | AI173: =COUNTIF(B170:AF170,"公") -> 0 | AJ173: =AI173*7.8 -> 0 | AK173: =AG173 -> 0 | AL173: =AJ173-AK173 -> 0 | AM173: =ROUNDDOWN(AL173*請求書・納品書!$M$13,) -> 0
A174: 連続 | AG174: =SUM(B174:AF174) -> 0 | AH174: 連続 | AL174: =AG174 -> 0 | AM174: =AL174*請求書・納品書!$M$14 -> 0
AL175: 合 計 | AM175: =SUM(AM171:AM174) -> 0
AH176: =A176 -> 0 | AI176: 日数(日) | AJ176: 勤務時間(h) | AK176: 早退（h） | AL176: 合計(h) | AM176: 金額(円)
A177: 残業 | AG177: =SUM(B177:AF177) -> 0 | AH177: 出勤 | AI177: =COUNTIF(B176:AF176,"出") -> 0 | AJ177: =AI177*7.8 -> 0 | AK177: =AG178 -> 0 | AL177: =AJ177-AK177 -> 0 | AM177: =ROUNDDOWN(AL177*請求書・納品書!$M$11,) -> 0
A178: 遅・早(出) | AG178: =SUM(B178:AF178) -> 0 | AH178: 残業 | AL178: =AG177 -> 0 | AM178: =ROUNDDOWN(AL178*請求書・納品書!$M$12,) -> 0
A179: 遅・早(公) | AG179: =SUM(B179:AF179) -> 0 | AH179: 公出 | AI179: =COUNTIF(B176:AF176,"公") -> 0 | AJ179: =AI179*7.8 -> 0 | AK179: =AG179 -> 0 | AL179: =AJ179-AK179 -> 0 | AM179: =ROUNDDOWN(AL179*請求書・納品書!$M$13,) -> 0
A180: 連続 | AG180: =SUM(B180:AF180) -> 0 | AH180: 連続 | AL180: =AG180 -> 0 | AM180: =AL180*請求書・納品書!$M$14 -> 0
AL181: 合 計 | AM181: =SUM(AM177:AM180) -> 0
AH182: =A182 -> 0 | AI182: 日数(日) | AJ182: 勤務時間(h) | AK182: 早退（h） | AL182: 合計(h) | AM182: 金額(円)
A183: 残業 | AG183: =SUM(B183:AF183) -> 0 | AH183: 出勤 | AI183: =COUNTIF(B182:AF182,"出") -> 0 | AJ183: =AI183*7.8 -> 0 | AK183: =AG184 -> 0 | AL183: =AJ183-AK183 -> 0 | AM183: =ROUNDDOWN(AL183*請求書・納品書!$M$11,) -> 0
A184: 遅・早(出) | AG184: =SUM(B184:AF184) -> 0 | AH184: 残業 | AL184: =AG183 -> 0 | AM184: =ROUNDDOWN(AL184*請求書・納品書!$M$12,) -> 0
A185: 遅・早(公) | AG185: =SUM(B185:AF185) -> 0 | AH185: 公出 | AI185: =COUNTIF(B182:AF182,"公") -> 0 | AJ185: =AI185*7.8 -> 0 | AK185: =AG185 -> 0 | AL185: =AJ185-AK185 -> 0 | AM185: =ROUNDDOWN(AL185*請求書・納品書!$M$13,) -> 0
A186: 連続 | AG186: =SUM(B186:AF186) -> 0 | AH186: 連続 | AL186: =AG186 -> 0 | AM186: =AL186*請求書・納品書!$M$14 -> 0
AL187: 合 計 | AM187: =SUM(AM183:AM186) -> 0
AH188: =A188 -> 0 | AI188: 日数(日) | AJ188: 勤務時間(h) | AK188: 早退（h） | AL188: 合計(h) | AM188: 金額(円)
A189: 残業 | AG189: =SUM(B189:AF189) -> 0 | AH189: 出勤 | AI189: =COUNTIF(B188:AF188,"出") -> 0 | AJ189: =AI189*7.8 -> 0 | AK189: =AG190 -> 0 | AL189: =AJ189-AK189 -> 0 | AM189: =ROUNDDOWN(AL189*請求書・納品書!$M$11,) -> 0
A190: 遅・早(出) | AG190: =SUM(B190:AF190) -> 0 | AH190: 残業 | AL190: =AG189 -> 0 | AM190: =ROUNDDOWN(AL190*請求書・納品書!$M$12,) -> 0
A191: 遅・早(公) | AG191: =SUM(B191:AF191) -> 0 | AH191: 公出 | AI191: =COUNTIF(B188:AF188,"公") -> 0 | AJ191: =AI191*7.8 -> 0 | AK191: =AG191 -> 0 | AL191: =AJ191-AK191 -> 0 | AM191: =ROUNDDOWN(AL191*請求書・納品書!$M$13,) -> 0
A192: 連続 | AG192: =SUM(B192:AF192) -> 0 | AH192: 連続 | AL192: =AG192 -> 0 | AM192: =AL192*請求書・納品書!$M$14 -> 0
AL193: 合 計 | AM193: =SUM(AM189:AM192) -> 0 | AO193: =AM175+AM181+AM187+AM193 -> 0

Sheet 2
A1: ='4'!A1+1 -> 2011 | B1: 1 | C1: 2 | D1: 3 | E1: 4 | F1: 5 | G1: 6 | H1: 7 | I1: 8 | J1: 9 | K1: 10 | L1: 11 | M1: 12 | N1: 13 | O1: 14 | P1: 15 | Q1: 16 | R1: 17 | S1: 18 | T1: 19 | U1: 20 | V1: 21 | W1: 22 | X1: 23 | Y1: 24 | Z1: 25 | AA1: 26 | AB1: 27 | AC1: 28 | AD1: 29 | AE1: 30 | AF1: 31 | AG1: 計 | AH1: =A1&"年"&MID(CELL("filename",$A$1),FIND("]",CELL("filename",$A$1))+1,31) &"月" -> 2011年2月
AH2: =A2 -> 0 | AI2: 日数(日) | AJ2: 勤務時間(h) | AK2: 早退（h） | AL2: 合計(h) | AM2: 金額(円) | AN2: 出 | AO2: 合計 | AP2: =SUM(AM:AM)/2 -> 0
A3: 残業 | AG3: =SUM(B3:AF3) -> 0 | AH3: 出勤 | AI3: =COUNTIF(B2:AF2,"出") -> 0 | AJ3: =AI3*7.8 -> 0 | AK3: =AG4 -> 0 | AL3: =AJ3-AK3 -> 0 | AM3: =ROUNDDOWN(AL3*請求書・納品書!$M$11,) -> 0 | AN3: 公 | AO3: 人数 | AP3: =COUNTA(AH:AH)-COUNTIF(AH:AH,0)-32*4-1 -> 0
A4: 遅・早(出) | AG4: =SUM(B4:AF4) -> 0 | AH4: 残業 | AL4: =AG3 -> 0 | AM4: =ROUNDDOWN(AL4*請求書・納品書!$M$12,) -> 0 | AN4: 欠 | AO4: 管理費 | AP4: =(AP3-AP9)*19400 -> 0
A5: 遅・早(公) | AG5: =SUM(B5:AF5) -> 0 | AH5: 公出 | AI5: =COUNTIF(B2:AF2,"公") -> 0 | AJ5: =AI5*7.8 -> 0 | AK5: =AG5 -> 0 | AL5: =AJ5-AK5 -> 0 | AM5: =ROUNDDOWN(AL5*請求書・納品書!$M$13,) -> 0 | AN5: 有 | AO5: 小計 | AP5: =AP2+AP4 -> 0
A6: 連続 | AG6: =SUM(B6:AF6) -> 0 | AH6: 連続 | AL6: =AG6 -> 0 | AM6: =AL6*請求書・納品書!$M$14 -> 0 | AN6: 半 | AO6: 消費税 | AP6: =ROUNDDOWN(AP5*0.05,) -> 0
AL7: 合 計 | AM7: =SUM(AM3:AM6) -> 0 | AO7: 総合計 | AP7: =AP5+AP6 -> 0
AH8: =A8 -> 0 | AI8: 日数(日) | AJ8: 勤務時間(h) | AK8: 早退（h） | AL8: 合計(h) | AM8: 金額(円)
A9: 残業 | AG9: =SUM(B9:AF9) -> 0 | AH9: 出勤 | AI9: =COUNTIF(B8:AF8,"出") -> 0 | AJ9: =AI9*7.8 -> 0 | AK9: =AG10 -> 0 | AL9: =AJ9-AK9 -> 0 | AM9: =ROUNDDOWN(AL9*請求書・納品書!$M$11,) -> 0 | AO9: 管理費に入れない人数
A10: 遅・早(出) | AG10: =SUM(B10:AF10) -> 0 | AH10: 残業 | AL10: =AG9 -> 0 | AM10: =ROUNDDOWN(AL10*請求書・納品書!$M$12,) -> 0
A11: 遅・早(公) | AG11: =SUM(B11:AF11) -> 0 | AH11: 公出 | AI11: =COUNTIF(B8:AF8,"公") -> 0 | AJ11: =AI11*7.8 -> 0 | AK11: =AG11 -> 0 | AL11: =AJ11-AK11 -> 0 | AM11: =ROUNDDOWN(AL11*請求書・納品書!$M$13,) -> 0
A12: 連続 | AG12: =SUM(B12:AF12) -> 0 | AH12: 連続 | AL12: =AG12 -> 0 | AM12: =AL12*請求書・納品書!$M$14 -> 0
AL13: 合 計 | AM13: =SUM(AM9:AM12) -> 0
AH14: =A14 -> 0 | AI14: 日数(日) | AJ14: 勤務時間(h) | AK14: 早退（h） | AL14: 合計(h) | AM14: 金額(円)
A15: 残業 | AG15: =SUM(B15:AF15) -> 0 | AH15: 出勤 | AI15: =COUNTIF(B14:AF14,"出") -> 0 | AJ15: =AI15*7.8 -> 0 | AK15: =AG16 -> 0 | AL15: =AJ15-AK15 -> 0 | AM15: =ROUNDDOWN(AL15*請求書・納品書!$M$11,) -> 0
A16: 遅・早(出) | AG16: =SUM(B16:AF16) -> 0 | AH16: 残業 | AL16: =AG15 -> 0 | AM16: =ROUNDDOWN(AL16*請求書・納品書!$M$12,) -> 0
A17: 遅・早(公) | AG17: =SUM(B17:AF17) -> 0 | AH17: 公出 | AI17: =COUNTIF(B14:AF14,"公") -> 0 | AJ17: =AI17*7.8 -> 0 | AK17: =AG17 -> 0 | AL17: =AJ17-AK17 -> 0 | AM17: =ROUNDDOWN(AL17*請求書・納品書!$M$13,) -> 0
A18: 連続 | AG18: =SUM(B18:AF18) -> 0 | AH18: 連続 | AL18: =AG18 -> 0 | AM18: =AL18*請求書・納品書!$M$14 -> 0
AL19: 合 計 | AM19: =SUM(AM15:AM18) -> 0
AH20: =A20 -> 0 | AI20: 日数(日) | AJ20: 勤務時間(h) | AK20: 早退（h） | AL20: 合計(h) | AM20: 金額(円)
A21: 残業 | AG21: =SUM(B21:AF21) -> 0 | AH21: 出勤 | AI21: =COUNTIF(B20:AF20,"出") -> 0 | AJ21: =AI21*7.8 -> 0 | AK21: =AG22 -> 0 | AL21: =AJ21-AK21 -> 0 | AM21: =ROUNDDOWN(AL21*請求書・納品書!$M$11,) -> 0
A22: 遅・早(出) | AG22: =SUM(B22:AF22) -> 0 | AH22: 残業 | AL22: =AG21 -> 0 | AM22: =ROUNDDOWN(AL22*請求書・納品書!$M$12,) -> 0
A23: 遅・早(公) | AG23: =SUM(B23:AF23) -> 0 | AH23: 公出 | AI23: =COUNTIF(B20:AF20,"公") -> 0 | AJ23: =AI23*7.8 -> 0 | AK23: =AG23 -> 0 | AL23: =AJ23-AK23 -> 0 | AM23: =ROUNDDOWN(AL23*請求書・納品書!$M$13,) -> 0
A24: 連続 | AG24: =SUM(B24:AF24) -> 0 | AH24: 連続 | AL24: =AG24 -> 0 | AM24: =AL24*請求書・納品書!$M$14 -> 0
AL25: 合 計 | AM25: =SUM(AM21:AM24) -> 0 | AO25: =AM7+AM13+AM19+AM25 -> 0
AH26: =A26 -> 0 | AI26: 日数(日) | AJ26: 勤務時間(h) | AK26: 早退（h） | AL26: 合計(h) | AM26: 金額(円)
A27: 残業 | AG27: =SUM(B27:AF27) -> 0 | AH27: 出勤 | AI27: =COUNTIF(B26:AF26,"出") -> 0 | AJ27: =AI27*7.8 -> 0 | AK27: =AG28 -> 0 | AL27: =AJ27-AK27 -> 0 | AM27: =ROUNDDOWN(AL27*請求書・納品書!$M$11,) -> 0
A28: 遅・早(出) | AG28: =SUM(B28:AF28) -> 0 | AH28: 残業 | AL28: =AG27 -> 0 | AM28: =ROUNDDOWN(AL28*請求書・納品書!$M$12,) -> 0
A29: 遅・早(公) | AG29: =SUM(B29:AF29) -> 0 | AH29: 公出 | AI29: =COUNTIF(B26:AF26,"公") -> 0 | AJ29: =AI29*7.8 -> 0 | AK29: =AG29 -> 0 | AL29: =AJ29-AK29 -> 0 | AM29: =ROUNDDOWN(AL29*請求書・納品書!$M$13,) -> 0
A30: 連続 | AG30: =SUM(B30:AF30) -> 0 | AH30: 連続 | AL30: =AG30 -> 0 | AM30: =AL30*請求書・納品書!$M$14 -> 0
AL31: 合 計 | AM31: =SUM(AM27:AM30) -> 0
AH32: =A32 -> 0 | AI32: 日数(日) | AJ32: 勤務時間(h) | AK32: 早退（h） | AL32: 合計(h) | AM32: 金額(円)
A33: 残業 | AG33: =SUM(B33:AF33) -> 0 | AH33: 出勤 | AI33: =COUNTIF(B32:AF32,"出") -> 0 | AJ33: =AI33*7.8 -> 0 | AK33: =AG34 -> 0 | AL33: =AJ33-AK33 -> 0 | AM33: =ROUNDDOWN(AL33*請求書・納品書!$M$11,) -> 0
A34: 遅・早(出) | AG34: =SUM(B34:AF34) -> 0 | AH34: 残業 | AL34: =AG33 -> 0 | AM34: =ROUNDDOWN(AL34*請求書・納品書!$M$12,) -> 0
A35: 遅・早(公) | AG35: =SUM(B35:AF35) -> 0 | AH35: 公出 | AI35: =COUNTIF(B32:AF32,"公") -> 0 | AJ35: =AI35*7.8 -> 0 | AK35: =AG35 -> 0 | AL35: =AJ35-AK35 -> 0 | AM35: =ROUNDDOWN(AL35*請求書・納品書!$M$13,) -> 0
A36: 連続 | AG36: =SUM(B36:AF36) -> 0 | AH36: 連続 | AL36: =AG36 -> 0 | AM36: =AL36*請求書・納品書!$M$14 -> 0
AL37: 合 計 | AM37: =SUM(AM33:AM36) -> 0
AH38: =A38 -> 0 | AI38: 日数(日) | AJ38: 勤務時間(h) | AK38: 早退（h） | AL38: 合計(h) | AM38: 金額(円)
A39: 残業 | AG39: =SUM(B39:AF39) -> 0 | AH39: 出勤 | AI39: =COUNTIF(B38:AF38,"出") -> 0 | AJ39: =AI39*7.8 -> 0 | AK39: =AG40 -> 0 | AL39: =AJ39-AK39 -> 0 | AM39: =ROUNDDOWN(AL39*請求書・納品書!$M$11,) -> 0
A40: 遅・早(出) | AG40: =SUM(B40:AF40) -> 0 | AH40: 残業 | AL40: =AG39 -> 0 | AM40: =ROUNDDOWN(AL40*請求書・納品書!$M$12,) -> 0
A41: 遅・早(公) | AG41: =SUM(B41:AF41) -> 0 | AH41: 公出 | AI41: =COUNTIF(B38:AF38,"公") -> 0 | AJ41: =AI41*7.8 -> 0 | AK41: =AG41 -> 0 | AL41: =AJ41-AK41 -> 0 | AM41: =ROUNDDOWN(AL41*請求書・納品書!$M$13,) -> 0
A42: 連続 | AG42: =SUM(B42:AF42) -> 0 | AH42: 連続 | AL42: =AG42 -> 0 | AM42: =AL42*請求書・納品書!$M$14 -> 0
AL43: 合 計 | AM43: =SUM(AM39:AM42) -> 0
AH44: =A44 -> 0 | AI44: 日数(日) | AJ44: 勤務時間(h) | AK44: 早退（h） | AL44: 合計(h) | AM44: 金額(円)
A45: 残業 | AG45: =SUM(B45:AF45) -> 0 | AH45: 出勤 | AI45: =COUNTIF(B44:AF44,"出") -> 0 | AJ45: =AI45*7.8 -> 0 | AK45: =AG46 -> 0 | AL45: =AJ45-AK45 -> 0 | AM45: =ROUNDDOWN(AL45*請求書・納品書!$M$11,) -> 0
A46: 遅・早(出) | AG46: =SUM(B46:AF46) -> 0 | AH46: 残業 | AL46: =AG45 -> 0 | AM46: =ROUNDDOWN(AL46*請求書・納品書!$M$12,) -> 0
A47: 遅・早(公) | AG47: =SUM(B47:AF47) -> 0 | AH47: 公出 | AI47: =COUNTIF(B44:AF44,"公") -> 0 | AJ47: =AI47*7.8 -> 0 | AK47: =AG47 -> 0 | AL47: =AJ47-AK47 -> 0 | AM47: =ROUNDDOWN(AL47*請求書・納品書!$M$13,) -> 0
A48: 連続 | AG48: =SUM(B48:AF48) -> 0 | AH48: 連続 | AL48: =AG48 -> 0 | AM48: =AL48*請求書・納品書!$M$14 -> 0
AL49: 合 計 | AM49: =SUM(AM45:AM48) -> 0 | AO49: =AM31+AM37+AM43+AM49 -> 0
AH50: =A50 -> 0 | AI50: 日数(日) | AJ50: 勤務時間(h) | AK50: 早退（h） | AL50: 合計(h) | AM50: 金額(円)
A51: 残業 | AG51: =SUM(B51:AF51) -> 0 | AH51: 出勤 | AI51: =COUNTIF(B50:AF50,"出") -> 0 | AJ51: =AI51*7.8 -> 0 | AK51: =AG52 -> 0 | AL51: =AJ51-AK51 -> 0 | AM51: =ROUNDDOWN(AL51*請求書・納品書!$M$11,) -> 0
A52: 遅・早(出) | AG52: =SUM(B52:AF52) -> 0 | AH52: 残業 | AL52: =AG51 -> 0 | AM52: =ROUNDDOWN(AL52*請求書・納品書!$M$12,) -> 0
A53: 遅・早(公) | AG53: =SUM(B53:AF53) -> 0 | AH53: 公出 | AI53: =COUNTIF(B50:AF50,"公") -> 0 | AJ53: =AI53*7.8 -> 0 | AK53: =AG53 -> 0 | AL53: =AJ53-AK53 -> 0 | AM53: =ROUNDDOWN(AL53*請求書・納品書!$M$13,) -> 0
A54: 連続 | AG54: =SUM(B54:AF54) -> 0 | AH54: 連続 | AL54: =AG54 -> 0 | AM54: =AL54*請求書・納品書!$M$14 -> 0
AL55: 合 計 | AM55: =SUM(AM51:AM54) -> 0
AH56: =A56 -> 0 | AI56: 日数(日) | AJ56: 勤務時間(h) | AK56: 早退（h） | AL56: 合計(h) | AM56: 金額(円)
A57: 残業 | AG57: =SUM(B57:AF57) -> 0 | AH57: 出勤 | AI57: =COUNTIF(B56:AF56,"出") -> 0 | AJ57: =AI57*7.8 -> 0 | AK57: =AG58 -> 0 | AL57: =AJ57-AK57 -> 0 | AM57: =ROUNDDOWN(AL57*請求書・納品書!$M$11,) -> 0
A58: 遅・早(出) | AG58: =SUM(B58:AF58) -> 0 | AH58: 残業 | AL58: =AG57 -> 0 | AM58: =ROUNDDOWN(AL58*請求書・納品書!$M$12,) -> 0
A59: 遅・早(公) | AG59: =SUM(B59:AF59) -> 0 | AH59: 公出 | AI59: =COUNTIF(B56:AF56,"公") -> 0 | AJ59: =AI59*7.8 -> 0 | AK59: =AG59 -> 0 | AL59: =AJ59-AK59 -> 0 | AM59: =ROUNDDOWN(AL59*請求書・納品書!$M$13,) -> 0
A60: 連続 | AG60: =SUM(B60:AF60) -> 0 | AH60: 連続 | AL60: =AG60 -> 0 | AM60: =AL60*請求書・納品書!$M$14 -> 0
AL61: 合 計 | AM61: =SUM(AM57:AM60) -> 0
AH62: =A62 -> 0 | AI62: 日数(日) | AJ62: 勤務時間(h) | AK62: 早退（h） | AL62: 合計(h) | AM62: 金額(円)
A63: 残業 | AG63: =SUM(B63:AF63) -> 0 | AH63: 出勤 | AI63: =COUNTIF(B62:AF62,"出") -> 0 | AJ63: =AI63*7.8 -> 0 | AK63: =AG64 -> 0 | AL63: =AJ63-AK63 -> 0 | AM63: =ROUNDDOWN(AL63*請求書・納品書!$M$11,) -> 0
A64: 遅・早(出) | AG64: =SUM(B64:AF64) -> 0 | AH64: 残業 | AL64: =AG63 -> 0 | AM64: =ROUNDDOWN(AL64*請求書・納品書!$M$12,) -> 0
A65: 遅・早(公) | AG65: =SUM(B65:AF65) -> 0 | AH65: 公出 | AI65: =COUNTIF(B62:AF62,"公") -> 0 | AJ65: =AI65*7.8 -> 0 | AK65: =AG65 -> 0 | AL65: =AJ65-AK65 -> 0 | AM65: =ROUNDDOWN(AL65*請求書・納品書!$M$13,) -> 0
A66: 連続 | AG66: =SUM(B66:AF66) -> 0 | AH66: 連続 | AL66: =AG66 -> 0 | AM66: =AL66*請求書・納品書!$M$14 -> 0
AL67: 合 計 | AM67: =SUM(AM63:AM66) -> 0
AH68: =A68 -> 0 | AI68: 日数(日) | AJ68: 勤務時間(h) | AK68: 早退（h） | AL68: 合計(h) | AM68: 金額(円)
A69: 残業 | AG69: =SUM(B69:AF69) -> 0 | AH69: 出勤 | AI69: =COUNTIF(B68:AF68,"出") -> 0 | AJ69: =AI69*7.8 -> 0 | AK69: =AG70 -> 0 | AL69: =AJ69-AK69 -> 0 | AM69: =ROUNDDOWN(AL69*請求書・納品書!$M$11,) -> 0
A70: 遅・早(出) | AG70: =SUM(B70:AF70) -> 0 | AH70: 残業 | AL70: =AG69 -> 0 | AM70: =ROUNDDOWN(AL70*請求書・納品書!$M$12,) -> 0
A71: 遅・早(公) | AG71: =SUM(B71:AF71) -> 0 | AH71: 公出 | AI71: =COUNTIF(B68:AF68,"公") -> 0 | AJ71: =AI71*7.8 -> 0 | AK71: =AG71 -> 0 | AL71: =AJ71-AK71 -> 0 | AM71: =ROUNDDOWN(AL71*請求書・納品書!$M$13,) -> 0
A72: 連続 | AG72: =SUM(B72:AF72) -> 0 | AH72: 連続 | AL72: =AG72 -> 0 | AM72: =AL72*請求書・納品書!$M$14 -> 0
AL73: 合 計 | AM73: =SUM(AM69:AM72) -> 0 | AO73: =AM55+AM61+AM67+AM73 -> 0
AH74: =A74 -> 0 | AI74: 日数(日) | AJ74: 勤務時間(h) | AK74: 早退（h） | AL74: 合計(h) | AM74: 金額(円)
A75: 残業 | AG75: =SUM(B75:AF75) -> 0 | AH75: 出勤 | AI75: =COUNTIF(B74:AF74,"出") -> 0 | AJ75: =AI75*7.8 -> 0 | AK75: =AG76 -> 0 | AL75: =AJ75-AK75 -> 0 | AM75: =ROUNDDOWN(AL75*請求書・納品書!$M$11,) -> 0
A76: 遅・早(出) | AG76: =SUM(B76:AF76) -> 0 | AH76: 残業 | AL76: =AG75 -> 0 | AM76: =ROUNDDOWN(AL76*請求書・納品書!$M$12,) -> 0
A77: 遅・早(公) | AG77: =SUM(B77:AF77) -> 0 | AH77: 公出 | AI77: =COUNTIF(B74:AF74,"公") -> 0 | AJ77: =AI77*7.8 -> 0 | AK77: =AG77 -> 0 | AL77: =AJ77-AK77 -> 0 | AM77: =ROUNDDOWN(AL77*請求書・納品書!$M$13,) -> 0
A78: 連続 | AG78: =SUM(B78:AF78) -> 0 | AH78: 連続 | AL78: =AG78 -> 0 | AM78: =AL78*請求書・納品書!$M$14 -> 0
AL79: 合 計 | AM79: =SUM(AM75:AM78) -> 0
AH80: =A80 -> 0 | AI80: 日数(日) | AJ80: 勤務時間(h) | AK80: 早退（h） | AL80: 合計(h) | AM80: 金額(円)
A81: 残業 | AG81: =SUM(B81:AF81) -> 0 | AH81: 出勤 | AI81: =COUNTIF(B80:AF80,"出") -> 0 | AJ81: =AI81*7.8 -> 0 | AK81: =AG82 -> 0 | AL81: =AJ81-AK81 -> 0 | AM81: =ROUNDDOWN(AL81*請求書・納品書!$M$11,) -> 0
A82: 遅・早(出) | AG82: =SUM(B82:AF82) -> 0 | AH82: 残業 | AL82: =AG81 -> 0 | AM82: =ROUNDDOWN(AL82*請求書・納品書!$M$12,) -> 0
A83: 遅・早(公) | AG83: =SUM(B83:AF83) -> 0 | AH83: 公出 | AI83: =COUNTIF(B80:AF80,"公") -> 0 | AJ83: =AI83*7.8 -> 0 | AK83: =AG83 -> 0 | AL83: =AJ83-AK83 -> 0 | AM83: =ROUNDDOWN(AL83*請求書・納品書!$M$13,) -> 0
A84: 連続 | AG84: =SUM(B84:AF84) -> 0 | AH84: 連続 | AL84: =AG84 -> 0 | AM84: =AL84*請求書・納品書!$M$14 -> 0
AL85: 合 計 | AM85: =SUM(AM81:AM84) -> 0
AH86: =A86 -> 0 | AI86: 日数(日) | AJ86: 勤務時間(h) | AK86: 早退（h） | AL86: 合計(h) | AM86: 金額(円)
A87: 残業 | AG87: =SUM(B87:AF87) -> 0 | AH87: 出勤 | AI87: =COUNTIF(B86:AF86,"出") -> 0 | AJ87: =AI87*7.8 -> 0 | AK87: =AG88 -> 0 | AL87: =AJ87-AK87 -> 0 | AM87: =ROUNDDOWN(AL87*請求書・納品書!$M$11,) -> 0
A88: 遅・早(出) | AG88: =SUM(B88:AF88) -> 0 | AH88: 残業 | AL88: =AG87 -> 0 | AM88: =ROUNDDOWN(AL88*請求書・納品書!$M$12,) -> 0
A89: 遅・早(公) | AG89: =SUM(B89:AF89) -> 0 | AH89: 公出 | AI89: =COUNTIF(B86:AF86,"公") -> 0 | AJ89: =AI89*7.8 -> 0 | AK89: =AG89 -> 0 | AL89: =AJ89-AK89 -> 0 | AM89: =ROUNDDOWN(AL89*請求書・納品書!$M$13,) -> 0
A90: 連続 | AG90: =SUM(B90:AF90) -> 0 | AH90: 連続 | AL90: =AG90 -> 0 | AM90: =AL90*請求書・納品書!$M$14 -> 0
AL91: 合 計 | AM91: =SUM(AM87:AM90) -> 0
AH92: =A92 -> 0 | AI92: 日数(日) | AJ92: 勤務時間(h) | AK92: 早退（h） | AL92: 合計(h) | AM92: 金額(円)
A93: 残業 | AG93: =SUM(B93:AF93) -> 0 | AH93: 出勤 | AI93: =COUNTIF(B92:AF92,"出") -> 0 | AJ93: =AI93*7.8 -> 0 | AK93: =AG94 -> 0 | AL93: =AJ93-AK93 -> 0 | AM93: =ROUNDDOWN(AL93*請求書・納品書!$M$11,) -> 0
A94: 遅・早(出) | AG94: =SUM(B94:AF94) -> 0 | AH94: 残業 | AL94: =AG93 -> 0 | AM94: =ROUNDDOWN(AL94*請求書・納品書!$M$12,) -> 0
A95: 遅・早(公) | AG95: =SUM(B95:AF95) -> 0 | AH95: 公出 | AI95: =COUNTIF(B92:AF92,"公") -> 0 | AJ95: =AI95*7.8 -> 0 | AK95: =AG95 -> 0 | AL95: =AJ95-AK95 -> 0 | AM95: =ROUNDDOWN(AL95*請求書・納品書!$M$13,) -> 0
A96: 連続 | AG96: =SUM(B96:AF96) -> 0 | AH96: 連続 | AL96: =AG96 -> 0 | AM96: =AL96*請求書・納品書!$M$14 -> 0
AL97: 合 計 | AM97: =SUM(AM93:AM96) -> 0 | AO97: =AM79+AM85+AM91+AM97 -> 0
AH98: =A98 -> 0 | AI98: 日数(日) | AJ98: 勤務時間(h) | AK98: 早退（h） | AL98: 合計(h) | AM98: 金額(円)
A99: 残業 | AG99: =SUM(B99:AF99) -> 0 | AH99: 出勤 | AI99: =COUNTIF(B98:AF98,"出") -> 0 | AJ99: =AI99*7.8 -> 0 | AK99: =AG100 -> 0 | AL99: =AJ99-AK99 -> 0 | AM99: =ROUNDDOWN(AL99*請求書・納品書!$M$11,) -> 0
A100: 遅・早(出) | AG100: =SUM(B100:AF100) -> 0 | AH100: 残業 | AL100: =AG99 -> 0 | AM100: =ROUNDDOWN(AL100*請求書・納品書!$M$12,) -> 0
A101: 遅・早(公) | AG101: =SUM(B101:AF101) -> 0 | AH101: 公出 | AI101: =COUNTIF(B98:AF98,"公") -> 0 | AJ101: =AI101*7.8 -> 0 | AK101: =AG101 -> 0 | AL101: =AJ101-AK101 -> 0 | AM101: =ROUNDDOWN(AL101*請求書・納品書!$M$13,) -> 0
A102: 連続 | AG102: =SUM(B102:AF102) -> 0 | AH102: 連続 | AL102: =AG102 -> 0 | AM102: =AL102*請求書・納品書!$M$14 -> 0
AL103: 合 計 | AM103: =SUM(AM99:AM102) -> 0
AH104: =A104 -> 0 | AI104: 日数(日) | AJ104: 勤務時間(h) | AK104: 早退（h） | AL104: 合計(h) | AM104: 金額(円)
A105: 残業 | AG105: =SUM(B105:AF105) -> 0 | AH105: 出勤 | AI105: =COUNTIF(B104:AF104,"出") -> 0 | AJ105: =AI105*7.8 -> 0 | AK105: =AG106 -> 0 | AL105: =AJ105-AK105 -> 0 | AM105: =ROUNDDOWN(AL105*請求書・納品書!$M$11,) -> 0
A106: 遅・早(出) | AG106: =SUM(B106:AF106) -> 0 | AH106: 残業 | AL106: =AG105 -> 0 | AM106: =ROUNDDOWN(AL106*請求書・納品書!$M$12,) -> 0
A107: 遅・早(公) | AG107: =SUM(B107:AF107) -> 0 | AH107: 公出 | AI107: =COUNTIF(B104:AF104,"公") -> 0 | AJ107: =AI107*7.8 -> 0 | AK107: =AG107 -> 0 | AL107: =AJ107-AK107 -> 0 | AM107: =ROUNDDOWN(AL107*請求書・納品書!$M$13,) -> 0
A108: 連続 | AG108: =SUM(B108:AF108) -> 0 | AH108: 連続 | AL108: =AG108 -> 0 | AM108: =AL108*請求書・納品書!$M$14 -> 0
AL109: 合 計 | AM109: =SUM(AM105:AM108) -> 0
AH110: =A110 -> 0 | AI110: 日数(日) | AJ110: 勤務時間(h) | AK110: 早退（h） | AL110: 合計(h) | AM110: 金額(円)
A111: 残業 | AG111: =SUM(B111:AF111) -> 0 | AH111: 出勤 | AI111: =COUNTIF(B110:AF110,"出") -> 0 | AJ111: =AI111*7.8 -> 0 | AK111: =AG112 -> 0 | AL111: =AJ111-AK111 -> 0 | AM111: =ROUNDDOWN(AL111*請求書・納品書!$M$11,) -> 0
A112: 遅・早(出) | AG112: =SUM(B112:AF112) -> 0 | AH112: 残業 | AL112: =AG111 -> 0 | AM112: =ROUNDDOWN(AL112*請求書・納品書!$M$12,) -> 0
A113: 遅・早(公) | AG113: =SUM(B113:AF113) -> 0 | AH113: 公出 | AI113: =COUNTIF(B110:AF110,"公") -> 0 | AJ113: =AI113*7.8 -> 0 | AK113: =AG113 -> 0 | AL113: =AJ113-AK113 -> 0 | AM113: =ROUNDDOWN(AL113*請求書・納品書!$M$13,) -> 0
A114: 連続 | AG114: =SUM(B114:AF114) -> 0 | AH114: 連続 | AL114: =AG114 -> 0 | AM114: =AL114*請求書・納品書!$M$14 -> 0
AL115: 合 計 | AM115: =SUM(AM111:AM114) -> 0
AH116: =A116 -> 0 | AI116: 日数(日) | AJ116: 勤務時間(h) | AK116: 早退（h） | AL116: 合計(h) | AM116: 金額(円)
A117: 残業 | AG117: =SUM(B117:AF117) -> 0 | AH117: 出勤 | AI117: =COUNTIF(B116:AF116,"出") -> 0 | AJ117: =AI117*7.8 -> 0 | AK117: =AG118 -> 0 | AL117: =AJ117-AK117 -> 0 | AM117: =ROUNDDOWN(AL117*請求書・納品書!$M$11,) -> 0
A118: 遅・早(出) | AG118: =SUM(B118:AF118) -> 0 | AH118: 残業 | AL118: =AG117 -> 0 | AM118: =ROUNDDOWN(AL118*請求書・納品書!$M$12,) -> 0
A119: 遅・早(公) | AG119: =SUM(B119:AF119) -> 0 | AH119: 公出 | AI119: =COUNTIF(B116:AF116,"公") -> 0 | AJ119: =AI119*7.8 -> 0 | AK119: =AG119 -> 0 | AL119: =AJ119-AK119 -> 0 | AM119: =ROUNDDOWN(AL119*請求書・納品書!$M$13,) -> 0
A120: 連続 | AG120: =SUM(B120:AF120) -> 0 | AH120: 連続 | AL120: =AG120 -> 0 | AM120: =AL120*請求書・納品書!$M$14 -> 0
AL121: 合 計 | AM121: =SUM(AM117:AM120) -> 0 | AO121: =AM103+AM109+AM115+AM121 -> 0
AH122: =A122 -> 0 | AI122: 日数(日) | AJ122: 勤務時間(h) | AK122: 早退（h） | AL122: 合計(h) | AM122: 金額(円)
A123: 残業 | AG123: =SUM(B123:AF123) -> 0 | AH123: 出勤 | AI123: =COUNTIF(B122:AF122,"出") -> 0 | AJ123: =AI123*7.8 -> 0 | AK123: =AG124 -> 0 | AL123: =AJ123-AK123 -> 0 | AM123: =ROUNDDOWN(AL123*請求書・納品書!$M$11,) -> 0
A124: 遅・早(出) | AG124: =SUM(B124:AF124) -> 0 | AH124: 残業 | AL124: =AG123 -> 0 | AM124: =ROUNDDOWN(AL124*請求書・納品書!$M$12,) -> 0
A125: 遅・早(公) | AG125: =SUM(B125:AF125) -> 0 | AH125: 公出 | AI125: =COUNTIF(B122:AF122,"公") -> 0 | AJ125: =AI125*7.8 -> 0 | AK125: =AG125 -> 0 | AL125: =AJ125-AK125 -> 0 | AM125: =ROUNDDOWN(AL125*請求書・納品書!$M$13,) -> 0
A126: 連続 | AG126: =SUM(B126:AF126) -> 0 | AH126: 連続 | AL126: =AG126 -> 0 | AM126: =AL126*請求書・納品書!$M$14 -> 0
AL127: 合 計 | AM127: =SUM(AM123:AM126) -> 0
AH128: =A128 -> 0 | AI128: 日数(日) | AJ128: 勤務時間(h) | AK128: 早退（h） | AL128: 合計(h) | AM128: 金額(円)
A129: 残業 | AG129: =SUM(B129:AF129) -> 0 | AH129: 出勤 | AI129: =COUNTIF(B128:AF128,"出") -> 0 | AJ129: =AI129*7.8 -> 0 | AK129: =AG130 -> 0 | AL129: =AJ129-AK129 -> 0 | AM129: =ROUNDDOWN(AL129*請求書・納品書!$M$11,) -> 0
A130: 遅・早(出) | AG130: =SUM(B130:AF130) -> 0 | AH130: 残業 | AL130: =AG129 -> 0 | AM130: =ROUNDDOWN(AL130*請求書・納品書!$M$12,) -> 0
A131: 遅・早(公) | AG131: =SUM(B131:AF131) -> 0 | AH131: 公出 | AI131: =COUNTIF(B128:AF128,"公") -> 0 | AJ131: =AI131*7.8 -> 0 | AK131: =AG131 -> 0 | AL131: =AJ131-AK131 -> 0 | AM131: =ROUNDDOWN(AL131*請求書・納品書!$M$13,) -> 0
A132: 連続 | AG132: =SUM(B132:AF132) -> 0 | AH132: 連続 | AL132: =AG132 -> 0 | AM132: =AL132*請求書・納品書!$M$14 -> 0
AL133: 合 計 | AM133: =SUM(AM129:AM132) -> 0
AH134: =A134 -> 0 | AI134: 日数(日) | AJ134: 勤務時間(h) | AK134: 早退（h） | AL134: 合計(h) | AM134: 金額(円)
A135: 残業 | AG135: =SUM(B135:AF135) -> 0 | AH135: 出勤 | AI135: =COUNTIF(B134:AF134,"出") -> 0 | AJ135: =AI135*7.8 -> 0 | AK135: =AG136 -> 0 | AL135: =AJ135-AK135 -> 0 | AM135: =ROUNDDOWN(AL135*請求書・納品書!$M$11,) -> 0
A136: 遅・早(出) | AG136: =SUM(B136:AF136) -> 0 | AH136: 残業 | AL136: =AG135 -> 0 | AM136: =ROUNDDOWN(AL136*請求書・納品書!$M$12,) -> 0
A137: 遅・早(公) | AG137: =SUM(B137:AF137) -> 0 | AH137: 公出 | AI137: =COUNTIF(B134:AF134,"公") -> 0 | AJ137: =AI137*7.8 -> 0 | AK137: =AG137 -> 0 | AL137: =AJ137-AK137 -> 0 | AM137: =ROUNDDOWN(AL137*請求書・納品書!$M$13,) -> 0
A138: 連続 | AG138: =SUM(B138:AF138) -> 0 | AH138: 連続 | AL138: =AG138 -> 0 | AM138: =AL138*請求書・納品書!$M$14 -> 0
AL139: 合 計 | AM139: =SUM(AM135:AM138) -> 0
AH140: =A140 -> 0 | AI140: 日数(日) | AJ140: 勤務時間(h) | AK140: 早退（h） | AL140: 合計(h) | AM140: 金額(円)
A141: 残業 | AG141: =SUM(B141:AF141) -> 0 | AH141: 出勤 | AI141: =COUNTIF(B140:AF140,"出") -> 0 | AJ141: =AI141*7.8 -> 0 | AK141: =AG142 -> 0 | AL141: =AJ141-AK141 -> 0 | AM141: =ROUNDDOWN(AL141*請求書・納品書!$M$11,) -> 0
A142: 遅・早(出) | AG142: =SUM(B142:AF142) -> 0 | AH142: 残業 | AL142: =AG141 -> 0 | AM142: =ROUNDDOWN(AL142*請求書・納品書!$M$12,) -> 0
A143: 遅・早(公) | AG143: =SUM(B143:AF143) -> 0 | AH143: 公出 | AI143: =COUNTIF(B140:AF140,"公") -> 0 | AJ143: =AI143*7.8 -> 0 | AK143: =AG143 -> 0 | AL143: =AJ143-AK143 -> 0 | AM143: =ROUNDDOWN(AL143*請求書・納品書!$M$13,) -> 0
A144: 連続 | AG144: =SUM(B144:AF144) -> 0 | AH144: 連続 | AL144: =AG144 -> 0 | AM144: =AL144*請求書・納品書!$M$14 -> 0
AL145: 合 計 | AM145: =SUM(AM141:AM144) -> 0 | AO145: =AM127+AM133+AM139+AM145 -> 0
AH146: =A146 -> 0 | AI146: 日数(日) | AJ146: 勤務時間(h) | AK146: 早退（h） | AL146: 合計(h) | AM146: 金額(円)
A147: 残業 | AG147: =SUM(B147:AF147) -> 0 | AH147: 出勤 | AI147: =COUNTIF(B146:AF146,"出") -> 0 | AJ147: =AI147*7.8 -> 0 | AK147: =AG148 -> 0 | AL147: =AJ147-AK147 -> 0 | AM147: =ROUNDDOWN(AL147*請求書・納品書!$M$11,) -> 0
A148: 遅・早(出) | AG148: =SUM(B148:AF148) -> 0 | AH148: 残業 | AL148: =AG147 -> 0 | AM148: =ROUNDDOWN(AL148*請求書・納品書!$M$12,) -> 0
A149: 遅・早(公) | AG149: =SUM(B149:AF149) -> 0 | AH149: 公出 | AI149: =COUNTIF(B146:AF146,"公") -> 0 | AJ149: =AI149*7.8 -> 0 | AK149: =AG149 -> 0 | AL149: =AJ149-AK149 -> 0 | AM149: =ROUNDDOWN(AL149*請求書・納品書!$M$13,) -> 0
A150: 連続 | AG150: =SUM(B150:AF150) -> 0 | AH150: 連続 | AL150: =AG150 -> 0 | AM150: =AL150*請求書・納品書!$M$14 -> 0
AL151: 合 計 | AM151: =SUM(AM147:AM150) -> 0
AH152: =A152 -> 0 | AI152: 日数(日) | AJ152: 勤務時間(h) | AK152: 早退（h） | AL152: 合計(h) | AM152: 金額(円)
A153: 残業 | AG153: =SUM(B153:AF153) -> 0 | AH153: 出勤 | AI153: =COUNTIF(B152:AF152,"出") -> 0 | AJ153: =AI153*7.8 -> 0 | AK153: =AG154 -> 0 | AL153: =AJ153-AK153 -> 0 | AM153: =ROUNDDOWN(AL153*請求書・納品書!$M$11,) -> 0
A154: 遅・早(出) | AG154: =SUM(B154:AF154) -> 0 | AH154: 残業 | AL154: =AG153 -> 0 | AM154: =ROUNDDOWN(AL154*請求書・納品書!$M$12,) -> 0
A155: 遅・早(公) | AG155: =SUM(B155:AF155) -> 0 | AH155: 公出 | AI155: =COUNTIF(B152:AF152,"公") -> 0 | AJ155: =AI155*7.8 -> 0 | AK155: =AG155 -> 0 | AL155: =AJ155-AK155 -> 0 | AM155: =ROUNDDOWN(AL155*請求書・納品書!$M$13,) -> 0
A156: 連続 | AG156: =SUM(B156:AF156) -> 0 | AH156: 連続 | AL156: =AG156 -> 0 | AM156: =AL156*請求書・納品書!$M$14 -> 0
AL157: 合 計 | AM157: =SUM(AM153:AM156) -> 0
AH158: =A158 -> 0 | AI158: 日数(日) | AJ158: 勤務時間(h) | AK158: 早退（h） | AL158: 合計(h) | AM158: 金額(円)
A159: 残業 | AG159: =SUM(B159:AF159) -> 0 | AH159: 出勤 | AI159: =COUNTIF(B158:AF158,"出") -> 0 | AJ159: =AI159*7.8 -> 0 | AK159: =AG160 -> 0 | AL159: =AJ159-AK159 -> 0 | AM159: =ROUNDDOWN(AL159*請求書・納品書!$M$11,) -> 0
A160: 遅・早(出) | AG160: =SUM(B160:AF160) -> 0 | AH160: 残業 | AL160: =AG159 -> 0 | AM160: =ROUNDDOWN(AL160*請求書・納品書!$M$12,) -> 0
A161: 遅・早(公) | AG161: =SUM(B161:AF161) -> 0 | AH161: 公出 | AI161: =COUNTIF(B158:AF158,"公") -> 0 | AJ161: =AI161*7.8 -> 0 | AK161: =AG161 -> 0 | AL161: =AJ161-AK161 -> 0 | AM161: =ROUNDDOWN(AL161*請求書・納品書!$M$13,) -> 0
A162: 連続 | AG162: =SUM(B162:AF162) -> 0 | AH162: 連続 | AL162: =AG162 -> 0 | AM162: =AL162*請求書・納品書!$M$14 -> 0
AL163: 合 計 | AM163: =SUM(AM159:AM162) -> 0
AH164: =A164 -> 0 | AI164: 日数(日) | AJ164: 勤務時間(h) | AK164: 早退（h） | AL164: 合計(h) | AM164: 金額(円)
A165: 残業 | AG165: =SUM(B165:AF165) -> 0 | AH165: 出勤 | AI165: =COUNTIF(B164:AF164,"出") -> 0 | AJ165: =AI165*7.8 -> 0 | AK165: =AG166 -> 0 | AL165: =AJ165-AK165 -> 0 | AM165: =ROUNDDOWN(AL165*請求書・納品書!$M$11,) -> 0
A166: 遅・早(出) | AG166: =SUM(B166:AF166) -> 0 | AH166: 残業 | AL166: =AG165 -> 0 | AM166: =ROUNDDOWN(AL166*請求書・納品書!$M$12,) -> 0
A167: 遅・早(公) | AG167: =SUM(B167:AF167) -> 0 | AH167: 公出 | AI167: =COUNTIF(B164:AF164,"公") -> 0 | AJ167: =AI167*7.8 -> 0 | AK167: =AG167 -> 0 | AL167: =AJ167-AK167 -> 0 | AM167: =ROUNDDOWN(AL167*請求書・納品書!$M$13,) -> 0
A168: 連続 | AG168: =SUM(B168:AF168) -> 0 | AH168: 連続 | AL168: =AG168 -> 0 | AM168: =AL168*請求書・納品書!$M$14 -> 0
AL169: 合 計 | AM169: =SUM(AM165:AM168) -> 0 | AO169: =AM151+AM157+AM163+AM169 -> 0
AH170: =A170 -> 0 | AI170: 日数(日) | AJ170: 勤務時間(h) | AK170: 早退（h） | AL170: 合計(h) | AM170: 金額(円)
A171: 残業 | AG171: =SUM(B171:AF171) -> 0 | AH171: 出勤 | AI171: =COUNTIF(B170:AF170,"出") -> 0 | AJ171: =AI171*7.8 -> 0 | AK171: =AG172 -> 0 | AL171: =AJ171-AK171 -> 0 | AM171: =ROUNDDOWN(AL171*請求書・納品書!$M$11,) -> 0
A172: 遅・早(出) | AG172: =SUM(B172:AF172) -> 0 | AH172: 残業 | AL172: =AG171 -> 0 | AM172: =ROUNDDOWN(AL172*請求書・納品書!$M$12,) -> 0
A173: 遅・早(公) | AG173: =SUM(B173:AF173) -> 0 | AH173: 公出 | AI173: =COUNTIF(B170:AF170,"公") -> 0 | AJ173: =AI173*7.8 -> 0 | AK173: =AG173 -> 0 | AL173: =AJ173-AK173 -> 0 | AM173: =ROUNDDOWN(AL173*請求書・納品書!$M$13,) -> 0
A174: 連続 | AG174: =SUM(B174:AF174) -> 0 | AH174: 連続 | AL174: =AG174 -> 0 | AM174: =AL174*請求書・納品書!$M$14 -> 0
AL175: 合 計 | AM175: =SUM(AM171:AM174) -> 0
AH176: =A176 -> 0 | AI176: 日数(日) | AJ176: 勤務時間(h) | AK176: 早退（h） | AL176: 合計(h) | AM176: 金額(円)
A177: 残業 | AG177: =SUM(B177:AF177) -> 0 | AH177: 出勤 | AI177: =COUNTIF(B176:AF176,"出") -> 0 | AJ177: =AI177*7.8 -> 0 | AK177: =AG178 -> 0 | AL177: =AJ177-AK177 -> 0 | AM177: =ROUNDDOWN(AL177*請求書・納品書!$M$11,) -> 0
A178: 遅・早(出) | AG178: =SUM(B178:AF178) -> 0 | AH178: 残業 | AL178: =AG177 -> 0 | AM178: =ROUNDDOWN(AL178*請求書・納品書!$M$12,) -> 0
A179: 遅・早(公) | AG179: =SUM(B179:AF179) -> 0 | AH179: 公出 | AI179: =COUNTIF(B176:AF176,"公") -> 0 | AJ179: =AI179*7.8 -> 0 | AK179: =AG179 -> 0 | AL179: =AJ179-AK179 -> 0 | AM179: =ROUNDDOWN(AL179*請求書・納品書!$M$13,) -> 0
A180: 連続 | AG180: =SUM(B180:AF180) -> 0 | AH180: 連続 | AL180: =AG180 -> 0 | AM180: =AL180*請求書・納品書!$M$14 -> 0
AL181: 合 計 | AM181: =SUM(AM177:AM180) -> 0
AH182: =A182 -> 0 | AI182: 日数(日) | AJ182: 勤務時間(h) | AK182: 早退（h） | AL182: 合計(h) | AM182: 金額(円)
A183: 残業 | AG183: =SUM(B183:AF183) -> 0 | AH183: 出勤 | AI183: =COUNTIF(B182:AF182,"出") -> 0 | AJ183: =AI183*7.8 -> 0 | AK183: =AG184 -> 0 | AL183: =AJ183-AK183 -> 0 | AM183: =ROUNDDOWN(AL183*請求書・納品書!$M$11,) -> 0
A184: 遅・早(出) | AG184: =SUM(B184:AF184) -> 0 | AH184: 残業 | AL184: =AG183 -> 0 | AM184: =ROUNDDOWN(AL184*請求書・納品書!$M$12,) -> 0
A185: 遅・早(公) | AG185: =SUM(B185:AF185) -> 0 | AH185: 公出 | AI185: =COUNTIF(B182:AF182,"公") -> 0 | AJ185: =AI185*7.8 -> 0 | AK185: =AG185 -> 0 | AL185: =AJ185-AK185 -> 0 | AM185: =ROUNDDOWN(AL185*請求書・納品書!$M$13,) -> 0
A186: 連続 | AG186: =SUM(B186:AF186) -> 0 | AH186: 連続 | AL186: =AG186 -> 0 | AM186: =AL186*請求書・納品書!$M$14 -> 0
AL187: 合 計 | AM187: =SUM(AM183:AM186) -> 0
AH188: =A188 -> 0 | AI188: 日数(日) | AJ188: 勤務時間(h) | AK188: 早退（h） | AL188: 合計(h) | AM188: 金額(円)
A189: 残業 | AG189: =SUM(B189:AF189) -> 0 | AH189: 出勤 | AI189: =COUNTIF(B188:AF188,"出") -> 0 | AJ189: =AI189*7.8 -> 0 | AK189: =AG190 -> 0 | AL189: =AJ189-AK189 -> 0 | AM189: =ROUNDDOWN(AL189*請求書・納品書!$M$11,) -> 0
A190: 遅・早(出) | AG190: =SUM(B190:AF190) -> 0 | AH190: 残業 | AL190: =AG189 -> 0 | AM190: =ROUNDDOWN(AL190*請求書・納品書!$M$12,) -> 0
A191: 遅・早(公) | AG191: =SUM(B191:AF191) -> 0 | AH191: 公出 | AI191: =COUNTIF(B188:AF188,"公") -> 0 | AJ191: =AI191*7.8 -> 0 | AK191: =AG191 -> 0 | AL191: =AJ191-AK191 -> 0 | AM191: =ROUNDDOWN(AL191*請求書・納品書!$M$13,) -> 0
A192: 連続 | AG192: =SUM(B192:AF192) -> 0 | AH192: 連続 | AL192: =AG192 -> 0 | AM192: =AL192*請求書・納品書!$M$14 -> 0
AL193: 合 計 | AM193: =SUM(AM189:AM192) -> 0 | AO193: =AM175+AM181+AM187+AM193 -> 0

Sheet 3
A1: ='4'!A1+1 -> 2011 | B1: 1 | C1: 2 | D1: 3 | E1: 4 | F1: 5 | G1: 6 | H1: 7 | I1: 8 | J1: 9 | K1: 10 | L1: 11 | M1: 12 | N1: 13 | O1: 14 | P1: 15 | Q1: 16 | R1: 17 | S1: 18 | T1: 19 | U1: 20 | V1: 21 | W1: 22 | X1: 23 | Y1: 24 | Z1: 25 | AA1: 26 | AB1: 27 | AC1: 28 | AD1: 29 | AE1: 30 | AF1: 31 | AG1: 計 | AH1: =A1&"年"&MID(CELL("filename",$A$1),FIND("]",CELL("filename",$A$1))+1,31) &"月" -> 2011年3月
AH2: =A2 -> 0 | AI2: 日数(日) | AJ2: 勤務時間(h) | AK2: 早退（h） | AL2: 合計(h) | AM2: 金額(円) | AN2: 出 | AO2: 合計 | AP2: =SUM(AM:AM)/2 -> 0
A3: 残業 | AG3: =SUM(B3:AF3) -> 0 | AH3: 出勤 | AI3: =COUNTIF(B2:AF2,"出") -> 0 | AJ3: =AI3*7.8 -> 0 | AK3: =AG4 -> 0 | AL3: =AJ3-AK3 -> 0 | AM3: =ROUNDDOWN(AL3*請求書・納品書!$M$11,) -> 0 | AN3: 公 | AO3: 人数 | AP3: =COUNTA(AH:AH)-COUNTIF(AH:AH,0)-32*4-1 -> 0
A4: 遅・早(出) | AG4: =SUM(B4:AF4) -> 0 | AH4: 残業 | AL4: =AG3 -> 0 | AM4: =ROUNDDOWN(AL4*請求書・納品書!$M$12,) -> 0 | AN4: 欠 | AO4: 管理費 | AP4: =(AP3-AP9)*19400 -> 0
A5: 遅・早(公) | AG5: =SUM(B5:AF5) -> 0 | AH5: 公出 | AI5: =COUNTIF(B2:AF2,"公") -> 0 | AJ5: =AI5*7.8 -> 0 | AK5: =AG5 -> 0 | AL5: =AJ5-AK5 -> 0 | AM5: =ROUNDDOWN(AL5*請求書・納品書!$M$13,) -> 0 | AN5: 有 | AO5: 小計 | AP5: =AP2+AP4 -> 0
A6: 連続 | AG6: =SUM(B6:AF6) -> 0 | AH6: 連続 | AL6: =AG6 -> 0 | AM6: =AL6*請求書・納品書!$M$14 -> 0 | AN6: 半 | AO6: 消費税 | AP6: =ROUNDDOWN(AP5*0.05,) -> 0
AL7: 合 計 | AM7: =SUM(AM3:AM6) -> 0 | AO7: 総合計 | AP7: =AP5+AP6 -> 0
AH8: =A8 -> 0 | AI8: 日数(日) | AJ8: 勤務時間(h) | AK8: 早退（h） | AL8: 合計(h) | AM8: 金額(円)
A9: 残業 | AG9: =SUM(B9:AF9) -> 0 | AH9: 出勤 | AI9: =COUNTIF(B8:AF8,"出") -> 0 | AJ9: =AI9*7.8 -> 0 | AK9: =AG10 -> 0 | AL9: =AJ9-AK9 -> 0 | AM9: =ROUNDDOWN(AL9*請求書・納品書!$M$11,) -> 0 | AO9: 管理費に入れない人数
A10: 遅・早(出) | AG10: =SUM(B10:AF10) -> 0 | AH10: 残業 | AL10: =AG9 -> 0 | AM10: =ROUNDDOWN(AL10*請求書・納品書!$M$12,) -> 0
A11: 遅・早(公) | AG11: =SUM(B11:AF11) -> 0 | AH11: 公出 | AI11: =COUNTIF(B8:AF8,"公") -> 0 | AJ11: =AI11*7.8 -> 0 | AK11: =AG11 -> 0 | AL11: =AJ11-AK11 -> 0 | AM11: =ROUNDDOWN(AL11*請求書・納品書!$M$13,) -> 0
A12: 連続 | AG12: =SUM(B12:AF12) -> 0 | AH12: 連続 | AL12: =AG12 -> 0 | AM12: =AL12*請求書・納品書!$M$14 -> 0
AL13: 合 計 | AM13: =SUM(AM9:AM12) -> 0
AH14: =A14 -> 0 | AI14: 日数(日) | AJ14: 勤務時間(h) | AK14: 早退（h） | AL14: 合計(h) | AM14: 金額(円)
A15: 残業 | AG15: =SUM(B15:AF15) -> 0 | AH15: 出勤 | AI15: =COUNTIF(B14:AF14,"出") -> 0 | AJ15: =AI15*7.8 -> 0 | AK15: =AG16 -> 0 | AL15: =AJ15-AK15 -> 0 | AM15: =ROUNDDOWN(AL15*請求書・納品書!$M$11,) -> 0
A16: 遅・早(出) | AG16: =SUM(B16:AF16) -> 0 | AH16: 残業 | AL16: =AG15 -> 0 | AM16: =ROUNDDOWN(AL16*請求書・納品書!$M$12,) -> 0
A17: 遅・早(公) | AG17: =SUM(B17:AF17) -> 0 | AH17: 公出 | AI17: =COUNTIF(B14:AF14,"公") -> 0 | AJ17: =AI17*7.8 -> 0 | AK17: =AG17 -> 0 | AL17: =AJ17-AK17 -> 0 | AM17: =ROUNDDOWN(AL17*請求書・納品書!$M$13,) -> 0
A18: 連続 | AG18: =SUM(B18:AF18) -> 0 | AH18: 連続 | AL18: =AG18 -> 0 | AM18: =AL18*請求書・納品書!$M$14 -> 0
AL19: 合 計 | AM19: =SUM(AM15:AM18) -> 0
AH20: =A20 -> 0 | AI20: 日数(日) | AJ20: 勤務時間(h) | AK20: 早退（h） | AL20: 合計(h) | AM20: 金額(円)
A21: 残業 | AG21: =SUM(B21:AF21) -> 0 | AH21: 出勤 | AI21: =COUNTIF(B20:AF20,"出") -> 0 | AJ21: =AI21*7.8 -> 0 | AK21: =AG22 -> 0 | AL21: =AJ21-AK21 -> 0 | AM21: =ROUNDDOWN(AL21*請求書・納品書!$M$11,) -> 0
A22: 遅・早(出) | AG22: =SUM(B22:AF22) -> 0 | AH22: 残業 | AL22: =AG21 -> 0 | AM22: =ROUNDDOWN(AL22*請求書・納品書!$M$12,) -> 0
A23: 遅・早(公) | AG23: =SUM(B23:AF23) -> 0 | AH23: 公出 | AI23: =COUNTIF(B20:AF20,"公") -> 0 | AJ23: =AI23*7.8 -> 0 | AK23: =AG23 -> 0 | AL23: =AJ23-AK23 -> 0 | AM23: =ROUNDDOWN(AL23*請求書・納品書!$M$13,) -> 0
A24: 連続 | AG24: =SUM(B24:AF24) -> 0 | AH24: 連続 | AL24: =AG24 -> 0 | AM24: =AL24*請求書・納品書!$M$14 -> 0
AL25: 合 計 | AM25: =SUM(AM21:AM24) -> 0 | AO25: =AM7+AM13+AM19+AM25 -> 0
AH26: =A26 -> 0 | AI26: 日数(日) | AJ26: 勤務時間(h) | AK26: 早退（h） | AL26: 合計(h) | AM26: 金額(円)
A27: 残業 | AG27: =SUM(B27:AF27) -> 0 | AH27: 出勤 | AI27: =COUNTIF(B26:AF26,"出") -> 0 | AJ27: =AI27*7.8 -> 0 | AK27: =AG28 -> 0 | AL27: =AJ27-AK27 -> 0 | AM27: =ROUNDDOWN(AL27*請求書・納品書!$M$11,) -> 0
A28: 遅・早(出) | AG28: =SUM(B28:AF28) -> 0 | AH28: 残業 | AL28: =AG27 -> 0 | AM28: =ROUNDDOWN(AL28*請求書・納品書!$M$12,) -> 0
A29: 遅・早(公) | AG29: =SUM(B29:AF29) -> 0 | AH29: 公出 | AI29: =COUNTIF(B26:AF26,"公") -> 0 | AJ29: =AI29*7.8 -> 0 | AK29: =AG29 -> 0 | AL29: =AJ29-AK29 -> 0 | AM29: =ROUNDDOWN(AL29*請求書・納品書!$M$13,) -> 0
A30: 連続 | AG30: =SUM(B30:AF30) -> 0 | AH30: 連続 | AL30: =AG30 -> 0 | AM30: =AL30*請求書・納品書!$M$14 -> 0
AL31: 合 計 | AM31: =SUM(AM27:AM30) -> 0
AH32: =A32 -> 0 | AI32: 日数(日) | AJ32: 勤務時間(h) | AK32: 早退（h） | AL32: 合計(h) | AM32: 金額(円)
A33: 残業 | AG33: =SUM(B33:AF33) -> 0 | AH33: 出勤 | AI33: =COUNTIF(B32:AF32,"出") -> 0 | AJ33: =AI33*7.8 -> 0 | AK33: =AG34 -> 0 | AL33: =AJ33-AK33 -> 0 | AM33: =ROUNDDOWN(AL33*請求書・納品書!$M$11,) -> 0
A34: 遅・早(出) | AG34: =SUM(B34:AF34) -> 0 | AH34: 残業 | AL34: =AG33 -> 0 | AM34: =ROUNDDOWN(AL34*請求書・納品書!$M$12,) -> 0
A35: 遅・早(公) | AG35: =SUM(B35:AF35) -> 0 | AH35: 公出 | AI35: =COUNTIF(B32:AF32,"公") -> 0 | AJ35: =AI35*7.8 -> 0 | AK35: =AG35 -> 0 | AL35: =AJ35-AK35 -> 0 | AM35: =ROUNDDOWN(AL35*請求書・納品書!$M$13,) -> 0
A36: 連続 | AG36: =SUM(B36:AF36) -> 0 | AH36: 連続 | AL36: =AG36 -> 0 | AM36: =AL36*請求書・納品書!$M$14 -> 0
AL37: 合 計 | AM37: =SUM(AM33:AM36) -> 0
AH38: =A38 -> 0 | AI38: 日数(日) | AJ38: 勤務時間(h) | AK38: 早退（h） | AL38: 合計(h) | AM38: 金額(円)
A39: 残業 | AG39: =SUM(B39:AF39) -> 0 | AH39: 出勤 | AI39: =COUNTIF(B38:AF38,"出") -> 0 | AJ39: =AI39*7.8 -> 0 | AK39: =AG40 -> 0 | AL39: =AJ39-AK39 -> 0 | AM39: =ROUNDDOWN(AL39*請求書・納品書!$M$11,) -> 0
A40: 遅・早(出) | AG40: =SUM(B40:AF40) -> 0 | AH40: 残業 | AL40: =AG39 -> 0 | AM40: =ROUNDDOWN(AL40*請求書・納品書!$M$12,) -> 0
A41: 遅・早(公) | AG41: =SUM(B41:AF41) -> 0 | AH41: 公出 | AI41: =COUNTIF(B38:AF38,"公") -> 0 | AJ41: =AI41*7.8 -> 0 | AK41: =AG41 -> 0 | AL41: =AJ41-AK41 -> 0 | AM41: =ROUNDDOWN(AL41*請求書・納品書!$M$13,) -> 0
A42: 連続 | AG42: =SUM(B42:AF42) -> 0 | AH42: 連続 | AL42: =AG42 -> 0 | AM42: =AL42*請求書・納品書!$M$14 -> 0
AL43: 合 計 | AM43: =SUM(AM39:AM42) -> 0
AH44: =A44 -> 0 | AI44: 日数(日) | AJ44: 勤務時間(h) | AK44: 早退（h） | AL44: 合計(h) | AM44: 金額(円)
A45: 残業 | AG45: =SUM(B45:AF45) -> 0 | AH45: 出勤 | AI45: =COUNTIF(B44:AF44,"出") -> 0 | AJ45: =AI45*7.8 -> 0 | AK45: =AG46 -> 0 | AL45: =AJ45-AK45 -> 0 | AM45: =ROUNDDOWN(AL45*請求書・納品書!$M$11,) -> 0
A46: 遅・早(出) | AG46: =SUM(B46:AF46) -> 0 | AH46: 残業 | AL46: =AG45 -> 0 | AM46: =ROUNDDOWN(AL46*請求書・納品書!$M$12,) -> 0
A47: 遅・早(公) | AG47: =SUM(B47:AF47) -> 0 | AH47: 公出 | AI47: =COUNTIF(B44:AF44,"公") -> 0 | AJ47: =AI47*7.8 -> 0 | AK47: =AG47 -> 0 | AL47: =AJ47-AK47 -> 0 | AM47: =ROUNDDOWN(AL47*請求書・納品書!$M$13,) -> 0
A48: 連続 | AG48: =SUM(B48:AF48) -> 0 | AH48: 連続 | AL48: =AG48 -> 0 | AM48: =AL48*請求書・納品書!$M$14 -> 0
AL49: 合 計 | AM49: =SUM(AM45:AM48) -> 0 | AO49: =AM31+AM37+AM43+AM49 -> 0
AH50: =A50 -> 0 | AI50: 日数(日) | AJ50: 勤務時間(h) | AK50: 早退（h） | AL50: 合計(h) | AM50: 金額(円)
A51: 残業 | AG51: =SUM(B51:AF51) -> 0 | AH51: 出勤 | AI51: =COUNTIF(B50:AF50,"出") -> 0 | AJ51: =AI51*7.8 -> 0 | AK51: =AG52 -> 0 | AL51: =AJ51-AK51 -> 0 | AM51: =ROUNDDOWN(AL51*請求書・納品書!$M$11,) -> 0
A52: 遅・早(出) | AG52: =SUM(B52:AF52) -> 0 | AH52: 残業 | AL52: =AG51 -> 0 | AM52: =ROUNDDOWN(AL52*請求書・納品書!$M$12,) -> 0
A53: 遅・早(公) | AG53: =SUM(B53:AF53) -> 0 | AH53: 公出 | AI53: =COUNTIF(B50:AF50,"公") -> 0 | AJ53: =AI53*7.8 -> 0 | AK53: =AG53 -> 0 | AL53: =AJ53-AK53 -> 0 | AM53: =ROUNDDOWN(AL53*請求書・納品書!$M$13,) -> 0
A54: 連続 | AG54: =SUM(B54:AF54) -> 0 | AH54: 連続 | AL54: =AG54 -> 0 | AM54: =AL54*請求書・納品書!$M$14 -> 0
AL55: 合 計 | AM55: =SUM(AM51:AM54) -> 0
AH56: =A56 -> 0 | AI56: 日数(日) | AJ56: 勤務時間(h) | AK56: 早退（h） | AL56: 合計(h) | AM56: 金額(円)
A57: 残業 | AG57: =SUM(B57:AF57) -> 0 | AH57: 出勤 | AI57: =COUNTIF(B56:AF56,"出") -> 0 | AJ57: =AI57*7.8 -> 0 | AK57: =AG58 -> 0 | AL57: =AJ57-AK57 -> 0 | AM57: =ROUNDDOWN(AL57*請求書・納品書!$M$11,) -> 0
A58: 遅・早(出) | AG58: =SUM(B58:AF58) -> 0 | AH58: 残業 | AL58: =AG57 -> 0 | AM58: =ROUNDDOWN(AL58*請求書・納品書!$M$12,) -> 0
A59: 遅・早(公) | AG59: =SUM(B59:AF59) -> 0 | AH59: 公出 | AI59: =COUNTIF(B56:AF56,"公") -> 0 | AJ59: =AI59*7.8 -> 0 | AK59: =AG59 -> 0 | AL59: =AJ59-AK59 -> 0 | AM59: =ROUNDDOWN(AL59*請求書・納品書!$M$13,) -> 0
A60: 連続 | AG60: =SUM(B60:AF60) -> 0 | AH60: 連続 | AL60: =AG60 -> 0 | AM60: =AL60*請求書・納品書!$M$14 -> 0
AL61: 合 計 | AM61: =SUM(AM57:AM60) -> 0
AH62: =A62 -> 0 | AI62: 日数(日) | AJ62: 勤務時間(h) | AK62: 早退（h） | AL62: 合計(h) | AM62: 金額(円)
A63: 残業 | AG63: =SUM(B63:AF63) -> 0 | AH63: 出勤 | AI63: =COUNTIF(B62:AF62,"出") -> 0 | AJ63: =AI63*7.8 -> 0 | AK63: =AG64 -> 0 | AL63: =AJ63-AK63 -> 0 | AM63: =ROUNDDOWN(AL63*請求書・納品書!$M$11,) -> 0
A64: 遅・早(出) | AG64: =SUM(B64:AF64) -> 0 | AH64: 残業 | AL64: =AG63 -> 0 | AM64: =ROUNDDOWN(AL64*請求書・納品書!$M$12,) -> 0
A65: 遅・早(公) | AG65: =SUM(B65:AF65) -> 0 | AH65: 公出 | AI65: =COUNTIF(B62:AF62,"公") -> 0 | AJ65: =AI65*7.8 -> 0 | AK65: =AG65 -> 0 | AL65: =AJ65-AK65 -> 0 | AM65: =ROUNDDOWN(AL65*請求書・納品書!$M$13,) -> 0
A66: 連続 | AG66: =SUM(B66:AF66) -> 0 | AH66: 連続 | AL66: =AG66 -> 0 | AM66: =AL66*請求書・納品書!$M$14 -> 0
AL67: 合 計 | AM67: =SUM(AM63:AM66) -> 0
AH68: =A68 -> 0 | AI68: 日数(日) | AJ68: 勤務時間(h) | AK68: 早退（h） | AL68: 合計(h) | AM68: 金額(円)
A69: 残業 | AG69: =SUM(B69:AF69) -> 0 | AH69: 出勤 | AI69: =COUNTIF(B68:AF68,"出") -> 0 | AJ69: =AI69*7.8 -> 0 | AK69: =AG70 -> 0 | AL69: =AJ69-AK69 -> 0 | AM69: =ROUNDDOWN(AL69*請求書・納品書!$M$11,) -> 0
A70: 遅・早(出) | AG70: =SUM(B70:AF70) -> 0 | AH70: 残業 | AL70: =AG69 -> 0 | AM70: =ROUNDDOWN(AL70*請求書・納品書!$M$12,) -> 0
A71: 遅・早(公) | AG71: =SUM(B71:AF71) -> 0 | AH71: 公出 | AI71: =COUNTIF(B68:AF68,"公") -> 0 | AJ71: =AI71*7.8 -> 0 | AK71: =AG71 -> 0 | AL71: =AJ71-AK71 -> 0 | AM71: =ROUNDDOWN(AL71*請求書・納品書!$M$13,) -> 0
A72: 連続 | AG72: =SUM(B72:AF72) -> 0 | AH72: 連続 | AL72: =AG72 -> 0 | AM72: =AL72*請求書・納品書!$M$14 -> 0
AL73: 合 計 | AM73: =SUM(AM69:AM72) -> 0 | AO73: =AM55+AM61+AM67+AM73 -> 0
AH74: =A74 -> 0 | AI74: 日数(日) | AJ74: 勤務時間(h) | AK74: 早退（h） | AL74: 合計(h) | AM74: 金額(円)
A75: 残業 | AG75: =SUM(B75:AF75) -> 0 | AH75: 出勤 | AI75: =COUNTIF(B74:AF74,"出") -> 0 | AJ75: =AI75*7.8 -> 0 | AK75: =AG76 -> 0 | AL75: =AJ75-AK75 -> 0 | AM75: =ROUNDDOWN(AL75*請求書・納品書!$M$11,) -> 0
A76: 遅・早(出) | AG76: =SUM(B76:AF76) -> 0 | AH76: 残業 | AL76: =AG75 -> 0 | AM76: =ROUNDDOWN(AL76*請求書・納品書!$M$12,) -> 0
A77: 遅・早(公) | AG77: =SUM(B77:AF77) -> 0 | AH77: 公出 | AI77: =COUNTIF(B74:AF74,"公") -> 0 | AJ77: =AI77*7.8 -> 0 | AK77: =AG77 -> 0 | AL77: =AJ77-AK77 -> 0 | AM77: =ROUNDDOWN(AL77*請求書・納品書!$M$13,) -> 0
A78: 連続 | AG78: =SUM(B78:AF78) -> 0 | AH78: 連続 | AL78: =AG78 -> 0 | AM78: =AL78*請求書・納品書!$M$14 -> 0
AL79: 合 計 | AM79: =SUM(AM75:AM78) -> 0
AH80: =A80 -> 0 | AI80: 日数(日) | AJ80: 勤務時間(h) | AK80: 早退（h） | AL80: 合計(h) | AM80: 金額(円)
A81: 残業 | AG81: =SUM(B81:AF81) -> 0 | AH81: 出勤 | AI81: =COUNTIF(B80:AF80,"出") -> 0 | AJ81: =AI81*7.8 -> 0 | AK81: =AG82 -> 0 | AL81: =AJ81-AK81 -> 0 | AM81: =ROUNDDOWN(AL81*請求書・納品書!$M$11,) -> 0
A82: 遅・早(出) | AG82: =SUM(B82:AF82) -> 0 | AH82: 残業 | AL82: =AG81 -> 0 | AM82: =ROUNDDOWN(AL82*請求書・納品書!$M$12,) -> 0
A83: 遅・早(公) | AG83: =SUM(B83:AF83) -> 0 | AH83: 公出 | AI83: =COUNTIF(B80:AF80,"公") -> 0 | AJ83: =AI83*7.8 -> 0 | AK83: =AG83 -> 0 | AL83: =AJ83-AK83 -> 0 | AM83: =ROUNDDOWN(AL83*請求書・納品書!$M$13,) -> 0
A84: 連続 | AG84: =SUM(B84:AF84) -> 0 | AH84: 連続 | AL84: =AG84 -> 0 | AM84: =AL84*請求書・納品書!$M$14 -> 0
AL85: 合 計 | AM85: =SUM(AM81:AM84) -> 0
AH86: =A86 -> 0 | AI86: 日数(日) | AJ86: 勤務時間(h) | AK86: 早退（h） | AL86: 合計(h) | AM86: 金額(円)
A87: 残業 | AG87: =SUM(B87:AF87) -> 0 | AH87: 出勤 | AI87: =COUNTIF(B86:AF86,"出") -> 0 | AJ87: =AI87*7.8 -> 0 | AK87: =AG88 -> 0 | AL87: =AJ87-AK87 -> 0 | AM87: =ROUNDDOWN(AL87*請求書・納品書!$M$11,) -> 0
A88: 遅・早(出) | AG88: =SUM(B88:AF88) -> 0 | AH88: 残業 | AL88: =AG87 -> 0 | AM88: =ROUNDDOWN(AL88*請求書・納品書!$M$12,) -> 0
A89: 遅・早(公) | AG89: =SUM(B89:AF89) -> 0 | AH89: 公出 | AI89: =COUNTIF(B86:AF86,"公") -> 0 | AJ89: =AI89*7.8 -> 0 | AK89: =AG89 -> 0 | AL89: =AJ89-AK89 -> 0 | AM89: =ROUNDDOWN(AL89*請求書・納品書!$M$13,) -> 0
A90: 連続 | AG90: =SUM(B90:AF90) -> 0 | AH90: 連続 | AL90: =AG90 -> 0 | AM90: =AL90*請求書・納品書!$M$14 -> 0
AL91: 合 計 | AM91: =SUM(AM87:AM90) -> 0
AH92: =A92 -> 0 | AI92: 日数(日) | AJ92: 勤務時間(h) | AK92: 早退（h） | AL92: 合計(h) | AM92: 金額(円)
A93: 残業 | AG93: =SUM(B93:AF93) -> 0 | AH93: 出勤 | AI93: =COUNTIF(B92:AF92,"出") -> 0 | AJ93: =AI93*7.8 -> 0 | AK93: =AG94 -> 0 | AL93: =AJ93-AK93 -> 0 | AM93: =ROUNDDOWN(AL93*請求書・納品書!$M$11,) -> 0
A94: 遅・早(出) | AG94: =SUM(B94:AF94) -> 0 | AH94: 残業 | AL94: =AG93 -> 0 | AM94: =ROUNDDOWN(AL94*請求書・納品書!$M$12,) -> 0
A95: 遅・早(公) | AG95: =SUM(B95:AF95) -> 0 | AH95: 公出 | AI95: =COUNTIF(B92:AF92,"公") -> 0 | AJ95: =AI95*7.8 -> 0 | AK95: =AG95 -> 0 | AL95: =AJ95-AK95 -> 0 | AM95: =ROUNDDOWN(AL95*請求書・納品書!$M$13,) -> 0
A96: 連続 | AG96: =SUM(B96:AF96) -> 0 | AH96: 連続 | AL96: =AG96 -> 0 | AM96: =AL96*請求書・納品書!$M$14 -> 0
AL97: 合 計 | AM97: =SUM(AM93:AM96) -> 0 | AO97: =AM79+AM85+AM91+AM97 -> 0
AH98: =A98 -> 0 | AI98: 日数(日) | AJ98: 勤務時間(h) | AK98: 早退（h） | AL98: 合計(h) | AM98: 金額(円)
A99: 残業 | AG99: =SUM(B99:AF99) -> 0 | AH99: 出勤 | AI99: =COUNTIF(B98:AF98,"出") -> 0 | AJ99: =AI99*7.8 -> 0 | AK99: =AG100 -> 0 | AL99: =AJ99-AK99 -> 0 | AM99: =ROUNDDOWN(AL99*請求書・納品書!$M$11,) -> 0
A100: 遅・早(出) | AG100: =SUM(B100:AF100) -> 0 | AH100: 残業 | AL100: =AG99 -> 0 | AM100: =ROUNDDOWN(AL100*請求書・納品書!$M$12,) -> 0
A101: 遅・早(公) | AG101: =SUM(B101:AF101) -> 0 | AH101: 公出 | AI101: =COUNTIF(B98:AF98,"公") -> 0 | AJ101: =AI101*7.8 -> 0 | AK101: =AG101 -> 0 | AL101: =AJ101-AK101 -> 0 | AM101: =ROUNDDOWN(AL101*請求書・納品書!$M$13,) -> 0
A102: 連続 | AG102: =SUM(B102:AF102) -> 0 | AH102: 連続 | AL102: =AG102 -> 0 | AM102: =AL102*請求書・納品書!$M$14 -> 0
AL103: 合 計 | AM103: =SUM(AM99:AM102) -> 0
AH104: =A104 -> 0 | AI104: 日数(日) | AJ104: 勤務時間(h) | AK104: 早退（h） | AL104: 合計(h) | AM104: 金額(円)
A105: 残業 | AG105: =SUM(B105:AF105) -> 0 | AH105: 出勤 | AI105: =COUNTIF(B104:AF104,"出") -> 0 | AJ105: =AI105*7.8 -> 0 | AK105: =AG106 -> 0 | AL105: =AJ105-AK105 -> 0 | AM105: =ROUNDDOWN(AL105*請求書・納品書!$M$11,) -> 0
A106: 遅・早(出) | AG106: =SUM(B106:AF106) -> 0 | AH106: 残業 | AL106: =AG105 -> 0 | AM106: =ROUNDDOWN(AL106*請求書・納品書!$M$12,) -> 0
A107: 遅・早(公) | AG107: =SUM(B107:AF107) -> 0 | AH107: 公出 | AI107: =COUNTIF(B104:AF104,"公") -> 0 | AJ107: =AI107*7.8 -> 0 | AK107: =AG107 -> 0 | AL107: =AJ107-AK107 -> 0 | AM107: =ROUNDDOWN(AL107*請求書・納品書!$M$13,) -> 0
A108: 連続 | AG108: =SUM(B108:AF108) -> 0 | AH108: 連続 | AL108: =AG108 -> 0 | AM108: =AL108*請求書・納品書!$M$14 -> 0
AL109: 合 計 | AM109: =SUM(AM105:AM108) -> 0
AH110: =A110 -> 0 | AI110: 日数(日) | AJ110: 勤務時間(h) | AK110: 早退（h） | AL110: 合計(h) | AM110: 金額(円)
A111: 残業 | AG111: =SUM(B111:AF111) -> 0 | AH111: 出勤 | AI111: =COUNTIF(B110:AF110,"出") -> 0 | AJ111: =AI111*7.8 -> 0 | AK111: =AG112 -> 0 | AL111: =AJ111-AK111 -> 0 | AM111: =ROUNDDOWN(AL111*請求書・納品書!$M$11,) -> 0
A112: 遅・早(出) | AG112: =SUM(B112:AF112) -> 0 | AH112: 残業 | AL112: =AG111 -> 0 | AM112: =ROUNDDOWN(AL112*請求書・納品書!$M$12,) -> 0
A113: 遅・早(公) | AG113: =SUM(B113:AF113) -> 0 | AH113: 公出 | AI113: =COUNTIF(B110:AF110,"公") -> 0 | AJ113: =AI113*7.8 -> 0 | AK113: =AG113 -> 0 | AL113: =AJ113-AK113 -> 0 | AM113: =ROUNDDOWN(AL113*請求書・納品書!$M$13,) -> 0
A114: 連続 | AG114: =SUM(B114:AF114) -> 0 | AH114: 連続 | AL114: =AG114 -> 0 | AM114: =AL114*請求書・納品書!$M$14 -> 0
AL115: 合 計 | AM115: =SUM(AM111:AM114) -> 0
AH116: =A116 -> 0 | AI116: 日数(日) | AJ116: 勤務時間(h) | AK116: 早退（h） | AL116: 合計(h) | AM116: 金額(円)
A117: 残業 | AG117: =SUM(B117:AF117) -> 0 | AH117: 出勤 | AI117: =COUNTIF(B116:AF116,"出") -> 0 | AJ117: =AI117*7.8 -> 0 | AK117: =AG118 -> 0 | AL117: =AJ117-AK117 -> 0 | AM117: =ROUNDDOWN(AL117*請求書・納品書!$M$11,) -> 0
A118: 遅・早(出) | AG118: =SUM(B118:AF118) -> 0 | AH118: 残業 | AL118: =AG117 -> 0 | AM118: =ROUNDDOWN(AL118*請求書・納品書!$M$12,) -> 0
A119: 遅・早(公) | AG119: =SUM(B119:AF119) -> 0 | AH119: 公出 | AI119: =COUNTIF(B116:AF116,"公") -> 0 | AJ119: =AI119*7.8 -> 0 | AK119: =AG119 -> 0 | AL119: =AJ119-AK119 -> 0 | AM119: =ROUNDDOWN(AL119*請求書・納品書!$M$13,) -> 0
A120: 連続 | AG120: =SUM(B120:AF120) -> 0 | AH120: 連続 | AL120: =AG120 -> 0 | AM120: =AL120*請求書・納品書!$M$14 -> 0
AL121: 合 計 | AM121: =SUM(AM117:AM120) -> 0 | AO121: =AM103+AM109+AM115+AM121 -> 0
AH122: =A122 -> 0 | AI122: 日数(日) | AJ122: 勤務時間(h) | AK122: 早退（h） | AL122: 合計(h) | AM122: 金額(円)
A123: 残業 | AG123: =SUM(B123:AF123) -> 0 | AH123: 出勤 | AI123: =COUNTIF(B122:AF122,"出") -> 0 | AJ123: =AI123*7.8 -> 0 | AK123: =AG124 -> 0 | AL123: =AJ123-AK123 -> 0 | AM123: =ROUNDDOWN(AL123*請求書・納品書!$M$11,) -> 0
A124: 遅・早(出) | AG124: =SUM(B124:AF124) -> 0 | AH124: 残業 | AL124: =AG123 -> 0 | AM124: =ROUNDDOWN(AL124*請求書・納品書!$M$12,) -> 0
A125: 遅・早(公) | AG125: =SUM(B125:AF125) -> 0 | AH125: 公出 | AI125: =COUNTIF(B122:AF122,"公") -> 0 | AJ125: =AI125*7.8 -> 0 | AK125: =AG125 -> 0 | AL125: =AJ125-AK125 -> 0 | AM125: =ROUNDDOWN(AL125*請求書・納品書!$M$13,) -> 0
A126: 連続 | AG126: =SUM(B126:AF126) -> 0 | AH126: 連続 | AL126: =AG126 -> 0 | AM126: =AL126*請求書・納品書!$M$14 -> 0
AL127: 合 計 | AM127: =SUM(AM123:AM126) -> 0
AH128: =A128 -> 0 | AI128: 日数(日) | AJ128: 勤務時間(h) | AK128: 早退（h） | AL128: 合計(h) | AM128: 金額(円)
A129: 残業 | AG129: =SUM(B129:AF129) -> 0 | AH129: 出勤 | AI129: =COUNTIF(B128:AF128,"出") -> 0 | AJ129: =AI129*7.8 -> 0 | AK129: =AG130 -> 0 | AL129: =AJ129-AK129 -> 0 | AM129: =ROUNDDOWN(AL129*請求書・納品書!$M$11,) -> 0
A130: 遅・早(出) | AG130: =SUM(B130:AF130) -> 0 | AH130: 残業 | AL130: =AG129 -> 0 | AM130: =ROUNDDOWN(AL130*請求書・納品書!$M$12,) -> 0
A131: 遅・早(公) | AG131: =SUM(B131:AF131) -> 0 | AH131: 公出 | AI131: =COUNTIF(B128:AF128,"公") -> 0 | AJ131: =AI131*7.8 -> 0 | AK131: =AG131 -> 0 | AL131: =AJ131-AK131 -> 0 | AM131: =ROUNDDOWN(AL131*請求書・納品書!$M$13,) -> 0
A132: 連続 | AG132: =SUM(B132:AF132) -> 0 | AH132: 連続 | AL132: =AG132 -> 0 | AM132: =AL132*請求書・納品書!$M$14 -> 0
AL133: 合 計 | AM133: =SUM(AM129:AM132) -> 0
